Workbook

Sheet Information
A1: =Formula!A69 -> Tidsplan
A3: Syfte och användningssätt
A4: Syfte | B4: Stöd för sammanställning av Gantt-schemor med dag- eller veckoskala
B5: · Ger en grafisk bild av tidsplanen
B6: · Kan nyttjas för sammanställning av arbetstid.
B7: · Ger underlag för uppföljning
A9: När den kan användas | B9: Vid detaljplanering, när aktivitetslistan inte ger tillräckligt stöd
B10: Kan även användas som projekttidsplan för mindre komplexa projekt.
A11: Vem som kan använda den | B11: Projektledning, delprojektledning
A13: Referens till mer information | B13: Färdigheterna: Detaljplanering (AH007), Tidsplanering(AH151)
A14: Funktionalitet
A15: Instruktion om hur den fungerar | B15: 1. Välj dagskala eller veckoskala.
B16: 2. Ange start- och slutdatum för planeringsperioden. OBS! Startdatum måste vara en måndag. Om datumen ändras efter det att aktiviteter lagts till påverkas endast tidsskalan, aktiviteternas datum påverkas inte.
B17: 3. Raderna i tidsplanen kan användas för Arbetspaket (P), Milstolpar (M) eller Aktiviteter (A). Välj under "Typ". Arbetspaket (P) ger ingen stapel i schemat, utan används för att skapa rubriker i beskrivningskolumnen
B18: 4. Skriv nummer, benämning, ansvarig och datum. De fält som inte ska användas gråmarkeras för respektive vald "Typ". OBS: Ange aktivitetsnummer manuellt, automatisk numrering blir fel vid eventuell omsortering eller filtrering
B19: 5. Välj stapelns färg i gantt-schemat. T.ex kan olika ansvariga ges olika färg.
B20: 6. Det är även möjligt att ange arbetstid (vanligen i timmar) för aktiviteterna. Budget, upparbetat och återstod kan anges. Stäng kolumner som inte används så skapas mer utrymme för tidsskalan.

Sheet Tidsplan, dagar
B1: =Formula!A50 -> Tidsplan, dagar
B2: =CONCATENATE(Formula!A66,", ",Formula!A67,", ",Formula!A68) -> <Projektnamn>, <Nnnn Nnnn>, <Utgåva>
A3: =Formula!A33 -> Tidsskala | G3: =Formula!A52 -> Startdatum | H3: =Formula!A53 -> Slutdatum
A4: Veckor | G4: 2016-06-01 | H4: 2016-08-01
B5: =Formula!A54 -> Nr | C5: =Formula!A55 -> Beskrivning | D5: =Formula!A56 -> Ansvarig | E5: =Formula!A57 -> Typ | F5: =Formula!A58 -> Färg | G5: =Formula!A59 -> Start | H5: =Formula!A60 -> Slut | I5: =Formula!A61 -> Budget | J5: =Formula!A62 -> Upparbetat | K5: =Formula!A63 -> Återstod | L5: =Formula!A64 -> Prognos | M5: =Formula!A65 -> Avvikelse | N5: =G4 -> 42522 | O5: =N5+1 -> 42523 | P5: =O5+1 -> 42524 | Q5: 42525 | R5: 42526 | S5: 42527 | T5: 42528 | U5: 42529 | V5: 42530 | W5: 42531 | X5: 42532 | Y5: 42533 | Z5: 42534 | AA5: 42535 | AB5: 42536 | AC5: 42537 | AD5: 42538 | AE5: 42539 | AF5: 42540 | AG5: 42541 | AH5: 42542 | AI5: 42543 | AJ5: 42544 | AK5: 42545 | AL5: 42546 | AM5: 42547 | AN5: 42548 | AO5: 42549 | AP5: 42550 | AQ5: 42551 | AR5: 42552 | AS5: 42553 | AT5: 42554 | AU5: 42555 | AV5: 42556 | AW5: 42557 | AX5: 42558 | AY5: 42559 | AZ5: 42560 | BA5: 42561 | BB5: 42562 | BC5: 42563 | BD5: 42564 | BE5: 42565 | BF5: 42566 | BG5: 42567 | BH5: 42568 | BI5: 42569 | BJ5: 42570 | BK5: 42571 | BL5: 42572 | BM5: 42573 | BN5: 42574 | BO5: 42575 | BP5: 42576 | BQ5: 42577 | BR5: 42578 | BS5: 42579 | BT5: 42580 | BU5: 42581 | BV5: 42582 | BW5: 42583 | BX5: 42584 | BY5: 42585 | BZ5: 42586 | CA5: 42587 | CB5: =CA5+1 -> 42588 | CC5: 42589 | CD5: 42590 | CE5: 42591 | CF5: 42592 | CG5: 42593 | CH5: 42594 | CI5: 42595 | CJ5: 42596 | CK5: 42597 | CL5: 42598 | CM5: 42599 | CN5: 42600 | CO5: 42601 | CP5: 42602 | CQ5: 42603 | CR5: 42604 | CS5: 42605 | CT5: 42606 | CU5: 42607 | CV5: 42608 | CW5: 42609 | CX5: 42610 | CY5: 42611 | CZ5: 42612 | DA5: 42613 | DB5: 42614 | DC5: 42615 | DD5: 42616 | DE5: 42617 | DF5: 42618 | DG5: 42619 | DH5: 42620 | DI5: 42621 | DJ5: 42622 | DK5: 42623 | DL5: 42624 | DM5: 42625 | DN5: 42626 | DO5: 42627 | DP5: 42628 | DQ5: 42629 | DR5: 42630 | DS5: 42631 | DT5: 42632 | DU5: 42633 | DV5: 42634 | DW5: 42635 | DX5: 42636 | DY5: 42637 | DZ5: 42638 | EA5: 42639 | EB5: 42640 | EC5: 42641 | ED5: 42642 | EE5: 42643 | EF5: 42644 | EG5: 42645 | EH5: 42646 | EI5: 42647 | EJ5: 42648 | EK5: 42649 | EL5: 42650 | EM5: 42651 | EN5: =EM5+1 -> 42652 | EO5: 42653 | EP5: 42654 | EQ5: 42655 | ER5: 42656 | ES5: 42657 | ET5: 42658 | EU5: 42659 | EV5: 42660 | EW5: 42661 | EX5: 42662 | EY5: 42663 | EZ5: 42664 | FA5: 42665 | FB5: 42666 | FC5: 42667 | FD5: 42668 | FE5: 42669 | FF5: 42670 | FG5: 42671 | FH5: 42672 | FI5: 42673 | FJ5: 42674 | FK5: 42675 | FL5: 42676 | FM5: 42677 | FN5: 42678 | FO5: 42679 | FP5: 42680 | FQ5: 42681 | FR5: 42682 | FS5: 42683 | FT5: 42684 | FU5: 42685 | FV5: 42686 | FW5: 42687 | FX5: 42688 | FY5: 42689 | FZ5: 42690 | GA5: 42691 | GB5: 42692 | GC5: 42693 | GD5: 42694 | GE5: 42695 | GF5: 42696 | GG5: 42697 | GH5: 42698 | GI5: 42699 | GJ5: 42700 | GK5: 42701 | GL5: 42702 | GM5: 42703 | GN5: 42704 | GO5: 42705 | GP5: 42706 | GQ5: 42707 | GR5: 42708 | GS5: 42709 | GT5: 42710 | GU5: 42711 | GV5: 42712 | GW5: 42713 | GX5: 42714 | GY5: 42715 | GZ5: =GY5+1 -> 42716 | HA5: 42717 | HB5: 42718 | HC5: 42719 | HD5: 42720 | HE5: 42721 | HF5: 42722 | HG5: 42723 | HH5: 42724 | HI5: 42725 | HJ5: 42726 | HK5: 42727 | HL5: 42728 | HM5: 42729 | HN5: 42730 | HO5: 42731 | HP5: 42732 | HQ5: 42733 | HR5: 42734 | HS5: 42735 | HT5: 42736 | HU5: 42737 | HV5: 42738 | HW5: 42739 | HX5: 42740 | HY5: 42741 | HZ5: 42742 | IA5: 42743 | IB5: 42744 | IC5: 42745 | ID5: 42746 | IE5: 42747 | IF5: 42748 | IG5: 42749 | IH5: 42750 | II5: 42751 | IJ5: 42752 | IK5: 42753 | IL5: 42754 | IM5: 42755 | IN5: 42756 | IO5: 42757 | IP5: 42758 | IQ5: 42759 | IR5: 42760 | IS5: 42761 | IT5: 42762 | IU5: 42763 | IV5: 42764 | IW5: 42765 | IX5: 42766 | IY5: 42767 | IZ5: 42768 | JA5: 42769 | JB5: 42770 | JC5: 42771 | JD5: 42772 | JE5: 42773 | JF5: 42774 | JG5: 42775 | JH5: 42776 | JI5: 42777 | JJ5: 42778 | JK5: 42779 | JL5: =JK5+1 -> 42780 | JM5: 42781 | JN5: 42782 | JO5: 42783 | JP5: 42784 | JQ5: 42785 | JR5: 42786 | JS5: 42787 | JT5: 42788 | JU5: 42789 | JV5: 42790 | JW5: 42791 | JX5: 42792 | JY5: 42793 | JZ5: 42794 | KA5: 42795 | KB5: 42796 | KC5: 42797 | KD5: 42798 | KE5: 42799 | KF5: 42800 | KG5: 42801 | KH5: 42802 | KI5: 42803 | KJ5: 42804 | KK5: 42805 | KL5: 42806 | KM5: 42807 | KN5: 42808 | KO5: 42809 | KP5: 42810 | KQ5: 42811 | KR5: 42812 | KS5: 42813 | KT5: 42814 | KU5: 42815 | KV5: 42816 | KW5: 42817 | KX5: 42818 | KY5: 42819 | KZ5: 42820 | LA5: 42821 | LB5: 42822 | LC5: 42823 | LD5: 42824 | LE5: 42825 | LF5: 42826 | LG5: 42827 | LH5: 42828 | LI5: 42829 | LJ5: 42830 | LK5: 42831 | LL5: 42832 | LM5: 42833 | LN5: 42834 | LO5: 42835 | LP5: 42836 | LQ5: 42837 | LR5: 42838 | LS5: 42839 | LT5: 42840 | LU5: 42841 | LV5: 42842 | LW5: 42843 | LX5: =LW5+1 -> 42844 | LY5: 42845 | LZ5: 42846 | MA5: 42847 | MB5: 42848 | MC5: 42849 | MD5: 42850 | ME5: 42851 | MF5: 42852 | MG5: 42853 | MH5: 42854 | MI5: 42855 | MJ5: 42856 | MK5: 42857 | ML5: 42858 | MM5: 42859 | MN5: 42860 | MO5: 42861 | MP5: 42862 | MQ5: 42863 | MR5: 42864 | MS5: 42865 | MT5: 42866 | MU5: 42867 | MV5: 42868 | MW5: 42869 | MX5: 42870 | MY5: 42871 | MZ5: 42872 | NA5: 42873 | NB5: 42874 | NC5: 42875 | ND5: 42876 | NE5: 42877 | NF5: 42878 | NG5: 42879 | NH5: 42880 | NI5: 42881 | NJ5: 42882 | NK5: 42883 | NL5: 42884 | NM5: 42885 | NN5: 42886 | NO5: 42887 | NP5: 42888 | NQ5: 42889 | NR5: 42890 | NS5: 42891 | NT5: 42892 | NU5: 42893 | NV5: 42894 | NW5: 42895 | NX5: 42896 | NY5: 42897 | NZ5: 42898 | OA5: 42899 | OB5: 42900 | OC5: 42901 | OD5: 42902 | OE5: 42903 | OF5: 42904 | OG5: 42905 | OH5: 42906 | OI5: 42907 | OJ5: =OI5+1 -> 42908 | OK5: 42909 | OL5: 42910 | OM5: 42911 | ON5: 42912 | OO5: 42913 | OP5: 42914 | OQ5: 42915 | OR5: 42916 | OS5: 42917 | OT5: 42918 | OU5: 42919 | OV5: 42920 | OW5: 42921 | OX5: 42922 | OY5: 42923 | OZ5: 42924 | PA5: 42925 | PB5: 42926 | PC5: 42927 | PD5: 42928 | PE5: 42929 | PF5: 42930 | PG5: 42931 | PH5: 42932 | PI5: 42933 | PJ5: 42934 | PK5: 42935 | PL5: 42936 | PM5: 42937 | PN5: 42938 | PO5: 42939 | PP5: 42940 | PQ5: 42941 | PR5: 42942 | PS5: 42943 | PT5: 42944 | PU5: 42945 | PV5: 42946 | PW5: 42947 | PX5: 42948 | PY5: 42949 | PZ5: 42950 | QA5: 42951 | QB5: 42952 | QC5: 42953 | QD5: 42954 | QE5: 42955 | QF5: 42956 | QG5: 42957 | QH5: 42958 | QI5: 42959 | QJ5: 42960 | QK5: 42961 | QL5: 42962 | QM5: 42963 | QN5: 42964 | QO5: 42965 | QP5: 42966 | QQ5: 42967 | QR5: 42968 | QS5: 42969 | QT5: 42970 | QU5: 42971 | QV5: =QU5+1 -> 42972 | QW5: 42973 | QX5: 42974 | QY5: 42975 | QZ5: 42976 | RA5: 42977 | RB5: 42978 | RC5: 42979 | RD5: 42980 | RE5: 42981 | RF5: 42982 | RG5: 42983 | RH5: 42984 | RI5: 42985 | RJ5: 42986 | RK5: 42987 | RL5: 42988 | RM5: 42989 | RN5: 42990 | RO5: 42991 | RP5: 42992 | RQ5: 42993 | RR5: 42994 | RS5: 42995 | RT5: 42996 | RU5: 42997 | RV5: 42998 | RW5: 42999 | RX5: 43000 | RY5: 43001 | RZ5: 43002 | SA5: 43003 | SB5: 43004 | SC5: 43005 | SD5: 43006 | SE5: 43007 | SF5: 43008 | SG5: 43009 | SH5: 43010 | SI5: 43011 | SJ5: 43012 | SK5: 43013 | SL5: 43014 | SM5: 43015 | SN5: 43016 | SO5: 43017 | SP5: 43018 | SQ5: 43019 | SR5: 43020 | SS5: 43021 | ST5: 43022 | SU5: 43023 | SV5: 43024 | SW5: 43025 | SX5: 43026 | SY5: 43027 | SZ5: 43028 | TA5: 43029 | TB5: 43030 | TC5: 43031 | TD5: 43032 | TE5: 43033 | TF5: 43034 | TG5: 43035 | TH5: =TG5+1 -> 43036 | TI5: 43037 | TJ5: 43038 | TK5: 43039 | TL5: 43040 | TM5: 43041 | TN5: 43042 | TO5: 43043 | TP5: 43044 | TQ5: 43045 | TR5: 43046 | TS5: 43047 | TT5: 43048 | TU5: 43049 | TV5: 43050 | TW5: 43051 | TX5: 43052 | TY5: 43053 | TZ5: 43054 | UA5: 43055 | UB5: 43056 | UC5: 43057 | UD5: 43058 | UE5: 43059 | UF5: 43060 | UG5: 43061 | UH5: 43062 | UI5: 43063 | UJ5: 43064 | UK5: 43065 | UL5: 43066 | UM5: 43067 | UN5: 43068 | UO5: 43069 | UP5: 43070 | UQ5: 43071 | UR5: 43072 | US5: 43073 | UT5: 43074 | UU5: 43075 | UV5: 43076 | UW5: 43077 | UX5: 43078 | UY5: 43079 | UZ5: 43080 | VA5: 43081 | VB5: 43082 | VC5: 43083 | VD5: 43084 | VE5: 43085 | VF5: 43086 | VG5: 43087 | VH5: 43088 | VI5: 43089 | VJ5: 43090 | VK5: 43091 | VL5: 43092 | VM5: 43093 | VN5: 43094 | VO5: 43095 | VP5: 43096 | VQ5: 43097 | VR5: 43098 | VS5: 43099 | VT5: =VS5+1 -> 43100 | VU5: 43101 | VV5: 43102 | VW5: 43103 | VX5: 43104 | VY5: 43105 | VZ5: 43106 | WA5: 43107 | WB5: 43108 | WC5: 43109 | WD5: 43110 | WE5: 43111 | WF5: 43112 | WG5: 43113 | WH5: 43114 | WI5: 43115 | WJ5: 43116 | WK5: 43117 | WL5: 43118 | WM5: 43119 | WN5: 43120 | WO5: 43121 | WP5: 43122 | WQ5: 43123 | WR5: 43124 | WS5: 43125 | WT5: 43126 | WU5: 43127 | WV5: 43128 | WW5: 43129 | WX5: 43130 | WY5: 43131 | WZ5: 43132 | XA5: 43133 | XB5: 43134 | XC5: 43135 | XD5: 43136 | XE5: 43137 | XF5: 43138 | XG5: 43139 | XH5: 43140 | XI5: 43141 | XJ5: 43142 | XK5: 43143 | XL5: 43144 | XM5: 43145 | XN5: 43146 | XO5: 43147 | XP5: 43148 | XQ5: 43149 | XR5: 43150 | XS5: 43151 | XT5: 43152 | XU5: 43153 | XV5: 43154 | XW5: 43155 | XX5: 43156 | XY5: 43157 | XZ5: 43158 | YA5: 43159 | YB5: 43160 | YC5: 43161 | YD5: 43162 | YE5: 43163 | YF5: =YE5+1 -> 43164 | YG5: 43165 | YH5: 43166 | YI5: 43167 | YJ5: 43168 | YK5: 43169 | YL5: 43170 | YM5: 43171 | YN5: 43172 | YO5: 43173 | YP5: 43174 | YQ5: 43175 | YR5: 43176 | YS5: 43177 | YT5: 43178 | YU5: 43179 | YV5: 43180 | YW5: 43181 | YX5: 43182 | YY5: 43183 | YZ5: 43184 | ZA5: 43185 | ZB5: 43186 | ZC5: 43187 | ZD5: 43188 | ZE5: 43189 | ZF5: 43190 | ZG5: 43191 | ZH5: 43192 | ZI5: 43193 | ZJ5: 43194 | ZK5: 43195 | ZL5: 43196 | ZM5: 43197 | ZN5: 43198 | ZO5: 43199 | ZP5: 43200 | ZQ5: 43201 | ZR5: 43202 | ZS5: 43203 | ZT5: 43204 | ZU5: 43205 | ZV5: 43206 | ZW5: 43207 | ZX5: 43208 | ZY5: 43209 | ZZ5: 43210
N6: =IF($A$4=Formula!$A$35,IF(OR(EOMONTH(Formula!$B$4,0)>Formula!B8,(AND(YEAR(Formula!$B$4)=YEAR(Formula!B8),(MONTH(Formula!$B$4)=MONTH(Formula!B8))))),Formula!B12,""),"") ->  | O6: =IF($A$4=Formula!$A$35,IF(OR(EOMONTH(Formula!$B$4,0)>Formula!C8,(AND(YEAR(Formula!$B$4)=YEAR(Formula!C8),(MONTH(Formula!$B$4)=MONTH(Formula!C8))))),Formula!C12,""),"") ->  | P6: =IF($A$4=Formula!$A$35,IF(OR(EOMONTH(Formula!$B$4,0)>Formula!D8,(AND(YEAR(Formula!$B$4)=YEAR(Formula!D8),(MONTH(Formula!$B$4)=MONTH(Formula!D8))))),Formula!D12,""),"") ->  | Q6: =IF($A$4=Formula!$A$35,IF(OR(EOMONTH(Formula!$B$4,0)>Formula!E8,(AND(YEAR(Formula!$B$4)=YEAR(Formula!E8),(MONTH(Formula!$B$4)=MONTH(Formula!E8))))),Formula!E12,""),"") ->  | R6: =IF($A$4=Formula!$A$35,IF(OR(EOMONTH(Formula!$B$4,0)>Formula!F8,(AND(YEAR(Formula!$B$4)=YEAR(Formula!F8),(MONTH(Formula!$B$4)=MONTH(Formula!F8))))),Formula!F12,""),"") ->  | S6: =IF($A$4=Formula!$A$35,IF(OR(EOMONTH(Formula!$B$4,0)>Formula!G8,(AND(YEAR(Formula!$B$4)=YEAR(Formula!G8),(MONTH(Formula!$B$4)=MONTH(Formula!G8))))),Formula!G12,""),"") ->  | T6: =IF($A$4=Formula!$A$35,IF(OR(EOMONTH(Formula!$B$4,0)>Formula!H8,(AND(YEAR(Formula!$B$4)=YEAR(Formula!H8),(MONTH(Formula!$B$4)=MONTH(Formula!H8))))),Formula!H12,""),"") ->  | U6: =IF($A$4=Formula!$A$35,IF(OR(EOMONTH(Formula!$B$4,0)>Formula!I8,(AND(YEAR(Formula!$B$4)=YEAR(Formula!I8),(MONTH(Formula!$B$4)=MONTH(Formula!I8))))),Formula!I12,""),"") ->  | V6: =IF($A$4=Formula!$A$35,IF(OR(EOMONTH(Formula!$B$4,0)>Formula!J8,(AND(YEAR(Formula!$B$4)=YEAR(Formula!J8),(MONTH(Formula!$B$4)=MONTH(Formula!J8))))),Formula!J12,""),"") ->  | W6: =IF($A$4=Formula!$A$35,IF(OR(EOMONTH(Formula!$B$4,0)>Formula!K8,(AND(YEAR(Formula!$B$4)=YEAR(Formula!K8),(MONTH(Formula!$B$4)=MONTH(Formula!K8))))),Formula!K12,""),"") ->  | X6: =IF($A$4=Formula!$A$35,IF(OR(EOMONTH(Formula!$B$4,0)>Formula!L8,(AND(YEAR(Formula!$B$4)=YEAR(Formula!L8),(MONTH(Formula!$B$4)=MONTH(Formula!L8))))),Formula!L12,""),"") ->  | Y6: =IF($A$4=Formula!$A$35,IF(OR(EOMONTH(Formula!$B$4,0)>Formula!M8,(AND(YEAR(Formula!$B$4)=YEAR(Formula!M8),(MONTH(Formula!$B$4)=MONTH(Formula!M8))))),Formula!M12,""),"") ->  | Z6: =IF($A$4=Formula!$A$35,IF(OR(EOMONTH(Formula!$B$4,0)>Formula!N8,(AND(YEAR(Formula!$B$4)=YEAR(Formula!N8),(MONTH(Formula!$B$4)=MONTH(Formula!N8))))),Formula!N12,""),"") ->  | AA6: =IF($A$4=Formula!$A$35,IF(OR(EOMONTH(Formula!$B$4,0)>Formula!O8,(AND(YEAR(Formula!$B$4)=YEAR(Formula!O8),(MONTH(Formula!$B$4)=MONTH(Formula!O8))))),Formula!O12,""),"") ->  | AB6: =IF($A$4=Formula!$A$35,IF(OR(EOMONTH(Formula!$B$4,0)>Formula!P8,(AND(YEAR(Formula!$B$4)=YEAR(Formula!P8),(MONTH(Formula!$B$4)=MONTH(Formula!P8))))),Formula!P12,""),"") ->  | AC6: =IF($A$4=Formula!$A$35,IF(OR(EOMONTH(Formula!$B$4,0)>Formula!Q8,(AND(YEAR(Formula!$B$4)=YEAR(Formula!Q8),(MONTH(Formula!$B$4)=MONTH(Formula!Q8))))),Formula!Q12,""),"") ->  | AD6: =IF($A$4=Formula!$A$35,IF(OR(EOMONTH(Formula!$B$4,0)>Formula!R8,(AND(YEAR(Formula!$B$4)=YEAR(Formula!R8),(MONTH(Formula!$B$4)=MONTH(Formula!R8))))),Formula!R12,""),"") ->  | AE6: =IF($A$4=Formula!$A$35,IF(OR(EOMONTH(Formula!$B$4,0)>Formula!S8,(AND(YEAR(Formula!$B$4)=YEAR(Formula!S8),(MONTH(Formula!$B$4)=MONTH(Formula!S8))))),Formula!S12,""),"") ->  | AF6: =IF($A$4=Formula!$A$35,IF(OR(EOMONTH(Formula!$B$4,0)>Formula!T8,(AND(YEAR(Formula!$B$4)=YEAR(Formula!T8),(MONTH(Formula!$B$4)=MONTH(Formula!T8))))),Formula!T12,""),"") ->  | AG6: =IF($A$4=Formula!$A$35,IF(OR(EOMONTH(Formula!$B$4,0)>Formula!U8,(AND(YEAR(Formula!$B$4)=YEAR(Formula!U8),(MONTH(Formula!$B$4)=MONTH(Formula!U8))))),Formula!U12,""),"") ->  | AH6: =IF($A$4=Formula!$A$35,IF(OR(EOMONTH(Formula!$B$4,0)>Formula!V8,(AND(YEAR(Formula!$B$4)=YEAR(Formula!V8),(MONTH(Formula!$B$4)=MONTH(Formula!V8))))),Formula!V12,""),"") ->  | AI6: =IF($A$4=Formula!$A$35,IF(OR(EOMONTH(Formula!$B$4,0)>Formula!W8,(AND(YEAR(Formula!$B$4)=YEAR(Formula!W8),(MONTH(Formula!$B$4)=MONTH(Formula!W8))))),Formula!W12,""),"") ->  | AJ6: =IF($A$4=Formula!$A$35,IF(OR(EOMONTH(Formula!$B$4,0)>Formula!X8,(AND(YEAR(Formula!$B$4)=YEAR(Formula!X8),(MONTH(Formula!$B$4)=MONTH(Formula!X8))))),Formula!X12,""),"") ->  | AK6: =IF($A$4=Formula!$A$35,IF(OR(EOMONTH(Formula!$B$4,0)>Formula!Y8,(AND(YEAR(Formula!$B$4)=YEAR(Formula!Y8),(MONTH(Formula!$B$4)=MONTH(Formula!Y8))))),Formula!Y12,""),"") ->  | AL6: =IF($A$4=Formula!$A$35,IF(OR(EOMONTH(Formula!$B$4,0)>Formula!Z8,(AND(YEAR(Formula!$B$4)=YEAR(Formula!Z8),(MONTH(Formula!$B$4)=MONTH(Formula!Z8))))),Formula!Z12,""),"") ->  | AM6: =IF($A$4=Formula!$A$35,IF(OR(EOMONTH(Formula!$B$4,0)>Formula!AA8,(AND(YEAR(Formula!$B$4)=YEAR(Formula!AA8),(MONTH(Formula!$B$4)=MONTH(Formula!AA8))))),Formula!AA12,""),"") ->  | AN6: =IF($A$4=Formula!$A$35,IF(OR(EOMONTH(Formula!$B$4,0)>Formula!AB8,(AND(YEAR(Formula!$B$4)=YEAR(Formula!AB8),(MONTH(Formula!$B$4)=MONTH(Formula!AB8))))),Formula!AB12,""),"") ->  | AO6: =IF($A$4=Formula!$A$35,IF(OR(EOMONTH(Formula!$B$4,0)>Formula!AC8,(AND(YEAR(Formula!$B$4)=YEAR(Formula!AC8),(MONTH(Formula!$B$4)=MONTH(Formula!AC8))))),Formula!AC12,""),"") ->  | AP6: =IF($A$4=Formula!$A$35,IF(OR(EOMONTH(Formula!$B$4,0)>Formula!AD8,(AND(YEAR(Formula!$B$4)=YEAR(Formula!AD8),(MONTH(Formula!$B$4)=MONTH(Formula!AD8))))),Formula!AD12,""),"") ->  | AQ6: =IF($A$4=Formula!$A$35,IF(OR(EOMONTH(Formula!$B$4,0)>Formula!AE8,(AND(YEAR(Formula!$B$4)=YEAR(Formula!AE8),(MONTH(Formula!$B$4)=MONTH(Formula!AE8))))),Formula!AE12,""),"") ->  | AR6: =IF($A$4=Formula!$A$35,IF(OR(EOMONTH(Formula!$B$4,0)>Formula!AF8,(AND(YEAR(Formula!$B$4)=YEAR(Formula!AF8),(MONTH(Formula!$B$4)=MONTH(Formula!AF8))))),Formula!AF12,""),"") ->  | AS6: =IF($A$4=Formula!$A$35,IF(OR(EOMONTH(Formula!$B$4,0)>Formula!AG8,(AND(YEAR(Formula!$B$4)=YEAR(Formula!AG8),(MONTH(Formula!$B$4)=MONTH(Formula!AG8))))),Formula!AG12,""),"") ->  | AT6: =IF($A$4=Formula!$A$35,IF(OR(EOMONTH(Formula!$B$4,0)>Formula!AH8,(AND(YEAR(Formula!$B$4)=YEAR(Formula!AH8),(MONTH(Formula!$B$4)=MONTH(Formula!AH8))))),Formula!AH12,""),"") ->  | AU6: =IF($A$4=Formula!$A$35,IF(OR(EOMONTH(Formula!$B$4,0)>Formula!AI8,(AND(YEAR(Formula!$B$4)=YEAR(Formula!AI8),(MONTH(Formula!$B$4)=MONTH(Formula!AI8))))),Formula!AI12,""),"") ->  | AV6: =IF($A$4=Formula!$A$35,IF(OR(EOMONTH(Formula!$B$4,0)>Formula!AJ8,(AND(YEAR(Formula!$B$4)=YEAR(Formula!AJ8),(MONTH(Formula!$B$4)=MONTH(Formula!AJ8))))),Formula!AJ12,""),"") ->  | AW6: =IF($A$4=Formula!$A$35,IF(OR(EOMONTH(Formula!$B$4,0)>Formula!AK8,(AND(YEAR(Formula!$B$4)=YEAR(Formula!AK8),(MONTH(Formula!$B$4)=MONTH(Formula!AK8))))),Formula!AK12,""),"") ->  | AX6: =IF($A$4=Formula!$A$35,IF(OR(EOMONTH(Formula!$B$4,0)>Formula!AL8,(AND(YEAR(Formula!$B$4)=YEAR(Formula!AL8),(MONTH(Formula!$B$4)=MONTH(Formula!AL8))))),Formula!AL12,""),"") ->  | AY6: =IF($A$4=Formula!$A$35,IF(OR(EOMONTH(Formula!$B$4,0)>Formula!AM8,(AND(YEAR(Formula!$B$4)=YEAR(Formula!AM8),(MONTH(Formula!$B$4)=MONTH(Formula!AM8))))),Formula!AM12,""),"") ->  | AZ6: =IF($A$4=Formula!$A$35,IF(OR(EOMONTH(Formula!$B$4,0)>Formula!AN8,(AND(YEAR(Formula!$B$4)=YEAR(Formula!AN8),(MONTH(Formula!$B$4)=MONTH(Formula!AN8))))),Formula!AN12,""),"") ->  | BA6: =IF($A$4=Formula!$A$35,IF(OR(EOMONTH(Formula!$B$4,0)>Formula!AO8,(AND(YEAR(Formula!$B$4)=YEAR(Formula!AO8),(MONTH(Formula!$B$4)=MONTH(Formula!AO8))))),Formula!AO12,""),"") ->  | BB6: =IF($A$4=Formula!$A$35,IF(OR(EOMONTH(Formula!$B$4,0)>Formula!AP8,(AND(YEAR(Formula!$B$4)=YEAR(Formula!AP8),(MONTH(Formula!$B$4)=MONTH(Formula!AP8))))),Formula!AP12,""),"") ->  | BC6: =IF($A$4=Formula!$A$35,IF(OR(EOMONTH(Formula!$B$4,0)>Formula!AQ8,(AND(YEAR(Formula!$B$4)=YEAR(Formula!AQ8),(MONTH(Formula!$B$4)=MONTH(Formula!AQ8))))),Formula!AQ12,""),"") ->  | BD6: =IF($A$4=Formula!$A$35,IF(OR(EOMONTH(Formula!$B$4,0)>Formula!AR8,(AND(YEAR(Formula!$B$4)=YEAR(Formula!AR8),(MONTH(Formula!$B$4)=MONTH(Formula!AR8))))),Formula!AR12,""),"") ->  | BE6: =IF($A$4=Formula!$A$35,IF(OR(EOMONTH(Formula!$B$4,0)>Formula!AS8,(AND(YEAR(Formula!$B$4)=YEAR(Formula!AS8),(MONTH(Formula!$B$4)=MONTH(Formula!AS8))))),Formula!AS12,""),"") ->  | BF6: =IF($A$4=Formula!$A$35,IF(OR(EOMONTH(Formula!$B$4,0)>Formula!AT8,(AND(YEAR(Formula!$B$4)=YEAR(Formula!AT8),(MONTH(Formula!$B$4)=MONTH(Formula!AT8))))),Formula!AT12,""),"") ->  | BG6: =IF($A$4=Formula!$A$35,IF(OR(EOMONTH(Formula!$B$4,0)>Formula!AU8,(AND(YEAR(Formula!$B$4)=YEAR(Formula!AU8),(MONTH(Formula!$B$4)=MONTH(Formula!AU8))))),Formula!AU12,""),"") ->  | BH6: =IF($A$4=Formula!$A$35,IF(OR(EOMONTH(Formula!$B$4,0)>Formula!AV8,(AND(YEAR(Formula!$B$4)=YEAR(Formula!AV8),(MONTH(Formula!$B$4)=MONTH(Formula!AV8))))),Formula!AV12,""),"") ->  | BI6: =IF($A$4=Formula!$A$35,IF(OR(EOMONTH(Formula!$B$4,0)>Formula!AW8,(AND(YEAR(Formula!$B$4)=YEAR(Formula!AW8),(MONTH(Formula!$B$4)=MONTH(Formula!AW8))))),Formula!AW12,""),"") ->  | BJ6: =IF($A$4=Formula!$A$35,IF(OR(EOMONTH(Formula!$B$4,0)>Formula!AX8,(AND(YEAR(Formula!$B$4)=YEAR(Formula!AX8),(MONTH(Formula!$B$4)=MONTH(Formula!AX8))))),Formula!AX12,""),"") ->  | BK6: =IF($A$4=Formula!$A$35,IF(OR(EOMONTH(Formula!$B$4,0)>Formula!AY8,(AND(YEAR(Formula!$B$4)=YEAR(Formula!AY8),(MONTH(Formula!$B$4)=MONTH(Formula!AY8))))),Formula!AY12,""),"") ->  | BL6: =IF($A$4=Formula!$A$35,IF(OR(EOMONTH(Formula!$B$4,0)>Formula!AZ8,(AND(YEAR(Formula!$B$4)=YEAR(Formula!AZ8),(MONTH(Formula!$B$4)=MONTH(Formula!AZ8))))),Formula!AZ12,""),"") ->  | BM6: =IF($A$4=Formula!$A$35,IF(OR(EOMONTH(Formula!$B$4,0)>Formula!BA8,(AND(YEAR(Formula!$B$4)=YEAR(Formula!BA8),(MONTH(Formula!$B$4)=MONTH(Formula!BA8))))),Formula!BA12,""),"") ->  | BN6: =IF($A$4=Formula!$A$35,IF(OR(EOMONTH(Formula!$B$4,0)>Formula!BB8,(AND(YEAR(Formula!$B$4)=YEAR(Formula!BB8),(MONTH(Formula!$B$4)=MONTH(Formula!BB8))))),Formula!BB12,""),"") ->  | BO6: =IF($A$4=Formula!$A$35,IF(OR(EOMONTH(Formula!$B$4,0)>Formula!BC8,(AND(YEAR(Formula!$B$4)=YEAR(Formula!BC8),(MONTH(Formula!$B$4)=MONTH(Formula!BC8))))),Formula!BC12,""),"") ->  | BP6: =IF($A$4=Formula!$A$35,IF(OR(EOMONTH(Formula!$B$4,0)>Formula!BD8,(AND(YEAR(Formula!$B$4)=YEAR(Formula!BD8),(MONTH(Formula!$B$4)=MONTH(Formula!BD8))))),Formula!BD12,""),"") ->  | BQ6: =IF($A$4=Formula!$A$35,IF(OR(EOMONTH(Formula!$B$4,0)>Formula!BE8,(AND(YEAR(Formula!$B$4)=YEAR(Formula!BE8),(MONTH(Formula!$B$4)=MONTH(Formula!BE8))))),Formula!BE12,""),"") ->  | BR6: =IF($A$4=Formula!$A$35,IF(OR(EOMONTH(Formula!$B$4,0)>Formula!BF8,(AND(YEAR(Formula!$B$4)=YEAR(Formula!BF8),(MONTH(Formula!$B$4)=MONTH(Formula!BF8))))),Formula!BF12,""),"") ->  | BS6: =IF($A$4=Formula!$A$35,IF(OR(EOMONTH(Formula!$B$4,0)>Formula!BG8,(AND(YEAR(Formula!$B$4)=YEAR(Formula!BG8),(MONTH(Formula!$B$4)=MONTH(Formula!BG8))))),Formula!BG12,""),"") ->  | BT6: =IF($A$4=Formula!$A$35,IF(OR(EOMONTH(Formula!$B$4,0)>Formula!BH8,(AND(YEAR(Formula!$B$4)=YEAR(Formula!BH8),(MONTH(Formula!$B$4)=MONTH(Formula!BH8))))),Formula!BH12,""),"") ->  | BU6: =IF($A$4=Formula!$A$35,IF(OR(EOMONTH(Formula!$B$4,0)>Formula!BI8,(AND(YEAR(Formula!$B$4)=YEAR(Formula!BI8),(MONTH(Formula!$B$4)=MONTH(Formula!BI8))))),Formula!BI12,""),"") ->  | BV6: =IF($A$4=Formula!$A$35,IF(OR(EOMONTH(Formula!$B$4,0)>Formula!BJ8,(AND(YEAR(Formula!$B$4)=YEAR(Formula!BJ8),(MONTH(Formula!$B$4)=MONTH(Formula!BJ8))))),Formula!BJ12,""),"") ->  | BW6: =IF($A$4=Formula!$A$35,IF(OR(EOMONTH(Formula!$B$4,0)>Formula!BK8,(AND(YEAR(Formula!$B$4)=YEAR(Formula!BK8),(MONTH(Formula!$B$4)=MONTH(Formula!BK8))))),Formula!BK12,""),"") ->  | BX6: =IF($A$4=Formula!$A$35,IF(OR(EOMONTH(Formula!$B$4,0)>Formula!BL8,(AND(YEAR(Formula!$B$4)=YEAR(Formula!BL8),(MONTH(Formula!$B$4)=MONTH(Formula!BL8))))),Formula!BL12,""),"") ->  | BY6: =IF($A$4=Formula!$A$35,IF(OR(EOMONTH(Formula!$B$4,0)>Formula!BM8,(AND(YEAR(Formula!$B$4)=YEAR(Formula!BM8),(MONTH(Formula!$B$4)=MONTH(Formula!BM8))))),Formula!BM12,""),"") ->  | BZ6: =IF($A$4=Formula!$A$35,IF(OR(EOMONTH(Formula!$B$4,0)>Formula!BN8,(AND(YEAR(Formula!$B$4)=YEAR(Formula!BN8),(MONTH(Formula!$B$4)=MONTH(Formula!BN8))))),Formula!BN12,""),"") ->  | CA6: =IF($A$4=Formula!$A$35,IF(OR(EOMONTH(Formula!$B$4,0)>Formula!BO8,(AND(YEAR(Formula!$B$4)=YEAR(Formula!BO8),(MONTH(Formula!$B$4)=MONTH(Formula!BO8))))),Formula!BO12,""),"") ->  | CB6: =IF($A$4=Formula!$A$35,IF(OR(EOMONTH(Formula!$B$4,0)>Formula!BP8,(AND(YEAR(Formula!$B$4)=YEAR(Formula!BP8),(MONTH(Formula!$B$4)=MONTH(Formula!BP8))))),Formula!BP12,""),"") ->  | CC6: =IF($A$4=Formula!$A$35,IF(OR(EOMONTH(Formula!$B$4,0)>Formula!BQ8,(AND(YEAR(Formula!$B$4)=YEAR(Formula!BQ8),(MONTH(Formula!$B$4)=MONTH(Formula!BQ8))))),Formula!BQ12,""),"") ->  | CD6: =IF($A$4=Formula!$A$35,IF(OR(EOMONTH(Formula!$B$4,0)>Formula!BR8,(AND(YEAR(Formula!$B$4)=YEAR(Formula!BR8),(MONTH(Formula!$B$4)=MONTH(Formula!BR8))))),Formula!BR12,""),"") ->  | CE6: =IF($A$4=Formula!$A$35,IF(OR(EOMONTH(Formula!$B$4,0)>Formula!BS8,(AND(YEAR(Formula!$B$4)=YEAR(Formula!BS8),(MONTH(Formula!$B$4)=MONTH(Formula!BS8))))),Formula!BS12,""),"") ->  | CF6: =IF($A$4=Formula!$A$35,IF(OR(EOMONTH(Formula!$B$4,0)>Formula!BT8,(AND(YEAR(Formula!$B$4)=YEAR(Formula!BT8),(MONTH(Formula!$B$4)=MONTH(Formula!BT8))))),Formula!BT12,""),"") ->  | CG6: =IF($A$4=Formula!$A$35,IF(OR(EOMONTH(Formula!$B$4,0)>Formula!BU8,(AND(YEAR(Formula!$B$4)=YEAR(Formula!BU8),(MONTH(Formula!$B$4)=MONTH(Formula!BU8))))),Formula!BU12,""),"") ->  | CH6: =IF($A$4=Formula!$A$35,IF(OR(EOMONTH(Formula!$B$4,0)>Formula!BV8,(AND(YEAR(Formula!$B$4)=YEAR(Formula!BV8),(MONTH(Formula!$B$4)=MONTH(Formula!BV8))))),Formula!BV12,""),"") ->  | CI6: =IF($A$4=Formula!$A$35,IF(OR(EOMONTH(Formula!$B$4,0)>Formula!BW8,(AND(YEAR(Formula!$B$4)=YEAR(Formula!BW8),(MONTH(Formula!$B$4)=MONTH(Formula!BW8))))),Formula!BW12,""),"") ->  | CJ6: =IF($A$4=Formula!$A$35,IF(OR(EOMONTH(Formula!$B$4,0)>Formula!BX8,(AND(YEAR(Formula!$B$4)=YEAR(Formula!BX8),(MONTH(Formula!$B$4)=MONTH(Formula!BX8))))),Formula!BX12,""),"") ->  | CK6: =IF($A$4=Formula!$A$35,IF(OR(EOMONTH(Formula!$B$4,0)>Formula!BY8,(AND(YEAR(Formula!$B$4)=YEAR(Formula!BY8),(MONTH(Formula!$B$4)=MONTH(Formula!BY8))))),Formula!BY12,""),"") ->  | CL6: =IF($A$4=Formula!$A$35,IF(OR(EOMONTH(Formula!$B$4,0)>Formula!BZ8,(AND(YEAR(Formula!$B$4)=YEAR(Formula!BZ8),(MONTH(Formula!$B$4)=MONTH(Formula!BZ8))))),Formula!BZ12,""),"") ->  | CM6: =IF($A$4=Formula!$A$35,IF(OR(EOMONTH(Formula!$B$4,0)>Formula!CA8,(AND(YEAR(Formula!$B$4)=YEAR(Formula!CA8),(MONTH(Formula!$B$4)=MONTH(Formula!CA8))))),Formula!CA12,""),"") ->  | CN6: =IF($A$4=Formula!$A$35,IF(OR(EOMONTH(Formula!$B$4,0)>Formula!CB8,(AND(YEAR(Formula!$B$4)=YEAR(Formula!CB8),(MONTH(Formula!$B$4)=MONTH(Formula!CB8))))),Formula!CB12,""),"") ->  | CO6: =IF($A$4=Formula!$A$35,IF(OR(EOMONTH(Formula!$B$4,0)>Formula!CC8,(AND(YEAR(Formula!$B$4)=YEAR(Formula!CC8),(MONTH(Formula!$B$4)=MONTH(Formula!CC8))))),Formula!CC12,""),"") ->  | CP6: =IF($A$4=Formula!$A$35,IF(OR(EOMONTH(Formula!$B$4,0)>Formula!CD8,(AND(YEAR(Formula!$B$4)=YEAR(Formula!CD8),(MONTH(Formula!$B$4)=MONTH(Formula!CD8))))),Formula!CD12,""),"") ->  | CQ6: =IF($A$4=Formula!$A$35,IF(OR(EOMONTH(Formula!$B$4,0)>Formula!CE8,(AND(YEAR(Formula!$B$4)=YEAR(Formula!CE8),(MONTH(Formula!$B$4)=MONTH(Formula!CE8))))),Formula!CE12,""),"") ->  | CR6: =IF($A$4=Formula!$A$35,IF(OR(EOMONTH(Formula!$B$4,0)>Formula!CF8,(AND(YEAR(Formula!$B$4)=YEAR(Formula!CF8),(MONTH(Formula!$B$4)=MONTH(Formula!CF8))))),Formula!CF12,""),"") ->  | CS6: =IF($A$4=Formula!$A$35,IF(OR(EOMONTH(Formula!$B$4,0)>Formula!CG8,(AND(YEAR(Formula!$B$4)=YEAR(Formula!CG8),(MONTH(Formula!$B$4)=MONTH(Formula!CG8))))),Formula!CG12,""),"") ->  | CT6: =IF($A$4=Formula!$A$35,IF(OR(EOMONTH(Formula!$B$4,0)>Formula!CH8,(AND(YEAR(Formula!$B$4)=YEAR(Formula!CH8),(MONTH(Formula!$B$4)=MONTH(Formula!CH8))))),Formula!CH12,""),"") ->  | CU6: =IF($A$4=Formula!$A$35,IF(OR(EOMONTH(Formula!$B$4,0)>Formula!CI8,(AND(YEAR(Formula!$B$4)=YEAR(Formula!CI8),(MONTH(Formula!$B$4)=MONTH(Formula!CI8))))),Formula!CI12,""),"") ->  | CV6: =IF($A$4=Formula!$A$35,IF(OR(EOMONTH(Formula!$B$4,0)>Formula!CJ8,(AND(YEAR(Formula!$B$4)=YEAR(Formula!CJ8),(MONTH(Formula!$B$4)=MONTH(Formula!CJ8))))),Formula!CJ12,""),"") ->  | CW6: =IF($A$4=Formula!$A$35,IF(OR(EOMONTH(Formula!$B$4,0)>Formula!CK8,(AND(YEAR(Formula!$B$4)=YEAR(Formula!CK8),(MONTH(Formula!$B$4)=MONTH(Formula!CK8))))),Formula!CK12,""),"") ->  | CX6: =IF($A$4=Formula!$A$35,IF(OR(EOMONTH(Formula!$B$4,0)>Formula!CL8,(AND(YEAR(Formula!$B$4)=YEAR(Formula!CL8),(MONTH(Formula!$B$4)=MONTH(Formula!CL8))))),Formula!CL12,""),"") ->  | CY6: =IF($A$4=Formula!$A$35,IF(OR(EOMONTH(Formula!$B$4,0)>Formula!CM8,(AND(YEAR(Formula!$B$4)=YEAR(Formula!CM8),(MONTH(Formula!$B$4)=MONTH(Formula!CM8))))),Formula!CM12,""),"") ->  | CZ6: =IF($A$4=Formula!$A$35,IF(OR(EOMONTH(Formula!$B$4,0)>Formula!CN8,(AND(YEAR(Formula!$B$4)=YEAR(Formula!CN8),(MONTH(Formula!$B$4)=MONTH(Formula!CN8))))),Formula!CN12,""),"") ->  | DA6: =IF($A$4=Formula!$A$35,IF(OR(EOMONTH(Formula!$B$4,0)>Formula!CO8,(AND(YEAR(Formula!$B$4)=YEAR(Formula!CO8),(MONTH(Formula!$B$4)=MONTH(Formula!CO8))))),Formula!CO12,""),"") ->  | DB6: =IF($A$4=Formula!$A$35,IF(OR(EOMONTH(Formula!$B$4,0)>Formula!CP8,(AND(YEAR(Formula!$B$4)=YEAR(Formula!CP8),(MONTH(Formula!$B$4)=MONTH(Formula!CP8))))),Formula!CP12,""),"") ->  | DC6: =IF($A$4=Formula!$A$35,IF(OR(EOMONTH(Formula!$B$4,0)>Formula!CQ8,(AND(YEAR(Formula!$B$4)=YEAR(Formula!CQ8),(MONTH(Formula!$B$4)=MONTH(Formula!CQ8))))),Formula!CQ12,""),"") ->  | DD6: =IF($A$4=Formula!$A$35,IF(OR(EOMONTH(Formula!$B$4,0)>Formula!CR8,(AND(YEAR(Formula!$B$4)=YEAR(Formula!CR8),(MONTH(Formula!$B$4)=MONTH(Formula!CR8))))),Formula!CR12,""),"") ->  | DE6: =IF($A$4=Formula!$A$35,IF(OR(EOMONTH(Formula!$B$4,0)>Formula!CS8,(AND(YEAR(Formula!$B$4)=YEAR(Formula!CS8),(MONTH(Formula!$B$4)=MONTH(Formula!CS8))))),Formula!CS12,""),"") ->  | DF6: =IF($A$4=Formula!$A$35,IF(OR(EOMONTH(Formula!$B$4,0)>Formula!CT8,(AND(YEAR(Formula!$B$4)=YEAR(Formula!CT8),(MONTH(Formula!$B$4)=MONTH(Formula!CT8))))),Formula!CT12,""),"") ->  | DG6: =IF($A$4=Formula!$A$35,IF(OR(EOMONTH(Formula!$B$4,0)>Formula!CU8,(AND(YEAR(Formula!$B$4)=YEAR(Formula!CU8),(MONTH(Formula!$B$4)=MONTH(Formula!CU8))))),Formula!CU12,""),"") ->  | DH6: =IF($A$4=Formula!$A$35,IF(OR(EOMONTH(Formula!$B$4,0)>Formula!CV8,(AND(YEAR(Formula!$B$4)=YEAR(Formula!CV8),(MONTH(Formula!$B$4)=MONTH(Formula!CV8))))),Formula!CV12,""),"") ->  | DI6: =IF($A$4=Formula!$A$35,IF(OR(EOMONTH(Formula!$B$4,0)>Formula!CW8,(AND(YEAR(Formula!$B$4)=YEAR(Formula!CW8),(MONTH(Formula!$B$4)=MONTH(Formula!CW8))))),Formula!CW12,""),"") ->  | DJ6: =IF($A$4=Formula!$A$35,IF(OR(EOMONTH(Formula!$B$4,0)>Formula!CX8,(AND(YEAR(Formula!$B$4)=YEAR(Formula!CX8),(MONTH(Formula!$B$4)=MONTH(Formula!CX8))))),Formula!CX12,""),"") ->  | DK6: =IF($A$4=Formula!$A$35,IF(OR(EOMONTH(Formula!$B$4,0)>Formula!CY8,(AND(YEAR(Formula!$B$4)=YEAR(Formula!CY8),(MONTH(Formula!$B$4)=MONTH(Formula!CY8))))),Formula!CY12,""),"") ->  | DL6: =IF($A$4=Formula!$A$35,IF(OR(EOMONTH(Formula!$B$4,0)>Formula!CZ8,(AND(YEAR(Formula!$B$4)=YEAR(Formula!CZ8),(MONTH(Formula!$B$4)=MONTH(Formula!CZ8))))),Formula!CZ12,""),"") ->  | DM6: =IF($A$4=Formula!$A$35,IF(OR(EOMONTH(Formula!$B$4,0)>Formula!DA8,(AND(YEAR(Formula!$B$4)=YEAR(Formula!DA8),(MONTH(Formula!$B$4)=MONTH(Formula!DA8))))),Formula!DA12,""),"") ->  | DN6: =IF($A$4=Formula!$A$35,IF(OR(EOMONTH(Formula!$B$4,0)>Formula!DB8,(AND(YEAR(Formula!$B$4)=YEAR(Formula!DB8),(MONTH(Formula!$B$4)=MONTH(Formula!DB8))))),Formula!DB12,""),"") ->  | DO6: =IF($A$4=Formula!$A$35,IF(OR(EOMONTH(Formula!$B$4,0)>Formula!DC8,(AND(YEAR(Formula!$B$4)=YEAR(Formula!DC8),(MONTH(Formula!$B$4)=MONTH(Formula!DC8))))),Formula!DC12,""),"") ->  | DP6: =IF($A$4=Formula!$A$35,IF(OR(EOMONTH(Formula!$B$4,0)>Formula!DD8,(AND(YEAR(Formula!$B$4)=YEAR(Formula!DD8),(MONTH(Formula!$B$4)=MONTH(Formula!DD8))))),Formula!DD12,""),"") ->  | DQ6: =IF($A$4=Formula!$A$35,IF(OR(EOMONTH(Formula!$B$4,0)>Formula!DE8,(AND(YEAR(Formula!$B$4)=YEAR(Formula!DE8),(MONTH(Formula!$B$4)=MONTH(Formula!DE8))))),Formula!DE12,""),"") ->  | DR6: =IF($A$4=Formula!$A$35,IF(OR(EOMONTH(Formula!$B$4,0)>Formula!DF8,(AND(YEAR(Formula!$B$4)=YEAR(Formula!DF8),(MONTH(Formula!$B$4)=MONTH(Formula!DF8))))),Formula!DF12,""),"") ->  | DS6: =IF($A$4=Formula!$A$35,IF(OR(EOMONTH(Formula!$B$4,0)>Formula!DG8,(AND(YEAR(Formula!$B$4)=YEAR(Formula!DG8),(MONTH(Formula!$B$4)=MONTH(Formula!DG8))))),Formula!DG12,""),"") ->  | DT6: =IF($A$4=Formula!$A$35,IF(OR(EOMONTH(Formula!$B$4,0)>Formula!DH8,(AND(YEAR(Formula!$B$4)=YEAR(Formula!DH8),(MONTH(Formula!$B$4)=MONTH(Formula!DH8))))),Formula!DH12,""),"") ->  | DU6: =IF($A$4=Formula!$A$35,IF(OR(EOMONTH(Formula!$B$4,0)>Formula!DI8,(AND(YEAR(Formula!$B$4)=YEAR(Formula!DI8),(MONTH(Formula!$B$4)=MONTH(Formula!DI8))))),Formula!DI12,""),"") ->  | DV6: =IF($A$4=Formula!$A$35,IF(OR(EOMONTH(Formula!$B$4,0)>Formula!DJ8,(AND(YEAR(Formula!$B$4)=YEAR(Formula!DJ8),(MONTH(Formula!$B$4)=MONTH(Formula!DJ8))))),Formula!DJ12,""),"") ->  | DW6: =IF($A$4=Formula!$A$35,IF(OR(EOMONTH(Formula!$B$4,0)>Formula!DK8,(AND(YEAR(Formula!$B$4)=YEAR(Formula!DK8),(MONTH(Formula!$B$4)=MONTH(Formula!DK8))))),Formula!DK12,""),"") ->  | DX6: =IF($A$4=Formula!$A$35,IF(OR(EOMONTH(Formula!$B$4,0)>Formula!DL8,(AND(YEAR(Formula!$B$4)=YEAR(Formula!DL8),(MONTH(Formula!$B$4)=MONTH(Formula!DL8))))),Formula!DL12,""),"") ->  | DY6: =IF($A$4=Formula!$A$35,IF(OR(EOMONTH(Formula!$B$4,0)>Formula!DM8,(AND(YEAR(Formula!$B$4)=YEAR(Formula!DM8),(MONTH(Formula!$B$4)=MONTH(Formula!DM8))))),Formula!DM12,""),"") ->  | DZ6: =IF($A$4=Formula!$A$35,IF(OR(EOMONTH(Formula!$B$4,0)>Formula!DN8,(AND(YEAR(Formula!$B$4)=YEAR(Formula!DN8),(MONTH(Formula!$B$4)=MONTH(Formula!DN8))))),Formula!DN12,""),"") ->  | EA6: =IF($A$4=Formula!$A$35,IF(OR(EOMONTH(Formula!$B$4,0)>Formula!DO8,(AND(YEAR(Formula!$B$4)=YEAR(Formula!DO8),(MONTH(Formula!$B$4)=MONTH(Formula!DO8))))),Formula!DO12,""),"") ->  | EB6: =IF($A$4=Formula!$A$35,IF(OR(EOMONTH(Formula!$B$4,0)>Formula!DP8,(AND(YEAR(Formula!$B$4)=YEAR(Formula!DP8),(MONTH(Formula!$B$4)=MONTH(Formula!DP8))))),Formula!DP12,""),"") ->  | EC6: =IF($A$4=Formula!$A$35,IF(OR(EOMONTH(Formula!$B$4,0)>Formula!DQ8,(AND(YEAR(Formula!$B$4)=YEAR(Formula!DQ8),(MONTH(Formula!$B$4)=MONTH(Formula!DQ8))))),Formula!DQ12,""),"") ->  | ED6: =IF($A$4=Formula!$A$35,IF(OR(EOMONTH(Formula!$B$4,0)>Formula!DR8,(AND(YEAR(Formula!$B$4)=YEAR(Formula!DR8),(MONTH(Formula!$B$4)=MONTH(Formula!DR8))))),Formula!DR12,""),"") ->  | EE6: =IF($A$4=Formula!$A$35,IF(OR(EOMONTH(Formula!$B$4,0)>Formula!DS8,(AND(YEAR(Formula!$B$4)=YEAR(Formula!DS8),(MONTH(Formula!$B$4)=MONTH(Formula!DS8))))),Formula!DS12,""),"") ->  | EF6: =IF($A$4=Formula!$A$35,IF(OR(EOMONTH(Formula!$B$4,0)>Formula!DT8,(AND(YEAR(Formula!$B$4)=YEAR(Formula!DT8),(MONTH(Formula!$B$4)=MONTH(Formula!DT8))))),Formula!DT12,""),"") ->  | EG6: =IF($A$4=Formula!$A$35,IF(OR(EOMONTH(Formula!$B$4,0)>Formula!DU8,(AND(YEAR(Formula!$B$4)=YEAR(Formula!DU8),(MONTH(Formula!$B$4)=MONTH(Formula!DU8))))),Formula!DU12,""),"") ->  | EH6: =IF($A$4=Formula!$A$35,IF(OR(EOMONTH(Formula!$B$4,0)>Formula!DV8,(AND(YEAR(Formula!$B$4)=YEAR(Formula!DV8),(MONTH(Formula!$B$4)=MONTH(Formula!DV8))))),Formula!DV12,""),"") ->  | EI6: =IF($A$4=Formula!$A$35,IF(OR(EOMONTH(Formula!$B$4,0)>Formula!DW8,(AND(YEAR(Formula!$B$4)=YEAR(Formula!DW8),(MONTH(Formula!$B$4)=MONTH(Formula!DW8))))),Formula!DW12,""),"") ->  | EJ6: =IF($A$4=Formula!$A$35,IF(OR(EOMONTH(Formula!$B$4,0)>Formula!DX8,(AND(YEAR(Formula!$B$4)=YEAR(Formula!DX8),(MONTH(Formula!$B$4)=MONTH(Formula!DX8))))),Formula!DX12,""),"") ->  | EK6: =IF($A$4=Formula!$A$35,IF(OR(EOMONTH(Formula!$B$4,0)>Formula!DY8,(AND(YEAR(Formula!$B$4)=YEAR(Formula!DY8),(MONTH(Formula!$B$4)=MONTH(Formula!DY8))))),Formula!DY12,""),"") ->  | EL6: =IF($A$4=Formula!$A$35,IF(OR(EOMONTH(Formula!$B$4,0)>Formula!DZ8,(AND(YEAR(Formula!$B$4)=YEAR(Formula!DZ8),(MONTH(Formula!$B$4)=MONTH(Formula!DZ8))))),Formula!DZ12,""),"") ->  | EM6: =IF($A$4=Formula!$A$35,IF(OR(EOMONTH(Formula!$B$4,0)>Formula!EA8,(AND(YEAR(Formula!$B$4)=YEAR(Formula!EA8),(MONTH(Formula!$B$4)=MONTH(Formula!EA8))))),Formula!EA12,""),"") ->  | EN6: =IF($A$4=Formula!$A$35,IF(OR(EOMONTH(Formula!$B$4,0)>Formula!EB8,(AND(YEAR(Formula!$B$4)=YEAR(Formula!EB8),(MONTH(Formula!$B$4)=MONTH(Formula!EB8))))),Formula!EB12,""),"") ->  | EO6: =IF($A$4=Formula!$A$35,IF(OR(EOMONTH(Formula!$B$4,0)>Formula!EC8,(AND(YEAR(Formula!$B$4)=YEAR(Formula!EC8),(MONTH(Formula!$B$4)=MONTH(Formula!EC8))))),Formula!EC12,""),"") ->  | EP6: =IF($A$4=Formula!$A$35,IF(OR(EOMONTH(Formula!$B$4,0)>Formula!ED8,(AND(YEAR(Formula!$B$4)=YEAR(Formula!ED8),(MONTH(Formula!$B$4)=MONTH(Formula!ED8))))),Formula!ED12,""),"") ->  | EQ6: =IF($A$4=Formula!$A$35,IF(OR(EOMONTH(Formula!$B$4,0)>Formula!EE8,(AND(YEAR(Formula!$B$4)=YEAR(Formula!EE8),(MONTH(Formula!$B$4)=MONTH(Formula!EE8))))),Formula!EE12,""),"") ->  | ER6: =IF($A$4=Formula!$A$35,IF(OR(EOMONTH(Formula!$B$4,0)>Formula!EF8,(AND(YEAR(Formula!$B$4)=YEAR(Formula!EF8),(MONTH(Formula!$B$4)=MONTH(Formula!EF8))))),Formula!EF12,""),"") ->  | ES6: =IF($A$4=Formula!$A$35,IF(OR(EOMONTH(Formula!$B$4,0)>Formula!EG8,(AND(YEAR(Formula!$B$4)=YEAR(Formula!EG8),(MONTH(Formula!$B$4)=MONTH(Formula!EG8))))),Formula!EG12,""),"") ->  | ET6: =IF($A$4=Formula!$A$35,IF(OR(EOMONTH(Formula!$B$4,0)>Formula!EH8,(AND(YEAR(Formula!$B$4)=YEAR(Formula!EH8),(MONTH(Formula!$B$4)=MONTH(Formula!EH8))))),Formula!EH12,""),"") ->  | EU6: =IF($A$4=Formula!$A$35,IF(OR(EOMONTH(Formula!$B$4,0)>Formula!EI8,(AND(YEAR(Formula!$B$4)=YEAR(Formula!EI8),(MONTH(Formula!$B$4)=MONTH(Formula!EI8))))),Formula!EI12,""),"") ->  | EV6: =IF($A$4=Formula!$A$35,IF(OR(EOMONTH(Formula!$B$4,0)>Formula!EJ8,(AND(YEAR(Formula!$B$4)=YEAR(Formula!EJ8),(MONTH(Formula!$B$4)=MONTH(Formula!EJ8))))),Formula!EJ12,""),"") ->  | EW6: =IF($A$4=Formula!$A$35,IF(OR(EOMONTH(Formula!$B$4,0)>Formula!EK8,(AND(YEAR(Formula!$B$4)=YEAR(Formula!EK8),(MONTH(Formula!$B$4)=MONTH(Formula!EK8))))),Formula!EK12,""),"") ->  | EX6: =IF($A$4=Formula!$A$35,IF(OR(EOMONTH(Formula!$B$4,0)>Formula!EL8,(AND(YEAR(Formula!$B$4)=YEAR(Formula!EL8),(MONTH(Formula!$B$4)=MONTH(Formula!EL8))))),Formula!EL12,""),"") ->  | EY6: =IF($A$4=Formula!$A$35,IF(OR(EOMONTH(Formula!$B$4,0)>Formula!EM8,(AND(YEAR(Formula!$B$4)=YEAR(Formula!EM8),(MONTH(Formula!$B$4)=MONTH(Formula!EM8))))),Formula!EM12,""),"") ->  | EZ6: =IF($A$4=Formula!$A$35,IF(OR(EOMONTH(Formula!$B$4,0)>Formula!EN8,(AND(YEAR(Formula!$B$4)=YEAR(Formula!EN8),(MONTH(Formula!$B$4)=MONTH(Formula!EN8))))),Formula!EN12,""),"") ->  | FA6: =IF($A$4=Formula!$A$35,IF(OR(EOMONTH(Formula!$B$4,0)>Formula!EO8,(AND(YEAR(Formula!$B$4)=YEAR(Formula!EO8),(MONTH(Formula!$B$4)=MONTH(Formula!EO8))))),Formula!EO12,""),"") ->  | FB6: =IF($A$4=Formula!$A$35,IF(OR(EOMONTH(Formula!$B$4,0)>Formula!EP8,(AND(YEAR(Formula!$B$4)=YEAR(Formula!EP8),(MONTH(Formula!$B$4)=MONTH(Formula!EP8))))),Formula!EP12,""),"") ->  | FC6: =IF($A$4=Formula!$A$35,IF(OR(EOMONTH(Formula!$B$4,0)>Formula!EQ8,(AND(YEAR(Formula!$B$4)=YEAR(Formula!EQ8),(MONTH(Formula!$B$4)=MONTH(Formula!EQ8))))),Formula!EQ12,""),"") ->  | FD6: =IF($A$4=Formula!$A$35,IF(OR(EOMONTH(Formula!$B$4,0)>Formula!ER8,(AND(YEAR(Formula!$B$4)=YEAR(Formula!ER8),(MONTH(Formula!$B$4)=MONTH(Formula!ER8))))),Formula!ER12,""),"") ->  | FE6: =IF($A$4=Formula!$A$35,IF(OR(EOMONTH(Formula!$B$4,0)>Formula!ES8,(AND(YEAR(Formula!$B$4)=YEAR(Formula!ES8),(MONTH(Formula!$B$4)=MONTH(Formula!ES8))))),Formula!ES12,""),"") ->  | FF6: =IF($A$4=Formula!$A$35,IF(OR(EOMONTH(Formula!$B$4,0)>Formula!ET8,(AND(YEAR(Formula!$B$4)=YEAR(Formula!ET8),(MONTH(Formula!$B$4)=MONTH(Formula!ET8))))),Formula!ET12,""),"") ->  | FG6: =IF($A$4=Formula!$A$35,IF(OR(EOMONTH(Formula!$B$4,0)>Formula!EU8,(AND(YEAR(Formula!$B$4)=YEAR(Formula!EU8),(MONTH(Formula!$B$4)=MONTH(Formula!EU8))))),Formula!EU12,""),"") ->  | FH6: =IF($A$4=Formula!$A$35,IF(OR(EOMONTH(Formula!$B$4,0)>Formula!EV8,(AND(YEAR(Formula!$B$4)=YEAR(Formula!EV8),(MONTH(Formula!$B$4)=MONTH(Formula!EV8))))),Formula!EV12,""),"") ->  | FI6: =IF($A$4=Formula!$A$35,IF(OR(EOMONTH(Formula!$B$4,0)>Formula!EW8,(AND(YEAR(Formula!$B$4)=YEAR(Formula!EW8),(MONTH(Formula!$B$4)=MONTH(Formula!EW8))))),Formula!EW12,""),"") ->  | FJ6: =IF($A$4=Formula!$A$35,IF(OR(EOMONTH(Formula!$B$4,0)>Formula!EX8,(AND(YEAR(Formula!$B$4)=YEAR(Formula!EX8),(MONTH(Formula!$B$4)=MONTH(Formula!EX8))))),Formula!EX12,""),"") ->  | FK6: =IF($A$4=Formula!$A$35,IF(OR(EOMONTH(Formula!$B$4,0)>Formula!EY8,(AND(YEAR(Formula!$B$4)=YEAR(Formula!EY8),(MONTH(Formula!$B$4)=MONTH(Formula!EY8))))),Formula!EY12,""),"") ->  | FL6: =IF($A$4=Formula!$A$35,IF(OR(EOMONTH(Formula!$B$4,0)>Formula!EZ8,(AND(YEAR(Formula!$B$4)=YEAR(Formula!EZ8),(MONTH(Formula!$B$4)=MONTH(Formula!EZ8))))),Formula!EZ12,""),"") ->  | FM6: =IF($A$4=Formula!$A$35,IF(OR(EOMONTH(Formula!$B$4,0)>Formula!FA8,(AND(YEAR(Formula!$B$4)=YEAR(Formula!FA8),(MONTH(Formula!$B$4)=MONTH(Formula!FA8))))),Formula!FA12,""),"") ->  | FN6: =IF($A$4=Formula!$A$35,IF(OR(EOMONTH(Formula!$B$4,0)>Formula!FB8,(AND(YEAR(Formula!$B$4)=YEAR(Formula!FB8),(MONTH(Formula!$B$4)=MONTH(Formula!FB8))))),Formula!FB12,""),"") ->  | FO6: =IF($A$4=Formula!$A$35,IF(OR(EOMONTH(Formula!$B$4,0)>Formula!FC8,(AND(YEAR(Formula!$B$4)=YEAR(Formula!FC8),(MONTH(Formula!$B$4)=MONTH(Formula!FC8))))),Formula!FC12,""),"") ->  | FP6: =IF($A$4=Formula!$A$35,IF(OR(EOMONTH(Formula!$B$4,0)>Formula!FD8,(AND(YEAR(Formula!$B$4)=YEAR(Formula!FD8),(MONTH(Formula!$B$4)=MONTH(Formula!FD8))))),Formula!FD12,""),"") ->  | FQ6: =IF($A$4=Formula!$A$35,IF(OR(EOMONTH(Formula!$B$4,0)>Formula!FE8,(AND(YEAR(Formula!$B$4)=YEAR(Formula!FE8),(MONTH(Formula!$B$4)=MONTH(Formula!FE8))))),Formula!FE12,""),"") ->  | FR6: =IF($A$4=Formula!$A$35,IF(OR(EOMONTH(Formula!$B$4,0)>Formula!FF8,(AND(YEAR(Formula!$B$4)=YEAR(Formula!FF8),(MONTH(Formula!$B$4)=MONTH(Formula!FF8))))),Formula!FF12,""),"") ->  | FS6: =IF($A$4=Formula!$A$35,IF(OR(EOMONTH(Formula!$B$4,0)>Formula!FG8,(AND(YEAR(Formula!$B$4)=YEAR(Formula!FG8),(MONTH(Formula!$B$4)=MONTH(Formula!FG8))))),Formula!FG12,""),"") ->  | FT6: =IF($A$4=Formula!$A$35,IF(OR(EOMONTH(Formula!$B$4,0)>Formula!FH8,(AND(YEAR(Formula!$B$4)=YEAR(Formula!FH8),(MONTH(Formula!$B$4)=MONTH(Formula!FH8))))),Formula!FH12,""),"") ->  | FU6: =IF($A$4=Formula!$A$35,IF(OR(EOMONTH(Formula!$B$4,0)>Formula!FI8,(AND(YEAR(Formula!$B$4)=YEAR(Formula!FI8),(MONTH(Formula!$B$4)=MONTH(Formula!FI8))))),Formula!FI12,""),"") ->  | FV6: =IF($A$4=Formula!$A$35,IF(OR(EOMONTH(Formula!$B$4,0)>Formula!FJ8,(AND(YEAR(Formula!$B$4)=YEAR(Formula!FJ8),(MONTH(Formula!$B$4)=MONTH(Formula!FJ8))))),Formula!FJ12,""),"") ->  | FW6: =IF($A$4=Formula!$A$35,IF(OR(EOMONTH(Formula!$B$4,0)>Formula!FK8,(AND(YEAR(Formula!$B$4)=YEAR(Formula!FK8),(MONTH(Formula!$B$4)=MONTH(Formula!FK8))))),Formula!FK12,""),"") ->  | FX6: =IF($A$4=Formula!$A$35,IF(OR(EOMONTH(Formula!$B$4,0)>Formula!FL8,(AND(YEAR(Formula!$B$4)=YEAR(Formula!FL8),(MONTH(Formula!$B$4)=MONTH(Formula!FL8))))),Formula!FL12,""),"") ->  | FY6: =IF($A$4=Formula!$A$35,IF(OR(EOMONTH(Formula!$B$4,0)>Formula!FM8,(AND(YEAR(Formula!$B$4)=YEAR(Formula!FM8),(MONTH(Formula!$B$4)=MONTH(Formula!FM8))))),Formula!FM12,""),"") ->  | FZ6: =IF($A$4=Formula!$A$35,IF(OR(EOMONTH(Formula!$B$4,0)>Formula!FN8,(AND(YEAR(Formula!$B$4)=YEAR(Formula!FN8),(MONTH(Formula!$B$4)=MONTH(Formula!FN8))))),Formula!FN12,""),"") ->  | GA6: =IF($A$4=Formula!$A$35,IF(OR(EOMONTH(Formula!$B$4,0)>Formula!FO8,(AND(YEAR(Formula!$B$4)=YEAR(Formula!FO8),(MONTH(Formula!$B$4)=MONTH(Formula!FO8))))),Formula!FO12,""),"") ->  | GB6: =IF($A$4=Formula!$A$35,IF(OR(EOMONTH(Formula!$B$4,0)>Formula!FP8,(AND(YEAR(Formula!$B$4)=YEAR(Formula!FP8),(MONTH(Formula!$B$4)=MONTH(Formula!FP8))))),Formula!FP12,""),"") ->  | GC6: =IF($A$4=Formula!$A$35,IF(OR(EOMONTH(Formula!$B$4,0)>Formula!FQ8,(AND(YEAR(Formula!$B$4)=YEAR(Formula!FQ8),(MONTH(Formula!$B$4)=MONTH(Formula!FQ8))))),Formula!FQ12,""),"") ->  | GD6: =IF($A$4=Formula!$A$35,IF(OR(EOMONTH(Formula!$B$4,0)>Formula!FR8,(AND(YEAR(Formula!$B$4)=YEAR(Formula!FR8),(MONTH(Formula!$B$4)=MONTH(Formula!FR8))))),Formula!FR12,""),"") ->  | GE6: =IF($A$4=Formula!$A$35,IF(OR(EOMONTH(Formula!$B$4,0)>Formula!FS8,(AND(YEAR(Formula!$B$4)=YEAR(Formula!FS8),(MONTH(Formula!$B$4)=MONTH(Formula!FS8))))),Formula!FS12,""),"") ->  | GF6: =IF($A$4=Formula!$A$35,IF(OR(EOMONTH(Formula!$B$4,0)>Formula!FT8,(AND(YEAR(Formula!$B$4)=YEAR(Formula!FT8),(MONTH(Formula!$B$4)=MONTH(Formula!FT8))))),Formula!FT12,""),"") ->  | GG6: =IF($A$4=Formula!$A$35,IF(OR(EOMONTH(Formula!$B$4,0)>Formula!FU8,(AND(YEAR(Formula!$B$4)=YEAR(Formula!FU8),(MONTH(Formula!$B$4)=MONTH(Formula!FU8))))),Formula!FU12,""),"") ->  | GH6: =IF($A$4=Formula!$A$35,IF(OR(EOMONTH(Formula!$B$4,0)>Formula!FV8,(AND(YEAR(Formula!$B$4)=YEAR(Formula!FV8),(MONTH(Formula!$B$4)=MONTH(Formula!FV8))))),Formula!FV12,""),"") ->  | GI6: =IF($A$4=Formula!$A$35,IF(OR(EOMONTH(Formula!$B$4,0)>Formula!FW8,(AND(YEAR(Formula!$B$4)=YEAR(Formula!FW8),(MONTH(Formula!$B$4)=MONTH(Formula!FW8))))),Formula!FW12,""),"") ->  | GJ6: =IF($A$4=Formula!$A$35,IF(OR(EOMONTH(Formula!$B$4,0)>Formula!FX8,(AND(YEAR(Formula!$B$4)=YEAR(Formula!FX8),(MONTH(Formula!$B$4)=MONTH(Formula!FX8))))),Formula!FX12,""),"") ->  | GK6: =IF($A$4=Formula!$A$35,IF(OR(EOMONTH(Formula!$B$4,0)>Formula!FY8,(AND(YEAR(Formula!$B$4)=YEAR(Formula!FY8),(MONTH(Formula!$B$4)=MONTH(Formula!FY8))))),Formula!FY12,""),"") ->  | GL6: =IF($A$4=Formula!$A$35,IF(OR(EOMONTH(Formula!$B$4,0)>Formula!FZ8,(AND(YEAR(Formula!$B$4)=YEAR(Formula!FZ8),(MONTH(Formula!$B$4)=MONTH(Formula!FZ8))))),Formula!FZ12,""),"") ->  | GM6: =IF($A$4=Formula!$A$35,IF(OR(EOMONTH(Formula!$B$4,0)>Formula!GA8,(AND(YEAR(Formula!$B$4)=YEAR(Formula!GA8),(MONTH(Formula!$B$4)=MONTH(Formula!GA8))))),Formula!GA12,""),"") ->  | GN6: =IF($A$4=Formula!$A$35,IF(OR(EOMONTH(Formula!$B$4,0)>Formula!GB8,(AND(YEAR(Formula!$B$4)=YEAR(Formula!GB8),(MONTH(Formula!$B$4)=MONTH(Formula!GB8))))),Formula!GB12,""),"") ->  | GO6: =IF($A$4=Formula!$A$35,IF(OR(EOMONTH(Formula!$B$4,0)>Formula!GC8,(AND(YEAR(Formula!$B$4)=YEAR(Formula!GC8),(MONTH(Formula!$B$4)=MONTH(Formula!GC8))))),Formula!GC12,""),"") ->  | GP6: =IF($A$4=Formula!$A$35,IF(OR(EOMONTH(Formula!$B$4,0)>Formula!GD8,(AND(YEAR(Formula!$B$4)=YEAR(Formula!GD8),(MONTH(Formula!$B$4)=MONTH(Formula!GD8))))),Formula!GD12,""),"") ->  | GQ6: =IF($A$4=Formula!$A$35,IF(OR(EOMONTH(Formula!$B$4,0)>Formula!GE8,(AND(YEAR(Formula!$B$4)=YEAR(Formula!GE8),(MONTH(Formula!$B$4)=MONTH(Formula!GE8))))),Formula!GE12,""),"") ->  | GR6: =IF($A$4=Formula!$A$35,IF(OR(EOMONTH(Formula!$B$4,0)>Formula!GF8,(AND(YEAR(Formula!$B$4)=YEAR(Formula!GF8),(MONTH(Formula!$B$4)=MONTH(Formula!GF8))))),Formula!GF12,""),"") ->  | GS6: =IF($A$4=Formula!$A$35,IF(OR(EOMONTH(Formula!$B$4,0)>Formula!GG8,(AND(YEAR(Formula!$B$4)=YEAR(Formula!GG8),(MONTH(Formula!$B$4)=MONTH(Formula!GG8))))),Formula!GG12,""),"") ->  | GT6: =IF($A$4=Formula!$A$35,IF(OR(EOMONTH(Formula!$B$4,0)>Formula!GH8,(AND(YEAR(Formula!$B$4)=YEAR(Formula!GH8),(MONTH(Formula!$B$4)=MONTH(Formula!GH8))))),Formula!GH12,""),"") ->  | GU6: =IF($A$4=Formula!$A$35,IF(OR(EOMONTH(Formula!$B$4,0)>Formula!GI8,(AND(YEAR(Formula!$B$4)=YEAR(Formula!GI8),(MONTH(Formula!$B$4)=MONTH(Formula!GI8))))),Formula!GI12,""),"") ->  | GV6: =IF($A$4=Formula!$A$35,IF(OR(EOMONTH(Formula!$B$4,0)>Formula!GJ8,(AND(YEAR(Formula!$B$4)=YEAR(Formula!GJ8),(MONTH(Formula!$B$4)=MONTH(Formula!GJ8))))),Formula!GJ12,""),"") ->  | GW6: =IF($A$4=Formula!$A$35,IF(OR(EOMONTH(Formula!$B$4,0)>Formula!GK8,(AND(YEAR(Formula!$B$4)=YEAR(Formula!GK8),(MONTH(Formula!$B$4)=MONTH(Formula!GK8))))),Formula!GK12,""),"") ->  | GX6: =IF($A$4=Formula!$A$35,IF(OR(EOMONTH(Formula!$B$4,0)>Formula!GL8,(AND(YEAR(Formula!$B$4)=YEAR(Formula!GL8),(MONTH(Formula!$B$4)=MONTH(Formula!GL8))))),Formula!GL12,""),"") ->  | GY6: =IF($A$4=Formula!$A$35,IF(OR(EOMONTH(Formula!$B$4,0)>Formula!GM8,(AND(YEAR(Formula!$B$4)=YEAR(Formula!GM8),(MONTH(Formula!$B$4)=MONTH(Formula!GM8))))),Formula!GM12,""),"") ->  | GZ6: =IF($A$4=Formula!$A$35,IF(OR(EOMONTH(Formula!$B$4,0)>Formula!GN8,(AND(YEAR(Formula!$B$4)=YEAR(Formula!GN8),(MONTH(Formula!$B$4)=MONTH(Formula!GN8))))),Formula!GN12,""),"") ->  | HA6: =IF($A$4=Formula!$A$35,IF(OR(EOMONTH(Formula!$B$4,0)>Formula!GO8,(AND(YEAR(Formula!$B$4)=YEAR(Formula!GO8),(MONTH(Formula!$B$4)=MONTH(Formula!GO8))))),Formula!GO12,""),"") ->  | HB6: =IF($A$4=Formula!$A$35,IF(OR(EOMONTH(Formula!$B$4,0)>Formula!GP8,(AND(YEAR(Formula!$B$4)=YEAR(Formula!GP8),(MONTH(Formula!$B$4)=MONTH(Formula!GP8))))),Formula!GP12,""),"") ->  | HC6: =IF($A$4=Formula!$A$35,IF(OR(EOMONTH(Formula!$B$4,0)>Formula!GQ8,(AND(YEAR(Formula!$B$4)=YEAR(Formula!GQ8),(MONTH(Formula!$B$4)=MONTH(Formula!GQ8))))),Formula!GQ12,""),"") ->  | HD6: =IF($A$4=Formula!$A$35,IF(OR(EOMONTH(Formula!$B$4,0)>Formula!GR8,(AND(YEAR(Formula!$B$4)=YEAR(Formula!GR8),(MONTH(Formula!$B$4)=MONTH(Formula!GR8))))),Formula!GR12,""),"") ->  | HE6: =IF($A$4=Formula!$A$35,IF(OR(EOMONTH(Formula!$B$4,0)>Formula!GS8,(AND(YEAR(Formula!$B$4)=YEAR(Formula!GS8),(MONTH(Formula!$B$4)=MONTH(Formula!GS8))))),Formula!GS12,""),"") ->  | HF6: =IF($A$4=Formula!$A$35,IF(OR(EOMONTH(Formula!$B$4,0)>Formula!GT8,(AND(YEAR(Formula!$B$4)=YEAR(Formula!GT8),(MONTH(Formula!$B$4)=MONTH(Formula!GT8))))),Formula!GT12,""),"") ->  | HG6: =IF($A$4=Formula!$A$35,IF(OR(EOMONTH(Formula!$B$4,0)>Formula!GU8,(AND(YEAR(Formula!$B$4)=YEAR(Formula!GU8),(MONTH(Formula!$B$4)=MONTH(Formula!GU8))))),Formula!GU12,""),"") ->  | HH6: =IF($A$4=Formula!$A$35,IF(OR(EOMONTH(Formula!$B$4,0)>Formula!GV8,(AND(YEAR(Formula!$B$4)=YEAR(Formula!GV8),(MONTH(Formula!$B$4)=MONTH(Formula!GV8))))),Formula!GV12,""),"") ->  | HI6: =IF($A$4=Formula!$A$35,IF(OR(EOMONTH(Formula!$B$4,0)>Formula!GW8,(AND(YEAR(Formula!$B$4)=YEAR(Formula!GW8),(MONTH(Formula!$B$4)=MONTH(Formula!GW8))))),Formula!GW12,""),"") ->  | HJ6: =IF($A$4=Formula!$A$35,IF(OR(EOMONTH(Formula!$B$4,0)>Formula!GX8,(AND(YEAR(Formula!$B$4)=YEAR(Formula!GX8),(MONTH(Formula!$B$4)=MONTH(Formula!GX8))))),Formula!GX12,""),"") ->  | HK6: =IF($A$4=Formula!$A$35,IF(OR(EOMONTH(Formula!$B$4,0)>Formula!GY8,(AND(YEAR(Formula!$B$4)=YEAR(Formula!GY8),(MONTH(Formula!$B$4)=MONTH(Formula!GY8))))),Formula!GY12,""),"") ->  | HL6: =IF($A$4=Formula!$A$35,IF(OR(EOMONTH(Formula!$B$4,0)>Formula!GZ8,(AND(YEAR(Formula!$B$4)=YEAR(Formula!GZ8),(MONTH(Formula!$B$4)=MONTH(Formula!GZ8))))),Formula!GZ12,""),"") ->  | HM6: =IF($A$4=Formula!$A$35,IF(OR(EOMONTH(Formula!$B$4,0)>Formula!HA8,(AND(YEAR(Formula!$B$4)=YEAR(Formula!HA8),(MONTH(Formula!$B$4)=MONTH(Formula!HA8))))),Formula!HA12,""),"") ->  | HN6: =IF($A$4=Formula!$A$35,IF(OR(EOMONTH(Formula!$B$4,0)>Formula!HB8,(AND(YEAR(Formula!$B$4)=YEAR(Formula!HB8),(MONTH(Formula!$B$4)=MONTH(Formula!HB8))))),Formula!HB12,""),"") ->  | HO6: =IF($A$4=Formula!$A$35,IF(OR(EOMONTH(Formula!$B$4,0)>Formula!HC8,(AND(YEAR(Formula!$B$4)=YEAR(Formula!HC8),(MONTH(Formula!$B$4)=MONTH(Formula!HC8))))),Formula!HC12,""),"") ->  | HP6: =IF($A$4=Formula!$A$35,IF(OR(EOMONTH(Formula!$B$4,0)>Formula!HD8,(AND(YEAR(Formula!$B$4)=YEAR(Formula!HD8),(MONTH(Formula!$B$4)=MONTH(Formula!HD8))))),Formula!HD12,""),"") ->  | HQ6: =IF($A$4=Formula!$A$35,IF(OR(EOMONTH(Formula!$B$4,0)>Formula!HE8,(AND(YEAR(Formula!$B$4)=YEAR(Formula!HE8),(MONTH(Formula!$B$4)=MONTH(Formula!HE8))))),Formula!HE12,""),"") ->  | HR6: =IF($A$4=Formula!$A$35,IF(OR(EOMONTH(Formula!$B$4,0)>Formula!HF8,(AND(YEAR(Formula!$B$4)=YEAR(Formula!HF8),(MONTH(Formula!$B$4)=MONTH(Formula!HF8))))),Formula!HF12,""),"") ->  | HS6: =IF($A$4=Formula!$A$35,IF(OR(EOMONTH(Formula!$B$4,0)>Formula!HG8,(AND(YEAR(Formula!$B$4)=YEAR(Formula!HG8),(MONTH(Formula!$B$4)=MONTH(Formula!HG8))))),Formula!HG12,""),"") ->  | HT6: =IF($A$4=Formula!$A$35,IF(OR(EOMONTH(Formula!$B$4,0)>Formula!HH8,(AND(YEAR(Formula!$B$4)=YEAR(Formula!HH8),(MONTH(Formula!$B$4)=MONTH(Formula!HH8))))),Formula!HH12,""),"") ->  | HU6: =IF($A$4=Formula!$A$35,IF(OR(EOMONTH(Formula!$B$4,0)>Formula!HI8,(AND(YEAR(Formula!$B$4)=YEAR(Formula!HI8),(MONTH(Formula!$B$4)=MONTH(Formula!HI8))))),Formula!HI12,""),"") ->  | HV6: =IF($A$4=Formula!$A$35,IF(OR(EOMONTH(Formula!$B$4,0)>Formula!HJ8,(AND(YEAR(Formula!$B$4)=YEAR(Formula!HJ8),(MONTH(Formula!$B$4)=MONTH(Formula!HJ8))))),Formula!HJ12,""),"") ->  | HW6: =IF($A$4=Formula!$A$35,IF(OR(EOMONTH(Formula!$B$4,0)>Formula!HK8,(AND(YEAR(Formula!$B$4)=YEAR(Formula!HK8),(MONTH(Formula!$B$4)=MONTH(Formula!HK8))))),Formula!HK12,""),"") ->  | HX6: =IF($A$4=Formula!$A$35,IF(OR(EOMONTH(Formula!$B$4,0)>Formula!HL8,(AND(YEAR(Formula!$B$4)=YEAR(Formula!HL8),(MONTH(Formula!$B$4)=MONTH(Formula!HL8))))),Formula!HL12,""),"") ->  | HY6: =IF($A$4=Formula!$A$35,IF(OR(EOMONTH(Formula!$B$4,0)>Formula!HM8,(AND(YEAR(Formula!$B$4)=YEAR(Formula!HM8),(MONTH(Formula!$B$4)=MONTH(Formula!HM8))))),Formula!HM12,""),"") ->  | HZ6: =IF($A$4=Formula!$A$35,IF(OR(EOMONTH(Formula!$B$4,0)>Formula!HN8,(AND(YEAR(Formula!$B$4)=YEAR(Formula!HN8),(MONTH(Formula!$B$4)=MONTH(Formula!HN8))))),Formula!HN12,""),"") ->  | IA6: =IF($A$4=Formula!$A$35,IF(OR(EOMONTH(Formula!$B$4,0)>Formula!HO8,(AND(YEAR(Formula!$B$4)=YEAR(Formula!HO8),(MONTH(Formula!$B$4)=MONTH(Formula!HO8))))),Formula!HO12,""),"") ->  | IB6: =IF($A$4=Formula!$A$35,IF(OR(EOMONTH(Formula!$B$4,0)>Formula!HP8,(AND(YEAR(Formula!$B$4)=YEAR(Formula!HP8),(MONTH(Formula!$B$4)=MONTH(Formula!HP8))))),Formula!HP12,""),"") ->  | IC6: =IF($A$4=Formula!$A$35,IF(OR(EOMONTH(Formula!$B$4,0)>Formula!HQ8,(AND(YEAR(Formula!$B$4)=YEAR(Formula!HQ8),(MONTH(Formula!$B$4)=MONTH(Formula!HQ8))))),Formula!HQ12,""),"") ->  | ID6: =IF($A$4=Formula!$A$35,IF(OR(EOMONTH(Formula!$B$4,0)>Formula!HR8,(AND(YEAR(Formula!$B$4)=YEAR(Formula!HR8),(MONTH(Formula!$B$4)=MONTH(Formula!HR8))))),Formula!HR12,""),"") ->  | IE6: =IF($A$4=Formula!$A$35,IF(OR(EOMONTH(Formula!$B$4,0)>Formula!HS8,(AND(YEAR(Formula!$B$4)=YEAR(Formula!HS8),(MONTH(Formula!$B$4)=MONTH(Formula!HS8))))),Formula!HS12,""),"") ->  | IF6: =IF($A$4=Formula!$A$35,IF(OR(EOMONTH(Formula!$B$4,0)>Formula!HT8,(AND(YEAR(Formula!$B$4)=YEAR(Formula!HT8),(MONTH(Formula!$B$4)=MONTH(Formula!HT8))))),Formula!HT12,""),"") ->  | IG6: =IF($A$4=Formula!$A$35,IF(OR(EOMONTH(Formula!$B$4,0)>Formula!HU8,(AND(YEAR(Formula!$B$4)=YEAR(Formula!HU8),(MONTH(Formula!$B$4)=MONTH(Formula!HU8))))),Formula!HU12,""),"") ->  | IH6: =IF($A$4=Formula!$A$35,IF(OR(EOMONTH(Formula!$B$4,0)>Formula!HV8,(AND(YEAR(Formula!$B$4)=YEAR(Formula!HV8),(MONTH(Formula!$B$4)=MONTH(Formula!HV8))))),Formula!HV12,""),"") ->  | II6: =IF($A$4=Formula!$A$35,IF(OR(EOMONTH(Formula!$B$4,0)>Formula!HW8,(AND(YEAR(Formula!$B$4)=YEAR(Formula!HW8),(MONTH(Formula!$B$4)=MONTH(Formula!HW8))))),Formula!HW12,""),"") ->  | IJ6: =IF($A$4=Formula!$A$35,IF(OR(EOMONTH(Formula!$B$4,0)>Formula!HX8,(AND(YEAR(Formula!$B$4)=YEAR(Formula!HX8),(MONTH(Formula!$B$4)=MONTH(Formula!HX8))))),Formula!HX12,""),"") ->  | IK6: =IF($A$4=Formula!$A$35,IF(OR(EOMONTH(Formula!$B$4,0)>Formula!HY8,(AND(YEAR(Formula!$B$4)=YEAR(Formula!HY8),(MONTH(Formula!$B$4)=MONTH(Formula!HY8))))),Formula!HY12,""),"") ->  | IL6: =IF($A$4=Formula!$A$35,IF(OR(EOMONTH(Formula!$B$4,0)>Formula!HZ8,(AND(YEAR(Formula!$B$4)=YEAR(Formula!HZ8),(MONTH(Formula!$B$4)=MONTH(Formula!HZ8))))),Formula!HZ12,""),"") ->  | IM6: =IF($A$4=Formula!$A$35,IF(OR(EOMONTH(Formula!$B$4,0)>Formula!IA8,(AND(YEAR(Formula!$B$4)=YEAR(Formula!IA8),(MONTH(Formula!$B$4)=MONTH(Formula!IA8))))),Formula!IA12,""),"") ->  | IN6: =IF($A$4=Formula!$A$35,IF(OR(EOMONTH(Formula!$B$4,0)>Formula!IB8,(AND(YEAR(Formula!$B$4)=YEAR(Formula!IB8),(MONTH(Formula!$B$4)=MONTH(Formula!IB8))))),Formula!IB12,""),"") ->  | IO6: =IF($A$4=Formula!$A$35,IF(OR(EOMONTH(Formula!$B$4,0)>Formula!IC8,(AND(YEAR(Formula!$B$4)=YEAR(Formula!IC8),(MONTH(Formula!$B$4)=MONTH(Formula!IC8))))),Formula!IC12,""),"") ->  | IP6: =IF($A$4=Formula!$A$35,IF(OR(EOMONTH(Formula!$B$4,0)>Formula!ID8,(AND(YEAR(Formula!$B$4)=YEAR(Formula!ID8),(MONTH(Formula!$B$4)=MONTH(Formula!ID8))))),Formula!ID12,""),"") ->  | IQ6: =IF($A$4=Formula!$A$35,IF(OR(EOMONTH(Formula!$B$4,0)>Formula!IE8,(AND(YEAR(Formula!$B$4)=YEAR(Formula!IE8),(MONTH(Formula!$B$4)=MONTH(Formula!IE8))))),Formula!IE12,""),"") ->  | IR6: =IF($A$4=Formula!$A$35,IF(OR(EOMONTH(Formula!$B$4,0)>Formula!IF8,(AND(YEAR(Formula!$B$4)=YEAR(Formula!IF8),(MONTH(Formula!$B$4)=MONTH(Formula!IF8))))),Formula!IF12,""),"") ->  | IS6: =IF($A$4=Formula!$A$35,IF(OR(EOMONTH(Formula!$B$4,0)>Formula!IG8,(AND(YEAR(Formula!$B$4)=YEAR(Formula!IG8),(MONTH(Formula!$B$4)=MONTH(Formula!IG8))))),Formula!IG12,""),"") ->  | IT6: =IF($A$4=Formula!$A$35,IF(OR(EOMONTH(Formula!$B$4,0)>Formula!IH8,(AND(YEAR(Formula!$B$4)=YEAR(Formula!IH8),(MONTH(Formula!$B$4)=MONTH(Formula!IH8))))),Formula!IH12,""),"") ->  | IU6: =IF($A$4=Formula!$A$35,IF(OR(EOMONTH(Formula!$B$4,0)>Formula!II8,(AND(YEAR(Formula!$B$4)=YEAR(Formula!II8),(MONTH(Formula!$B$4)=MONTH(Formula!II8))))),Formula!II12,""),"") ->  | IV6: =IF($A$4=Formula!$A$35,IF(OR(EOMONTH(Formula!$B$4,0)>Formula!IJ8,(AND(YEAR(Formula!$B$4)=YEAR(Formula!IJ8),(MONTH(Formula!$B$4)=MONTH(Formula!IJ8))))),Formula!IJ12,""),"") ->  | IW6: =IF($A$4=Formula!$A$35,IF(OR(EOMONTH(Formula!$B$4,0)>Formula!IK8,(AND(YEAR(Formula!$B$4)=YEAR(Formula!IK8),(MONTH(Formula!$B$4)=MONTH(Formula!IK8))))),Formula!IK12,""),"") ->  | IX6: =IF($A$4=Formula!$A$35,IF(OR(EOMONTH(Formula!$B$4,0)>Formula!IL8,(AND(YEAR(Formula!$B$4)=YEAR(Formula!IL8),(MONTH(Formula!$B$4)=MONTH(Formula!IL8))))),Formula!IL12,""),"") ->  | IY6: =IF($A$4=Formula!$A$35,IF(OR(EOMONTH(Formula!$B$4,0)>Formula!IM8,(AND(YEAR(Formula!$B$4)=YEAR(Formula!IM8),(MONTH(Formula!$B$4)=MONTH(Formula!IM8))))),Formula!IM12,""),"") ->  | IZ6: =IF($A$4=Formula!$A$35,IF(OR(EOMONTH(Formula!$B$4,0)>Formula!IN8,(AND(YEAR(Formula!$B$4)=YEAR(Formula!IN8),(MONTH(Formula!$B$4)=MONTH(Formula!IN8))))),Formula!IN12,""),"") ->  | JA6: =IF($A$4=Formula!$A$35,IF(OR(EOMONTH(Formula!$B$4,0)>Formula!IO8,(AND(YEAR(Formula!$B$4)=YEAR(Formula!IO8),(MONTH(Formula!$B$4)=MONTH(Formula!IO8))))),Formula!IO12,""),"") ->  | JB6: =IF($A$4=Formula!$A$35,IF(OR(EOMONTH(Formula!$B$4,0)>Formula!IP8,(AND(YEAR(Formula!$B$4)=YEAR(Formula!IP8),(MONTH(Formula!$B$4)=MONTH(Formula!IP8))))),Formula!IP12,""),"") ->  | JC6: =IF($A$4=Formula!$A$35,IF(OR(EOMONTH(Formula!$B$4,0)>Formula!IQ8,(AND(YEAR(Formula!$B$4)=YEAR(Formula!IQ8),(MONTH(Formula!$B$4)=MONTH(Formula!IQ8))))),Formula!IQ12,""),"") ->  | JD6: =IF($A$4=Formula!$A$35,IF(OR(EOMONTH(Formula!$B$4,0)>Formula!IR8,(AND(YEAR(Formula!$B$4)=YEAR(Formula!IR8),(MONTH(Formula!$B$4)=MONTH(Formula!IR8))))),Formula!IR12,""),"") ->  | JE6: =IF($A$4=Formula!$A$35,IF(OR(EOMONTH(Formula!$B$4,0)>Formula!IS8,(AND(YEAR(Formula!$B$4)=YEAR(Formula!IS8),(MONTH(Formula!$B$4)=MONTH(Formula!IS8))))),Formula!IS12,""),"") ->  | JF6: =IF($A$4=Formula!$A$35,IF(OR(EOMONTH(Formula!$B$4,0)>Formula!IT8,(AND(YEAR(Formula!$B$4)=YEAR(Formula!IT8),(MONTH(Formula!$B$4)=MONTH(Formula!IT8))))),Formula!IT12,""),"") ->  | JG6: =IF($A$4=Formula!$A$35,IF(OR(EOMONTH(Formula!$B$4,0)>Formula!IU8,(AND(YEAR(Formula!$B$4)=YEAR(Formula!IU8),(MONTH(Formula!$B$4)=MONTH(Formula!IU8))))),Formula!IU12,""),"") ->  | JH6: =IF($A$4=Formula!$A$35,IF(OR(EOMONTH(Formula!$B$4,0)>Formula!IV8,(AND(YEAR(Formula!$B$4)=YEAR(Formula!IV8),(MONTH(Formula!$B$4)=MONTH(Formula!IV8))))),Formula!IV12,""),"") ->  | JI6: =IF($A$4=Formula!$A$35,IF(OR(EOMONTH(Formula!$B$4,0)>Formula!IW8,(AND(YEAR(Formula!$B$4)=YEAR(Formula!IW8),(MONTH(Formula!$B$4)=MONTH(Formula!IW8))))),Formula!IW12,""),"") ->  | JJ6: =IF($A$4=Formula!$A$35,IF(OR(EOMONTH(Formula!$B$4,0)>Formula!IX8,(AND(YEAR(Formula!$B$4)=YEAR(Formula!IX8),(MONTH(Formula!$B$4)=MONTH(Formula!IX8))))),Formula!IX12,""),"") ->  | JK6: =IF($A$4=Formula!$A$35,IF(OR(EOMONTH(Formula!$B$4,0)>Formula!IY8,(AND(YEAR(Formula!$B$4)=YEAR(Formula!IY8),(MONTH(Formula!$B$4)=MONTH(Formula!IY8))))),Formula!IY12,""),"") ->  | JL6: =IF($A$4=Formula!$A$35,IF(OR(EOMONTH(Formula!$B$4,0)>Formula!IZ8,(AND(YEAR(Formula!$B$4)=YEAR(Formula!IZ8),(MONTH(Formula!$B$4)=MONTH(Formula!IZ8))))),Formula!IZ12,""),"") ->  | JM6: =IF($A$4=Formula!$A$35,IF(OR(EOMONTH(Formula!$B$4,0)>Formula!JA8,(AND(YEAR(Formula!$B$4)=YEAR(Formula!JA8),(MONTH(Formula!$B$4)=MONTH(Formula!JA8))))),Formula!JA12,""),"") ->  | JN6: =IF($A$4=Formula!$A$35,IF(OR(EOMONTH(Formula!$B$4,0)>Formula!JB8,(AND(YEAR(Formula!$B$4)=YEAR(Formula!JB8),(MONTH(Formula!$B$4)=MONTH(Formula!JB8))))),Formula!JB12,""),"") ->  | JO6: =IF($A$4=Formula!$A$35,IF(OR(EOMONTH(Formula!$B$4,0)>Formula!JC8,(AND(YEAR(Formula!$B$4)=YEAR(Formula!JC8),(MONTH(Formula!$B$4)=MONTH(Formula!JC8))))),Formula!JC12,""),"") ->  | JP6: =IF($A$4=Formula!$A$35,IF(OR(EOMONTH(Formula!$B$4,0)>Formula!JD8,(AND(YEAR(Formula!$B$4)=YEAR(Formula!JD8),(MONTH(Formula!$B$4)=MONTH(Formula!JD8))))),Formula!JD12,""),"") ->  | JQ6: =IF($A$4=Formula!$A$35,IF(OR(EOMONTH(Formula!$B$4,0)>Formula!JE8,(AND(YEAR(Formula!$B$4)=YEAR(Formula!JE8),(MONTH(Formula!$B$4)=MONTH(Formula!JE8))))),Formula!JE12,""),"") ->  | JR6: =IF($A$4=Formula!$A$35,IF(OR(EOMONTH(Formula!$B$4,0)>Formula!JF8,(AND(YEAR(Formula!$B$4)=YEAR(Formula!JF8),(MONTH(Formula!$B$4)=MONTH(Formula!JF8))))),Formula!JF12,""),"") ->  | JS6: =IF($A$4=Formula!$A$35,IF(OR(EOMONTH(Formula!$B$4,0)>Formula!JG8,(AND(YEAR(Formula!$B$4)=YEAR(Formula!JG8),(MONTH(Formula!$B$4)=MONTH(Formula!JG8))))),Formula!JG12,""),"") ->  | JT6: =IF($A$4=Formula!$A$35,IF(OR(EOMONTH(Formula!$B$4,0)>Formula!JH8,(AND(YEAR(Formula!$B$4)=YEAR(Formula!JH8),(MONTH(Formula!$B$4)=MONTH(Formula!JH8))))),Formula!JH12,""),"") ->  | JU6: =IF($A$4=Formula!$A$35,IF(OR(EOMONTH(Formula!$B$4,0)>Formula!JI8,(AND(YEAR(Formula!$B$4)=YEAR(Formula!JI8),(MONTH(Formula!$B$4)=MONTH(Formula!JI8))))),Formula!JI12,""),"") ->  | JV6: =IF($A$4=Formula!$A$35,IF(OR(EOMONTH(Formula!$B$4,0)>Formula!JJ8,(AND(YEAR(Formula!$B$4)=YEAR(Formula!JJ8),(MONTH(Formula!$B$4)=MONTH(Formula!JJ8))))),Formula!JJ12,""),"") ->  | JW6: =IF($A$4=Formula!$A$35,IF(OR(EOMONTH(Formula!$B$4,0)>Formula!JK8,(AND(YEAR(Formula!$B$4)=YEAR(Formula!JK8),(MONTH(Formula!$B$4)=MONTH(Formula!JK8))))),Formula!JK12,""),"") ->  | JX6: =IF($A$4=Formula!$A$35,IF(OR(EOMONTH(Formula!$B$4,0)>Formula!JL8,(AND(YEAR(Formula!$B$4)=YEAR(Formula!JL8),(MONTH(Formula!$B$4)=MONTH(Formula!JL8))))),Formula!JL12,""),"") ->  | JY6: =IF($A$4=Formula!$A$35,IF(OR(EOMONTH(Formula!$B$4,0)>Formula!JM8,(AND(YEAR(Formula!$B$4)=YEAR(Formula!JM8),(MONTH(Formula!$B$4)=MONTH(Formula!JM8))))),Formula!JM12,""),"") ->  | JZ6: =IF($A$4=Formula!$A$35,IF(OR(EOMONTH(Formula!$B$4,0)>Formula!JN8,(AND(YEAR(Formula!$B$4)=YEAR(Formula!JN8),(MONTH(Formula!$B$4)=MONTH(Formula!JN8))))),Formula!JN12,""),"") ->  | KA6: =IF($A$4=Formula!$A$35,IF(OR(EOMONTH(Formula!$B$4,0)>Formula!JO8,(AND(YEAR(Formula!$B$4)=YEAR(Formula!JO8),(MONTH(Formula!$B$4)=MONTH(Formula!JO8))))),Formula!JO12,""),"") ->  | KB6: =IF($A$4=Formula!$A$35,IF(OR(EOMONTH(Formula!$B$4,0)>Formula!JP8,(AND(YEAR(Formula!$B$4)=YEAR(Formula!JP8),(MONTH(Formula!$B$4)=MONTH(Formula!JP8))))),Formula!JP12,""),"") ->  | KC6: =IF($A$4=Formula!$A$35,IF(OR(EOMONTH(Formula!$B$4,0)>Formula!JQ8,(AND(YEAR(Formula!$B$4)=YEAR(Formula!JQ8),(MONTH(Formula!$B$4)=MONTH(Formula!JQ8))))),Formula!JQ12,""),"") ->  | KD6: =IF($A$4=Formula!$A$35,IF(OR(EOMONTH(Formula!$B$4,0)>Formula!JR8,(AND(YEAR(Formula!$B$4)=YEAR(Formula!JR8),(MONTH(Formula!$B$4)=MONTH(Formula!JR8))))),Formula!JR12,""),"") ->  | KE6: =IF($A$4=Formula!$A$35,IF(OR(EOMONTH(Formula!$B$4,0)>Formula!JS8,(AND(YEAR(Formula!$B$4)=YEAR(Formula!JS8),(MONTH(Formula!$B$4)=MONTH(Formula!JS8))))),Formula!JS12,""),"") ->  | KF6: =IF($A$4=Formula!$A$35,IF(OR(EOMONTH(Formula!$B$4,0)>Formula!JT8,(AND(YEAR(Formula!$B$4)=YEAR(Formula!JT8),(MONTH(Formula!$B$4)=MONTH(Formula!JT8))))),Formula!JT12,""),"") ->  | KG6: =IF($A$4=Formula!$A$35,IF(OR(EOMONTH(Formula!$B$4,0)>Formula!JU8,(AND(YEAR(Formula!$B$4)=YEAR(Formula!JU8),(MONTH(Formula!$B$4)=MONTH(Formula!JU8))))),Formula!JU12,""),"") ->  | KH6: =IF($A$4=Formula!$A$35,IF(OR(EOMONTH(Formula!$B$4,0)>Formula!JV8,(AND(YEAR(Formula!$B$4)=YEAR(Formula!JV8),(MONTH(Formula!$B$4)=MONTH(Formula!JV8))))),Formula!JV12,""),"") ->  | KI6: =IF($A$4=Formula!$A$35,IF(OR(EOMONTH(Formula!$B$4,0)>Formula!JW8,(AND(YEAR(Formula!$B$4)=YEAR(Formula!JW8),(MONTH(Formula!$B$4)=MONTH(Formula!JW8))))),Formula!JW12,""),"") ->  | KJ6: =IF($A$4=Formula!$A$35,IF(OR(EOMONTH(Formula!$B$4,0)>Formula!JX8,(AND(YEAR(Formula!$B$4)=YEAR(Formula!JX8),(MONTH(Formula!$B$4)=MONTH(Formula!JX8))))),Formula!JX12,""),"") ->  | KK6: =IF($A$4=Formula!$A$35,IF(OR(EOMONTH(Formula!$B$4,0)>Formula!JY8,(AND(YEAR(Formula!$B$4)=YEAR(Formula!JY8),(MONTH(Formula!$B$4)=MONTH(Formula!JY8))))),Formula!JY12,""),"") ->  | KL6: =IF($A$4=Formula!$A$35,IF(OR(EOMONTH(Formula!$B$4,0)>Formula!JZ8,(AND(YEAR(Formula!$B$4)=YEAR(Formula!JZ8),(MONTH(Formula!$B$4)=MONTH(Formula!JZ8))))),Formula!JZ12,""),"") ->  | KM6: =IF($A$4=Formula!$A$35,IF(OR(EOMONTH(Formula!$B$4,0)>Formula!KA8,(AND(YEAR(Formula!$B$4)=YEAR(Formula!KA8),(MONTH(Formula!$B$4)=MONTH(Formula!KA8))))),Formula!KA12,""),"") ->  | KN6: =IF($A$4=Formula!$A$35,IF(OR(EOMONTH(Formula!$B$4,0)>Formula!KB8,(AND(YEAR(Formula!$B$4)=YEAR(Formula!KB8),(MONTH(Formula!$B$4)=MONTH(Formula!KB8))))),Formula!KB12,""),"") ->  | KO6: =IF($A$4=Formula!$A$35,IF(OR(EOMONTH(Formula!$B$4,0)>Formula!KC8,(AND(YEAR(Formula!$B$4)=YEAR(Formula!KC8),(MONTH(Formula!$B$4)=MONTH(Formula!KC8))))),Formula!KC12,""),"") ->  | KP6: =IF($A$4=Formula!$A$35,IF(OR(EOMONTH(Formula!$B$4,0)>Formula!KD8,(AND(YEAR(Formula!$B$4)=YEAR(Formula!KD8),(MONTH(Formula!$B$4)=MONTH(Formula!KD8))))),Formula!KD12,""),"") ->  | KQ6: =IF($A$4=Formula!$A$35,IF(OR(EOMONTH(Formula!$B$4,0)>Formula!KE8,(AND(YEAR(Formula!$B$4)=YEAR(Formula!KE8),(MONTH(Formula!$B$4)=MONTH(Formula!KE8))))),Formula!KE12,""),"") ->  | KR6: =IF($A$4=Formula!$A$35,IF(OR(EOMONTH(Formula!$B$4,0)>Formula!KF8,(AND(YEAR(Formula!$B$4)=YEAR(Formula!KF8),(MONTH(Formula!$B$4)=MONTH(Formula!KF8))))),Formula!KF12,""),"") ->  | KS6: =IF($A$4=Formula!$A$35,IF(OR(EOMONTH(Formula!$B$4,0)>Formula!KG8,(AND(YEAR(Formula!$B$4)=YEAR(Formula!KG8),(MONTH(Formula!$B$4)=MONTH(Formula!KG8))))),Formula!KG12,""),"") ->  | KT6: =IF($A$4=Formula!$A$35,IF(OR(EOMONTH(Formula!$B$4,0)>Formula!KH8,(AND(YEAR(Formula!$B$4)=YEAR(Formula!KH8),(MONTH(Formula!$B$4)=MONTH(Formula!KH8))))),Formula!KH12,""),"") ->  | KU6: =IF($A$4=Formula!$A$35,IF(OR(EOMONTH(Formula!$B$4,0)>Formula!KI8,(AND(YEAR(Formula!$B$4)=YEAR(Formula!KI8),(MONTH(Formula!$B$4)=MONTH(Formula!KI8))))),Formula!KI12,""),"") ->  | KV6: =IF($A$4=Formula!$A$35,IF(OR(EOMONTH(Formula!$B$4,0)>Formula!KJ8,(AND(YEAR(Formula!$B$4)=YEAR(Formula!KJ8),(MONTH(Formula!$B$4)=MONTH(Formula!KJ8))))),Formula!KJ12,""),"") ->  | KW6: =IF($A$4=Formula!$A$35,IF(OR(EOMONTH(Formula!$B$4,0)>Formula!KK8,(AND(YEAR(Formula!$B$4)=YEAR(Formula!KK8),(MONTH(Formula!$B$4)=MONTH(Formula!KK8))))),Formula!KK12,""),"") ->  | KX6: =IF($A$4=Formula!$A$35,IF(OR(EOMONTH(Formula!$B$4,0)>Formula!KL8,(AND(YEAR(Formula!$B$4)=YEAR(Formula!KL8),(MONTH(Formula!$B$4)=MONTH(Formula!KL8))))),Formula!KL12,""),"") ->  | KY6: =IF($A$4=Formula!$A$35,IF(OR(EOMONTH(Formula!$B$4,0)>Formula!KM8,(AND(YEAR(Formula!$B$4)=YEAR(Formula!KM8),(MONTH(Formula!$B$4)=MONTH(Formula!KM8))))),Formula!KM12,""),"") ->  | KZ6: =IF($A$4=Formula!$A$35,IF(OR(EOMONTH(Formula!$B$4,0)>Formula!KN8,(AND(YEAR(Formula!$B$4)=YEAR(Formula!KN8),(MONTH(Formula!$B$4)=MONTH(Formula!KN8))))),Formula!KN12,""),"") ->  | LA6: =IF($A$4=Formula!$A$35,IF(OR(EOMONTH(Formula!$B$4,0)>Formula!KO8,(AND(YEAR(Formula!$B$4)=YEAR(Formula!KO8),(MONTH(Formula!$B$4)=MONTH(Formula!KO8))))),Formula!KO12,""),"") ->  | LB6: =IF($A$4=Formula!$A$35,IF(OR(EOMONTH(Formula!$B$4,0)>Formula!KP8,(AND(YEAR(Formula!$B$4)=YEAR(Formula!KP8),(MONTH(Formula!$B$4)=MONTH(Formula!KP8))))),Formula!KP12,""),"") ->  | LC6: =IF($A$4=Formula!$A$35,IF(OR(EOMONTH(Formula!$B$4,0)>Formula!KQ8,(AND(YEAR(Formula!$B$4)=YEAR(Formula!KQ8),(MONTH(Formula!$B$4)=MONTH(Formula!KQ8))))),Formula!KQ12,""),"") ->  | LD6: =IF($A$4=Formula!$A$35,IF(OR(EOMONTH(Formula!$B$4,0)>Formula!KR8,(AND(YEAR(Formula!$B$4)=YEAR(Formula!KR8),(MONTH(Formula!$B$4)=MONTH(Formula!KR8))))),Formula!KR12,""),"") ->  | LE6: =IF($A$4=Formula!$A$35,IF(OR(EOMONTH(Formula!$B$4,0)>Formula!KS8,(AND(YEAR(Formula!$B$4)=YEAR(Formula!KS8),(MONTH(Formula!$B$4)=MONTH(Formula!KS8))))),Formula!KS12,""),"") ->  | LF6: =IF($A$4=Formula!$A$35,IF(OR(EOMONTH(Formula!$B$4,0)>Formula!KT8,(AND(YEAR(Formula!$B$4)=YEAR(Formula!KT8),(MONTH(Formula!$B$4)=MONTH(Formula!KT8))))),Formula!KT12,""),"") ->  | LG6: =IF($A$4=Formula!$A$35,IF(OR(EOMONTH(Formula!$B$4,0)>Formula!KU8,(AND(YEAR(Formula!$B$4)=YEAR(Formula!KU8),(MONTH(Formula!$B$4)=MONTH(Formula!KU8))))),Formula!KU12,""),"") ->  | LH6: =IF($A$4=Formula!$A$35,IF(OR(EOMONTH(Formula!$B$4,0)>Formula!KV8,(AND(YEAR(Formula!$B$4)=YEAR(Formula!KV8),(MONTH(Formula!$B$4)=MONTH(Formula!KV8))))),Formula!KV12,""),"") ->  | LI6: =IF($A$4=Formula!$A$35,IF(OR(EOMONTH(Formula!$B$4,0)>Formula!KW8,(AND(YEAR(Formula!$B$4)=YEAR(Formula!KW8),(MONTH(Formula!$B$4)=MONTH(Formula!KW8))))),Formula!KW12,""),"") ->  | LJ6: =IF($A$4=Formula!$A$35,IF(OR(EOMONTH(Formula!$B$4,0)>Formula!KX8,(AND(YEAR(Formula!$B$4)=YEAR(Formula!KX8),(MONTH(Formula!$B$4)=MONTH(Formula!KX8))))),Formula!KX12,""),"") ->  | LK6: =IF($A$4=Formula!$A$35,IF(OR(EOMONTH(Formula!$B$4,0)>Formula!KY8,(AND(YEAR(Formula!$B$4)=YEAR(Formula!KY8),(MONTH(Formula!$B$4)=MONTH(Formula!KY8))))),Formula!KY12,""),"") ->  | LL6: =IF($A$4=Formula!$A$35,IF(OR(EOMONTH(Formula!$B$4,0)>Formula!KZ8,(AND(YEAR(Formula!$B$4)=YEAR(Formula!KZ8),(MONTH(Formula!$B$4)=MONTH(Formula!KZ8))))),Formula!KZ12,""),"") ->  | LM6: =IF($A$4=Formula!$A$35,IF(OR(EOMONTH(Formula!$B$4,0)>Formula!LA8,(AND(YEAR(Formula!$B$4)=YEAR(Formula!LA8),(MONTH(Formula!$B$4)=MONTH(Formula!LA8))))),Formula!LA12,""),"") ->  | LN6: =IF($A$4=Formula!$A$35,IF(OR(EOMONTH(Formula!$B$4,0)>Formula!LB8,(AND(YEAR(Formula!$B$4)=YEAR(Formula!LB8),(MONTH(Formula!$B$4)=MONTH(Formula!LB8))))),Formula!LB12,""),"") ->  | LO6: =IF($A$4=Formula!$A$35,IF(OR(EOMONTH(Formula!$B$4,0)>Formula!LC8,(AND(YEAR(Formula!$B$4)=YEAR(Formula!LC8),(MONTH(Formula!$B$4)=MONTH(Formula!LC8))))),Formula!LC12,""),"") ->  | LP6: =IF($A$4=Formula!$A$35,IF(OR(EOMONTH(Formula!$B$4,0)>Formula!LD8,(AND(YEAR(Formula!$B$4)=YEAR(Formula!LD8),(MONTH(Formula!$B$4)=MONTH(Formula!LD8))))),Formula!LD12,""),"") ->  | LQ6: =IF($A$4=Formula!$A$35,IF(OR(EOMONTH(Formula!$B$4,0)>Formula!LE8,(AND(YEAR(Formula!$B$4)=YEAR(Formula!LE8),(MONTH(Formula!$B$4)=MONTH(Formula!LE8))))),Formula!LE12,""),"") ->  | LR6: =IF($A$4=Formula!$A$35,IF(OR(EOMONTH(Formula!$B$4,0)>Formula!LF8,(AND(YEAR(Formula!$B$4)=YEAR(Formula!LF8),(MONTH(Formula!$B$4)=MONTH(Formula!LF8))))),Formula!LF12,""),"") ->  | LS6: =IF($A$4=Formula!$A$35,IF(OR(EOMONTH(Formula!$B$4,0)>Formula!LG8,(AND(YEAR(Formula!$B$4)=YEAR(Formula!LG8),(MONTH(Formula!$B$4)=MONTH(Formula!LG8))))),Formula!LG12,""),"") ->  | LT6: =IF($A$4=Formula!$A$35,IF(OR(EOMONTH(Formula!$B$4,0)>Formula!LH8,(AND(YEAR(Formula!$B$4)=YEAR(Formula!LH8),(MONTH(Formula!$B$4)=MONTH(Formula!LH8))))),Formula!LH12,""),"") ->  | LU6: =IF($A$4=Formula!$A$35,IF(OR(EOMONTH(Formula!$B$4,0)>Formula!LI8,(AND(YEAR(Formula!$B$4)=YEAR(Formula!LI8),(MONTH(Formula!$B$4)=MONTH(Formula!LI8))))),Formula!LI12,""),"") ->  | LV6: =IF($A$4=Formula!$A$35,IF(OR(EOMONTH(Formula!$B$4,0)>Formula!LJ8,(AND(YEAR(Formula!$B$4)=YEAR(Formula!LJ8),(MONTH(Formula!$B$4)=MONTH(Formula!LJ8))))),Formula!LJ12,""),"") ->  | LW6: =IF($A$4=Formula!$A$35,IF(OR(EOMONTH(Formula!$B$4,0)>Formula!LK8,(AND(YEAR(Formula!$B$4)=YEAR(Formula!LK8),(MONTH(Formula!$B$4)=MONTH(Formula!LK8))))),Formula!LK12,""),"") ->  | LX6: =IF($A$4=Formula!$A$35,IF(OR(EOMONTH(Formula!$B$4,0)>Formula!LL8,(AND(YEAR(Formula!$B$4)=YEAR(Formula!LL8),(MONTH(Formula!$B$4)=MONTH(Formula!LL8))))),Formula!LL12,""),"") ->  | LY6: =IF($A$4=Formula!$A$35,IF(OR(EOMONTH(Formula!$B$4,0)>Formula!LM8,(AND(YEAR(Formula!$B$4)=YEAR(Formula!LM8),(MONTH(Formula!$B$4)=MONTH(Formula!LM8))))),Formula!LM12,""),"") ->  | LZ6: =IF($A$4=Formula!$A$35,IF(OR(EOMONTH(Formula!$B$4,0)>Formula!LN8,(AND(YEAR(Formula!$B$4)=YEAR(Formula!LN8),(MONTH(Formula!$B$4)=MONTH(Formula!LN8))))),Formula!LN12,""),"") ->  | MA6: =IF($A$4=Formula!$A$35,IF(OR(EOMONTH(Formula!$B$4,0)>Formula!LO8,(AND(YEAR(Formula!$B$4)=YEAR(Formula!LO8),(MONTH(Formula!$B$4)=MONTH(Formula!LO8))))),Formula!LO12,""),"") ->  | MB6: =IF($A$4=Formula!$A$35,IF(OR(EOMONTH(Formula!$B$4,0)>Formula!LP8,(AND(YEAR(Formula!$B$4)=YEAR(Formula!LP8),(MONTH(Formula!$B$4)=MONTH(Formula!LP8))))),Formula!LP12,""),"") ->  | MC6: =IF($A$4=Formula!$A$35,IF(OR(EOMONTH(Formula!$B$4,0)>Formula!LQ8,(AND(YEAR(Formula!$B$4)=YEAR(Formula!LQ8),(MONTH(Formula!$B$4)=MONTH(Formula!LQ8))))),Formula!LQ12,""),"") ->  | MD6: =IF($A$4=Formula!$A$35,IF(OR(EOMONTH(Formula!$B$4,0)>Formula!LR8,(AND(YEAR(Formula!$B$4)=YEAR(Formula!LR8),(MONTH(Formula!$B$4)=MONTH(Formula!LR8))))),Formula!LR12,""),"") ->  | ME6: =IF($A$4=Formula!$A$35,IF(OR(EOMONTH(Formula!$B$4,0)>Formula!LS8,(AND(YEAR(Formula!$B$4)=YEAR(Formula!LS8),(MONTH(Formula!$B$4)=MONTH(Formula!LS8))))),Formula!LS12,""),"") ->  | MF6: =IF($A$4=Formula!$A$35,IF(OR(EOMONTH(Formula!$B$4,0)>Formula!LT8,(AND(YEAR(Formula!$B$4)=YEAR(Formula!LT8),(MONTH(Formula!$B$4)=MONTH(Formula!LT8))))),Formula!LT12,""),"") ->  | MG6: =IF($A$4=Formula!$A$35,IF(OR(EOMONTH(Formula!$B$4,0)>Formula!LU8,(AND(YEAR(Formula!$B$4)=YEAR(Formula!LU8),(MONTH(Formula!$B$4)=MONTH(Formula!LU8))))),Formula!LU12,""),"") ->  | MH6: =IF($A$4=Formula!$A$35,IF(OR(EOMONTH(Formula!$B$4,0)>Formula!LV8,(AND(YEAR(Formula!$B$4)=YEAR(Formula!LV8),(MONTH(Formula!$B$4)=MONTH(Formula!LV8))))),Formula!LV12,""),"") ->  | MI6: =IF($A$4=Formula!$A$35,IF(OR(EOMONTH(Formula!$B$4,0)>Formula!LW8,(AND(YEAR(Formula!$B$4)=YEAR(Formula!LW8),(MONTH(Formula!$B$4)=MONTH(Formula!LW8))))),Formula!LW12,""),"") ->  | MJ6: =IF($A$4=Formula!$A$35,IF(OR(EOMONTH(Formula!$B$4,0)>Formula!LX8,(AND(YEAR(Formula!$B$4)=YEAR(Formula!LX8),(MONTH(Formula!$B$4)=MONTH(Formula!LX8))))),Formula!LX12,""),"") ->  | MK6: =IF($A$4=Formula!$A$35,IF(OR(EOMONTH(Formula!$B$4,0)>Formula!LY8,(AND(YEAR(Formula!$B$4)=YEAR(Formula!LY8),(MONTH(Formula!$B$4)=MONTH(Formula!LY8))))),Formula!LY12,""),"") ->  | ML6: =IF($A$4=Formula!$A$35,IF(OR(EOMONTH(Formula!$B$4,0)>Formula!LZ8,(AND(YEAR(Formula!$B$4)=YEAR(Formula!LZ8),(MONTH(Formula!$B$4)=MONTH(Formula!LZ8))))),Formula!LZ12,""),"") ->  | MM6: =IF($A$4=Formula!$A$35,IF(OR(EOMONTH(Formula!$B$4,0)>Formula!MA8,(AND(YEAR(Formula!$B$4)=YEAR(Formula!MA8),(MONTH(Formula!$B$4)=MONTH(Formula!MA8))))),Formula!MA12,""),"") ->  | MN6: =IF($A$4=Formula!$A$35,IF(OR(EOMONTH(Formula!$B$4,0)>Formula!MB8,(AND(YEAR(Formula!$B$4)=YEAR(Formula!MB8),(MONTH(Formula!$B$4)=MONTH(Formula!MB8))))),Formula!MB12,""),"") ->  | MO6: =IF($A$4=Formula!$A$35,IF(OR(EOMONTH(Formula!$B$4,0)>Formula!MC8,(AND(YEAR(Formula!$B$4)=YEAR(Formula!MC8),(MONTH(Formula!$B$4)=MONTH(Formula!MC8))))),Formula!MC12,""),"") ->  | MP6: =IF($A$4=Formula!$A$35,IF(OR(EOMONTH(Formula!$B$4,0)>Formula!MD8,(AND(YEAR(Formula!$B$4)=YEAR(Formula!MD8),(MONTH(Formula!$B$4)=MONTH(Formula!MD8))))),Formula!MD12,""),"") ->  | MQ6: =IF($A$4=Formula!$A$35,IF(OR(EOMONTH(Formula!$B$4,0)>Formula!ME8,(AND(YEAR(Formula!$B$4)=YEAR(Formula!ME8),(MONTH(Formula!$B$4)=MONTH(Formula!ME8))))),Formula!ME12,""),"") ->  | MR6: =IF($A$4=Formula!$A$35,IF(OR(EOMONTH(Formula!$B$4,0)>Formula!MF8,(AND(YEAR(Formula!$B$4)=YEAR(Formula!MF8),(MONTH(Formula!$B$4)=MONTH(Formula!MF8))))),Formula!MF12,""),"") ->  | MS6: =IF($A$4=Formula!$A$35,IF(OR(EOMONTH(Formula!$B$4,0)>Formula!MG8,(AND(YEAR(Formula!$B$4)=YEAR(Formula!MG8),(MONTH(Formula!$B$4)=MONTH(Formula!MG8))))),Formula!MG12,""),"") ->  | MT6: =IF($A$4=Formula!$A$35,IF(OR(EOMONTH(Formula!$B$4,0)>Formula!MH8,(AND(YEAR(Formula!$B$4)=YEAR(Formula!MH8),(MONTH(Formula!$B$4)=MONTH(Formula!MH8))))),Formula!MH12,""),"") ->  | MU6: =IF($A$4=Formula!$A$35,IF(OR(EOMONTH(Formula!$B$4,0)>Formula!MI8,(AND(YEAR(Formula!$B$4)=YEAR(Formula!MI8),(MONTH(Formula!$B$4)=MONTH(Formula!MI8))))),Formula!MI12,""),"") ->  | MV6: =IF($A$4=Formula!$A$35,IF(OR(EOMONTH(Formula!$B$4,0)>Formula!MJ8,(AND(YEAR(Formula!$B$4)=YEAR(Formula!MJ8),(MONTH(Formula!$B$4)=MONTH(Formula!MJ8))))),Formula!MJ12,""),"") ->  | MW6: =IF($A$4=Formula!$A$35,IF(OR(EOMONTH(Formula!$B$4,0)>Formula!MK8,(AND(YEAR(Formula!$B$4)=YEAR(Formula!MK8),(MONTH(Formula!$B$4)=MONTH(Formula!MK8))))),Formula!MK12,""),"") ->  | MX6: =IF($A$4=Formula!$A$35,IF(OR(EOMONTH(Formula!$B$4,0)>Formula!ML8,(AND(YEAR(Formula!$B$4)=YEAR(Formula!ML8),(MONTH(Formula!$B$4)=MONTH(Formula!ML8))))),Formula!ML12,""),"") ->  | MY6: =IF($A$4=Formula!$A$35,IF(OR(EOMONTH(Formula!$B$4,0)>Formula!MM8,(AND(YEAR(Formula!$B$4)=YEAR(Formula!MM8),(MONTH(Formula!$B$4)=MONTH(Formula!MM8))))),Formula!MM12,""),"") ->  | MZ6: =IF($A$4=Formula!$A$35,IF(OR(EOMONTH(Formula!$B$4,0)>Formula!MN8,(AND(YEAR(Formula!$B$4)=YEAR(Formula!MN8),(MONTH(Formula!$B$4)=MONTH(Formula!MN8))))),Formula!MN12,""),"") ->  | NA6: =IF($A$4=Formula!$A$35,IF(OR(EOMONTH(Formula!$B$4,0)>Formula!MO8,(AND(YEAR(Formula!$B$4)=YEAR(Formula!MO8),(MONTH(Formula!$B$4)=MONTH(Formula!MO8))))),Formula!MO12,""),"") ->  | NB6: =IF($A$4=Formula!$A$35,IF(OR(EOMONTH(Formula!$B$4,0)>Formula!MP8,(AND(YEAR(Formula!$B$4)=YEAR(Formula!MP8),(MONTH(Formula!$B$4)=MONTH(Formula!MP8))))),Formula!MP12,""),"") ->  | NC6: =IF($A$4=Formula!$A$35,IF(OR(EOMONTH(Formula!$B$4,0)>Formula!MQ8,(AND(YEAR(Formula!$B$4)=YEAR(Formula!MQ8),(MONTH(Formula!$B$4)=MONTH(Formula!MQ8))))),Formula!MQ12,""),"") ->  | ND6: =IF($A$4=Formula!$A$35,IF(OR(EOMONTH(Formula!$B$4,0)>Formula!MR8,(AND(YEAR(Formula!$B$4)=YEAR(Formula!MR8),(MONTH(Formula!$B$4)=MONTH(Formula!MR8))))),Formula!MR12,""),"") ->  | NE6: =IF($A$4=Formula!$A$35,IF(OR(EOMONTH(Formula!$B$4,0)>Formula!MS8,(AND(YEAR(Formula!$B$4)=YEAR(Formula!MS8),(MONTH(Formula!$B$4)=MONTH(Formula!MS8))))),Formula!MS12,""),"") ->  | NF6: =IF($A$4=Formula!$A$35,IF(OR(EOMONTH(Formula!$B$4,0)>Formula!MT8,(AND(YEAR(Formula!$B$4)=YEAR(Formula!MT8),(MONTH(Formula!$B$4)=MONTH(Formula!MT8))))),Formula!MT12,""),"") ->  | NG6: =IF($A$4=Formula!$A$35,IF(OR(EOMONTH(Formula!$B$4,0)>Formula!MU8,(AND(YEAR(Formula!$B$4)=YEAR(Formula!MU8),(MONTH(Formula!$B$4)=MONTH(Formula!MU8))))),Formula!MU12,""),"") ->  | NH6: =IF($A$4=Formula!$A$35,IF(OR(EOMONTH(Formula!$B$4,0)>Formula!MV8,(AND(YEAR(Formula!$B$4)=YEAR(Formula!MV8),(MONTH(Formula!$B$4)=MONTH(Formula!MV8))))),Formula!MV12,""),"") ->  | NI6: =IF($A$4=Formula!$A$35,IF(OR(EOMONTH(Formula!$B$4,0)>Formula!MW8,(AND(YEAR(Formula!$B$4)=YEAR(Formula!MW8),(MONTH(Formula!$B$4)=MONTH(Formula!MW8))))),Formula!MW12,""),"") ->  | NJ6: =IF($A$4=Formula!$A$35,IF(OR(EOMONTH(Formula!$B$4,0)>Formula!MX8,(AND(YEAR(Formula!$B$4)=YEAR(Formula!MX8),(MONTH(Formula!$B$4)=MONTH(Formula!MX8))))),Formula!MX12,""),"") ->  | NK6: =IF($A$4=Formula!$A$35,IF(OR(EOMONTH(Formula!$B$4,0)>Formula!MY8,(AND(YEAR(Formula!$B$4)=YEAR(Formula!MY8),(MONTH(Formula!$B$4)=MONTH(Formula!MY8))))),Formula!MY12,""),"") ->  | NL6: =IF($A$4=Formula!$A$35,IF(OR(EOMONTH(Formula!$B$4,0)>Formula!MZ8,(AND(YEAR(Formula!$B$4)=YEAR(Formula!MZ8),(MONTH(Formula!$B$4)=MONTH(Formula!MZ8))))),Formula!MZ12,""),"") ->  | NM6: =IF($A$4=Formula!$A$35,IF(OR(EOMONTH(Formula!$B$4,0)>Formula!NA8,(AND(YEAR(Formula!$B$4)=YEAR(Formula!NA8),(MONTH(Formula!$B$4)=MONTH(Formula!NA8))))),Formula!NA12,""),"") ->  | NN6: =IF($A$4=Formula!$A$35,IF(OR(EOMONTH(Formula!$B$4,0)>Formula!NB8,(AND(YEAR(Formula!$B$4)=YEAR(Formula!NB8),(MONTH(Formula!$B$4)=MONTH(Formula!NB8))))),Formula!NB12,""),"") ->  | NO6: =IF($A$4=Formula!$A$35,IF(OR(EOMONTH(Formula!$B$4,0)>Formula!NC8,(AND(YEAR(Formula!$B$4)=YEAR(Formula!NC8),(MONTH(Formula!$B$4)=MONTH(Formula!NC8))))),Formula!NC12,""),"") ->  | NP6: =IF($A$4=Formula!$A$35,IF(OR(EOMONTH(Formula!$B$4,0)>Formula!ND8,(AND(YEAR(Formula!$B$4)=YEAR(Formula!ND8),(MONTH(Formula!$B$4)=MONTH(Formula!ND8))))),Formula!ND12,""),"") ->  | NQ6: =IF($A$4=Formula!$A$35,IF(OR(EOMONTH(Formula!$B$4,0)>Formula!NE8,(AND(YEAR(Formula!$B$4)=YEAR(Formula!NE8),(MONTH(Formula!$B$4)=MONTH(Formula!NE8))))),Formula!NE12,""),"") ->  | NR6: =IF($A$4=Formula!$A$35,IF(OR(EOMONTH(Formula!$B$4,0)>Formula!NF8,(AND(YEAR(Formula!$B$4)=YEAR(Formula!NF8),(MONTH(Formula!$B$4)=MONTH(Formula!NF8))))),Formula!NF12,""),"") ->  | NS6: =IF($A$4=Formula!$A$35,IF(OR(EOMONTH(Formula!$B$4,0)>Formula!NG8,(AND(YEAR(Formula!$B$4)=YEAR(Formula!NG8),(MONTH(Formula!$B$4)=MONTH(Formula!NG8))))),Formula!NG12,""),"") ->  | NT6: =IF($A$4=Formula!$A$35,IF(OR(EOMONTH(Formula!$B$4,0)>Formula!NH8,(AND(YEAR(Formula!$B$4)=YEAR(Formula!NH8),(MONTH(Formula!$B$4)=MONTH(Formula!NH8))))),Formula!NH12,""),"") ->  | NU6: =IF($A$4=Formula!$A$35,IF(OR(EOMONTH(Formula!$B$4,0)>Formula!NI8,(AND(YEAR(Formula!$B$4)=YEAR(Formula!NI8),(MONTH(Formula!$B$4)=MONTH(Formula!NI8))))),Formula!NI12,""),"") ->  | NV6: =IF($A$4=Formula!$A$35,IF(OR(EOMONTH(Formula!$B$4,0)>Formula!NJ8,(AND(YEAR(Formula!$B$4)=YEAR(Formula!NJ8),(MONTH(Formula!$B$4)=MONTH(Formula!NJ8))))),Formula!NJ12,""),"") ->  | NW6: =IF($A$4=Formula!$A$35,IF(OR(EOMONTH(Formula!$B$4,0)>Formula!NK8,(AND(YEAR(Formula!$B$4)=YEAR(Formula!NK8),(MONTH(Formula!$B$4)=MONTH(Formula!NK8))))),Formula!NK12,""),"") ->  | NX6: =IF($A$4=Formula!$A$35,IF(OR(EOMONTH(Formula!$B$4,0)>Formula!NL8,(AND(YEAR(Formula!$B$4)=YEAR(Formula!NL8),(MONTH(Formula!$B$4)=MONTH(Formula!NL8))))),Formula!NL12,""),"") ->  | NY6: =IF($A$4=Formula!$A$35,IF(OR(EOMONTH(Formula!$B$4,0)>Formula!NM8,(AND(YEAR(Formula!$B$4)=YEAR(Formula!NM8),(MONTH(Formula!$B$4)=MONTH(Formula!NM8))))),Formula!NM12,""),"") ->  | NZ6: =IF($A$4=Formula!$A$35,IF(OR(EOMONTH(Formula!$B$4,0)>Formula!NN8,(AND(YEAR(Formula!$B$4)=YEAR(Formula!NN8),(MONTH(Formula!$B$4)=MONTH(Formula!NN8))))),Formula!NN12,""),"") ->  | OA6: =IF($A$4=Formula!$A$35,IF(OR(EOMONTH(Formula!$B$4,0)>Formula!NO8,(AND(YEAR(Formula!$B$4)=YEAR(Formula!NO8),(MONTH(Formula!$B$4)=MONTH(Formula!NO8))))),Formula!NO12,""),"") ->  | OB6: =IF($A$4=Formula!$A$35,IF(OR(EOMONTH(Formula!$B$4,0)>Formula!NP8,(AND(YEAR(Formula!$B$4)=YEAR(Formula!NP8),(MONTH(Formula!$B$4)=MONTH(Formula!NP8))))),Formula!NP12,""),"") ->  | OC6: =IF($A$4=Formula!$A$35,IF(OR(EOMONTH(Formula!$B$4,0)>Formula!NQ8,(AND(YEAR(Formula!$B$4)=YEAR(Formula!NQ8),(MONTH(Formula!$B$4)=MONTH(Formula!NQ8))))),Formula!NQ12,""),"") ->  | OD6: =IF($A$4=Formula!$A$35,IF(OR(EOMONTH(Formula!$B$4,0)>Formula!NR8,(AND(YEAR(Formula!$B$4)=YEAR(Formula!NR8),(MONTH(Formula!$B$4)=MONTH(Formula!NR8))))),Formula!NR12,""),"") ->  | OE6: =IF($A$4=Formula!$A$35,IF(OR(EOMONTH(Formula!$B$4,0)>Formula!NS8,(AND(YEAR(Formula!$B$4)=YEAR(Formula!NS8),(MONTH(Formula!$B$4)=MONTH(Formula!NS8))))),Formula!NS12,""),"") ->  | OF6: =IF($A$4=Formula!$A$35,IF(OR(EOMONTH(Formula!$B$4,0)>Formula!NT8,(AND(YEAR(Formula!$B$4)=YEAR(Formula!NT8),(MONTH(Formula!$B$4)=MONTH(Formula!NT8))))),Formula!NT12,""),"") ->  | OG6: =IF($A$4=Formula!$A$35,IF(OR(EOMONTH(Formula!$B$4,0)>Formula!NU8,(AND(YEAR(Formula!$B$4)=YEAR(Formula!NU8),(MONTH(Formula!$B$4)=MONTH(Formula!NU8))))),Formula!NU12,""),"") ->  | OH6: =IF($A$4=Formula!$A$35,IF(OR(EOMONTH(Formula!$B$4,0)>Formula!NV8,(AND(YEAR(Formula!$B$4)=YEAR(Formula!NV8),(MONTH(Formula!$B$4)=MONTH(Formula!NV8))))),Formula!NV12,""),"") ->  | OI6: =IF($A$4=Formula!$A$35,IF(OR(EOMONTH(Formula!$B$4,0)>Formula!NW8,(AND(YEAR(Formula!$B$4)=YEAR(Formula!NW8),(MONTH(Formula!$B$4)=MONTH(Formula!NW8))))),Formula!NW12,""),"") ->  | OJ6: =IF($A$4=Formula!$A$35,IF(OR(EOMONTH(Formula!$B$4,0)>Formula!NX8,(AND(YEAR(Formula!$B$4)=YEAR(Formula!NX8),(MONTH(Formula!$B$4)=MONTH(Formula!NX8))))),Formula!NX12,""),"") ->  | OK6: =IF($A$4=Formula!$A$35,IF(OR(EOMONTH(Formula!$B$4,0)>Formula!NY8,(AND(YEAR(Formula!$B$4)=YEAR(Formula!NY8),(MONTH(Formula!$B$4)=MONTH(Formula!NY8))))),Formula!NY12,""),"") ->  | OL6: =IF($A$4=Formula!$A$35,IF(OR(EOMONTH(Formula!$B$4,0)>Formula!NZ8,(AND(YEAR(Formula!$B$4)=YEAR(Formula!NZ8),(MONTH(Formula!$B$4)=MONTH(Formula!NZ8))))),Formula!NZ12,""),"") ->  | OM6: =IF($A$4=Formula!$A$35,IF(OR(EOMONTH(Formula!$B$4,0)>Formula!OA8,(AND(YEAR(Formula!$B$4)=YEAR(Formula!OA8),(MONTH(Formula!$B$4)=MONTH(Formula!OA8))))),Formula!OA12,""),"") ->  | ON6: =IF($A$4=Formula!$A$35,IF(OR(EOMONTH(Formula!$B$4,0)>Formula!OB8,(AND(YEAR(Formula!$B$4)=YEAR(Formula!OB8),(MONTH(Formula!$B$4)=MONTH(Formula!OB8))))),Formula!OB12,""),"") ->  | OO6: =IF($A$4=Formula!$A$35,IF(OR(EOMONTH(Formula!$B$4,0)>Formula!OC8,(AND(YEAR(Formula!$B$4)=YEAR(Formula!OC8),(MONTH(Formula!$B$4)=MONTH(Formula!OC8))))),Formula!OC12,""),"") ->  | OP6: =IF($A$4=Formula!$A$35,IF(OR(EOMONTH(Formula!$B$4,0)>Formula!OD8,(AND(YEAR(Formula!$B$4)=YEAR(Formula!OD8),(MONTH(Formula!$B$4)=MONTH(Formula!OD8))))),Formula!OD12,""),"") ->  | OQ6: =IF($A$4=Formula!$A$35,IF(OR(EOMONTH(Formula!$B$4,0)>Formula!OE8,(AND(YEAR(Formula!$B$4)=YEAR(Formula!OE8),(MONTH(Formula!$B$4)=MONTH(Formula!OE8))))),Formula!OE12,""),"") ->  | OR6: =IF($A$4=Formula!$A$35,IF(OR(EOMONTH(Formula!$B$4,0)>Formula!OF8,(AND(YEAR(Formula!$B$4)=YEAR(Formula!OF8),(MONTH(Formula!$B$4)=MONTH(Formula!OF8))))),Formula!OF12,""),"") ->  | OS6: =IF($A$4=Formula!$A$35,IF(OR(EOMONTH(Formula!$B$4,0)>Formula!OG8,(AND(YEAR(Formula!$B$4)=YEAR(Formula!OG8),(MONTH(Formula!$B$4)=MONTH(Formula!OG8))))),Formula!OG12,""),"") ->  | OT6: =IF($A$4=Formula!$A$35,IF(OR(EOMONTH(Formula!$B$4,0)>Formula!OH8,(AND(YEAR(Formula!$B$4)=YEAR(Formula!OH8),(MONTH(Formula!$B$4)=MONTH(Formula!OH8))))),Formula!OH12,""),"") ->  | OU6: =IF($A$4=Formula!$A$35,IF(OR(EOMONTH(Formula!$B$4,0)>Formula!OI8,(AND(YEAR(Formula!$B$4)=YEAR(Formula!OI8),(MONTH(Formula!$B$4)=MONTH(Formula!OI8))))),Formula!OI12,""),"") ->  | OV6: =IF($A$4=Formula!$A$35,IF(OR(EOMONTH(Formula!$B$4,0)>Formula!OJ8,(AND(YEAR(Formula!$B$4)=YEAR(Formula!OJ8),(MONTH(Formula!$B$4)=MONTH(Formula!OJ8))))),Formula!OJ12,""),"") ->  | OW6: =IF($A$4=Formula!$A$35,IF(OR(EOMONTH(Formula!$B$4,0)>Formula!OK8,(AND(YEAR(Formula!$B$4)=YEAR(Formula!OK8),(MONTH(Formula!$B$4)=MONTH(Formula!OK8))))),Formula!OK12,""),"") ->  | OX6: =IF($A$4=Formula!$A$35,IF(OR(EOMONTH(Formula!$B$4,0)>Formula!OL8,(AND(YEAR(Formula!$B$4)=YEAR(Formula!OL8),(MONTH(Formula!$B$4)=MONTH(Formula!OL8))))),Formula!OL12,""),"") ->  | OY6: =IF($A$4=Formula!$A$35,IF(OR(EOMONTH(Formula!$B$4,0)>Formula!OM8,(AND(YEAR(Formula!$B$4)=YEAR(Formula!OM8),(MONTH(Formula!$B$4)=MONTH(Formula!OM8))))),Formula!OM12,""),"") ->  | OZ6: =IF($A$4=Formula!$A$35,IF(OR(EOMONTH(Formula!$B$4,0)>Formula!ON8,(AND(YEAR(Formula!$B$4)=YEAR(Formula!ON8),(MONTH(Formula!$B$4)=MONTH(Formula!ON8))))),Formula!ON12,""),"") ->  | PA6: =IF($A$4=Formula!$A$35,IF(OR(EOMONTH(Formula!$B$4,0)>Formula!OO8,(AND(YEAR(Formula!$B$4)=YEAR(Formula!OO8),(MONTH(Formula!$B$4)=MONTH(Formula!OO8))))),Formula!OO12,""),"") ->  | PB6: =IF($A$4=Formula!$A$35,IF(OR(EOMONTH(Formula!$B$4,0)>Formula!OP8,(AND(YEAR(Formula!$B$4)=YEAR(Formula!OP8),(MONTH(Formula!$B$4)=MONTH(Formula!OP8))))),Formula!OP12,""),"") ->  | PC6: =IF($A$4=Formula!$A$35,IF(OR(EOMONTH(Formula!$B$4,0)>Formula!OQ8,(AND(YEAR(Formula!$B$4)=YEAR(Formula!OQ8),(MONTH(Formula!$B$4)=MONTH(Formula!OQ8))))),Formula!OQ12,""),"") ->  | PD6: =IF($A$4=Formula!$A$35,IF(OR(EOMONTH(Formula!$B$4,0)>Formula!OR8,(AND(YEAR(Formula!$B$4)=YEAR(Formula!OR8),(MONTH(Formula!$B$4)=MONTH(Formula!OR8))))),Formula!OR12,""),"") ->  | PE6: =IF($A$4=Formula!$A$35,IF(OR(EOMONTH(Formula!$B$4,0)>Formula!OS8,(AND(YEAR(Formula!$B$4)=YEAR(Formula!OS8),(MONTH(Formula!$B$4)=MONTH(Formula!OS8))))),Formula!OS12,""),"") ->  | PF6: =IF($A$4=Formula!$A$35,IF(OR(EOMONTH(Formula!$B$4,0)>Formula!OT8,(AND(YEAR(Formula!$B$4)=YEAR(Formula!OT8),(MONTH(Formula!$B$4)=MONTH(Formula!OT8))))),Formula!OT12,""),"") ->  | PG6: =IF($A$4=Formula!$A$35,IF(OR(EOMONTH(Formula!$B$4,0)>Formula!OU8,(AND(YEAR(Formula!$B$4)=YEAR(Formula!OU8),(MONTH(Formula!$B$4)=MONTH(Formula!OU8))))),Formula!OU12,""),"") ->  | PH6: =IF($A$4=Formula!$A$35,IF(OR(EOMONTH(Formula!$B$4,0)>Formula!OV8,(AND(YEAR(Formula!$B$4)=YEAR(Formula!OV8),(MONTH(Formula!$B$4)=MONTH(Formula!OV8))))),Formula!OV12,""),"") ->  | PI6: =IF($A$4=Formula!$A$35,IF(OR(EOMONTH(Formula!$B$4,0)>Formula!OW8,(AND(YEAR(Formula!$B$4)=YEAR(Formula!OW8),(MONTH(Formula!$B$4)=MONTH(Formula!OW8))))),Formula!OW12,""),"") ->  | PJ6: =IF($A$4=Formula!$A$35,IF(OR(EOMONTH(Formula!$B$4,0)>Formula!OX8,(AND(YEAR(Formula!$B$4)=YEAR(Formula!OX8),(MONTH(Formula!$B$4)=MONTH(Formula!OX8))))),Formula!OX12,""),"") ->  | PK6: =IF($A$4=Formula!$A$35,IF(OR(EOMONTH(Formula!$B$4,0)>Formula!OY8,(AND(YEAR(Formula!$B$4)=YEAR(Formula!OY8),(MONTH(Formula!$B$4)=MONTH(Formula!OY8))))),Formula!OY12,""),"") ->  | PL6: =IF($A$4=Formula!$A$35,IF(OR(EOMONTH(Formula!$B$4,0)>Formula!OZ8,(AND(YEAR(Formula!$B$4)=YEAR(Formula!OZ8),(MONTH(Formula!$B$4)=MONTH(Formula!OZ8))))),Formula!OZ12,""),"") ->  | PM6: =IF($A$4=Formula!$A$35,IF(OR(EOMONTH(Formula!$B$4,0)>Formula!PA8,(AND(YEAR(Formula!$B$4)=YEAR(Formula!PA8),(MONTH(Formula!$B$4)=MONTH(Formula!PA8))))),Formula!PA12,""),"") ->  | PN6: =IF($A$4=Formula!$A$35,IF(OR(EOMONTH(Formula!$B$4,0)>Formula!PB8,(AND(YEAR(Formula!$B$4)=YEAR(Formula!PB8),(MONTH(Formula!$B$4)=MONTH(Formula!PB8))))),Formula!PB12,""),"") ->  | PO6: =IF($A$4=Formula!$A$35,IF(OR(EOMONTH(Formula!$B$4,0)>Formula!PC8,(AND(YEAR(Formula!$B$4)=YEAR(Formula!PC8),(MONTH(Formula!$B$4)=MONTH(Formula!PC8))))),Formula!PC12,""),"") ->  | PP6: =IF($A$4=Formula!$A$35,IF(OR(EOMONTH(Formula!$B$4,0)>Formula!PD8,(AND(YEAR(Formula!$B$4)=YEAR(Formula!PD8),(MONTH(Formula!$B$4)=MONTH(Formula!PD8))))),Formula!PD12,""),"") ->  | PQ6: =IF($A$4=Formula!$A$35,IF(OR(EOMONTH(Formula!$B$4,0)>Formula!PE8,(AND(YEAR(Formula!$B$4)=YEAR(Formula!PE8),(MONTH(Formula!$B$4)=MONTH(Formula!PE8))))),Formula!PE12,""),"") ->  | PR6: =IF($A$4=Formula!$A$35,IF(OR(EOMONTH(Formula!$B$4,0)>Formula!PF8,(AND(YEAR(Formula!$B$4)=YEAR(Formula!PF8),(MONTH(Formula!$B$4)=MONTH(Formula!PF8))))),Formula!PF12,""),"") ->  | PS6: =IF($A$4=Formula!$A$35,IF(OR(EOMONTH(Formula!$B$4,0)>Formula!PG8,(AND(YEAR(Formula!$B$4)=YEAR(Formula!PG8),(MONTH(Formula!$B$4)=MONTH(Formula!PG8))))),Formula!PG12,""),"") ->  | PT6: =IF($A$4=Formula!$A$35,IF(OR(EOMONTH(Formula!$B$4,0)>Formula!PH8,(AND(YEAR(Formula!$B$4)=YEAR(Formula!PH8),(MONTH(Formula!$B$4)=MONTH(Formula!PH8))))),Formula!PH12,""),"") ->  | PU6: =IF($A$4=Formula!$A$35,IF(OR(EOMONTH(Formula!$B$4,0)>Formula!PI8,(AND(YEAR(Formula!$B$4)=YEAR(Formula!PI8),(MONTH(Formula!$B$4)=MONTH(Formula!PI8))))),Formula!PI12,""),"") ->  | PV6: =IF($A$4=Formula!$A$35,IF(OR(EOMONTH(Formula!$B$4,0)>Formula!PJ8,(AND(YEAR(Formula!$B$4)=YEAR(Formula!PJ8),(MONTH(Formula!$B$4)=MONTH(Formula!PJ8))))),Formula!PJ12,""),"") ->  | PW6: =IF($A$4=Formula!$A$35,IF(OR(EOMONTH(Formula!$B$4,0)>Formula!PK8,(AND(YEAR(Formula!$B$4)=YEAR(Formula!PK8),(MONTH(Formula!$B$4)=MONTH(Formula!PK8))))),Formula!PK12,""),"") ->  | PX6: =IF($A$4=Formula!$A$35,IF(OR(EOMONTH(Formula!$B$4,0)>Formula!PL8,(AND(YEAR(Formula!$B$4)=YEAR(Formula!PL8),(MONTH(Formula!$B$4)=MONTH(Formula!PL8))))),Formula!PL12,""),"") ->  | PY6: =IF($A$4=Formula!$A$35,IF(OR(EOMONTH(Formula!$B$4,0)>Formula!PM8,(AND(YEAR(Formula!$B$4)=YEAR(Formula!PM8),(MONTH(Formula!$B$4)=MONTH(Formula!PM8))))),Formula!PM12,""),"") ->  | PZ6: =IF($A$4=Formula!$A$35,IF(OR(EOMONTH(Formula!$B$4,0)>Formula!PN8,(AND(YEAR(Formula!$B$4)=YEAR(Formula!PN8),(MONTH(Formula!$B$4)=MONTH(Formula!PN8))))),Formula!PN12,""),"") ->  | QA6: =IF($A$4=Formula!$A$35,IF(OR(EOMONTH(Formula!$B$4,0)>Formula!PO8,(AND(YEAR(Formula!$B$4)=YEAR(Formula!PO8),(MONTH(Formula!$B$4)=MONTH(Formula!PO8))))),Formula!PO12,""),"") ->  | QB6: =IF($A$4=Formula!$A$35,IF(OR(EOMONTH(Formula!$B$4,0)>Formula!PP8,(AND(YEAR(Formula!$B$4)=YEAR(Formula!PP8),(MONTH(Formula!$B$4)=MONTH(Formula!PP8))))),Formula!PP12,""),"") ->  | QC6: =IF($A$4=Formula!$A$35,IF(OR(EOMONTH(Formula!$B$4,0)>Formula!PQ8,(AND(YEAR(Formula!$B$4)=YEAR(Formula!PQ8),(MONTH(Formula!$B$4)=MONTH(Formula!PQ8))))),Formula!PQ12,""),"") ->  | QD6: =IF($A$4=Formula!$A$35,IF(OR(EOMONTH(Formula!$B$4,0)>Formula!PR8,(AND(YEAR(Formula!$B$4)=YEAR(Formula!PR8),(MONTH(Formula!$B$4)=MONTH(Formula!PR8))))),Formula!PR12,""),"") ->  | QE6: =IF($A$4=Formula!$A$35,IF(OR(EOMONTH(Formula!$B$4,0)>Formula!PS8,(AND(YEAR(Formula!$B$4)=YEAR(Formula!PS8),(MONTH(Formula!$B$4)=MONTH(Formula!PS8))))),Formula!PS12,""),"") ->  | QF6: =IF($A$4=Formula!$A$35,IF(OR(EOMONTH(Formula!$B$4,0)>Formula!PT8,(AND(YEAR(Formula!$B$4)=YEAR(Formula!PT8),(MONTH(Formula!$B$4)=MONTH(Formula!PT8))))),Formula!PT12,""),"") ->  | QG6: =IF($A$4=Formula!$A$35,IF(OR(EOMONTH(Formula!$B$4,0)>Formula!PU8,(AND(YEAR(Formula!$B$4)=YEAR(Formula!PU8),(MONTH(Formula!$B$4)=MONTH(Formula!PU8))))),Formula!PU12,""),"") ->  | QH6: =IF($A$4=Formula!$A$35,IF(OR(EOMONTH(Formula!$B$4,0)>Formula!PV8,(AND(YEAR(Formula!$B$4)=YEAR(Formula!PV8),(MONTH(Formula!$B$4)=MONTH(Formula!PV8))))),Formula!PV12,""),"") ->  | QI6: =IF($A$4=Formula!$A$35,IF(OR(EOMONTH(Formula!$B$4,0)>Formula!PW8,(AND(YEAR(Formula!$B$4)=YEAR(Formula!PW8),(MONTH(Formula!$B$4)=MONTH(Formula!PW8))))),Formula!PW12,""),"") ->  | QJ6: =IF($A$4=Formula!$A$35,IF(OR(EOMONTH(Formula!$B$4,0)>Formula!PX8,(AND(YEAR(Formula!$B$4)=YEAR(Formula!PX8),(MONTH(Formula!$B$4)=MONTH(Formula!PX8))))),Formula!PX12,""),"") ->  | QK6: =IF($A$4=Formula!$A$35,IF(OR(EOMONTH(Formula!$B$4,0)>Formula!PY8,(AND(YEAR(Formula!$B$4)=YEAR(Formula!PY8),(MONTH(Formula!$B$4)=MONTH(Formula!PY8))))),Formula!PY12,""),"") ->  | QL6: =IF($A$4=Formula!$A$35,IF(OR(EOMONTH(Formula!$B$4,0)>Formula!PZ8,(AND(YEAR(Formula!$B$4)=YEAR(Formula!PZ8),(MONTH(Formula!$B$4)=MONTH(Formula!PZ8))))),Formula!PZ12,""),"") ->  | QM6: =IF($A$4=Formula!$A$35,IF(OR(EOMONTH(Formula!$B$4,0)>Formula!QA8,(AND(YEAR(Formula!$B$4)=YEAR(Formula!QA8),(MONTH(Formula!$B$4)=MONTH(Formula!QA8))))),Formula!QA12,""),"") ->  | QN6: =IF($A$4=Formula!$A$35,IF(OR(EOMONTH(Formula!$B$4,0)>Formula!QB8,(AND(YEAR(Formula!$B$4)=YEAR(Formula!QB8),(MONTH(Formula!$B$4)=MONTH(Formula!QB8))))),Formula!QB12,""),"") ->  | QO6: =IF($A$4=Formula!$A$35,IF(OR(EOMONTH(Formula!$B$4,0)>Formula!QC8,(AND(YEAR(Formula!$B$4)=YEAR(Formula!QC8),(MONTH(Formula!$B$4)=MONTH(Formula!QC8))))),Formula!QC12,""),"") ->  | QP6: =IF($A$4=Formula!$A$35,IF(OR(EOMONTH(Formula!$B$4,0)>Formula!QD8,(AND(YEAR(Formula!$B$4)=YEAR(Formula!QD8),(MONTH(Formula!$B$4)=MONTH(Formula!QD8))))),Formula!QD12,""),"") ->  | QQ6: =IF($A$4=Formula!$A$35,IF(OR(EOMONTH(Formula!$B$4,0)>Formula!QE8,(AND(YEAR(Formula!$B$4)=YEAR(Formula!QE8),(MONTH(Formula!$B$4)=MONTH(Formula!QE8))))),Formula!QE12,""),"") ->  | QR6: =IF($A$4=Formula!$A$35,IF(OR(EOMONTH(Formula!$B$4,0)>Formula!QF8,(AND(YEAR(Formula!$B$4)=YEAR(Formula!QF8),(MONTH(Formula!$B$4)=MONTH(Formula!QF8))))),Formula!QF12,""),"") ->  | QS6: =IF($A$4=Formula!$A$35,IF(OR(EOMONTH(Formula!$B$4,0)>Formula!QG8,(AND(YEAR(Formula!$B$4)=YEAR(Formula!QG8),(MONTH(Formula!$B$4)=MONTH(Formula!QG8))))),Formula!QG12,""),"") ->  | QT6: =IF($A$4=Formula!$A$35,IF(OR(EOMONTH(Formula!$B$4,0)>Formula!QH8,(AND(YEAR(Formula!$B$4)=YEAR(Formula!QH8),(MONTH(Formula!$B$4)=MONTH(Formula!QH8))))),Formula!QH12,""),"") ->  | QU6: =IF($A$4=Formula!$A$35,IF(OR(EOMONTH(Formula!$B$4,0)>Formula!QI8,(AND(YEAR(Formula!$B$4)=YEAR(Formula!QI8),(MONTH(Formula!$B$4)=MONTH(Formula!QI8))))),Formula!QI12,""),"") ->  | QV6: =IF($A$4=Formula!$A$35,IF(OR(EOMONTH(Formula!$B$4,0)>Formula!QJ8,(AND(YEAR(Formula!$B$4)=YEAR(Formula!QJ8),(MONTH(Formula!$B$4)=MONTH(Formula!QJ8))))),Formula!QJ12,""),"") ->  | QW6: =IF($A$4=Formula!$A$35,IF(OR(EOMONTH(Formula!$B$4,0)>Formula!QK8,(AND(YEAR(Formula!$B$4)=YEAR(Formula!QK8),(MONTH(Formula!$B$4)=MONTH(Formula!QK8))))),Formula!QK12,""),"") ->  | QX6: =IF($A$4=Formula!$A$35,IF(OR(EOMONTH(Formula!$B$4,0)>Formula!QL8,(AND(YEAR(Formula!$B$4)=YEAR(Formula!QL8),(MONTH(Formula!$B$4)=MONTH(Formula!QL8))))),Formula!QL12,""),"") ->  | QY6: =IF($A$4=Formula!$A$35,IF(OR(EOMONTH(Formula!$B$4,0)>Formula!QM8,(AND(YEAR(Formula!$B$4)=YEAR(Formula!QM8),(MONTH(Formula!$B$4)=MONTH(Formula!QM8))))),Formula!QM12,""),"") ->  | QZ6: =IF($A$4=Formula!$A$35,IF(OR(EOMONTH(Formula!$B$4,0)>Formula!QN8,(AND(YEAR(Formula!$B$4)=YEAR(Formula!QN8),(MONTH(Formula!$B$4)=MONTH(Formula!QN8))))),Formula!QN12,""),"") ->  | RA6: =IF($A$4=Formula!$A$35,IF(OR(EOMONTH(Formula!$B$4,0)>Formula!QO8,(AND(YEAR(Formula!$B$4)=YEAR(Formula!QO8),(MONTH(Formula!$B$4)=MONTH(Formula!QO8))))),Formula!QO12,""),"") ->  | RB6: =IF($A$4=Formula!$A$35,IF(OR(EOMONTH(Formula!$B$4,0)>Formula!QP8,(AND(YEAR(Formula!$B$4)=YEAR(Formula!QP8),(MONTH(Formula!$B$4)=MONTH(Formula!QP8))))),Formula!QP12,""),"") ->  | RC6: =IF($A$4=Formula!$A$35,IF(OR(EOMONTH(Formula!$B$4,0)>Formula!QQ8,(AND(YEAR(Formula!$B$4)=YEAR(Formula!QQ8),(MONTH(Formula!$B$4)=MONTH(Formula!QQ8))))),Formula!QQ12,""),"") ->  | RD6: =IF($A$4=Formula!$A$35,IF(OR(EOMONTH(Formula!$B$4,0)>Formula!QR8,(AND(YEAR(Formula!$B$4)=YEAR(Formula!QR8),(MONTH(Formula!$B$4)=MONTH(Formula!QR8))))),Formula!QR12,""),"") ->  | RE6: =IF($A$4=Formula!$A$35,IF(OR(EOMONTH(Formula!$B$4,0)>Formula!QS8,(AND(YEAR(Formula!$B$4)=YEAR(Formula!QS8),(MONTH(Formula!$B$4)=MONTH(Formula!QS8))))),Formula!QS12,""),"") ->  | RF6: =IF($A$4=Formula!$A$35,IF(OR(EOMONTH(Formula!$B$4,0)>Formula!QT8,(AND(YEAR(Formula!$B$4)=YEAR(Formula!QT8),(MONTH(Formula!$B$4)=MONTH(Formula!QT8))))),Formula!QT12,""),"") ->  | RG6: =IF($A$4=Formula!$A$35,IF(OR(EOMONTH(Formula!$B$4,0)>Formula!QU8,(AND(YEAR(Formula!$B$4)=YEAR(Formula!QU8),(MONTH(Formula!$B$4)=MONTH(Formula!QU8))))),Formula!QU12,""),"") ->  | RH6: =IF($A$4=Formula!$A$35,IF(OR(EOMONTH(Formula!$B$4,0)>Formula!QV8,(AND(YEAR(Formula!$B$4)=YEAR(Formula!QV8),(MONTH(Formula!$B$4)=MONTH(Formula!QV8))))),Formula!QV12,""),"") ->  | RI6: =IF($A$4=Formula!$A$35,IF(OR(EOMONTH(Formula!$B$4,0)>Formula!QW8,(AND(YEAR(Formula!$B$4)=YEAR(Formula!QW8),(MONTH(Formula!$B$4)=MONTH(Formula!QW8))))),Formula!QW12,""),"") ->  | RJ6: =IF($A$4=Formula!$A$35,IF(OR(EOMONTH(Formula!$B$4,0)>Formula!QX8,(AND(YEAR(Formula!$B$4)=YEAR(Formula!QX8),(MONTH(Formula!$B$4)=MONTH(Formula!QX8))))),Formula!QX12,""),"") ->  | RK6: =IF($A$4=Formula!$A$35,IF(OR(EOMONTH(Formula!$B$4,0)>Formula!QY8,(AND(YEAR(Formula!$B$4)=YEAR(Formula!QY8),(MONTH(Formula!$B$4)=MONTH(Formula!QY8))))),Formula!QY12,""),"") ->  | RL6: =IF($A$4=Formula!$A$35,IF(OR(EOMONTH(Formula!$B$4,0)>Formula!QZ8,(AND(YEAR(Formula!$B$4)=YEAR(Formula!QZ8),(MONTH(Formula!$B$4)=MONTH(Formula!QZ8))))),Formula!QZ12,""),"") ->  | RM6: =IF($A$4=Formula!$A$35,IF(OR(EOMONTH(Formula!$B$4,0)>Formula!RA8,(AND(YEAR(Formula!$B$4)=YEAR(Formula!RA8),(MONTH(Formula!$B$4)=MONTH(Formula!RA8))))),Formula!RA12,""),"") ->  | RN6: =IF($A$4=Formula!$A$35,IF(OR(EOMONTH(Formula!$B$4,0)>Formula!RB8,(AND(YEAR(Formula!$B$4)=YEAR(Formula!RB8),(MONTH(Formula!$B$4)=MONTH(Formula!RB8))))),Formula!RB12,""),"") ->  | RO6: =IF($A$4=Formula!$A$35,IF(OR(EOMONTH(Formula!$B$4,0)>Formula!RC8,(AND(YEAR(Formula!$B$4)=YEAR(Formula!RC8),(MONTH(Formula!$B$4)=MONTH(Formula!RC8))))),Formula!RC12,""),"") ->  | RP6: =IF($A$4=Formula!$A$35,IF(OR(EOMONTH(Formula!$B$4,0)>Formula!RD8,(AND(YEAR(Formula!$B$4)=YEAR(Formula!RD8),(MONTH(Formula!$B$4)=MONTH(Formula!RD8))))),Formula!RD12,""),"") ->  | RQ6: =IF($A$4=Formula!$A$35,IF(OR(EOMONTH(Formula!$B$4,0)>Formula!RE8,(AND(YEAR(Formula!$B$4)=YEAR(Formula!RE8),(MONTH(Formula!$B$4)=MONTH(Formula!RE8))))),Formula!RE12,""),"") ->  | RR6: =IF($A$4=Formula!$A$35,IF(OR(EOMONTH(Formula!$B$4,0)>Formula!RF8,(AND(YEAR(Formula!$B$4)=YEAR(Formula!RF8),(MONTH(Formula!$B$4)=MONTH(Formula!RF8))))),Formula!RF12,""),"") ->  | RS6: =IF($A$4=Formula!$A$35,IF(OR(EOMONTH(Formula!$B$4,0)>Formula!RG8,(AND(YEAR(Formula!$B$4)=YEAR(Formula!RG8),(MONTH(Formula!$B$4)=MONTH(Formula!RG8))))),Formula!RG12,""),"") ->  | RT6: =IF($A$4=Formula!$A$35,IF(OR(EOMONTH(Formula!$B$4,0)>Formula!RH8,(AND(YEAR(Formula!$B$4)=YEAR(Formula!RH8),(MONTH(Formula!$B$4)=MONTH(Formula!RH8))))),Formula!RH12,""),"") ->  | RU6: =IF($A$4=Formula!$A$35,IF(OR(EOMONTH(Formula!$B$4,0)>Formula!RI8,(AND(YEAR(Formula!$B$4)=YEAR(Formula!RI8),(MONTH(Formula!$B$4)=MONTH(Formula!RI8))))),Formula!RI12,""),"") ->  | RV6: =IF($A$4=Formula!$A$35,IF(OR(EOMONTH(Formula!$B$4,0)>Formula!RJ8,(AND(YEAR(Formula!$B$4)=YEAR(Formula!RJ8),(MONTH(Formula!$B$4)=MONTH(Formula!RJ8))))),Formula!RJ12,""),"") ->  | RW6: =IF($A$4=Formula!$A$35,IF(OR(EOMONTH(Formula!$B$4,0)>Formula!RK8,(AND(YEAR(Formula!$B$4)=YEAR(Formula!RK8),(MONTH(Formula!$B$4)=MONTH(Formula!RK8))))),Formula!RK12,""),"") ->  | RX6: =IF($A$4=Formula!$A$35,IF(OR(EOMONTH(Formula!$B$4,0)>Formula!RL8,(AND(YEAR(Formula!$B$4)=YEAR(Formula!RL8),(MONTH(Formula!$B$4)=MONTH(Formula!RL8))))),Formula!RL12,""),"") ->  | RY6: =IF($A$4=Formula!$A$35,IF(OR(EOMONTH(Formula!$B$4,0)>Formula!RM8,(AND(YEAR(Formula!$B$4)=YEAR(Formula!RM8),(MONTH(Formula!$B$4)=MONTH(Formula!RM8))))),Formula!RM12,""),"") ->  | RZ6: =IF($A$4=Formula!$A$35,IF(OR(EOMONTH(Formula!$B$4,0)>Formula!RN8,(AND(YEAR(Formula!$B$4)=YEAR(Formula!RN8),(MONTH(Formula!$B$4)=MONTH(Formula!RN8))))),Formula!RN12,""),"") ->  | SA6: =IF($A$4=Formula!$A$35,IF(OR(EOMONTH(Formula!$B$4,0)>Formula!RO8,(AND(YEAR(Formula!$B$4)=YEAR(Formula!RO8),(MONTH(Formula!$B$4)=MONTH(Formula!RO8))))),Formula!RO12,""),"") ->  | SB6: =IF($A$4=Formula!$A$35,IF(OR(EOMONTH(Formula!$B$4,0)>Formula!RP8,(AND(YEAR(Formula!$B$4)=YEAR(Formula!RP8),(MONTH(Formula!$B$4)=MONTH(Formula!RP8))))),Formula!RP12,""),"") ->  | SC6: =IF($A$4=Formula!$A$35,IF(OR(EOMONTH(Formula!$B$4,0)>Formula!RQ8,(AND(YEAR(Formula!$B$4)=YEAR(Formula!RQ8),(MONTH(Formula!$B$4)=MONTH(Formula!RQ8))))),Formula!RQ12,""),"") ->  | SD6: =IF($A$4=Formula!$A$35,IF(OR(EOMONTH(Formula!$B$4,0)>Formula!RR8,(AND(YEAR(Formula!$B$4)=YEAR(Formula!RR8),(MONTH(Formula!$B$4)=MONTH(Formula!RR8))))),Formula!RR12,""),"") ->  | SE6: =IF($A$4=Formula!$A$35,IF(OR(EOMONTH(Formula!$B$4,0)>Formula!RS8,(AND(YEAR(Formula!$B$4)=YEAR(Formula!RS8),(MONTH(Formula!$B$4)=MONTH(Formula!RS8))))),Formula!RS12,""),"") ->  | SF6: =IF($A$4=Formula!$A$35,IF(OR(EOMONTH(Formula!$B$4,0)>Formula!RT8,(AND(YEAR(Formula!$B$4)=YEAR(Formula!RT8),(MONTH(Formula!$B$4)=MONTH(Formula!RT8))))),Formula!RT12,""),"") ->  | SG6: =IF($A$4=Formula!$A$35,IF(OR(EOMONTH(Formula!$B$4,0)>Formula!RU8,(AND(YEAR(Formula!$B$4)=YEAR(Formula!RU8),(MONTH(Formula!$B$4)=MONTH(Formula!RU8))))),Formula!RU12,""),"") ->  | SH6: =IF($A$4=Formula!$A$35,IF(OR(EOMONTH(Formula!$B$4,0)>Formula!RV8,(AND(YEAR(Formula!$B$4)=YEAR(Formula!RV8),(MONTH(Formula!$B$4)=MONTH(Formula!RV8))))),Formula!RV12,""),"") ->  | SI6: =IF($A$4=Formula!$A$35,IF(OR(EOMONTH(Formula!$B$4,0)>Formula!RW8,(AND(YEAR(Formula!$B$4)=YEAR(Formula!RW8),(MONTH(Formula!$B$4)=MONTH(Formula!RW8))))),Formula!RW12,""),"") ->  | SJ6: =IF($A$4=Formula!$A$35,IF(OR(EOMONTH(Formula!$B$4,0)>Formula!RX8,(AND(YEAR(Formula!$B$4)=YEAR(Formula!RX8),(MONTH(Formula!$B$4)=MONTH(Formula!RX8))))),Formula!RX12,""),"") ->  | SK6: =IF($A$4=Formula!$A$35,IF(OR(EOMONTH(Formula!$B$4,0)>Formula!RY8,(AND(YEAR(Formula!$B$4)=YEAR(Formula!RY8),(MONTH(Formula!$B$4)=MONTH(Formula!RY8))))),Formula!RY12,""),"") ->  | SL6: =IF($A$4=Formula!$A$35,IF(OR(EOMONTH(Formula!$B$4,0)>Formula!RZ8,(AND(YEAR(Formula!$B$4)=YEAR(Formula!RZ8),(MONTH(Formula!$B$4)=MONTH(Formula!RZ8))))),Formula!RZ12,""),"") ->  | SM6: =IF($A$4=Formula!$A$35,IF(OR(EOMONTH(Formula!$B$4,0)>Formula!SA8,(AND(YEAR(Formula!$B$4)=YEAR(Formula!SA8),(MONTH(Formula!$B$4)=MONTH(Formula!SA8))))),Formula!SA12,""),"") ->  | SN6: =IF($A$4=Formula!$A$35,IF(OR(EOMONTH(Formula!$B$4,0)>Formula!SB8,(AND(YEAR(Formula!$B$4)=YEAR(Formula!SB8),(MONTH(Formula!$B$4)=MONTH(Formula!SB8))))),Formula!SB12,""),"") ->  | SO6: =IF($A$4=Formula!$A$35,IF(OR(EOMONTH(Formula!$B$4,0)>Formula!SC8,(AND(YEAR(Formula!$B$4)=YEAR(Formula!SC8),(MONTH(Formula!$B$4)=MONTH(Formula!SC8))))),Formula!SC12,""),"") ->  | SP6: =IF($A$4=Formula!$A$35,IF(OR(EOMONTH(Formula!$B$4,0)>Formula!SD8,(AND(YEAR(Formula!$B$4)=YEAR(Formula!SD8),(MONTH(Formula!$B$4)=MONTH(Formula!SD8))))),Formula!SD12,""),"") ->  | SQ6: =IF($A$4=Formula!$A$35,IF(OR(EOMONTH(Formula!$B$4,0)>Formula!SE8,(AND(YEAR(Formula!$B$4)=YEAR(Formula!SE8),(MONTH(Formula!$B$4)=MONTH(Formula!SE8))))),Formula!SE12,""),"") ->  | SR6: =IF($A$4=Formula!$A$35,IF(OR(EOMONTH(Formula!$B$4,0)>Formula!SF8,(AND(YEAR(Formula!$B$4)=YEAR(Formula!SF8),(MONTH(Formula!$B$4)=MONTH(Formula!SF8))))),Formula!SF12,""),"") ->  | SS6: =IF($A$4=Formula!$A$35,IF(OR(EOMONTH(Formula!$B$4,0)>Formula!SG8,(AND(YEAR(Formula!$B$4)=YEAR(Formula!SG8),(MONTH(Formula!$B$4)=MONTH(Formula!SG8))))),Formula!SG12,""),"") ->  | ST6: =IF($A$4=Formula!$A$35,IF(OR(EOMONTH(Formula!$B$4,0)>Formula!SH8,(AND(YEAR(Formula!$B$4)=YEAR(Formula!SH8),(MONTH(Formula!$B$4)=MONTH(Formula!SH8))))),Formula!SH12,""),"") ->  | SU6: =IF($A$4=Formula!$A$35,IF(OR(EOMONTH(Formula!$B$4,0)>Formula!SI8,(AND(YEAR(Formula!$B$4)=YEAR(Formula!SI8),(MONTH(Formula!$B$4)=MONTH(Formula!SI8))))),Formula!SI12,""),"") ->  | SV6: =IF($A$4=Formula!$A$35,IF(OR(EOMONTH(Formula!$B$4,0)>Formula!SJ8,(AND(YEAR(Formula!$B$4)=YEAR(Formula!SJ8),(MONTH(Formula!$B$4)=MONTH(Formula!SJ8))))),Formula!SJ12,""),"") ->  | SW6: =IF($A$4=Formula!$A$35,IF(OR(EOMONTH(Formula!$B$4,0)>Formula!SK8,(AND(YEAR(Formula!$B$4)=YEAR(Formula!SK8),(MONTH(Formula!$B$4)=MONTH(Formula!SK8))))),Formula!SK12,""),"") ->  | SX6: =IF($A$4=Formula!$A$35,IF(OR(EOMONTH(Formula!$B$4,0)>Formula!SL8,(AND(YEAR(Formula!$B$4)=YEAR(Formula!SL8),(MONTH(Formula!$B$4)=MONTH(Formula!SL8))))),Formula!SL12,""),"") ->  | SY6: =IF($A$4=Formula!$A$35,IF(OR(EOMONTH(Formula!$B$4,0)>Formula!SM8,(AND(YEAR(Formula!$B$4)=YEAR(Formula!SM8),(MONTH(Formula!$B$4)=MONTH(Formula!SM8))))),Formula!SM12,""),"") ->  | SZ6: =IF($A$4=Formula!$A$35,IF(OR(EOMONTH(Formula!$B$4,0)>Formula!SN8,(AND(YEAR(Formula!$B$4)=YEAR(Formula!SN8),(MONTH(Formula!$B$4)=MONTH(Formula!SN8))))),Formula!SN12,""),"") ->  | TA6: =IF($A$4=Formula!$A$35,IF(OR(EOMONTH(Formula!$B$4,0)>Formula!SO8,(AND(YEAR(Formula!$B$4)=YEAR(Formula!SO8),(MONTH(Formula!$B$4)=MONTH(Formula!SO8))))),Formula!SO12,""),"") ->  | TB6: =IF($A$4=Formula!$A$35,IF(OR(EOMONTH(Formula!$B$4,0)>Formula!SP8,(AND(YEAR(Formula!$B$4)=YEAR(Formula!SP8),(MONTH(Formula!$B$4)=MONTH(Formula!SP8))))),Formula!SP12,""),"") ->  | TC6: =IF($A$4=Formula!$A$35,IF(OR(EOMONTH(Formula!$B$4,0)>Formula!SQ8,(AND(YEAR(Formula!$B$4)=YEAR(Formula!SQ8),(MONTH(Formula!$B$4)=MONTH(Formula!SQ8))))),Formula!SQ12,""),"") ->  | TD6: =IF($A$4=Formula!$A$35,IF(OR(EOMONTH(Formula!$B$4,0)>Formula!SR8,(AND(YEAR(Formula!$B$4)=YEAR(Formula!SR8),(MONTH(Formula!$B$4)=MONTH(Formula!SR8))))),Formula!SR12,""),"") ->  | TE6: =IF($A$4=Formula!$A$35,IF(OR(EOMONTH(Formula!$B$4,0)>Formula!SS8,(AND(YEAR(Formula!$B$4)=YEAR(Formula!SS8),(MONTH(Formula!$B$4)=MONTH(Formula!SS8))))),Formula!SS12,""),"") ->  | TF6: =IF($A$4=Formula!$A$35,IF(OR(EOMONTH(Formula!$B$4,0)>Formula!ST8,(AND(YEAR(Formula!$B$4)=YEAR(Formula!ST8),(MONTH(Formula!$B$4)=MONTH(Formula!ST8))))),Formula!ST12,""),"") ->  | TG6: =IF($A$4=Formula!$A$35,IF(OR(EOMONTH(Formula!$B$4,0)>Formula!SU8,(AND(YEAR(Formula!$B$4)=YEAR(Formula!SU8),(MONTH(Formula!$B$4)=MONTH(Formula!SU8))))),Formula!SU12,""),"") ->  | TH6: =IF($A$4=Formula!$A$35,IF(OR(EOMONTH(Formula!$B$4,0)>Formula!SV8,(AND(YEAR(Formula!$B$4)=YEAR(Formula!SV8),(MONTH(Formula!$B$4)=MONTH(Formula!SV8))))),Formula!SV12,""),"") ->  | TI6: =IF($A$4=Formula!$A$35,IF(OR(EOMONTH(Formula!$B$4,0)>Formula!SW8,(AND(YEAR(Formula!$B$4)=YEAR(Formula!SW8),(MONTH(Formula!$B$4)=MONTH(Formula!SW8))))),Formula!SW12,""),"") ->  | TJ6: =IF($A$4=Formula!$A$35,IF(OR(EOMONTH(Formula!$B$4,0)>Formula!SX8,(AND(YEAR(Formula!$B$4)=YEAR(Formula!SX8),(MONTH(Formula!$B$4)=MONTH(Formula!SX8))))),Formula!SX12,""),"") ->  | TK6: =IF($A$4=Formula!$A$35,IF(OR(EOMONTH(Formula!$B$4,0)>Formula!SY8,(AND(YEAR(Formula!$B$4)=YEAR(Formula!SY8),(MONTH(Formula!$B$4)=MONTH(Formula!SY8))))),Formula!SY12,""),"") ->  | TL6: =IF($A$4=Formula!$A$35,IF(OR(EOMONTH(Formula!$B$4,0)>Formula!SZ8,(AND(YEAR(Formula!$B$4)=YEAR(Formula!SZ8),(MONTH(Formula!$B$4)=MONTH(Formula!SZ8))))),Formula!SZ12,""),"") ->  | TM6: =IF($A$4=Formula!$A$35,IF(OR(EOMONTH(Formula!$B$4,0)>Formula!TA8,(AND(YEAR(Formula!$B$4)=YEAR(Formula!TA8),(MONTH(Formula!$B$4)=MONTH(Formula!TA8))))),Formula!TA12,""),"") ->  | TN6: =IF($A$4=Formula!$A$35,IF(OR(EOMONTH(Formula!$B$4,0)>Formula!TB8,(AND(YEAR(Formula!$B$4)=YEAR(Formula!TB8),(MONTH(Formula!$B$4)=MONTH(Formula!TB8))))),Formula!TB12,""),"") ->  | TO6: =IF($A$4=Formula!$A$35,IF(OR(EOMONTH(Formula!$B$4,0)>Formula!TC8,(AND(YEAR(Formula!$B$4)=YEAR(Formula!TC8),(MONTH(Formula!$B$4)=MONTH(Formula!TC8))))),Formula!TC12,""),"") ->  | TP6: =IF($A$4=Formula!$A$35,IF(OR(EOMONTH(Formula!$B$4,0)>Formula!TD8,(AND(YEAR(Formula!$B$4)=YEAR(Formula!TD8),(MONTH(Formula!$B$4)=MONTH(Formula!TD8))))),Formula!TD12,""),"") ->  | TQ6: =IF($A$4=Formula!$A$35,IF(OR(EOMONTH(Formula!$B$4,0)>Formula!TE8,(AND(YEAR(Formula!$B$4)=YEAR(Formula!TE8),(MONTH(Formula!$B$4)=MONTH(Formula!TE8))))),Formula!TE12,""),"") ->  | TR6: =IF($A$4=Formula!$A$35,IF(OR(EOMONTH(Formula!$B$4,0)>Formula!TF8,(AND(YEAR(Formula!$B$4)=YEAR(Formula!TF8),(MONTH(Formula!$B$4)=MONTH(Formula!TF8))))),Formula!TF12,""),"") ->  | TS6: =IF($A$4=Formula!$A$35,IF(OR(EOMONTH(Formula!$B$4,0)>Formula!TG8,(AND(YEAR(Formula!$B$4)=YEAR(Formula!TG8),(MONTH(Formula!$B$4)=MONTH(Formula!TG8))))),Formula!TG12,""),"") ->  | TT6: =IF($A$4=Formula!$A$35,IF(OR(EOMONTH(Formula!$B$4,0)>Formula!TH8,(AND(YEAR(Formula!$B$4)=YEAR(Formula!TH8),(MONTH(Formula!$B$4)=MONTH(Formula!TH8))))),Formula!TH12,""),"") ->  | TU6: =IF($A$4=Formula!$A$35,IF(OR(EOMONTH(Formula!$B$4,0)>Formula!TI8,(AND(YEAR(Formula!$B$4)=YEAR(Formula!TI8),(MONTH(Formula!$B$4)=MONTH(Formula!TI8))))),Formula!TI12,""),"") ->  | TV6: =IF($A$4=Formula!$A$35,IF(OR(EOMONTH(Formula!$B$4,0)>Formula!TJ8,(AND(YEAR(Formula!$B$4)=YEAR(Formula!TJ8),(MONTH(Formula!$B$4)=MONTH(Formula!TJ8))))),Formula!TJ12,""),"") ->  | TW6: =IF($A$4=Formula!$A$35,IF(OR(EOMONTH(Formula!$B$4,0)>Formula!TK8,(AND(YEAR(Formula!$B$4)=YEAR(Formula!TK8),(MONTH(Formula!$B$4)=MONTH(Formula!TK8))))),Formula!TK12,""),"") ->  | TX6: =IF($A$4=Formula!$A$35,IF(OR(EOMONTH(Formula!$B$4,0)>Formula!TL8,(AND(YEAR(Formula!$B$4)=YEAR(Formula!TL8),(MONTH(Formula!$B$4)=MONTH(Formula!TL8))))),Formula!TL12,""),"") ->  | TY6: =IF($A$4=Formula!$A$35,IF(OR(EOMONTH(Formula!$B$4,0)>Formula!TM8,(AND(YEAR(Formula!$B$4)=YEAR(Formula!TM8),(MONTH(Formula!$B$4)=MONTH(Formula!TM8))))),Formula!TM12,""),"") ->  | TZ6: =IF($A$4=Formula!$A$35,IF(OR(EOMONTH(Formula!$B$4,0)>Formula!TN8,(AND(YEAR(Formula!$B$4)=YEAR(Formula!TN8),(MONTH(Formula!$B$4)=MONTH(Formula!TN8))))),Formula!TN12,""),"") ->  | UA6: =IF($A$4=Formula!$A$35,IF(OR(EOMONTH(Formula!$B$4,0)>Formula!TO8,(AND(YEAR(Formula!$B$4)=YEAR(Formula!TO8),(MONTH(Formula!$B$4)=MONTH(Formula!TO8))))),Formula!TO12,""),"") ->  | UB6: =IF($A$4=Formula!$A$35,IF(OR(EOMONTH(Formula!$B$4,0)>Formula!TP8,(AND(YEAR(Formula!$B$4)=YEAR(Formula!TP8),(MONTH(Formula!$B$4)=MONTH(Formula!TP8))))),Formula!TP12,""),"") ->  | UC6: =IF($A$4=Formula!$A$35,IF(OR(EOMONTH(Formula!$B$4,0)>Formula!TQ8,(AND(YEAR(Formula!$B$4)=YEAR(Formula!TQ8),(MONTH(Formula!$B$4)=MONTH(Formula!TQ8))))),Formula!TQ12,""),"") ->  | UD6: =IF($A$4=Formula!$A$35,IF(OR(EOMONTH(Formula!$B$4,0)>Formula!TR8,(AND(YEAR(Formula!$B$4)=YEAR(Formula!TR8),(MONTH(Formula!$B$4)=MONTH(Formula!TR8))))),Formula!TR12,""),"") ->  | UE6: =IF($A$4=Formula!$A$35,IF(OR(EOMONTH(Formula!$B$4,0)>Formula!TS8,(AND(YEAR(Formula!$B$4)=YEAR(Formula!TS8),(MONTH(Formula!$B$4)=MONTH(Formula!TS8))))),Formula!TS12,""),"") ->  | UF6: =IF($A$4=Formula!$A$35,IF(OR(EOMONTH(Formula!$B$4,0)>Formula!TT8,(AND(YEAR(Formula!$B$4)=YEAR(Formula!TT8),(MONTH(Formula!$B$4)=MONTH(Formula!TT8))))),Formula!TT12,""),"") ->  | UG6: =IF($A$4=Formula!$A$35,IF(OR(EOMONTH(Formula!$B$4,0)>Formula!TU8,(AND(YEAR(Formula!$B$4)=YEAR(Formula!TU8),(MONTH(Formula!$B$4)=MONTH(Formula!TU8))))),Formula!TU12,""),"") ->  | UH6: =IF($A$4=Formula!$A$35,IF(OR(EOMONTH(Formula!$B$4,0)>Formula!TV8,(AND(YEAR(Formula!$B$4)=YEAR(Formula!TV8),(MONTH(Formula!$B$4)=MONTH(Formula!TV8))))),Formula!TV12,""),"") ->  | UI6: =IF($A$4=Formula!$A$35,IF(OR(EOMONTH(Formula!$B$4,0)>Formula!TW8,(AND(YEAR(Formula!$B$4)=YEAR(Formula!TW8),(MONTH(Formula!$B$4)=MONTH(Formula!TW8))))),Formula!TW12,""),"") ->  | UJ6: =IF($A$4=Formula!$A$35,IF(OR(EOMONTH(Formula!$B$4,0)>Formula!TX8,(AND(YEAR(Formula!$B$4)=YEAR(Formula!TX8),(MONTH(Formula!$B$4)=MONTH(Formula!TX8))))),Formula!TX12,""),"") ->  | UK6: =IF($A$4=Formula!$A$35,IF(OR(EOMONTH(Formula!$B$4,0)>Formula!TY8,(AND(YEAR(Formula!$B$4)=YEAR(Formula!TY8),(MONTH(Formula!$B$4)=MONTH(Formula!TY8))))),Formula!TY12,""),"") ->  | UL6: =IF($A$4=Formula!$A$35,IF(OR(EOMONTH(Formula!$B$4,0)>Formula!TZ8,(AND(YEAR(Formula!$B$4)=YEAR(Formula!TZ8),(MONTH(Formula!$B$4)=MONTH(Formula!TZ8))))),Formula!TZ12,""),"") ->  | UM6: =IF($A$4=Formula!$A$35,IF(OR(EOMONTH(Formula!$B$4,0)>Formula!UA8,(AND(YEAR(Formula!$B$4)=YEAR(Formula!UA8),(MONTH(Formula!$B$4)=MONTH(Formula!UA8))))),Formula!UA12,""),"") ->  | UN6: =IF($A$4=Formula!$A$35,IF(OR(EOMONTH(Formula!$B$4,0)>Formula!UB8,(AND(YEAR(Formula!$B$4)=YEAR(Formula!UB8),(MONTH(Formula!$B$4)=MONTH(Formula!UB8))))),Formula!UB12,""),"") ->  | UO6: =IF($A$4=Formula!$A$35,IF(OR(EOMONTH(Formula!$B$4,0)>Formula!UC8,(AND(YEAR(Formula!$B$4)=YEAR(Formula!UC8),(MONTH(Formula!$B$4)=MONTH(Formula!UC8))))),Formula!UC12,""),"") ->  | UP6: =IF($A$4=Formula!$A$35,IF(OR(EOMONTH(Formula!$B$4,0)>Formula!UD8,(AND(YEAR(Formula!$B$4)=YEAR(Formula!UD8),(MONTH(Formula!$B$4)=MONTH(Formula!UD8))))),Formula!UD12,""),"") ->  | UQ6: =IF($A$4=Formula!$A$35,IF(OR(EOMONTH(Formula!$B$4,0)>Formula!UE8,(AND(YEAR(Formula!$B$4)=YEAR(Formula!UE8),(MONTH(Formula!$B$4)=MONTH(Formula!UE8))))),Formula!UE12,""),"") ->  | UR6: =IF($A$4=Formula!$A$35,IF(OR(EOMONTH(Formula!$B$4,0)>Formula!UF8,(AND(YEAR(Formula!$B$4)=YEAR(Formula!UF8),(MONTH(Formula!$B$4)=MONTH(Formula!UF8))))),Formula!UF12,""),"") ->  | US6: =IF($A$4=Formula!$A$35,IF(OR(EOMONTH(Formula!$B$4,0)>Formula!UG8,(AND(YEAR(Formula!$B$4)=YEAR(Formula!UG8),(MONTH(Formula!$B$4)=MONTH(Formula!UG8))))),Formula!UG12,""),"") ->  | UT6: =IF($A$4=Formula!$A$35,IF(OR(EOMONTH(Formula!$B$4,0)>Formula!UH8,(AND(YEAR(Formula!$B$4)=YEAR(Formula!UH8),(MONTH(Formula!$B$4)=MONTH(Formula!UH8))))),Formula!UH12,""),"") ->  | UU6: =IF($A$4=Formula!$A$35,IF(OR(EOMONTH(Formula!$B$4,0)>Formula!UI8,(AND(YEAR(Formula!$B$4)=YEAR(Formula!UI8),(MONTH(Formula!$B$4)=MONTH(Formula!UI8))))),Formula!UI12,""),"") ->  | UV6: =IF($A$4=Formula!$A$35,IF(OR(EOMONTH(Formula!$B$4,0)>Formula!UJ8,(AND(YEAR(Formula!$B$4)=YEAR(Formula!UJ8),(MONTH(Formula!$B$4)=MONTH(Formula!UJ8))))),Formula!UJ12,""),"") ->  | UW6: =IF($A$4=Formula!$A$35,IF(OR(EOMONTH(Formula!$B$4,0)>Formula!UK8,(AND(YEAR(Formula!$B$4)=YEAR(Formula!UK8),(MONTH(Formula!$B$4)=MONTH(Formula!UK8))))),Formula!UK12,""),"") ->  | UX6: =IF($A$4=Formula!$A$35,IF(OR(EOMONTH(Formula!$B$4,0)>Formula!UL8,(AND(YEAR(Formula!$B$4)=YEAR(Formula!UL8),(MONTH(Formula!$B$4)=MONTH(Formula!UL8))))),Formula!UL12,""),"") ->  | UY6: =IF($A$4=Formula!$A$35,IF(OR(EOMONTH(Formula!$B$4,0)>Formula!UM8,(AND(YEAR(Formula!$B$4)=YEAR(Formula!UM8),(MONTH(Formula!$B$4)=MONTH(Formula!UM8))))),Formula!UM12,""),"") ->  | UZ6: =IF($A$4=Formula!$A$35,IF(OR(EOMONTH(Formula!$B$4,0)>Formula!UN8,(AND(YEAR(Formula!$B$4)=YEAR(Formula!UN8),(MONTH(Formula!$B$4)=MONTH(Formula!UN8))))),Formula!UN12,""),"") ->  | VA6: =IF($A$4=Formula!$A$35,IF(OR(EOMONTH(Formula!$B$4,0)>Formula!UO8,(AND(YEAR(Formula!$B$4)=YEAR(Formula!UO8),(MONTH(Formula!$B$4)=MONTH(Formula!UO8))))),Formula!UO12,""),"") ->  | VB6: =IF($A$4=Formula!$A$35,IF(OR(EOMONTH(Formula!$B$4,0)>Formula!UP8,(AND(YEAR(Formula!$B$4)=YEAR(Formula!UP8),(MONTH(Formula!$B$4)=MONTH(Formula!UP8))))),Formula!UP12,""),"") ->  | VC6: =IF($A$4=Formula!$A$35,IF(OR(EOMONTH(Formula!$B$4,0)>Formula!UQ8,(AND(YEAR(Formula!$B$4)=YEAR(Formula!UQ8),(MONTH(Formula!$B$4)=MONTH(Formula!UQ8))))),Formula!UQ12,""),"") ->  | VD6: =IF($A$4=Formula!$A$35,IF(OR(EOMONTH(Formula!$B$4,0)>Formula!UR8,(AND(YEAR(Formula!$B$4)=YEAR(Formula!UR8),(MONTH(Formula!$B$4)=MONTH(Formula!UR8))))),Formula!UR12,""),"") ->  | VE6: =IF($A$4=Formula!$A$35,IF(OR(EOMONTH(Formula!$B$4,0)>Formula!US8,(AND(YEAR(Formula!$B$4)=YEAR(Formula!US8),(MONTH(Formula!$B$4)=MONTH(Formula!US8))))),Formula!US12,""),"") ->  | VF6: =IF($A$4=Formula!$A$35,IF(OR(EOMONTH(Formula!$B$4,0)>Formula!UT8,(AND(YEAR(Formula!$B$4)=YEAR(Formula!UT8),(MONTH(Formula!$B$4)=MONTH(Formula!UT8))))),Formula!UT12,""),"") ->  | VG6: =IF($A$4=Formula!$A$35,IF(OR(EOMONTH(Formula!$B$4,0)>Formula!UU8,(AND(YEAR(Formula!$B$4)=YEAR(Formula!UU8),(MONTH(Formula!$B$4)=MONTH(Formula!UU8))))),Formula!UU12,""),"") ->  | VH6: =IF($A$4=Formula!$A$35,IF(OR(EOMONTH(Formula!$B$4,0)>Formula!UV8,(AND(YEAR(Formula!$B$4)=YEAR(Formula!UV8),(MONTH(Formula!$B$4)=MONTH(Formula!UV8))))),Formula!UV12,""),"") ->  | VI6: =IF($A$4=Formula!$A$35,IF(OR(EOMONTH(Formula!$B$4,0)>Formula!UW8,(AND(YEAR(Formula!$B$4)=YEAR(Formula!UW8),(MONTH(Formula!$B$4)=MONTH(Formula!UW8))))),Formula!UW12,""),"") ->  | VJ6: =IF($A$4=Formula!$A$35,IF(OR(EOMONTH(Formula!$B$4,0)>Formula!UX8,(AND(YEAR(Formula!$B$4)=YEAR(Formula!UX8),(MONTH(Formula!$B$4)=MONTH(Formula!UX8))))),Formula!UX12,""),"") ->  | VK6: =IF($A$4=Formula!$A$35,IF(OR(EOMONTH(Formula!$B$4,0)>Formula!UY8,(AND(YEAR(Formula!$B$4)=YEAR(Formula!UY8),(MONTH(Formula!$B$4)=MONTH(Formula!UY8))))),Formula!UY12,""),"") ->  | VL6: =IF($A$4=Formula!$A$35,IF(OR(EOMONTH(Formula!$B$4,0)>Formula!UZ8,(AND(YEAR(Formula!$B$4)=YEAR(Formula!UZ8),(MONTH(Formula!$B$4)=MONTH(Formula!UZ8))))),Formula!UZ12,""),"") ->  | VM6: =IF($A$4=Formula!$A$35,IF(OR(EOMONTH(Formula!$B$4,0)>Formula!VA8,(AND(YEAR(Formula!$B$4)=YEAR(Formula!VA8),(MONTH(Formula!$B$4)=MONTH(Formula!VA8))))),Formula!VA12,""),"") ->  | VN6: =IF($A$4=Formula!$A$35,IF(OR(EOMONTH(Formula!$B$4,0)>Formula!VB8,(AND(YEAR(Formula!$B$4)=YEAR(Formula!VB8),(MONTH(Formula!$B$4)=MONTH(Formula!VB8))))),Formula!VB12,""),"") ->  | VO6: =IF($A$4=Formula!$A$35,IF(OR(EOMONTH(Formula!$B$4,0)>Formula!VC8,(AND(YEAR(Formula!$B$4)=YEAR(Formula!VC8),(MONTH(Formula!$B$4)=MONTH(Formula!VC8))))),Formula!VC12,""),"") ->  | VP6: =IF($A$4=Formula!$A$35,IF(OR(EOMONTH(Formula!$B$4,0)>Formula!VD8,(AND(YEAR(Formula!$B$4)=YEAR(Formula!VD8),(MONTH(Formula!$B$4)=MONTH(Formula!VD8))))),Formula!VD12,""),"") ->  | VQ6: =IF($A$4=Formula!$A$35,IF(OR(EOMONTH(Formula!$B$4,0)>Formula!VE8,(AND(YEAR(Formula!$B$4)=YEAR(Formula!VE8),(MONTH(Formula!$B$4)=MONTH(Formula!VE8))))),Formula!VE12,""),"") ->  | VR6: =IF($A$4=Formula!$A$35,IF(OR(EOMONTH(Formula!$B$4,0)>Formula!VF8,(AND(YEAR(Formula!$B$4)=YEAR(Formula!VF8),(MONTH(Formula!$B$4)=MONTH(Formula!VF8))))),Formula!VF12,""),"") ->  | VS6: =IF($A$4=Formula!$A$35,IF(OR(EOMONTH(Formula!$B$4,0)>Formula!VG8,(AND(YEAR(Formula!$B$4)=YEAR(Formula!VG8),(MONTH(Formula!$B$4)=MONTH(Formula!VG8))))),Formula!VG12,""),"") ->  | VT6: =IF($A$4=Formula!$A$35,IF(OR(EOMONTH(Formula!$B$4,0)>Formula!VH8,(AND(YEAR(Formula!$B$4)=YEAR(Formula!VH8),(MONTH(Formula!$B$4)=MONTH(Formula!VH8))))),Formula!VH12,""),"") ->  | VU6: =IF($A$4=Formula!$A$35,IF(OR(EOMONTH(Formula!$B$4,0)>Formula!VI8,(AND(YEAR(Formula!$B$4)=YEAR(Formula!VI8),(MONTH(Formula!$B$4)=MONTH(Formula!VI8))))),Formula!VI12,""),"") ->  | VV6: =IF($A$4=Formula!$A$35,IF(OR(EOMONTH(Formula!$B$4,0)>Formula!VJ8,(AND(YEAR(Formula!$B$4)=YEAR(Formula!VJ8),(MONTH(Formula!$B$4)=MONTH(Formula!VJ8))))),Formula!VJ12,""),"") ->  | VW6: =IF($A$4=Formula!$A$35,IF(OR(EOMONTH(Formula!$B$4,0)>Formula!VK8,(AND(YEAR(Formula!$B$4)=YEAR(Formula!VK8),(MONTH(Formula!$B$4)=MONTH(Formula!VK8))))),Formula!VK12,""),"") ->  | VX6: =IF($A$4=Formula!$A$35,IF(OR(EOMONTH(Formula!$B$4,0)>Formula!VL8,(AND(YEAR(Formula!$B$4)=YEAR(Formula!VL8),(MONTH(Formula!$B$4)=MONTH(Formula!VL8))))),Formula!VL12,""),"") ->  | VY6: =IF($A$4=Formula!$A$35,IF(OR(EOMONTH(Formula!$B$4,0)>Formula!VM8,(AND(YEAR(Formula!$B$4)=YEAR(Formula!VM8),(MONTH(Formula!$B$4)=MONTH(Formula!VM8))))),Formula!VM12,""),"") ->  | VZ6: =IF($A$4=Formula!$A$35,IF(OR(EOMONTH(Formula!$B$4,0)>Formula!VN8,(AND(YEAR(Formula!$B$4)=YEAR(Formula!VN8),(MONTH(Formula!$B$4)=MONTH(Formula!VN8))))),Formula!VN12,""),"") ->  | WA6: =IF($A$4=Formula!$A$35,IF(OR(EOMONTH(Formula!$B$4,0)>Formula!VO8,(AND(YEAR(Formula!$B$4)=YEAR(Formula!VO8),(MONTH(Formula!$B$4)=MONTH(Formula!VO8))))),Formula!VO12,""),"") ->  | WB6: =IF($A$4=Formula!$A$35,IF(OR(EOMONTH(Formula!$B$4,0)>Formula!VP8,(AND(YEAR(Formula!$B$4)=YEAR(Formula!VP8),(MONTH(Formula!$B$4)=MONTH(Formula!VP8))))),Formula!VP12,""),"") ->  | WC6: =IF($A$4=Formula!$A$35,IF(OR(EOMONTH(Formula!$B$4,0)>Formula!VQ8,(AND(YEAR(Formula!$B$4)=YEAR(Formula!VQ8),(MONTH(Formula!$B$4)=MONTH(Formula!VQ8))))),Formula!VQ12,""),"") ->  | WD6: =IF($A$4=Formula!$A$35,IF(OR(EOMONTH(Formula!$B$4,0)>Formula!VR8,(AND(YEAR(Formula!$B$4)=YEAR(Formula!VR8),(MONTH(Formula!$B$4)=MONTH(Formula!VR8))))),Formula!VR12,""),"") ->  | WE6: =IF($A$4=Formula!$A$35,IF(OR(EOMONTH(Formula!$B$4,0)>Formula!VS8,(AND(YEAR(Formula!$B$4)=YEAR(Formula!VS8),(MONTH(Formula!$B$4)=MONTH(Formula!VS8))))),Formula!VS12,""),"") ->  | WF6: =IF($A$4=Formula!$A$35,IF(OR(EOMONTH(Formula!$B$4,0)>Formula!VT8,(AND(YEAR(Formula!$B$4)=YEAR(Formula!VT8),(MONTH(Formula!$B$4)=MONTH(Formula!VT8))))),Formula!VT12,""),"") ->  | WG6: =IF($A$4=Formula!$A$35,IF(OR(EOMONTH(Formula!$B$4,0)>Formula!VU8,(AND(YEAR(Formula!$B$4)=YEAR(Formula!VU8),(MONTH(Formula!$B$4)=MONTH(Formula!VU8))))),Formula!VU12,""),"") ->  | WH6: =IF($A$4=Formula!$A$35,IF(OR(EOMONTH(Formula!$B$4,0)>Formula!VV8,(AND(YEAR(Formula!$B$4)=YEAR(Formula!VV8),(MONTH(Formula!$B$4)=MONTH(Formula!VV8))))),Formula!VV12,""),"") ->  | WI6: =IF($A$4=Formula!$A$35,IF(OR(EOMONTH(Formula!$B$4,0)>Formula!VW8,(AND(YEAR(Formula!$B$4)=YEAR(Formula!VW8),(MONTH(Formula!$B$4)=MONTH(Formula!VW8))))),Formula!VW12,""),"") ->  | WJ6: =IF($A$4=Formula!$A$35,IF(OR(EOMONTH(Formula!$B$4,0)>Formula!VX8,(AND(YEAR(Formula!$B$4)=YEAR(Formula!VX8),(MONTH(Formula!$B$4)=MONTH(Formula!VX8))))),Formula!VX12,""),"") ->  | WK6: =IF($A$4=Formula!$A$35,IF(OR(EOMONTH(Formula!$B$4,0)>Formula!VY8,(AND(YEAR(Formula!$B$4)=YEAR(Formula!VY8),(MONTH(Formula!$B$4)=MONTH(Formula!VY8))))),Formula!VY12,""),"") ->  | WL6: =IF($A$4=Formula!$A$35,IF(OR(EOMONTH(Formula!$B$4,0)>Formula!VZ8,(AND(YEAR(Formula!$B$4)=YEAR(Formula!VZ8),(MONTH(Formula!$B$4)=MONTH(Formula!VZ8))))),Formula!VZ12,""),"") ->  | WM6: =IF($A$4=Formula!$A$35,IF(OR(EOMONTH(Formula!$B$4,0)>Formula!WA8,(AND(YEAR(Formula!$B$4)=YEAR(Formula!WA8),(MONTH(Formula!$B$4)=MONTH(Formula!WA8))))),Formula!WA12,""),"") ->  | WN6: =IF($A$4=Formula!$A$35,IF(OR(EOMONTH(Formula!$B$4,0)>Formula!WB8,(AND(YEAR(Formula!$B$4)=YEAR(Formula!WB8),(MONTH(Formula!$B$4)=MONTH(Formula!WB8))))),Formula!WB12,""),"") ->  | WO6: =IF($A$4=Formula!$A$35,IF(OR(EOMONTH(Formula!$B$4,0)>Formula!WC8,(AND(YEAR(Formula!$B$4)=YEAR(Formula!WC8),(MONTH(Formula!$B$4)=MONTH(Formula!WC8))))),Formula!WC12,""),"") ->  | WP6: =IF($A$4=Formula!$A$35,IF(OR(EOMONTH(Formula!$B$4,0)>Formula!WD8,(AND(YEAR(Formula!$B$4)=YEAR(Formula!WD8),(MONTH(Formula!$B$4)=MONTH(Formula!WD8))))),Formula!WD12,""),"") ->  | WQ6: =IF($A$4=Formula!$A$35,IF(OR(EOMONTH(Formula!$B$4,0)>Formula!WE8,(AND(YEAR(Formula!$B$4)=YEAR(Formula!WE8),(MONTH(Formula!$B$4)=MONTH(Formula!WE8))))),Formula!WE12,""),"") ->  | WR6: =IF($A$4=Formula!$A$35,IF(OR(EOMONTH(Formula!$B$4,0)>Formula!WF8,(AND(YEAR(Formula!$B$4)=YEAR(Formula!WF8),(MONTH(Formula!$B$4)=MONTH(Formula!WF8))))),Formula!WF12,""),"") ->  | WS6: =IF($A$4=Formula!$A$35,IF(OR(EOMONTH(Formula!$B$4,0)>Formula!WG8,(AND(YEAR(Formula!$B$4)=YEAR(Formula!WG8),(MONTH(Formula!$B$4)=MONTH(Formula!WG8))))),Formula!WG12,""),"") ->  | WT6: =IF($A$4=Formula!$A$35,IF(OR(EOMONTH(Formula!$B$4,0)>Formula!WH8,(AND(YEAR(Formula!$B$4)=YEAR(Formula!WH8),(MONTH(Formula!$B$4)=MONTH(Formula!WH8))))),Formula!WH12,""),"") ->  | WU6: =IF($A$4=Formula!$A$35,IF(OR(EOMONTH(Formula!$B$4,0)>Formula!WI8,(AND(YEAR(Formula!$B$4)=YEAR(Formula!WI8),(MONTH(Formula!$B$4)=MONTH(Formula!WI8))))),Formula!WI12,""),"") ->  | WV6: =IF($A$4=Formula!$A$35,IF(OR(EOMONTH(Formula!$B$4,0)>Formula!WJ8,(AND(YEAR(Formula!$B$4)=YEAR(Formula!WJ8),(MONTH(Formula!$B$4)=MONTH(Formula!WJ8))))),Formula!WJ12,""),"") ->  | WW6: =IF($A$4=Formula!$A$35,IF(OR(EOMONTH(Formula!$B$4,0)>Formula!WK8,(AND(YEAR(Formula!$B$4)=YEAR(Formula!WK8),(MONTH(Formula!$B$4)=MONTH(Formula!WK8))))),Formula!WK12,""),"") ->  | WX6: =IF($A$4=Formula!$A$35,IF(OR(EOMONTH(Formula!$B$4,0)>Formula!WL8,(AND(YEAR(Formula!$B$4)=YEAR(Formula!WL8),(MONTH(Formula!$B$4)=MONTH(Formula!WL8))))),Formula!WL12,""),"") ->  | WY6: =IF($A$4=Formula!$A$35,IF(OR(EOMONTH(Formula!$B$4,0)>Formula!WM8,(AND(YEAR(Formula!$B$4)=YEAR(Formula!WM8),(MONTH(Formula!$B$4)=MONTH(Formula!WM8))))),Formula!WM12,""),"") ->  | WZ6: =IF($A$4=Formula!$A$35,IF(OR(EOMONTH(Formula!$B$4,0)>Formula!WN8,(AND(YEAR(Formula!$B$4)=YEAR(Formula!WN8),(MONTH(Formula!$B$4)=MONTH(Formula!WN8))))),Formula!WN12,""),"") ->  | XA6: =IF($A$4=Formula!$A$35,IF(OR(EOMONTH(Formula!$B$4,0)>Formula!WO8,(AND(YEAR(Formula!$B$4)=YEAR(Formula!WO8),(MONTH(Formula!$B$4)=MONTH(Formula!WO8))))),Formula!WO12,""),"") ->  | XB6: =IF($A$4=Formula!$A$35,IF(OR(EOMONTH(Formula!$B$4,0)>Formula!WP8,(AND(YEAR(Formula!$B$4)=YEAR(Formula!WP8),(MONTH(Formula!$B$4)=MONTH(Formula!WP8))))),Formula!WP12,""),"") ->  | XC6: =IF($A$4=Formula!$A$35,IF(OR(EOMONTH(Formula!$B$4,0)>Formula!WQ8,(AND(YEAR(Formula!$B$4)=YEAR(Formula!WQ8),(MONTH(Formula!$B$4)=MONTH(Formula!WQ8))))),Formula!WQ12,""),"") ->  | XD6: =IF($A$4=Formula!$A$35,IF(OR(EOMONTH(Formula!$B$4,0)>Formula!WR8,(AND(YEAR(Formula!$B$4)=YEAR(Formula!WR8),(MONTH(Formula!$B$4)=MONTH(Formula!WR8))))),Formula!WR12,""),"") ->  | XE6: =IF($A$4=Formula!$A$35,IF(OR(EOMONTH(Formula!$B$4,0)>Formula!WS8,(AND(YEAR(Formula!$B$4)=YEAR(Formula!WS8),(MONTH(Formula!$B$4)=MONTH(Formula!WS8))))),Formula!WS12,""),"") ->  | XF6: =IF($A$4=Formula!$A$35,IF(OR(EOMONTH(Formula!$B$4,0)>Formula!WT8,(AND(YEAR(Formula!$B$4)=YEAR(Formula!WT8),(MONTH(Formula!$B$4)=MONTH(Formula!WT8))))),Formula!WT12,""),"") ->  | XG6: =IF($A$4=Formula!$A$35,IF(OR(EOMONTH(Formula!$B$4,0)>Formula!WU8,(AND(YEAR(Formula!$B$4)=YEAR(Formula!WU8),(MONTH(Formula!$B$4)=MONTH(Formula!WU8))))),Formula!WU12,""),"") ->  | XH6: =IF($A$4=Formula!$A$35,IF(OR(EOMONTH(Formula!$B$4,0)>Formula!WV8,(AND(YEAR(Formula!$B$4)=YEAR(Formula!WV8),(MONTH(Formula!$B$4)=MONTH(Formula!WV8))))),Formula!WV12,""),"") ->  | XI6: =IF($A$4=Formula!$A$35,IF(OR(EOMONTH(Formula!$B$4,0)>Formula!WW8,(AND(YEAR(Formula!$B$4)=YEAR(Formula!WW8),(MONTH(Formula!$B$4)=MONTH(Formula!WW8))))),Formula!WW12,""),"") ->  | XJ6: =IF($A$4=Formula!$A$35,IF(OR(EOMONTH(Formula!$B$4,0)>Formula!WX8,(AND(YEAR(Formula!$B$4)=YEAR(Formula!WX8),(MONTH(Formula!$B$4)=MONTH(Formula!WX8))))),Formula!WX12,""),"") ->  | XK6: =IF($A$4=Formula!$A$35,IF(OR(EOMONTH(Formula!$B$4,0)>Formula!WY8,(AND(YEAR(Formula!$B$4)=YEAR(Formula!WY8),(MONTH(Formula!$B$4)=MONTH(Formula!WY8))))),Formula!WY12,""),"") ->  | XL6: =IF($A$4=Formula!$A$35,IF(OR(EOMONTH(Formula!$B$4,0)>Formula!WZ8,(AND(YEAR(Formula!$B$4)=YEAR(Formula!WZ8),(MONTH(Formula!$B$4)=MONTH(Formula!WZ8))))),Formula!WZ12,""),"") ->  | XM6: =IF($A$4=Formula!$A$35,IF(OR(EOMONTH(Formula!$B$4,0)>Formula!XA8,(AND(YEAR(Formula!$B$4)=YEAR(Formula!XA8),(MONTH(Formula!$B$4)=MONTH(Formula!XA8))))),Formula!XA12,""),"") ->  | XN6: =IF($A$4=Formula!$A$35,IF(OR(EOMONTH(Formula!$B$4,0)>Formula!XB8,(AND(YEAR(Formula!$B$4)=YEAR(Formula!XB8),(MONTH(Formula!$B$4)=MONTH(Formula!XB8))))),Formula!XB12,""),"") ->  | XO6: =IF($A$4=Formula!$A$35,IF(OR(EOMONTH(Formula!$B$4,0)>Formula!XC8,(AND(YEAR(Formula!$B$4)=YEAR(Formula!XC8),(MONTH(Formula!$B$4)=MONTH(Formula!XC8))))),Formula!XC12,""),"") ->  | XP6: =IF($A$4=Formula!$A$35,IF(OR(EOMONTH(Formula!$B$4,0)>Formula!XD8,(AND(YEAR(Formula!$B$4)=YEAR(Formula!XD8),(MONTH(Formula!$B$4)=MONTH(Formula!XD8))))),Formula!XD12,""),"") ->  | XQ6: =IF($A$4=Formula!$A$35,IF(OR(EOMONTH(Formula!$B$4,0)>Formula!XE8,(AND(YEAR(Formula!$B$4)=YEAR(Formula!XE8),(MONTH(Formula!$B$4)=MONTH(Formula!XE8))))),Formula!XE12,""),"") ->  | XR6: =IF($A$4=Formula!$A$35,IF(OR(EOMONTH(Formula!$B$4,0)>Formula!XF8,(AND(YEAR(Formula!$B$4)=YEAR(Formula!XF8),(MONTH(Formula!$B$4)=MONTH(Formula!XF8))))),Formula!XF12,""),"") ->  | XS6: =IF($A$4=Formula!$A$35,IF(OR(EOMONTH(Formula!$B$4,0)>Formula!XG8,(AND(YEAR(Formula!$B$4)=YEAR(Formula!XG8),(MONTH(Formula!$B$4)=MONTH(Formula!XG8))))),Formula!XG12,""),"") ->  | XT6: =IF($A$4=Formula!$A$35,IF(OR(EOMONTH(Formula!$B$4,0)>Formula!XH8,(AND(YEAR(Formula!$B$4)=YEAR(Formula!XH8),(MONTH(Formula!$B$4)=MONTH(Formula!XH8))))),Formula!XH12,""),"") ->  | XU6: =IF($A$4=Formula!$A$35,IF(OR(EOMONTH(Formula!$B$4,0)>Formula!XI8,(AND(YEAR(Formula!$B$4)=YEAR(Formula!XI8),(MONTH(Formula!$B$4)=MONTH(Formula!XI8))))),Formula!XI12,""),"") ->  | XV6: =IF($A$4=Formula!$A$35,IF(OR(EOMONTH(Formula!$B$4,0)>Formula!XJ8,(AND(YEAR(Formula!$B$4)=YEAR(Formula!XJ8),(MONTH(Formula!$B$4)=MONTH(Formula!XJ8))))),Formula!XJ12,""),"") ->  | XW6: =IF($A$4=Formula!$A$35,IF(OR(EOMONTH(Formula!$B$4,0)>Formula!XK8,(AND(YEAR(Formula!$B$4)=YEAR(Formula!XK8),(MONTH(Formula!$B$4)=MONTH(Formula!XK8))))),Formula!XK12,""),"") ->  | XX6: =IF($A$4=Formula!$A$35,IF(OR(EOMONTH(Formula!$B$4,0)>Formula!XL8,(AND(YEAR(Formula!$B$4)=YEAR(Formula!XL8),(MONTH(Formula!$B$4)=MONTH(Formula!XL8))))),Formula!XL12,""),"") ->  | XY6: =IF($A$4=Formula!$A$35,IF(OR(EOMONTH(Formula!$B$4,0)>Formula!XM8,(AND(YEAR(Formula!$B$4)=YEAR(Formula!XM8),(MONTH(Formula!$B$4)=MONTH(Formula!XM8))))),Formula!XM12,""),"") ->  | XZ6: =IF($A$4=Formula!$A$35,IF(OR(EOMONTH(Formula!$B$4,0)>Formula!XN8,(AND(YEAR(Formula!$B$4)=YEAR(Formula!XN8),(MONTH(Formula!$B$4)=MONTH(Formula!XN8))))),Formula!XN12,""),"") ->  | YA6: =IF($A$4=Formula!$A$35,IF(OR(EOMONTH(Formula!$B$4,0)>Formula!XO8,(AND(YEAR(Formula!$B$4)=YEAR(Formula!XO8),(MONTH(Formula!$B$4)=MONTH(Formula!XO8))))),Formula!XO12,""),"") ->  | YB6: =IF($A$4=Formula!$A$35,IF(OR(EOMONTH(Formula!$B$4,0)>Formula!XP8,(AND(YEAR(Formula!$B$4)=YEAR(Formula!XP8),(MONTH(Formula!$B$4)=MONTH(Formula!XP8))))),Formula!XP12,""),"") ->  | YC6: =IF($A$4=Formula!$A$35,IF(OR(EOMONTH(Formula!$B$4,0)>Formula!XQ8,(AND(YEAR(Formula!$B$4)=YEAR(Formula!XQ8),(MONTH(Formula!$B$4)=MONTH(Formula!XQ8))))),Formula!XQ12,""),"") ->  | YD6: =IF($A$4=Formula!$A$35,IF(OR(EOMONTH(Formula!$B$4,0)>Formula!XR8,(AND(YEAR(Formula!$B$4)=YEAR(Formula!XR8),(MONTH(Formula!$B$4)=MONTH(Formula!XR8))))),Formula!XR12,""),"") ->  | YE6: =IF($A$4=Formula!$A$35,IF(OR(EOMONTH(Formula!$B$4,0)>Formula!XS8,(AND(YEAR(Formula!$B$4)=YEAR(Formula!XS8),(MONTH(Formula!$B$4)=MONTH(Formula!XS8))))),Formula!XS12,""),"") ->  | YF6: =IF($A$4=Formula!$A$35,IF(OR(EOMONTH(Formula!$B$4,0)>Formula!XT8,(AND(YEAR(Formula!$B$4)=YEAR(Formula!XT8),(MONTH(Formula!$B$4)=MONTH(Formula!XT8))))),Formula!XT12,""),"") ->  | YG6: =IF($A$4=Formula!$A$35,IF(OR(EOMONTH(Formula!$B$4,0)>Formula!XU8,(AND(YEAR(Formula!$B$4)=YEAR(Formula!XU8),(MONTH(Formula!$B$4)=MONTH(Formula!XU8))))),Formula!XU12,""),"") ->  | YH6: =IF($A$4=Formula!$A$35,IF(OR(EOMONTH(Formula!$B$4,0)>Formula!XV8,(AND(YEAR(Formula!$B$4)=YEAR(Formula!XV8),(MONTH(Formula!$B$4)=MONTH(Formula!XV8))))),Formula!XV12,""),"") ->  | YI6: =IF($A$4=Formula!$A$35,IF(OR(EOMONTH(Formula!$B$4,0)>Formula!XW8,(AND(YEAR(Formula!$B$4)=YEAR(Formula!XW8),(MONTH(Formula!$B$4)=MONTH(Formula!XW8))))),Formula!XW12,""),"") ->  | YJ6: =IF($A$4=Formula!$A$35,IF(OR(EOMONTH(Formula!$B$4,0)>Formula!XX8,(AND(YEAR(Formula!$B$4)=YEAR(Formula!XX8),(MONTH(Formula!$B$4)=MONTH(Formula!XX8))))),Formula!XX12,""),"") ->  | YK6: =IF($A$4=Formula!$A$35,IF(OR(EOMONTH(Formula!$B$4,0)>Formula!XY8,(AND(YEAR(Formula!$B$4)=YEAR(Formula!XY8),(MONTH(Formula!$B$4)=MONTH(Formula!XY8))))),Formula!XY12,""),"") ->  | YL6: =IF($A$4=Formula!$A$35,IF(OR(EOMONTH(Formula!$B$4,0)>Formula!XZ8,(AND(YEAR(Formula!$B$4)=YEAR(Formula!XZ8),(MONTH(Formula!$B$4)=MONTH(Formula!XZ8))))),Formula!XZ12,""),"") ->  | YM6: =IF($A$4=Formula!$A$35,IF(OR(EOMONTH(Formula!$B$4,0)>Formula!YA8,(AND(YEAR(Formula!$B$4)=YEAR(Formula!YA8),(MONTH(Formula!$B$4)=MONTH(Formula!YA8))))),Formula!YA12,""),"") ->  | YN6: =IF($A$4=Formula!$A$35,IF(OR(EOMONTH(Formula!$B$4,0)>Formula!YB8,(AND(YEAR(Formula!$B$4)=YEAR(Formula!YB8),(MONTH(Formula!$B$4)=MONTH(Formula!YB8))))),Formula!YB12,""),"") ->  | YO6: =IF($A$4=Formula!$A$35,IF(OR(EOMONTH(Formula!$B$4,0)>Formula!YC8,(AND(YEAR(Formula!$B$4)=YEAR(Formula!YC8),(MONTH(Formula!$B$4)=MONTH(Formula!YC8))))),Formula!YC12,""),"") ->  | YP6: =IF($A$4=Formula!$A$35,IF(OR(EOMONTH(Formula!$B$4,0)>Formula!YD8,(AND(YEAR(Formula!$B$4)=YEAR(Formula!YD8),(MONTH(Formula!$B$4)=MONTH(Formula!YD8))))),Formula!YD12,""),"") ->  | YQ6: =IF($A$4=Formula!$A$35,IF(OR(EOMONTH(Formula!$B$4,0)>Formula!YE8,(AND(YEAR(Formula!$B$4)=YEAR(Formula!YE8),(MONTH(Formula!$B$4)=MONTH(Formula!YE8))))),Formula!YE12,""),"") ->  | YR6: =IF($A$4=Formula!$A$35,IF(OR(EOMONTH(Formula!$B$4,0)>Formula!YF8,(AND(YEAR(Formula!$B$4)=YEAR(Formula!YF8),(MONTH(Formula!$B$4)=MONTH(Formula!YF8))))),Formula!YF12,""),"") ->  | YS6: =IF($A$4=Formula!$A$35,IF(OR(EOMONTH(Formula!$B$4,0)>Formula!YG8,(AND(YEAR(Formula!$B$4)=YEAR(Formula!YG8),(MONTH(Formula!$B$4)=MONTH(Formula!YG8))))),Formula!YG12,""),"") ->  | YT6: =IF($A$4=Formula!$A$35,IF(OR(EOMONTH(Formula!$B$4,0)>Formula!YH8,(AND(YEAR(Formula!$B$4)=YEAR(Formula!YH8),(MONTH(Formula!$B$4)=MONTH(Formula!YH8))))),Formula!YH12,""),"") ->  | YU6: =IF($A$4=Formula!$A$35,IF(OR(EOMONTH(Formula!$B$4,0)>Formula!YI8,(AND(YEAR(Formula!$B$4)=YEAR(Formula!YI8),(MONTH(Formula!$B$4)=MONTH(Formula!YI8))))),Formula!YI12,""),"") ->  | YV6: =IF($A$4=Formula!$A$35,IF(OR(EOMONTH(Formula!$B$4,0)>Formula!YJ8,(AND(YEAR(Formula!$B$4)=YEAR(Formula!YJ8),(MONTH(Formula!$B$4)=MONTH(Formula!YJ8))))),Formula!YJ12,""),"") ->  | YW6: =IF($A$4=Formula!$A$35,IF(OR(EOMONTH(Formula!$B$4,0)>Formula!YK8,(AND(YEAR(Formula!$B$4)=YEAR(Formula!YK8),(MONTH(Formula!$B$4)=MONTH(Formula!YK8))))),Formula!YK12,""),"") ->  | YX6: =IF($A$4=Formula!$A$35,IF(OR(EOMONTH(Formula!$B$4,0)>Formula!YL8,(AND(YEAR(Formula!$B$4)=YEAR(Formula!YL8),(MONTH(Formula!$B$4)=MONTH(Formula!YL8))))),Formula!YL12,""),"") ->  | YY6: =IF($A$4=Formula!$A$35,IF(OR(EOMONTH(Formula!$B$4,0)>Formula!YM8,(AND(YEAR(Formula!$B$4)=YEAR(Formula!YM8),(MONTH(Formula!$B$4)=MONTH(Formula!YM8))))),Formula!YM12,""),"") ->  | YZ6: =IF($A$4=Formula!$A$35,IF(OR(EOMONTH(Formula!$B$4,0)>Formula!YN8,(AND(YEAR(Formula!$B$4)=YEAR(Formula!YN8),(MONTH(Formula!$B$4)=MONTH(Formula!YN8))))),Formula!YN12,""),"") ->  | ZA6: =IF($A$4=Formula!$A$35,IF(OR(EOMONTH(Formula!$B$4,0)>Formula!YO8,(AND(YEAR(Formula!$B$4)=YEAR(Formula!YO8),(MONTH(Formula!$B$4)=MONTH(Formula!YO8))))),Formula!YO12,""),"") ->  | ZB6: =IF($A$4=Formula!$A$35,IF(OR(EOMONTH(Formula!$B$4,0)>Formula!YP8,(AND(YEAR(Formula!$B$4)=YEAR(Formula!YP8),(MONTH(Formula!$B$4)=MONTH(Formula!YP8))))),Formula!YP12,""),"") ->  | ZC6: =IF($A$4=Formula!$A$35,IF(OR(EOMONTH(Formula!$B$4,0)>Formula!YQ8,(AND(YEAR(Formula!$B$4)=YEAR(Formula!YQ8),(MONTH(Formula!$B$4)=MONTH(Formula!YQ8))))),Formula!YQ12,""),"") ->  | ZD6: =IF($A$4=Formula!$A$35,IF(OR(EOMONTH(Formula!$B$4,0)>Formula!YR8,(AND(YEAR(Formula!$B$4)=YEAR(Formula!YR8),(MONTH(Formula!$B$4)=MONTH(Formula!YR8))))),Formula!YR12,""),"") ->  | ZE6: =IF($A$4=Formula!$A$35,IF(OR(EOMONTH(Formula!$B$4,0)>Formula!YS8,(AND(YEAR(Formula!$B$4)=YEAR(Formula!YS8),(MONTH(Formula!$B$4)=MONTH(Formula!YS8))))),Formula!YS12,""),"") ->  | ZF6: =IF($A$4=Formula!$A$35,IF(OR(EOMONTH(Formula!$B$4,0)>Formula!YT8,(AND(YEAR(Formula!$B$4)=YEAR(Formula!YT8),(MONTH(Formula!$B$4)=MONTH(Formula!YT8))))),Formula!YT12,""),"") ->  | ZG6: =IF($A$4=Formula!$A$35,IF(OR(EOMONTH(Formula!$B$4,0)>Formula!YU8,(AND(YEAR(Formula!$B$4)=YEAR(Formula!YU8),(MONTH(Formula!$B$4)=MONTH(Formula!YU8))))),Formula!YU12,""),"") ->  | ZH6: =IF($A$4=Formula!$A$35,IF(OR(EOMONTH(Formula!$B$4,0)>Formula!YV8,(AND(YEAR(Formula!$B$4)=YEAR(Formula!YV8),(MONTH(Formula!$B$4)=MONTH(Formula!YV8))))),Formula!YV12,""),"") ->  | ZI6: =IF($A$4=Formula!$A$35,IF(OR(EOMONTH(Formula!$B$4,0)>Formula!YW8,(AND(YEAR(Formula!$B$4)=YEAR(Formula!YW8),(MONTH(Formula!$B$4)=MONTH(Formula!YW8))))),Formula!YW12,""),"") ->  | ZJ6: =IF($A$4=Formula!$A$35,IF(OR(EOMONTH(Formula!$B$4,0)>Formula!YX8,(AND(YEAR(Formula!$B$4)=YEAR(Formula!YX8),(MONTH(Formula!$B$4)=MONTH(Formula!YX8))))),Formula!YX12,""),"") ->  | ZK6: =IF($A$4=Formula!$A$35,IF(OR(EOMONTH(Formula!$B$4,0)>Formula!YY8,(AND(YEAR(Formula!$B$4)=YEAR(Formula!YY8),(MONTH(Formula!$B$4)=MONTH(Formula!YY8))))),Formula!YY12,""),"") ->  | ZL6: =IF($A$4=Formula!$A$35,IF(OR(EOMONTH(Formula!$B$4,0)>Formula!YZ8,(AND(YEAR(Formula!$B$4)=YEAR(Formula!YZ8),(MONTH(Formula!$B$4)=MONTH(Formula!YZ8))))),Formula!YZ12,""),"") ->  | ZM6: =IF($A$4=Formula!$A$35,IF(OR(EOMONTH(Formula!$B$4,0)>Formula!ZA8,(AND(YEAR(Formula!$B$4)=YEAR(Formula!ZA8),(MONTH(Formula!$B$4)=MONTH(Formula!ZA8))))),Formula!ZA12,""),"") ->  | ZN6: =IF($A$4=Formula!$A$35,IF(OR(EOMONTH(Formula!$B$4,0)>Formula!ZB8,(AND(YEAR(Formula!$B$4)=YEAR(Formula!ZB8),(MONTH(Formula!$B$4)=MONTH(Formula!ZB8))))),Formula!ZB12,""),"") ->  | ZO6: =IF($A$4=Formula!$A$35,IF(OR(EOMONTH(Formula!$B$4,0)>Formula!ZC8,(AND(YEAR(Formula!$B$4)=YEAR(Formula!ZC8),(MONTH(Formula!$B$4)=MONTH(Formula!ZC8))))),Formula!ZC12,""),"") ->  | ZP6: =IF($A$4=Formula!$A$35,IF(OR(EOMONTH(Formula!$B$4,0)>Formula!ZD8,(AND(YEAR(Formula!$B$4)=YEAR(Formula!ZD8),(MONTH(Formula!$B$4)=MONTH(Formula!ZD8))))),Formula!ZD12,""),"") ->  | ZQ6: =IF($A$4=Formula!$A$35,IF(OR(EOMONTH(Formula!$B$4,0)>Formula!ZE8,(AND(YEAR(Formula!$B$4)=YEAR(Formula!ZE8),(MONTH(Formula!$B$4)=MONTH(Formula!ZE8))))),Formula!ZE12,""),"") ->  | ZR6: =IF($A$4=Formula!$A$35,IF(OR(EOMONTH(Formula!$B$4,0)>Formula!ZF8,(AND(YEAR(Formula!$B$4)=YEAR(Formula!ZF8),(MONTH(Formula!$B$4)=MONTH(Formula!ZF8))))),Formula!ZF12,""),"") ->  | ZS6: =IF($A$4=Formula!$A$35,IF(OR(EOMONTH(Formula!$B$4,0)>Formula!ZG8,(AND(YEAR(Formula!$B$4)=YEAR(Formula!ZG8),(MONTH(Formula!$B$4)=MONTH(Formula!ZG8))))),Formula!ZG12,""),"") ->  | ZT6: =IF($A$4=Formula!$A$35,IF(OR(EOMONTH(Formula!$B$4,0)>Formula!ZH8,(AND(YEAR(Formula!$B$4)=YEAR(Formula!ZH8),(MONTH(Formula!$B$4)=MONTH(Formula!ZH8))))),Formula!ZH12,""),"") ->  | ZU6: =IF($A$4=Formula!$A$35,IF(OR(EOMONTH(Formula!$B$4,0)>Formula!ZI8,(AND(YEAR(Formula!$B$4)=YEAR(Formula!ZI8),(MONTH(Formula!$B$4)=MONTH(Formula!ZI8))))),Formula!ZI12,""),"") ->  | ZV6: =IF($A$4=Formula!$A$35,IF(OR(EOMONTH(Formula!$B$4,0)>Formula!ZJ8,(AND(YEAR(Formula!$B$4)=YEAR(Formula!ZJ8),(MONTH(Formula!$B$4)=MONTH(Formula!ZJ8))))),Formula!ZJ12,""),"") ->  | ZW6: =IF($A$4=Formula!$A$35,IF(OR(EOMONTH(Formula!$B$4,0)>Formula!ZK8,(AND(YEAR(Formula!$B$4)=YEAR(Formula!ZK8),(MONTH(Formula!$B$4)=MONTH(Formula!ZK8))))),Formula!ZK12,""),"") ->  | ZX6: =IF($A$4=Formula!$A$35,IF(OR(EOMONTH(Formula!$B$4,0)>Formula!ZL8,(AND(YEAR(Formula!$B$4)=YEAR(Formula!ZL8),(MONTH(Formula!$B$4)=MONTH(Formula!ZL8))))),Formula!ZL12,""),"") ->  | ZY6: =IF($A$4=Formula!$A$35,IF(OR(EOMONTH(Formula!$B$4,0)>Formula!ZM8,(AND(YEAR(Formula!$B$4)=YEAR(Formula!ZM8),(MONTH(Formula!$B$4)=MONTH(Formula!ZM8))))),Formula!ZM12,""),"") ->  | ZZ6: =IF($A$4=Formula!$A$35,IF(OR(EOMONTH(Formula!$B$4,0)>Formula!ZN8,(AND(YEAR(Formula!$B$4)=YEAR(Formula!ZN8),(MONTH(Formula!$B$4)=MONTH(Formula!ZN8))))),Formula!ZN12,""),"") -> 
N7: =IF($A$4=Formula!$A$35,IF(Formula!B10>Formula!$B$4,"",CONCATENATE("v",Formula!B9)),"") ->  | O7: =IF($A$4=Formula!$A$35,IF(Formula!C10>Formula!$B$4,"",CONCATENATE("v",Formula!C9)),"") ->  | P7: =IF($A$4=Formula!$A$35,IF(Formula!D10>Formula!$B$4,"",CONCATENATE("v",Formula!D9)),"") ->  | Q7: =IF($A$4=Formula!$A$35,IF(Formula!E10>Formula!$B$4,"",CONCATENATE("v",Formula!E9)),"") ->  | R7: =IF($A$4=Formula!$A$35,IF(Formula!F10>Formula!$B$4,"",CONCATENATE("v",Formula!F9)),"") ->  | S7: =IF($A$4=Formula!$A$35,IF(Formula!G10>Formula!$B$4,"",CONCATENATE("v",Formula!G9)),"") ->  | T7: =IF($A$4=Formula!$A$35,IF(Formula!H10>Formula!$B$4,"",CONCATENATE("v",Formula!H9)),"") ->  | U7: =IF($A$4=Formula!$A$35,IF(Formula!I10>Formula!$B$4,"",CONCATENATE("v",Formula!I9)),"") ->  | V7: =IF($A$4=Formula!$A$35,IF(Formula!J10>Formula!$B$4,"",CONCATENATE("v",Formula!J9)),"") ->  | W7: =IF($A$4=Formula!$A$35,IF(Formula!K10>Formula!$B$4,"",CONCATENATE("v",Formula!K9)),"") ->  | X7: =IF($A$4=Formula!$A$35,IF(Formula!L10>Formula!$B$4,"",CONCATENATE("v",Formula!L9)),"") ->  | Y7: =IF($A$4=Formula!$A$35,IF(Formula!M10>Formula!$B$4,"",CONCATENATE("v",Formula!M9)),"") ->  | Z7: =IF($A$4=Formula!$A$35,IF(Formula!N10>Formula!$B$4,"",CONCATENATE("v",Formula!N9)),"") ->  | AA7: =IF($A$4=Formula!$A$35,IF(Formula!O10>Formula!$B$4,"",CONCATENATE("v",Formula!O9)),"") ->  | AB7: =IF($A$4=Formula!$A$35,IF(Formula!P10>Formula!$B$4,"",CONCATENATE("v",Formula!P9)),"") ->  | AC7: =IF($A$4=Formula!$A$35,IF(Formula!Q10>Formula!$B$4,"",CONCATENATE("v",Formula!Q9)),"") ->  | AD7: =IF($A$4=Formula!$A$35,IF(Formula!R10>Formula!$B$4,"",CONCATENATE("v",Formula!R9)),"") ->  | AE7: =IF($A$4=Formula!$A$35,IF(Formula!S10>Formula!$B$4,"",CONCATENATE("v",Formula!S9)),"") ->  | AF7: =IF($A$4=Formula!$A$35,IF(Formula!T10>Formula!$B$4,"",CONCATENATE("v",Formula!T9)),"") ->  | AG7: =IF($A$4=Formula!$A$35,IF(Formula!U10>Formula!$B$4,"",CONCATENATE("v",Formula!U9)),"") ->  | AH7: =IF($A$4=Formula!$A$35,IF(Formula!V10>Formula!$B$4,"",CONCATENATE("v",Formula!V9)),"") ->  | AI7: =IF($A$4=Formula!$A$35,IF(Formula!W10>Formula!$B$4,"",CONCATENATE("v",Formula!W9)),"") ->  | AJ7: =IF($A$4=Formula!$A$35,IF(Formula!X10>Formula!$B$4,"",CONCATENATE("v",Formula!X9)),"") ->  | AK7: =IF($A$4=Formula!$A$35,IF(Formula!Y10>Formula!$B$4,"",CONCATENATE("v",Formula!Y9)),"") ->  | AL7: =IF($A$4=Formula!$A$35,IF(Formula!Z10>Formula!$B$4,"",CONCATENATE("v",Formula!Z9)),"") ->  | AM7: =IF($A$4=Formula!$A$35,IF(Formula!AA10>Formula!$B$4,"",CONCATENATE("v",Formula!AA9)),"") ->  | AN7: =IF($A$4=Formula!$A$35,IF(Formula!AB10>Formula!$B$4,"",CONCATENATE("v",Formula!AB9)),"") ->  | AO7: =IF($A$4=Formula!$A$35,IF(Formula!AC10>Formula!$B$4,"",CONCATENATE("v",Formula!AC9)),"") ->  | AP7: =IF($A$4=Formula!$A$35,IF(Formula!AD10>Formula!$B$4,"",CONCATENATE("v",Formula!AD9)),"") ->  | AQ7: =IF($A$4=Formula!$A$35,IF(Formula!AE10>Formula!$B$4,"",CONCATENATE("v",Formula!AE9)),"") ->  | AR7: =IF($A$4=Formula!$A$35,IF(Formula!AF10>Formula!$B$4,"",CONCATENATE("v",Formula!AF9)),"") ->  | AS7: =IF($A$4=Formula!$A$35,IF(Formula!AG10>Formula!$B$4,"",CONCATENATE("v",Formula!AG9)),"") ->  | AT7: =IF($A$4=Formula!$A$35,IF(Formula!AH10>Formula!$B$4,"",CONCATENATE("v",Formula!AH9)),"") ->  | AU7: =IF($A$4=Formula!$A$35,IF(Formula!AI10>Formula!$B$4,"",CONCATENATE("v",Formula!AI9)),"") ->  | AV7: =IF($A$4=Formula!$A$35,IF(Formula!AJ10>Formula!$B$4,"",CONCATENATE("v",Formula!AJ9)),"") ->  | AW7: =IF($A$4=Formula!$A$35,IF(Formula!AK10>Formula!$B$4,"",CONCATENATE("v",Formula!AK9)),"") ->  | AX7: =IF($A$4=Formula!$A$35,IF(Formula!AL10>Formula!$B$4,"",CONCATENATE("v",Formula!AL9)),"") ->  | AY7: =IF($A$4=Formula!$A$35,IF(Formula!AM10>Formula!$B$4,"",CONCATENATE("v",Formula!AM9)),"") ->  | AZ7: =IF($A$4=Formula!$A$35,IF(Formula!AN10>Formula!$B$4,"",CONCATENATE("v",Formula!AN9)),"") ->  | BA7: =IF($A$4=Formula!$A$35,IF(Formula!AO10>Formula!$B$4,"",CONCATENATE("v",Formula!AO9)),"") ->  | BB7: =IF($A$4=Formula!$A$35,IF(Formula!AP10>Formula!$B$4,"",CONCATENATE("v",Formula!AP9)),"") ->  | BC7: =IF($A$4=Formula!$A$35,IF(Formula!AQ10>Formula!$B$4,"",CONCATENATE("v",Formula!AQ9)),"") ->  | BD7: =IF($A$4=Formula!$A$35,IF(Formula!AR10>Formula!$B$4,"",CONCATENATE("v",Formula!AR9)),"") ->  | BE7: =IF($A$4=Formula!$A$35,IF(Formula!AS10>Formula!$B$4,"",CONCATENATE("v",Formula!AS9)),"") ->  | BF7: =IF($A$4=Formula!$A$35,IF(Formula!AT10>Formula!$B$4,"",CONCATENATE("v",Formula!AT9)),"") ->  | BG7: =IF($A$4=Formula!$A$35,IF(Formula!AU10>Formula!$B$4,"",CONCATENATE("v",Formula!AU9)),"") ->  | BH7: =IF($A$4=Formula!$A$35,IF(Formula!AV10>Formula!$B$4,"",CONCATENATE("v",Formula!AV9)),"") ->  | BI7: =IF($A$4=Formula!$A$35,IF(Formula!AW10>Formula!$B$4,"",CONCATENATE("v",Formula!AW9)),"") ->  | BJ7: =IF($A$4=Formula!$A$35,IF(Formula!AX10>Formula!$B$4,"",CONCATENATE("v",Formula!AX9)),"") ->  | BK7: =IF($A$4=Formula!$A$35,IF(Formula!AY10>Formula!$B$4,"",CONCATENATE("v",Formula!AY9)),"") ->  | BL7: =IF($A$4=Formula!$A$35,IF(Formula!AZ10>Formula!$B$4,"",CONCATENATE("v",Formula!AZ9)),"") ->  | BM7: =IF($A$4=Formula!$A$35,IF(Formula!BA10>Formula!$B$4,"",CONCATENATE("v",Formula!BA9)),"") ->  | BN7: =IF($A$4=Formula!$A$35,IF(Formula!BB10>Formula!$B$4,"",CONCATENATE("v",Formula!BB9)),"") ->  | BO7: =IF($A$4=Formula!$A$35,IF(Formula!BC10>Formula!$B$4,"",CONCATENATE("v",Formula!BC9)),"") ->  | BP7: =IF($A$4=Formula!$A$35,IF(Formula!BD10>Formula!$B$4,"",CONCATENATE("v",Formula!BD9)),"") ->  | BQ7: =IF($A$4=Formula!$A$35,IF(Formula!BE10>Formula!$B$4,"",CONCATENATE("v",Formula!BE9)),"") ->  | BR7: =IF($A$4=Formula!$A$35,IF(Formula!BF10>Formula!$B$4,"",CONCATENATE("v",Formula!BF9)),"") ->  | BS7: =IF($A$4=Formula!$A$35,IF(Formula!BG10>Formula!$B$4,"",CONCATENATE("v",Formula!BG9)),"") ->  | BT7: =IF($A$4=Formula!$A$35,IF(Formula!BH10>Formula!$B$4,"",CONCATENATE("v",Formula!BH9)),"") ->  | BU7: =IF($A$4=Formula!$A$35,IF(Formula!BI10>Formula!$B$4,"",CONCATENATE("v",Formula!BI9)),"") ->  | BV7: =IF($A$4=Formula!$A$35,IF(Formula!BJ10>Formula!$B$4,"",CONCATENATE("v",Formula!BJ9)),"") ->  | BW7: =IF($A$4=Formula!$A$35,IF(Formula!BK10>Formula!$B$4,"",CONCATENATE("v",Formula!BK9)),"") ->  | BX7: =IF($A$4=Formula!$A$35,IF(Formula!BL10>Formula!$B$4,"",CONCATENATE("v",Formula!BL9)),"") ->  | BY7: =IF($A$4=Formula!$A$35,IF(Formula!BM10>Formula!$B$4,"",CONCATENATE("v",Formula!BM9)),"") ->  | BZ7: =IF($A$4=Formula!$A$35,IF(Formula!BN10>Formula!$B$4,"",CONCATENATE("v",Formula!BN9)),"") ->  | CA7: =IF($A$4=Formula!$A$35,IF(Formula!BO10>Formula!$B$4,"",CONCATENATE("v",Formula!BO9)),"") ->  | CB7: =IF($A$4=Formula!$A$35,IF(Formula!BP10>Formula!$B$4,"",CONCATENATE("v",Formula!BP9)),"") ->  | CC7: =IF($A$4=Formula!$A$35,IF(Formula!BQ10>Formula!$B$4,"",CONCATENATE("v",Formula!BQ9)),"") ->  | CD7: =IF($A$4=Formula!$A$35,IF(Formula!BR10>Formula!$B$4,"",CONCATENATE("v",Formula!BR9)),"") ->  | CE7: =IF($A$4=Formula!$A$35,IF(Formula!BS10>Formula!$B$4,"",CONCATENATE("v",Formula!BS9)),"") ->  | CF7: =IF($A$4=Formula!$A$35,IF(Formula!BT10>Formula!$B$4,"",CONCATENATE("v",Formula!BT9)),"") ->  | CG7: =IF($A$4=Formula!$A$35,IF(Formula!BU10>Formula!$B$4,"",CONCATENATE("v",Formula!BU9)),"") ->  | CH7: =IF($A$4=Formula!$A$35,IF(Formula!BV10>Formula!$B$4,"",CONCATENATE("v",Formula!BV9)),"") ->  | CI7: =IF($A$4=Formula!$A$35,IF(Formula!BW10>Formula!$B$4,"",CONCATENATE("v",Formula!BW9)),"") ->  | CJ7: =IF($A$4=Formula!$A$35,IF(Formula!BX10>Formula!$B$4,"",CONCATENATE("v",Formula!BX9)),"") ->  | CK7: =IF($A$4=Formula!$A$35,IF(Formula!BY10>Formula!$B$4,"",CONCATENATE("v",Formula!BY9)),"") ->  | CL7: =IF($A$4=Formula!$A$35,IF(Formula!BZ10>Formula!$B$4,"",CONCATENATE("v",Formula!BZ9)),"") ->  | CM7: =IF($A$4=Formula!$A$35,IF(Formula!CA10>Formula!$B$4,"",CONCATENATE("v",Formula!CA9)),"") ->  | CN7: =IF($A$4=Formula!$A$35,IF(Formula!CB10>Formula!$B$4,"",CONCATENATE("v",Formula!CB9)),"") ->  | CO7: =IF($A$4=Formula!$A$35,IF(Formula!CC10>Formula!$B$4,"",CONCATENATE("v",Formula!CC9)),"") ->  | CP7: =IF($A$4=Formula!$A$35,IF(Formula!CD10>Formula!$B$4,"",CONCATENATE("v",Formula!CD9)),"") ->  | CQ7: =IF($A$4=Formula!$A$35,IF(Formula!CE10>Formula!$B$4,"",CONCATENATE("v",Formula!CE9)),"") ->  | CR7: =IF($A$4=Formula!$A$35,IF(Formula!CF10>Formula!$B$4,"",CONCATENATE("v",Formula!CF9)),"") ->  | CS7: =IF($A$4=Formula!$A$35,IF(Formula!CG10>Formula!$B$4,"",CONCATENATE("v",Formula!CG9)),"") ->  | CT7: =IF($A$4=Formula!$A$35,IF(Formula!CH10>Formula!$B$4,"",CONCATENATE("v",Formula!CH9)),"") ->  | CU7: =IF($A$4=Formula!$A$35,IF(Formula!CI10>Formula!$B$4,"",CONCATENATE("v",Formula!CI9)),"") ->  | CV7: =IF($A$4=Formula!$A$35,IF(Formula!CJ10>Formula!$B$4,"",CONCATENATE("v",Formula!CJ9)),"") ->  | CW7: =IF($A$4=Formula!$A$35,IF(Formula!CK10>Formula!$B$4,"",CONCATENATE("v",Formula!CK9)),"") ->  | CX7: =IF($A$4=Formula!$A$35,IF(Formula!CL10>Formula!$B$4,"",CONCATENATE("v",Formula!CL9)),"") ->  | CY7: =IF($A$4=Formula!$A$35,IF(Formula!CM10>Formula!$B$4,"",CONCATENATE("v",Formula!CM9)),"") ->  | CZ7: =IF($A$4=Formula!$A$35,IF(Formula!CN10>Formula!$B$4,"",CONCATENATE("v",Formula!CN9)),"") ->  | DA7: =IF($A$4=Formula!$A$35,IF(Formula!CO10>Formula!$B$4,"",CONCATENATE("v",Formula!CO9)),"") ->  | DB7: =IF($A$4=Formula!$A$35,IF(Formula!CP10>Formula!$B$4,"",CONCATENATE("v",Formula!CP9)),"") ->  | DC7: =IF($A$4=Formula!$A$35,IF(Formula!CQ10>Formula!$B$4,"",CONCATENATE("v",Formula!CQ9)),"") ->  | DD7: =IF($A$4=Formula!$A$35,IF(Formula!CR10>Formula!$B$4,"",CONCATENATE("v",Formula!CR9)),"") ->  | DE7: =IF($A$4=Formula!$A$35,IF(Formula!CS10>Formula!$B$4,"",CONCATENATE("v",Formula!CS9)),"") ->  | DF7: =IF($A$4=Formula!$A$35,IF(Formula!CT10>Formula!$B$4,"",CONCATENATE("v",Formula!CT9)),"") ->  | DG7: =IF($A$4=Formula!$A$35,IF(Formula!CU10>Formula!$B$4,"",CONCATENATE("v",Formula!CU9)),"") ->  | DH7: =IF($A$4=Formula!$A$35,IF(Formula!CV10>Formula!$B$4,"",CONCATENATE("v",Formula!CV9)),"") ->  | DI7: =IF($A$4=Formula!$A$35,IF(Formula!CW10>Formula!$B$4,"",CONCATENATE("v",Formula!CW9)),"") ->  | DJ7: =IF($A$4=Formula!$A$35,IF(Formula!CX10>Formula!$B$4,"",CONCATENATE("v",Formula!CX9)),"") ->  | DK7: =IF($A$4=Formula!$A$35,IF(Formula!CY10>Formula!$B$4,"",CONCATENATE("v",Formula!CY9)),"") ->  | DL7: =IF($A$4=Formula!$A$35,IF(Formula!CZ10>Formula!$B$4,"",CONCATENATE("v",Formula!CZ9)),"") ->  | DM7: =IF($A$4=Formula!$A$35,IF(Formula!DA10>Formula!$B$4,"",CONCATENATE("v",Formula!DA9)),"") ->  | DN7: =IF($A$4=Formula!$A$35,IF(Formula!DB10>Formula!$B$4,"",CONCATENATE("v",Formula!DB9)),"") ->  | DO7: =IF($A$4=Formula!$A$35,IF(Formula!DC10>Formula!$B$4,"",CONCATENATE("v",Formula!DC9)),"") ->  | DP7: =IF($A$4=Formula!$A$35,IF(Formula!DD10>Formula!$B$4,"",CONCATENATE("v",Formula!DD9)),"") ->  | DQ7: =IF($A$4=Formula!$A$35,IF(Formula!DE10>Formula!$B$4,"",CONCATENATE("v",Formula!DE9)),"") ->  | DR7: =IF($A$4=Formula!$A$35,IF(Formula!DF10>Formula!$B$4,"",CONCATENATE("v",Formula!DF9)),"") ->  | DS7: =IF($A$4=Formula!$A$35,IF(Formula!DG10>Formula!$B$4,"",CONCATENATE("v",Formula!DG9)),"") ->  | DT7: =IF($A$4=Formula!$A$35,IF(Formula!DH10>Formula!$B$4,"",CONCATENATE("v",Formula!DH9)),"") ->  | DU7: =IF($A$4=Formula!$A$35,IF(Formula!DI10>Formula!$B$4,"",CONCATENATE("v",Formula!DI9)),"") ->  | DV7: =IF($A$4=Formula!$A$35,IF(Formula!DJ10>Formula!$B$4,"",CONCATENATE("v",Formula!DJ9)),"") ->  | DW7: =IF($A$4=Formula!$A$35,IF(Formula!DK10>Formula!$B$4,"",CONCATENATE("v",Formula!DK9)),"") ->  | DX7: =IF($A$4=Formula!$A$35,IF(Formula!DL10>Formula!$B$4,"",CONCATENATE("v",Formula!DL9)),"") ->  | DY7: =IF($A$4=Formula!$A$35,IF(Formula!DM10>Formula!$B$4,"",CONCATENATE("v",Formula!DM9)),"") ->  | DZ7: =IF($A$4=Formula!$A$35,IF(Formula!DN10>Formula!$B$4,"",CONCATENATE("v",Formula!DN9)),"") ->  | EA7: =IF($A$4=Formula!$A$35,IF(Formula!DO10>Formula!$B$4,"",CONCATENATE("v",Formula!DO9)),"") ->  | EB7: =IF($A$4=Formula!$A$35,IF(Formula!DP10>Formula!$B$4,"",CONCATENATE("v",Formula!DP9)),"") ->  | EC7: =IF($A$4=Formula!$A$35,IF(Formula!DQ10>Formula!$B$4,"",CONCATENATE("v",Formula!DQ9)),"") ->  | ED7: =IF($A$4=Formula!$A$35,IF(Formula!DR10>Formula!$B$4,"",CONCATENATE("v",Formula!DR9)),"") ->  | EE7: =IF($A$4=Formula!$A$35,IF(Formula!DS10>Formula!$B$4,"",CONCATENATE("v",Formula!DS9)),"") ->  | EF7: =IF($A$4=Formula!$A$35,IF(Formula!DT10>Formula!$B$4,"",CONCATENATE("v",Formula!DT9)),"") ->  | EG7: =IF($A$4=Formula!$A$35,IF(Formula!DU10>Formula!$B$4,"",CONCATENATE("v",Formula!DU9)),"") ->  | EH7: =IF($A$4=Formula!$A$35,IF(Formula!DV10>Formula!$B$4,"",CONCATENATE("v",Formula!DV9)),"") ->  | EI7: =IF($A$4=Formula!$A$35,IF(Formula!DW10>Formula!$B$4,"",CONCATENATE("v",Formula!DW9)),"") ->  | EJ7: =IF($A$4=Formula!$A$35,IF(Formula!DX10>Formula!$B$4,"",CONCATENATE("v",Formula!DX9)),"") ->  | EK7: =IF($A$4=Formula!$A$35,IF(Formula!DY10>Formula!$B$4,"",CONCATENATE("v",Formula!DY9)),"") ->  | EL7: =IF($A$4=Formula!$A$35,IF(Formula!DZ10>Formula!$B$4,"",CONCATENATE("v",Formula!DZ9)),"") ->  | EM7: =IF($A$4=Formula!$A$35,IF(Formula!EA10>Formula!$B$4,"",CONCATENATE("v",Formula!EA9)),"") ->  | EN7: =IF($A$4=Formula!$A$35,IF(Formula!EB10>Formula!$B$4,"",CONCATENATE("v",Formula!EB9)),"") ->  | EO7: =IF($A$4=Formula!$A$35,IF(Formula!EC10>Formula!$B$4,"",CONCATENATE("v",Formula!EC9)),"") ->  | EP7: =IF($A$4=Formula!$A$35,IF(Formula!ED10>Formula!$B$4,"",CONCATENATE("v",Formula!ED9)),"") ->  | EQ7: =IF($A$4=Formula!$A$35,IF(Formula!EE10>Formula!$B$4,"",CONCATENATE("v",Formula!EE9)),"") ->  | ER7: =IF($A$4=Formula!$A$35,IF(Formula!EF10>Formula!$B$4,"",CONCATENATE("v",Formula!EF9)),"") ->  | ES7: =IF($A$4=Formula!$A$35,IF(Formula!EG10>Formula!$B$4,"",CONCATENATE("v",Formula!EG9)),"") ->  | ET7: =IF($A$4=Formula!$A$35,IF(Formula!EH10>Formula!$B$4,"",CONCATENATE("v",Formula!EH9)),"") ->  | EU7: =IF($A$4=Formula!$A$35,IF(Formula!EI10>Formula!$B$4,"",CONCATENATE("v",Formula!EI9)),"") ->  | EV7: =IF($A$4=Formula!$A$35,IF(Formula!EJ10>Formula!$B$4,"",CONCATENATE("v",Formula!EJ9)),"") ->  | EW7: =IF($A$4=Formula!$A$35,IF(Formula!EK10>Formula!$B$4,"",CONCATENATE("v",Formula!EK9)),"") ->  | EX7: =IF($A$4=Formula!$A$35,IF(Formula!EL10>Formula!$B$4,"",CONCATENATE("v",Formula!EL9)),"") ->  | EY7: =IF($A$4=Formula!$A$35,IF(Formula!EM10>Formula!$B$4,"",CONCATENATE("v",Formula!EM9)),"") ->  | EZ7: =IF($A$4=Formula!$A$35,IF(Formula!EN10>Formula!$B$4,"",CONCATENATE("v",Formula!EN9)),"") ->  | FA7: =IF($A$4=Formula!$A$35,IF(Formula!EO10>Formula!$B$4,"",CONCATENATE("v",Formula!EO9)),"") ->  | FB7: =IF($A$4=Formula!$A$35,IF(Formula!EP10>Formula!$B$4,"",CONCATENATE("v",Formula!EP9)),"") ->  | FC7: =IF($A$4=Formula!$A$35,IF(Formula!EQ10>Formula!$B$4,"",CONCATENATE("v",Formula!EQ9)),"") ->  | FD7: =IF($A$4=Formula!$A$35,IF(Formula!ER10>Formula!$B$4,"",CONCATENATE("v",Formula!ER9)),"") ->  | FE7: =IF($A$4=Formula!$A$35,IF(Formula!ES10>Formula!$B$4,"",CONCATENATE("v",Formula!ES9)),"") ->  | FF7: =IF($A$4=Formula!$A$35,IF(Formula!ET10>Formula!$B$4,"",CONCATENATE("v",Formula!ET9)),"") ->  | FG7: =IF($A$4=Formula!$A$35,IF(Formula!EU10>Formula!$B$4,"",CONCATENATE("v",Formula!EU9)),"") ->  | FH7: =IF($A$4=Formula!$A$35,IF(Formula!EV10>Formula!$B$4,"",CONCATENATE("v",Formula!EV9)),"") ->  | FI7: =IF($A$4=Formula!$A$35,IF(Formula!EW10>Formula!$B$4,"",CONCATENATE("v",Formula!EW9)),"") ->  | FJ7: =IF($A$4=Formula!$A$35,IF(Formula!EX10>Formula!$B$4,"",CONCATENATE("v",Formula!EX9)),"") ->  | FK7: =IF($A$4=Formula!$A$35,IF(Formula!EY10>Formula!$B$4,"",CONCATENATE("v",Formula!EY9)),"") ->  | FL7: =IF($A$4=Formula!$A$35,IF(Formula!EZ10>Formula!$B$4,"",CONCATENATE("v",Formula!EZ9)),"") ->  | FM7: =IF($A$4=Formula!$A$35,IF(Formula!FA10>Formula!$B$4,"",CONCATENATE("v",Formula!FA9)),"") ->  | FN7: =IF($A$4=Formula!$A$35,IF(Formula!FB10>Formula!$B$4,"",CONCATENATE("v",Formula!FB9)),"") ->  | FO7: =IF($A$4=Formula!$A$35,IF(Formula!FC10>Formula!$B$4,"",CONCATENATE("v",Formula!FC9)),"") ->  | FP7: =IF($A$4=Formula!$A$35,IF(Formula!FD10>Formula!$B$4,"",CONCATENATE("v",Formula!FD9)),"") ->  | FQ7: =IF($A$4=Formula!$A$35,IF(Formula!FE10>Formula!$B$4,"",CONCATENATE("v",Formula!FE9)),"") ->  | FR7: =IF($A$4=Formula!$A$35,IF(Formula!FF10>Formula!$B$4,"",CONCATENATE("v",Formula!FF9)),"") ->  | FS7: =IF($A$4=Formula!$A$35,IF(Formula!FG10>Formula!$B$4,"",CONCATENATE("v",Formula!FG9)),"") ->  | FT7: =IF($A$4=Formula!$A$35,IF(Formula!FH10>Formula!$B$4,"",CONCATENATE("v",Formula!FH9)),"") ->  | FU7: =IF($A$4=Formula!$A$35,IF(Formula!FI10>Formula!$B$4,"",CONCATENATE("v",Formula!FI9)),"") ->  | FV7: =IF($A$4=Formula!$A$35,IF(Formula!FJ10>Formula!$B$4,"",CONCATENATE("v",Formula!FJ9)),"") ->  | FW7: =IF($A$4=Formula!$A$35,IF(Formula!FK10>Formula!$B$4,"",CONCATENATE("v",Formula!FK9)),"") ->  | FX7: =IF($A$4=Formula!$A$35,IF(Formula!FL10>Formula!$B$4,"",CONCATENATE("v",Formula!FL9)),"") ->  | FY7: =IF($A$4=Formula!$A$35,IF(Formula!FM10>Formula!$B$4,"",CONCATENATE("v",Formula!FM9)),"") ->  | FZ7: =IF($A$4=Formula!$A$35,IF(Formula!FN10>Formula!$B$4,"",CONCATENATE("v",Formula!FN9)),"") ->  | GA7: =IF($A$4=Formula!$A$35,IF(Formula!FO10>Formula!$B$4,"",CONCATENATE("v",Formula!FO9)),"") ->  | GB7: =IF($A$4=Formula!$A$35,IF(Formula!FP10>Formula!$B$4,"",CONCATENATE("v",Formula!FP9)),"") ->  | GC7: =IF($A$4=Formula!$A$35,IF(Formula!FQ10>Formula!$B$4,"",CONCATENATE("v",Formula!FQ9)),"") ->  | GD7: =IF($A$4=Formula!$A$35,IF(Formula!FR10>Formula!$B$4,"",CONCATENATE("v",Formula!FR9)),"") ->  | GE7: =IF($A$4=Formula!$A$35,IF(Formula!FS10>Formula!$B$4,"",CONCATENATE("v",Formula!FS9)),"") ->  | GF7: =IF($A$4=Formula!$A$35,IF(Formula!FT10>Formula!$B$4,"",CONCATENATE("v",Formula!FT9)),"") ->  | GG7: =IF($A$4=Formula!$A$35,IF(Formula!FU10>Formula!$B$4,"",CONCATENATE("v",Formula!FU9)),"") ->  | GH7: =IF($A$4=Formula!$A$35,IF(Formula!FV10>Formula!$B$4,"",CONCATENATE("v",Formula!FV9)),"") ->  | GI7: =IF($A$4=Formula!$A$35,IF(Formula!FW10>Formula!$B$4,"",CONCATENATE("v",Formula!FW9)),"") ->  | GJ7: =IF($A$4=Formula!$A$35,IF(Formula!FX10>Formula!$B$4,"",CONCATENATE("v",Formula!FX9)),"") ->  | GK7: =IF($A$4=Formula!$A$35,IF(Formula!FY10>Formula!$B$4,"",CONCATENATE("v",Formula!FY9)),"") ->  | GL7: =IF($A$4=Formula!$A$35,IF(Formula!FZ10>Formula!$B$4,"",CONCATENATE("v",Formula!FZ9)),"") ->  | GM7: =IF($A$4=Formula!$A$35,IF(Formula!GA10>Formula!$B$4,"",CONCATENATE("v",Formula!GA9)),"") ->  | GN7: =IF($A$4=Formula!$A$35,IF(Formula!GB10>Formula!$B$4,"",CONCATENATE("v",Formula!GB9)),"") ->  | GO7: =IF($A$4=Formula!$A$35,IF(Formula!GC10>Formula!$B$4,"",CONCATENATE("v",Formula!GC9)),"") ->  | GP7: =IF($A$4=Formula!$A$35,IF(Formula!GD10>Formula!$B$4,"",CONCATENATE("v",Formula!GD9)),"") ->  | GQ7: =IF($A$4=Formula!$A$35,IF(Formula!GE10>Formula!$B$4,"",CONCATENATE("v",Formula!GE9)),"") ->  | GR7: =IF($A$4=Formula!$A$35,IF(Formula!GF10>Formula!$B$4,"",CONCATENATE("v",Formula!GF9)),"") ->  | GS7: =IF($A$4=Formula!$A$35,IF(Formula!GG10>Formula!$B$4,"",CONCATENATE("v",Formula!GG9)),"") ->  | GT7: =IF($A$4=Formula!$A$35,IF(Formula!GH10>Formula!$B$4,"",CONCATENATE("v",Formula!GH9)),"") ->  | GU7: =IF($A$4=Formula!$A$35,IF(Formula!GI10>Formula!$B$4,"",CONCATENATE("v",Formula!GI9)),"") ->  | GV7: =IF($A$4=Formula!$A$35,IF(Formula!GJ10>Formula!$B$4,"",CONCATENATE("v",Formula!GJ9)),"") ->  | GW7: =IF($A$4=Formula!$A$35,IF(Formula!GK10>Formula!$B$4,"",CONCATENATE("v",Formula!GK9)),"") ->  | GX7: =IF($A$4=Formula!$A$35,IF(Formula!GL10>Formula!$B$4,"",CONCATENATE("v",Formula!GL9)),"") ->  | GY7: =IF($A$4=Formula!$A$35,IF(Formula!GM10>Formula!$B$4,"",CONCATENATE("v",Formula!GM9)),"") ->  | GZ7: =IF($A$4=Formula!$A$35,IF(Formula!GN10>Formula!$B$4,"",CONCATENATE("v",Formula!GN9)),"") ->  | HA7: =IF($A$4=Formula!$A$35,IF(Formula!GO10>Formula!$B$4,"",CONCATENATE("v",Formula!GO9)),"") ->  | HB7: =IF($A$4=Formula!$A$35,IF(Formula!GP10>Formula!$B$4,"",CONCATENATE("v",Formula!GP9)),"") ->  | HC7: =IF($A$4=Formula!$A$35,IF(Formula!GQ10>Formula!$B$4,"",CONCATENATE("v",Formula!GQ9)),"") ->  | HD7: =IF($A$4=Formula!$A$35,IF(Formula!GR10>Formula!$B$4,"",CONCATENATE("v",Formula!GR9)),"") ->  | HE7: =IF($A$4=Formula!$A$35,IF(Formula!GS10>Formula!$B$4,"",CONCATENATE("v",Formula!GS9)),"") ->  | HF7: =IF($A$4=Formula!$A$35,IF(Formula!GT10>Formula!$B$4,"",CONCATENATE("v",Formula!GT9)),"") ->  | HG7: =IF($A$4=Formula!$A$35,IF(Formula!GU10>Formula!$B$4,"",CONCATENATE("v",Formula!GU9)),"") ->  | HH7: =IF($A$4=Formula!$A$35,IF(Formula!GV10>Formula!$B$4,"",CONCATENATE("v",Formula!GV9)),"") ->  | HI7: =IF($A$4=Formula!$A$35,IF(Formula!GW10>Formula!$B$4,"",CONCATENATE("v",Formula!GW9)),"") ->  | HJ7: =IF($A$4=Formula!$A$35,IF(Formula!GX10>Formula!$B$4,"",CONCATENATE("v",Formula!GX9)),"") ->  | HK7: =IF($A$4=Formula!$A$35,IF(Formula!GY10>Formula!$B$4,"",CONCATENATE("v",Formula!GY9)),"") ->  | HL7: =IF($A$4=Formula!$A$35,IF(Formula!GZ10>Formula!$B$4,"",CONCATENATE("v",Formula!GZ9)),"") ->  | HM7: =IF($A$4=Formula!$A$35,IF(Formula!HA10>Formula!$B$4,"",CONCATENATE("v",Formula!HA9)),"") ->  | HN7: =IF($A$4=Formula!$A$35,IF(Formula!HB10>Formula!$B$4,"",CONCATENATE("v",Formula!HB9)),"") ->  | HO7: =IF($A$4=Formula!$A$35,IF(Formula!HC10>Formula!$B$4,"",CONCATENATE("v",Formula!HC9)),"") ->  | HP7: =IF($A$4=Formula!$A$35,IF(Formula!HD10>Formula!$B$4,"",CONCATENATE("v",Formula!HD9)),"") ->  | HQ7: =IF($A$4=Formula!$A$35,IF(Formula!HE10>Formula!$B$4,"",CONCATENATE("v",Formula!HE9)),"") ->  | HR7: =IF($A$4=Formula!$A$35,IF(Formula!HF10>Formula!$B$4,"",CONCATENATE("v",Formula!HF9)),"") ->  | HS7: =IF($A$4=Formula!$A$35,IF(Formula!HG10>Formula!$B$4,"",CONCATENATE("v",Formula!HG9)),"") ->  | HT7: =IF($A$4=Formula!$A$35,IF(Formula!HH10>Formula!$B$4,"",CONCATENATE("v",Formula!HH9)),"") ->  | HU7: =IF($A$4=Formula!$A$35,IF(Formula!HI10>Formula!$B$4,"",CONCATENATE("v",Formula!HI9)),"") ->  | HV7: =IF($A$4=Formula!$A$35,IF(Formula!HJ10>Formula!$B$4,"",CONCATENATE("v",Formula!HJ9)),"") ->  | HW7: =IF($A$4=Formula!$A$35,IF(Formula!HK10>Formula!$B$4,"",CONCATENATE("v",Formula!HK9)),"") ->  | HX7: =IF($A$4=Formula!$A$35,IF(Formula!HL10>Formula!$B$4,"",CONCATENATE("v",Formula!HL9)),"") ->  | HY7: =IF($A$4=Formula!$A$35,IF(Formula!HM10>Formula!$B$4,"",CONCATENATE("v",Formula!HM9)),"") ->  | HZ7: =IF($A$4=Formula!$A$35,IF(Formula!HN10>Formula!$B$4,"",CONCATENATE("v",Formula!HN9)),"") ->  | IA7: =IF($A$4=Formula!$A$35,IF(Formula!HO10>Formula!$B$4,"",CONCATENATE("v",Formula!HO9)),"") ->  | IB7: =IF($A$4=Formula!$A$35,IF(Formula!HP10>Formula!$B$4,"",CONCATENATE("v",Formula!HP9)),"") ->  | IC7: =IF($A$4=Formula!$A$35,IF(Formula!HQ10>Formula!$B$4,"",CONCATENATE("v",Formula!HQ9)),"") ->  | ID7: =IF($A$4=Formula!$A$35,IF(Formula!HR10>Formula!$B$4,"",CONCATENATE("v",Formula!HR9)),"") ->  | IE7: =IF($A$4=Formula!$A$35,IF(Formula!HS10>Formula!$B$4,"",CONCATENATE("v",Formula!HS9)),"") ->  | IF7: =IF($A$4=Formula!$A$35,IF(Formula!HT10>Formula!$B$4,"",CONCATENATE("v",Formula!HT9)),"") ->  | IG7: =IF($A$4=Formula!$A$35,IF(Formula!HU10>Formula!$B$4,"",CONCATENATE("v",Formula!HU9)),"") ->  | IH7: =IF($A$4=Formula!$A$35,IF(Formula!HV10>Formula!$B$4,"",CONCATENATE("v",Formula!HV9)),"") ->  | II7: =IF($A$4=Formula!$A$35,IF(Formula!HW10>Formula!$B$4,"",CONCATENATE("v",Formula!HW9)),"") ->  | IJ7: =IF($A$4=Formula!$A$35,IF(Formula!HX10>Formula!$B$4,"",CONCATENATE("v",Formula!HX9)),"") ->  | IK7: =IF($A$4=Formula!$A$35,IF(Formula!HY10>Formula!$B$4,"",CONCATENATE("v",Formula!HY9)),"") ->  | IL7: =IF($A$4=Formula!$A$35,IF(Formula!HZ10>Formula!$B$4,"",CONCATENATE("v",Formula!HZ9)),"") ->  | IM7: =IF($A$4=Formula!$A$35,IF(Formula!IA10>Formula!$B$4,"",CONCATENATE("v",Formula!IA9)),"") ->  | IN7: =IF($A$4=Formula!$A$35,IF(Formula!IB10>Formula!$B$4,"",CONCATENATE("v",Formula!IB9)),"") ->  | IO7: =IF($A$4=Formula!$A$35,IF(Formula!IC10>Formula!$B$4,"",CONCATENATE("v",Formula!IC9)),"") ->  | IP7: =IF($A$4=Formula!$A$35,IF(Formula!ID10>Formula!$B$4,"",CONCATENATE("v",Formula!ID9)),"") ->  | IQ7: =IF($A$4=Formula!$A$35,IF(Formula!IE10>Formula!$B$4,"",CONCATENATE("v",Formula!IE9)),"") ->  | IR7: =IF($A$4=Formula!$A$35,IF(Formula!IF10>Formula!$B$4,"",CONCATENATE("v",Formula!IF9)),"") ->  | IS7: =IF($A$4=Formula!$A$35,IF(Formula!IG10>Formula!$B$4,"",CONCATENATE("v",Formula!IG9)),"") ->  | IT7: =IF($A$4=Formula!$A$35,IF(Formula!IH10>Formula!$B$4,"",CONCATENATE("v",Formula!IH9)),"") ->  | IU7: =IF($A$4=Formula!$A$35,IF(Formula!II10>Formula!$B$4,"",CONCATENATE("v",Formula!II9)),"") ->  | IV7: =IF($A$4=Formula!$A$35,IF(Formula!IJ10>Formula!$B$4,"",CONCATENATE("v",Formula!IJ9)),"") ->  | IW7: =IF($A$4=Formula!$A$35,IF(Formula!IK10>Formula!$B$4,"",CONCATENATE("v",Formula!IK9)),"") ->  | IX7: =IF($A$4=Formula!$A$35,IF(Formula!IL10>Formula!$B$4,"",CONCATENATE("v",Formula!IL9)),"") ->  | IY7: =IF($A$4=Formula!$A$35,IF(Formula!IM10>Formula!$B$4,"",CONCATENATE("v",Formula!IM9)),"") ->  | IZ7: =IF($A$4=Formula!$A$35,IF(Formula!IN10>Formula!$B$4,"",CONCATENATE("v",Formula!IN9)),"") ->  | JA7: =IF($A$4=Formula!$A$35,IF(Formula!IO10>Formula!$B$4,"",CONCATENATE("v",Formula!IO9)),"") ->  | JB7: =IF($A$4=Formula!$A$35,IF(Formula!IP10>Formula!$B$4,"",CONCATENATE("v",Formula!IP9)),"") ->  | JC7: =IF($A$4=Formula!$A$35,IF(Formula!IQ10>Formula!$B$4,"",CONCATENATE("v",Formula!IQ9)),"") ->  | JD7: =IF($A$4=Formula!$A$35,IF(Formula!IR10>Formula!$B$4,"",CONCATENATE("v",Formula!IR9)),"") ->  | JE7: =IF($A$4=Formula!$A$35,IF(Formula!IS10>Formula!$B$4,"",CONCATENATE("v",Formula!IS9)),"") ->  | JF7: =IF($A$4=Formula!$A$35,IF(Formula!IT10>Formula!$B$4,"",CONCATENATE("v",Formula!IT9)),"") ->  | JG7: =IF($A$4=Formula!$A$35,IF(Formula!IU10>Formula!$B$4,"",CONCATENATE("v",Formula!IU9)),"") ->  | JH7: =IF($A$4=Formula!$A$35,IF(Formula!IV10>Formula!$B$4,"",CONCATENATE("v",Formula!IV9)),"") ->  | JI7: =IF($A$4=Formula!$A$35,IF(Formula!IW10>Formula!$B$4,"",CONCATENATE("v",Formula!IW9)),"") ->  | JJ7: =IF($A$4=Formula!$A$35,IF(Formula!IX10>Formula!$B$4,"",CONCATENATE("v",Formula!IX9)),"") ->  | JK7: =IF($A$4=Formula!$A$35,IF(Formula!IY10>Formula!$B$4,"",CONCATENATE("v",Formula!IY9)),"") ->  | JL7: =IF($A$4=Formula!$A$35,IF(Formula!IZ10>Formula!$B$4,"",CONCATENATE("v",Formula!IZ9)),"") ->  | JM7: =IF($A$4=Formula!$A$35,IF(Formula!JA10>Formula!$B$4,"",CONCATENATE("v",Formula!JA9)),"") ->  | JN7: =IF($A$4=Formula!$A$35,IF(Formula!JB10>Formula!$B$4,"",CONCATENATE("v",Formula!JB9)),"") ->  | JO7: =IF($A$4=Formula!$A$35,IF(Formula!JC10>Formula!$B$4,"",CONCATENATE("v",Formula!JC9)),"") ->  | JP7: =IF($A$4=Formula!$A$35,IF(Formula!JD10>Formula!$B$4,"",CONCATENATE("v",Formula!JD9)),"") ->  | JQ7: =IF($A$4=Formula!$A$35,IF(Formula!JE10>Formula!$B$4,"",CONCATENATE("v",Formula!JE9)),"") ->  | JR7: =IF($A$4=Formula!$A$35,IF(Formula!JF10>Formula!$B$4,"",CONCATENATE("v",Formula!JF9)),"") ->  | JS7: =IF($A$4=Formula!$A$35,IF(Formula!JG10>Formula!$B$4,"",CONCATENATE("v",Formula!JG9)),"") ->  | JT7: =IF($A$4=Formula!$A$35,IF(Formula!JH10>Formula!$B$4,"",CONCATENATE("v",Formula!JH9)),"") ->  | JU7: =IF($A$4=Formula!$A$35,IF(Formula!JI10>Formula!$B$4,"",CONCATENATE("v",Formula!JI9)),"") ->  | JV7: =IF($A$4=Formula!$A$35,IF(Formula!JJ10>Formula!$B$4,"",CONCATENATE("v",Formula!JJ9)),"") ->  | JW7: =IF($A$4=Formula!$A$35,IF(Formula!JK10>Formula!$B$4,"",CONCATENATE("v",Formula!JK9)),"") ->  | JX7: =IF($A$4=Formula!$A$35,IF(Formula!JL10>Formula!$B$4,"",CONCATENATE("v",Formula!JL9)),"") ->  | JY7: =IF($A$4=Formula!$A$35,IF(Formula!JM10>Formula!$B$4,"",CONCATENATE("v",Formula!JM9)),"") ->  | JZ7: =IF($A$4=Formula!$A$35,IF(Formula!JN10>Formula!$B$4,"",CONCATENATE("v",Formula!JN9)),"") ->  | KA7: =IF($A$4=Formula!$A$35,IF(Formula!JO10>Formula!$B$4,"",CONCATENATE("v",Formula!JO9)),"") ->  | KB7: =IF($A$4=Formula!$A$35,IF(Formula!JP10>Formula!$B$4,"",CONCATENATE("v",Formula!JP9)),"") ->  | KC7: =IF($A$4=Formula!$A$35,IF(Formula!JQ10>Formula!$B$4,"",CONCATENATE("v",Formula!JQ9)),"") ->  | KD7: =IF($A$4=Formula!$A$35,IF(Formula!JR10>Formula!$B$4,"",CONCATENATE("v",Formula!JR9)),"") ->  | KE7: =IF($A$4=Formula!$A$35,IF(Formula!JS10>Formula!$B$4,"",CONCATENATE("v",Formula!JS9)),"") ->  | KF7: =IF($A$4=Formula!$A$35,IF(Formula!JT10>Formula!$B$4,"",CONCATENATE("v",Formula!JT9)),"") ->  | KG7: =IF($A$4=Formula!$A$35,IF(Formula!JU10>Formula!$B$4,"",CONCATENATE("v",Formula!JU9)),"") ->  | KH7: =IF($A$4=Formula!$A$35,IF(Formula!JV10>Formula!$B$4,"",CONCATENATE("v",Formula!JV9)),"") ->  | KI7: =IF($A$4=Formula!$A$35,IF(Formula!JW10>Formula!$B$4,"",CONCATENATE("v",Formula!JW9)),"") ->  | KJ7: =IF($A$4=Formula!$A$35,IF(Formula!JX10>Formula!$B$4,"",CONCATENATE("v",Formula!JX9)),"") ->  | KK7: =IF($A$4=Formula!$A$35,IF(Formula!JY10>Formula!$B$4,"",CONCATENATE("v",Formula!JY9)),"") ->  | KL7: =IF($A$4=Formula!$A$35,IF(Formula!JZ10>Formula!$B$4,"",CONCATENATE("v",Formula!JZ9)),"") ->  | KM7: =IF($A$4=Formula!$A$35,IF(Formula!KA10>Formula!$B$4,"",CONCATENATE("v",Formula!KA9)),"") ->  | KN7: =IF($A$4=Formula!$A$35,IF(Formula!KB10>Formula!$B$4,"",CONCATENATE("v",Formula!KB9)),"") ->  | KO7: =IF($A$4=Formula!$A$35,IF(Formula!KC10>Formula!$B$4,"",CONCATENATE("v",Formula!KC9)),"") ->  | KP7: =IF($A$4=Formula!$A$35,IF(Formula!KD10>Formula!$B$4,"",CONCATENATE("v",Formula!KD9)),"") ->  | KQ7: =IF($A$4=Formula!$A$35,IF(Formula!KE10>Formula!$B$4,"",CONCATENATE("v",Formula!KE9)),"") ->  | KR7: =IF($A$4=Formula!$A$35,IF(Formula!KF10>Formula!$B$4,"",CONCATENATE("v",Formula!KF9)),"") ->  | KS7: =IF($A$4=Formula!$A$35,IF(Formula!KG10>Formula!$B$4,"",CONCATENATE("v",Formula!KG9)),"") ->  | KT7: =IF($A$4=Formula!$A$35,IF(Formula!KH10>Formula!$B$4,"",CONCATENATE("v",Formula!KH9)),"") ->  | KU7: =IF($A$4=Formula!$A$35,IF(Formula!KI10>Formula!$B$4,"",CONCATENATE("v",Formula!KI9)),"") ->  | KV7: =IF($A$4=Formula!$A$35,IF(Formula!KJ10>Formula!$B$4,"",CONCATENATE("v",Formula!KJ9)),"") ->  | KW7: =IF($A$4=Formula!$A$35,IF(Formula!KK10>Formula!$B$4,"",CONCATENATE("v",Formula!KK9)),"") ->  | KX7: =IF($A$4=Formula!$A$35,IF(Formula!KL10>Formula!$B$4,"",CONCATENATE("v",Formula!KL9)),"") ->  | KY7: =IF($A$4=Formula!$A$35,IF(Formula!KM10>Formula!$B$4,"",CONCATENATE("v",Formula!KM9)),"") ->  | KZ7: =IF($A$4=Formula!$A$35,IF(Formula!KN10>Formula!$B$4,"",CONCATENATE("v",Formula!KN9)),"") ->  | LA7: =IF($A$4=Formula!$A$35,IF(Formula!KO10>Formula!$B$4,"",CONCATENATE("v",Formula!KO9)),"") ->  | LB7: =IF($A$4=Formula!$A$35,IF(Formula!KP10>Formula!$B$4,"",CONCATENATE("v",Formula!KP9)),"") ->  | LC7: =IF($A$4=Formula!$A$35,IF(Formula!KQ10>Formula!$B$4,"",CONCATENATE("v",Formula!KQ9)),"") ->  | LD7: =IF($A$4=Formula!$A$35,IF(Formula!KR10>Formula!$B$4,"",CONCATENATE("v",Formula!KR9)),"") ->  | LE7: =IF($A$4=Formula!$A$35,IF(Formula!KS10>Formula!$B$4,"",CONCATENATE("v",Formula!KS9)),"") ->  | LF7: =IF($A$4=Formula!$A$35,IF(Formula!KT10>Formula!$B$4,"",CONCATENATE("v",Formula!KT9)),"") ->  | LG7: =IF($A$4=Formula!$A$35,IF(Formula!KU10>Formula!$B$4,"",CONCATENATE("v",Formula!KU9)),"") ->  | LH7: =IF($A$4=Formula!$A$35,IF(Formula!KV10>Formula!$B$4,"",CONCATENATE("v",Formula!KV9)),"") ->  | LI7: =IF($A$4=Formula!$A$35,IF(Formula!KW10>Formula!$B$4,"",CONCATENATE("v",Formula!KW9)),"") ->  | LJ7: =IF($A$4=Formula!$A$35,IF(Formula!KX10>Formula!$B$4,"",CONCATENATE("v",Formula!KX9)),"") ->  | LK7: =IF($A$4=Formula!$A$35,IF(Formula!KY10>Formula!$B$4,"",CONCATENATE("v",Formula!KY9)),"") ->  | LL7: =IF($A$4=Formula!$A$35,IF(Formula!KZ10>Formula!$B$4,"",CONCATENATE("v",Formula!KZ9)),"") ->  | LM7: =IF($A$4=Formula!$A$35,IF(Formula!LA10>Formula!$B$4,"",CONCATENATE("v",Formula!LA9)),"") ->  | LN7: =IF($A$4=Formula!$A$35,IF(Formula!LB10>Formula!$B$4,"",CONCATENATE("v",Formula!LB9)),"") ->  | LO7: =IF($A$4=Formula!$A$35,IF(Formula!LC10>Formula!$B$4,"",CONCATENATE("v",Formula!LC9)),"") ->  | LP7: =IF($A$4=Formula!$A$35,IF(Formula!LD10>Formula!$B$4,"",CONCATENATE("v",Formula!LD9)),"") ->  | LQ7: =IF($A$4=Formula!$A$35,IF(Formula!LE10>Formula!$B$4,"",CONCATENATE("v",Formula!LE9)),"") ->  | LR7: =IF($A$4=Formula!$A$35,IF(Formula!LF10>Formula!$B$4,"",CONCATENATE("v",Formula!LF9)),"") ->  | LS7: =IF($A$4=Formula!$A$35,IF(Formula!LG10>Formula!$B$4,"",CONCATENATE("v",Formula!LG9)),"") ->  | LT7: =IF($A$4=Formula!$A$35,IF(Formula!LH10>Formula!$B$4,"",CONCATENATE("v",Formula!LH9)),"") ->  | LU7: =IF($A$4=Formula!$A$35,IF(Formula!LI10>Formula!$B$4,"",CONCATENATE("v",Formula!LI9)),"") ->  | LV7: =IF($A$4=Formula!$A$35,IF(Formula!LJ10>Formula!$B$4,"",CONCATENATE("v",Formula!LJ9)),"") ->  | LW7: =IF($A$4=Formula!$A$35,IF(Formula!LK10>Formula!$B$4,"",CONCATENATE("v",Formula!LK9)),"") ->  | LX7: =IF($A$4=Formula!$A$35,IF(Formula!LL10>Formula!$B$4,"",CONCATENATE("v",Formula!LL9)),"") ->  | LY7: =IF($A$4=Formula!$A$35,IF(Formula!LM10>Formula!$B$4,"",CONCATENATE("v",Formula!LM9)),"") ->  | LZ7: =IF($A$4=Formula!$A$35,IF(Formula!LN10>Formula!$B$4,"",CONCATENATE("v",Formula!LN9)),"") ->  | MA7: =IF($A$4=Formula!$A$35,IF(Formula!LO10>Formula!$B$4,"",CONCATENATE("v",Formula!LO9)),"") ->  | MB7: =IF($A$4=Formula!$A$35,IF(Formula!LP10>Formula!$B$4,"",CONCATENATE("v",Formula!LP9)),"") ->  | MC7: =IF($A$4=Formula!$A$35,IF(Formula!LQ10>Formula!$B$4,"",CONCATENATE("v",Formula!LQ9)),"") ->  | MD7: =IF($A$4=Formula!$A$35,IF(Formula!LR10>Formula!$B$4,"",CONCATENATE("v",Formula!LR9)),"") ->  | ME7: =IF($A$4=Formula!$A$35,IF(Formula!LS10>Formula!$B$4,"",CONCATENATE("v",Formula!LS9)),"") ->  | MF7: =IF($A$4=Formula!$A$35,IF(Formula!LT10>Formula!$B$4,"",CONCATENATE("v",Formula!LT9)),"") ->  | MG7: =IF($A$4=Formula!$A$35,IF(Formula!LU10>Formula!$B$4,"",CONCATENATE("v",Formula!LU9)),"") ->  | MH7: =IF($A$4=Formula!$A$35,IF(Formula!LV10>Formula!$B$4,"",CONCATENATE("v",Formula!LV9)),"") ->  | MI7: =IF($A$4=Formula!$A$35,IF(Formula!LW10>Formula!$B$4,"",CONCATENATE("v",Formula!LW9)),"") ->  | MJ7: =IF($A$4=Formula!$A$35,IF(Formula!LX10>Formula!$B$4,"",CONCATENATE("v",Formula!LX9)),"") ->  | MK7: =IF($A$4=Formula!$A$35,IF(Formula!LY10>Formula!$B$4,"",CONCATENATE("v",Formula!LY9)),"") ->  | ML7: =IF($A$4=Formula!$A$35,IF(Formula!LZ10>Formula!$B$4,"",CONCATENATE("v",Formula!LZ9)),"") ->  | MM7: =IF($A$4=Formula!$A$35,IF(Formula!MA10>Formula!$B$4,"",CONCATENATE("v",Formula!MA9)),"") ->  | MN7: =IF($A$4=Formula!$A$35,IF(Formula!MB10>Formula!$B$4,"",CONCATENATE("v",Formula!MB9)),"") ->  | MO7: =IF($A$4=Formula!$A$35,IF(Formula!MC10>Formula!$B$4,"",CONCATENATE("v",Formula!MC9)),"") ->  | MP7: =IF($A$4=Formula!$A$35,IF(Formula!MD10>Formula!$B$4,"",CONCATENATE("v",Formula!MD9)),"") ->  | MQ7: =IF($A$4=Formula!$A$35,IF(Formula!ME10>Formula!$B$4,"",CONCATENATE("v",Formula!ME9)),"") ->  | MR7: =IF($A$4=Formula!$A$35,IF(Formula!MF10>Formula!$B$4,"",CONCATENATE("v",Formula!MF9)),"") ->  | MS7: =IF($A$4=Formula!$A$35,IF(Formula!MG10>Formula!$B$4,"",CONCATENATE("v",Formula!MG9)),"") ->  | MT7: =IF($A$4=Formula!$A$35,IF(Formula!MH10>Formula!$B$4,"",CONCATENATE("v",Formula!MH9)),"") ->  | MU7: =IF($A$4=Formula!$A$35,IF(Formula!MI10>Formula!$B$4,"",CONCATENATE("v",Formula!MI9)),"") ->  | MV7: =IF($A$4=Formula!$A$35,IF(Formula!MJ10>Formula!$B$4,"",CONCATENATE("v",Formula!MJ9)),"") ->  | MW7: =IF($A$4=Formula!$A$35,IF(Formula!MK10>Formula!$B$4,"",CONCATENATE("v",Formula!MK9)),"") ->  | MX7: =IF($A$4=Formula!$A$35,IF(Formula!ML10>Formula!$B$4,"",CONCATENATE("v",Formula!ML9)),"") ->  | MY7: =IF($A$4=Formula!$A$35,IF(Formula!MM10>Formula!$B$4,"",CONCATENATE("v",Formula!MM9)),"") ->  | MZ7: =IF($A$4=Formula!$A$35,IF(Formula!MN10>Formula!$B$4,"",CONCATENATE("v",Formula!MN9)),"") ->  | NA7: =IF($A$4=Formula!$A$35,IF(Formula!MO10>Formula!$B$4,"",CONCATENATE("v",Formula!MO9)),"") ->  | NB7: =IF($A$4=Formula!$A$35,IF(Formula!MP10>Formula!$B$4,"",CONCATENATE("v",Formula!MP9)),"") ->  | NC7: =IF($A$4=Formula!$A$35,IF(Formula!MQ10>Formula!$B$4,"",CONCATENATE("v",Formula!MQ9)),"") ->  | ND7: =IF($A$4=Formula!$A$35,IF(Formula!MR10>Formula!$B$4,"",CONCATENATE("v",Formula!MR9)),"") ->  | NE7: =IF($A$4=Formula!$A$35,IF(Formula!MS10>Formula!$B$4,"",CONCATENATE("v",Formula!MS9)),"") ->  | NF7: =IF($A$4=Formula!$A$35,IF(Formula!MT10>Formula!$B$4,"",CONCATENATE("v",Formula!MT9)),"") ->  | NG7: =IF($A$4=Formula!$A$35,IF(Formula!MU10>Formula!$B$4,"",CONCATENATE("v",Formula!MU9)),"") ->  | NH7: =IF($A$4=Formula!$A$35,IF(Formula!MV10>Formula!$B$4,"",CONCATENATE("v",Formula!MV9)),"") ->  | NI7: =IF($A$4=Formula!$A$35,IF(Formula!MW10>Formula!$B$4,"",CONCATENATE("v",Formula!MW9)),"") ->  | NJ7: =IF($A$4=Formula!$A$35,IF(Formula!MX10>Formula!$B$4,"",CONCATENATE("v",Formula!MX9)),"") ->  | NK7: =IF($A$4=Formula!$A$35,IF(Formula!MY10>Formula!$B$4,"",CONCATENATE("v",Formula!MY9)),"") ->  | NL7: =IF($A$4=Formula!$A$35,IF(Formula!MZ10>Formula!$B$4,"",CONCATENATE("v",Formula!MZ9)),"") ->  | NM7: =IF($A$4=Formula!$A$35,IF(Formula!NA10>Formula!$B$4,"",CONCATENATE("v",Formula!NA9)),"") ->  | NN7: =IF($A$4=Formula!$A$35,IF(Formula!NB10>Formula!$B$4,"",CONCATENATE("v",Formula!NB9)),"") ->  | NO7: =IF($A$4=Formula!$A$35,IF(Formula!NC10>Formula!$B$4,"",CONCATENATE("v",Formula!NC9)),"") ->  | NP7: =IF($A$4=Formula!$A$35,IF(Formula!ND10>Formula!$B$4,"",CONCATENATE("v",Formula!ND9)),"") ->  | NQ7: =IF($A$4=Formula!$A$35,IF(Formula!NE10>Formula!$B$4,"",CONCATENATE("v",Formula!NE9)),"") ->  | NR7: =IF($A$4=Formula!$A$35,IF(Formula!NF10>Formula!$B$4,"",CONCATENATE("v",Formula!NF9)),"") ->  | NS7: =IF($A$4=Formula!$A$35,IF(Formula!NG10>Formula!$B$4,"",CONCATENATE("v",Formula!NG9)),"") ->  | NT7: =IF($A$4=Formula!$A$35,IF(Formula!NH10>Formula!$B$4,"",CONCATENATE("v",Formula!NH9)),"") ->  | NU7: =IF($A$4=Formula!$A$35,IF(Formula!NI10>Formula!$B$4,"",CONCATENATE("v",Formula!NI9)),"") ->  | NV7: =IF($A$4=Formula!$A$35,IF(Formula!NJ10>Formula!$B$4,"",CONCATENATE("v",Formula!NJ9)),"") ->  | NW7: =IF($A$4=Formula!$A$35,IF(Formula!NK10>Formula!$B$4,"",CONCATENATE("v",Formula!NK9)),"") ->  | NX7: =IF($A$4=Formula!$A$35,IF(Formula!NL10>Formula!$B$4,"",CONCATENATE("v",Formula!NL9)),"") ->  | NY7: =IF($A$4=Formula!$A$35,IF(Formula!NM10>Formula!$B$4,"",CONCATENATE("v",Formula!NM9)),"") ->  | NZ7: =IF($A$4=Formula!$A$35,IF(Formula!NN10>Formula!$B$4,"",CONCATENATE("v",Formula!NN9)),"") ->  | OA7: =IF($A$4=Formula!$A$35,IF(Formula!NO10>Formula!$B$4,"",CONCATENATE("v",Formula!NO9)),"") ->  | OB7: =IF($A$4=Formula!$A$35,IF(Formula!NP10>Formula!$B$4,"",CONCATENATE("v",Formula!NP9)),"") ->  | OC7: =IF($A$4=Formula!$A$35,IF(Formula!NQ10>Formula!$B$4,"",CONCATENATE("v",Formula!NQ9)),"") ->  | OD7: =IF($A$4=Formula!$A$35,IF(Formula!NR10>Formula!$B$4,"",CONCATENATE("v",Formula!NR9)),"") ->  | OE7: =IF($A$4=Formula!$A$35,IF(Formula!NS10>Formula!$B$4,"",CONCATENATE("v",Formula!NS9)),"") ->  | OF7: =IF($A$4=Formula!$A$35,IF(Formula!NT10>Formula!$B$4,"",CONCATENATE("v",Formula!NT9)),"") ->  | OG7: =IF($A$4=Formula!$A$35,IF(Formula!NU10>Formula!$B$4,"",CONCATENATE("v",Formula!NU9)),"") ->  | OH7: =IF($A$4=Formula!$A$35,IF(Formula!NV10>Formula!$B$4,"",CONCATENATE("v",Formula!NV9)),"") ->  | OI7: =IF($A$4=Formula!$A$35,IF(Formula!NW10>Formula!$B$4,"",CONCATENATE("v",Formula!NW9)),"") ->  | OJ7: =IF($A$4=Formula!$A$35,IF(Formula!NX10>Formula!$B$4,"",CONCATENATE("v",Formula!NX9)),"") ->  | OK7: =IF($A$4=Formula!$A$35,IF(Formula!NY10>Formula!$B$4,"",CONCATENATE("v",Formula!NY9)),"") ->  | OL7: =IF($A$4=Formula!$A$35,IF(Formula!NZ10>Formula!$B$4,"",CONCATENATE("v",Formula!NZ9)),"") ->  | OM7: =IF($A$4=Formula!$A$35,IF(Formula!OA10>Formula!$B$4,"",CONCATENATE("v",Formula!OA9)),"") ->  | ON7: =IF($A$4=Formula!$A$35,IF(Formula!OB10>Formula!$B$4,"",CONCATENATE("v",Formula!OB9)),"") ->  | OO7: =IF($A$4=Formula!$A$35,IF(Formula!OC10>Formula!$B$4,"",CONCATENATE("v",Formula!OC9)),"") ->  | OP7: =IF($A$4=Formula!$A$35,IF(Formula!OD10>Formula!$B$4,"",CONCATENATE("v",Formula!OD9)),"") ->  | OQ7: =IF($A$4=Formula!$A$35,IF(Formula!OE10>Formula!$B$4,"",CONCATENATE("v",Formula!OE9)),"") ->  | OR7: =IF($A$4=Formula!$A$35,IF(Formula!OF10>Formula!$B$4,"",CONCATENATE("v",Formula!OF9)),"") ->  | OS7: =IF($A$4=Formula!$A$35,IF(Formula!OG10>Formula!$B$4,"",CONCATENATE("v",Formula!OG9)),"") ->  | OT7: =IF($A$4=Formula!$A$35,IF(Formula!OH10>Formula!$B$4,"",CONCATENATE("v",Formula!OH9)),"") ->  | OU7: =IF($A$4=Formula!$A$35,IF(Formula!OI10>Formula!$B$4,"",CONCATENATE("v",Formula!OI9)),"") ->  | OV7: =IF($A$4=Formula!$A$35,IF(Formula!OJ10>Formula!$B$4,"",CONCATENATE("v",Formula!OJ9)),"") ->  | OW7: =IF($A$4=Formula!$A$35,IF(Formula!OK10>Formula!$B$4,"",CONCATENATE("v",Formula!OK9)),"") ->  | OX7: =IF($A$4=Formula!$A$35,IF(Formula!OL10>Formula!$B$4,"",CONCATENATE("v",Formula!OL9)),"") ->  | OY7: =IF($A$4=Formula!$A$35,IF(Formula!OM10>Formula!$B$4,"",CONCATENATE("v",Formula!OM9)),"") ->  | OZ7: =IF($A$4=Formula!$A$35,IF(Formula!ON10>Formula!$B$4,"",CONCATENATE("v",Formula!ON9)),"") ->  | PA7: =IF($A$4=Formula!$A$35,IF(Formula!OO10>Formula!$B$4,"",CONCATENATE("v",Formula!OO9)),"") ->  | PB7: =IF($A$4=Formula!$A$35,IF(Formula!OP10>Formula!$B$4,"",CONCATENATE("v",Formula!OP9)),"") ->  | PC7: =IF($A$4=Formula!$A$35,IF(Formula!OQ10>Formula!$B$4,"",CONCATENATE("v",Formula!OQ9)),"") ->  | PD7: =IF($A$4=Formula!$A$35,IF(Formula!OR10>Formula!$B$4,"",CONCATENATE("v",Formula!OR9)),"") ->  | PE7: =IF($A$4=Formula!$A$35,IF(Formula!OS10>Formula!$B$4,"",CONCATENATE("v",Formula!OS9)),"") ->  | PF7: =IF($A$4=Formula!$A$35,IF(Formula!OT10>Formula!$B$4,"",CONCATENATE("v",Formula!OT9)),"") ->  | PG7: =IF($A$4=Formula!$A$35,IF(Formula!OU10>Formula!$B$4,"",CONCATENATE("v",Formula!OU9)),"") ->  | PH7: =IF($A$4=Formula!$A$35,IF(Formula!OV10>Formula!$B$4,"",CONCATENATE("v",Formula!OV9)),"") ->  | PI7: =IF($A$4=Formula!$A$35,IF(Formula!OW10>Formula!$B$4,"",CONCATENATE("v",Formula!OW9)),"") ->  | PJ7: =IF($A$4=Formula!$A$35,IF(Formula!OX10>Formula!$B$4,"",CONCATENATE("v",Formula!OX9)),"") ->  | PK7: =IF($A$4=Formula!$A$35,IF(Formula!OY10>Formula!$B$4,"",CONCATENATE("v",Formula!OY9)),"") ->  | PL7: =IF($A$4=Formula!$A$35,IF(Formula!OZ10>Formula!$B$4,"",CONCATENATE("v",Formula!OZ9)),"") ->  | PM7: =IF($A$4=Formula!$A$35,IF(Formula!PA10>Formula!$B$4,"",CONCATENATE("v",Formula!PA9)),"") ->  | PN7: =IF($A$4=Formula!$A$35,IF(Formula!PB10>Formula!$B$4,"",CONCATENATE("v",Formula!PB9)),"") ->  | PO7: =IF($A$4=Formula!$A$35,IF(Formula!PC10>Formula!$B$4,"",CONCATENATE("v",Formula!PC9)),"") ->  | PP7: =IF($A$4=Formula!$A$35,IF(Formula!PD10>Formula!$B$4,"",CONCATENATE("v",Formula!PD9)),"") ->  | PQ7: =IF($A$4=Formula!$A$35,IF(Formula!PE10>Formula!$B$4,"",CONCATENATE("v",Formula!PE9)),"") ->  | PR7: =IF($A$4=Formula!$A$35,IF(Formula!PF10>Formula!$B$4,"",CONCATENATE("v",Formula!PF9)),"") ->  | PS7: =IF($A$4=Formula!$A$35,IF(Formula!PG10>Formula!$B$4,"",CONCATENATE("v",Formula!PG9)),"") ->  | PT7: =IF($A$4=Formula!$A$35,IF(Formula!PH10>Formula!$B$4,"",CONCATENATE("v",Formula!PH9)),"") ->  | PU7: =IF($A$4=Formula!$A$35,IF(Formula!PI10>Formula!$B$4,"",CONCATENATE("v",Formula!PI9)),"") ->  | PV7: =IF($A$4=Formula!$A$35,IF(Formula!PJ10>Formula!$B$4,"",CONCATENATE("v",Formula!PJ9)),"") ->  | PW7: =IF($A$4=Formula!$A$35,IF(Formula!PK10>Formula!$B$4,"",CONCATENATE("v",Formula!PK9)),"") ->  | PX7: =IF($A$4=Formula!$A$35,IF(Formula!PL10>Formula!$B$4,"",CONCATENATE("v",Formula!PL9)),"") ->  | PY7: =IF($A$4=Formula!$A$35,IF(Formula!PM10>Formula!$B$4,"",CONCATENATE("v",Formula!PM9)),"") ->  | PZ7: =IF($A$4=Formula!$A$35,IF(Formula!PN10>Formula!$B$4,"",CONCATENATE("v",Formula!PN9)),"") ->  | QA7: =IF($A$4=Formula!$A$35,IF(Formula!PO10>Formula!$B$4,"",CONCATENATE("v",Formula!PO9)),"") ->  | QB7: =IF($A$4=Formula!$A$35,IF(Formula!PP10>Formula!$B$4,"",CONCATENATE("v",Formula!PP9)),"") ->  | QC7: =IF($A$4=Formula!$A$35,IF(Formula!PQ10>Formula!$B$4,"",CONCATENATE("v",Formula!PQ9)),"") ->  | QD7: =IF($A$4=Formula!$A$35,IF(Formula!PR10>Formula!$B$4,"",CONCATENATE("v",Formula!PR9)),"") ->  | QE7: =IF($A$4=Formula!$A$35,IF(Formula!PS10>Formula!$B$4,"",CONCATENATE("v",Formula!PS9)),"") ->  | QF7: =IF($A$4=Formula!$A$35,IF(Formula!PT10>Formula!$B$4,"",CONCATENATE("v",Formula!PT9)),"") ->  | QG7: =IF($A$4=Formula!$A$35,IF(Formula!PU10>Formula!$B$4,"",CONCATENATE("v",Formula!PU9)),"") ->  | QH7: =IF($A$4=Formula!$A$35,IF(Formula!PV10>Formula!$B$4,"",CONCATENATE("v",Formula!PV9)),"") ->  | QI7: =IF($A$4=Formula!$A$35,IF(Formula!PW10>Formula!$B$4,"",CONCATENATE("v",Formula!PW9)),"") ->  | QJ7: =IF($A$4=Formula!$A$35,IF(Formula!PX10>Formula!$B$4,"",CONCATENATE("v",Formula!PX9)),"") ->  | QK7: =IF($A$4=Formula!$A$35,IF(Formula!PY10>Formula!$B$4,"",CONCATENATE("v",Formula!PY9)),"") ->  | QL7: =IF($A$4=Formula!$A$35,IF(Formula!PZ10>Formula!$B$4,"",CONCATENATE("v",Formula!PZ9)),"") ->  | QM7: =IF($A$4=Formula!$A$35,IF(Formula!QA10>Formula!$B$4,"",CONCATENATE("v",Formula!QA9)),"") ->  | QN7: =IF($A$4=Formula!$A$35,IF(Formula!QB10>Formula!$B$4,"",CONCATENATE("v",Formula!QB9)),"") ->  | QO7: =IF($A$4=Formula!$A$35,IF(Formula!QC10>Formula!$B$4,"",CONCATENATE("v",Formula!QC9)),"") ->  | QP7: =IF($A$4=Formula!$A$35,IF(Formula!QD10>Formula!$B$4,"",CONCATENATE("v",Formula!QD9)),"") ->  | QQ7: =IF($A$4=Formula!$A$35,IF(Formula!QE10>Formula!$B$4,"",CONCATENATE("v",Formula!QE9)),"") ->  | QR7: =IF($A$4=Formula!$A$35,IF(Formula!QF10>Formula!$B$4,"",CONCATENATE("v",Formula!QF9)),"") ->  | QS7: =IF($A$4=Formula!$A$35,IF(Formula!QG10>Formula!$B$4,"",CONCATENATE("v",Formula!QG9)),"") ->  | QT7: =IF($A$4=Formula!$A$35,IF(Formula!QH10>Formula!$B$4,"",CONCATENATE("v",Formula!QH9)),"") ->  | QU7: =IF($A$4=Formula!$A$35,IF(Formula!QI10>Formula!$B$4,"",CONCATENATE("v",Formula!QI9)),"") ->  | QV7: =IF($A$4=Formula!$A$35,IF(Formula!QJ10>Formula!$B$4,"",CONCATENATE("v",Formula!QJ9)),"") ->  | QW7: =IF($A$4=Formula!$A$35,IF(Formula!QK10>Formula!$B$4,"",CONCATENATE("v",Formula!QK9)),"") ->  | QX7: =IF($A$4=Formula!$A$35,IF(Formula!QL10>Formula!$B$4,"",CONCATENATE("v",Formula!QL9)),"") ->  | QY7: =IF($A$4=Formula!$A$35,IF(Formula!QM10>Formula!$B$4,"",CONCATENATE("v",Formula!QM9)),"") ->  | QZ7: =IF($A$4=Formula!$A$35,IF(Formula!QN10>Formula!$B$4,"",CONCATENATE("v",Formula!QN9)),"") ->  | RA7: =IF($A$4=Formula!$A$35,IF(Formula!QO10>Formula!$B$4,"",CONCATENATE("v",Formula!QO9)),"") ->  | RB7: =IF($A$4=Formula!$A$35,IF(Formula!QP10>Formula!$B$4,"",CONCATENATE("v",Formula!QP9)),"") ->  | RC7: =IF($A$4=Formula!$A$35,IF(Formula!QQ10>Formula!$B$4,"",CONCATENATE("v",Formula!QQ9)),"") ->  | RD7: =IF($A$4=Formula!$A$35,IF(Formula!QR10>Formula!$B$4,"",CONCATENATE("v",Formula!QR9)),"") ->  | RE7: =IF($A$4=Formula!$A$35,IF(Formula!QS10>Formula!$B$4,"",CONCATENATE("v",Formula!QS9)),"") ->  | RF7: =IF($A$4=Formula!$A$35,IF(Formula!QT10>Formula!$B$4,"",CONCATENATE("v",Formula!QT9)),"") ->  | RG7: =IF($A$4=Formula!$A$35,IF(Formula!QU10>Formula!$B$4,"",CONCATENATE("v",Formula!QU9)),"") ->  | RH7: =IF($A$4=Formula!$A$35,IF(Formula!QV10>Formula!$B$4,"",CONCATENATE("v",Formula!QV9)),"") ->  | RI7: =IF($A$4=Formula!$A$35,IF(Formula!QW10>Formula!$B$4,"",CONCATENATE("v",Formula!QW9)),"") ->  | RJ7: =IF($A$4=Formula!$A$35,IF(Formula!QX10>Formula!$B$4,"",CONCATENATE("v",Formula!QX9)),"") ->  | RK7: =IF($A$4=Formula!$A$35,IF(Formula!QY10>Formula!$B$4,"",CONCATENATE("v",Formula!QY9)),"") ->  | RL7: =IF($A$4=Formula!$A$35,IF(Formula!QZ10>Formula!$B$4,"",CONCATENATE("v",Formula!QZ9)),"") ->  | RM7: =IF($A$4=Formula!$A$35,IF(Formula!RA10>Formula!$B$4,"",CONCATENATE("v",Formula!RA9)),"") ->  | RN7: =IF($A$4=Formula!$A$35,IF(Formula!RB10>Formula!$B$4,"",CONCATENATE("v",Formula!RB9)),"") ->  | RO7: =IF($A$4=Formula!$A$35,IF(Formula!RC10>Formula!$B$4,"",CONCATENATE("v",Formula!RC9)),"") ->  | RP7: =IF($A$4=Formula!$A$35,IF(Formula!RD10>Formula!$B$4,"",CONCATENATE("v",Formula!RD9)),"") ->  | RQ7: =IF($A$4=Formula!$A$35,IF(Formula!RE10>Formula!$B$4,"",CONCATENATE("v",Formula!RE9)),"") ->  | RR7: =IF($A$4=Formula!$A$35,IF(Formula!RF10>Formula!$B$4,"",CONCATENATE("v",Formula!RF9)),"") ->  | RS7: =IF($A$4=Formula!$A$35,IF(Formula!RG10>Formula!$B$4,"",CONCATENATE("v",Formula!RG9)),"") ->  | RT7: =IF($A$4=Formula!$A$35,IF(Formula!RH10>Formula!$B$4,"",CONCATENATE("v",Formula!RH9)),"") ->  | RU7: =IF($A$4=Formula!$A$35,IF(Formula!RI10>Formula!$B$4,"",CONCATENATE("v",Formula!RI9)),"") ->  | RV7: =IF($A$4=Formula!$A$35,IF(Formula!RJ10>Formula!$B$4,"",CONCATENATE("v",Formula!RJ9)),"") ->  | RW7: =IF($A$4=Formula!$A$35,IF(Formula!RK10>Formula!$B$4,"",CONCATENATE("v",Formula!RK9)),"") ->  | RX7: =IF($A$4=Formula!$A$35,IF(Formula!RL10>Formula!$B$4,"",CONCATENATE("v",Formula!RL9)),"") ->  | RY7: =IF($A$4=Formula!$A$35,IF(Formula!RM10>Formula!$B$4,"",CONCATENATE("v",Formula!RM9)),"") ->  | RZ7: =IF($A$4=Formula!$A$35,IF(Formula!RN10>Formula!$B$4,"",CONCATENATE("v",Formula!RN9)),"") ->  | SA7: =IF($A$4=Formula!$A$35,IF(Formula!RO10>Formula!$B$4,"",CONCATENATE("v",Formula!RO9)),"") ->  | SB7: =IF($A$4=Formula!$A$35,IF(Formula!RP10>Formula!$B$4,"",CONCATENATE("v",Formula!RP9)),"") ->  | SC7: =IF($A$4=Formula!$A$35,IF(Formula!RQ10>Formula!$B$4,"",CONCATENATE("v",Formula!RQ9)),"") ->  | SD7: =IF($A$4=Formula!$A$35,IF(Formula!RR10>Formula!$B$4,"",CONCATENATE("v",Formula!RR9)),"") ->  | SE7: =IF($A$4=Formula!$A$35,IF(Formula!RS10>Formula!$B$4,"",CONCATENATE("v",Formula!RS9)),"") ->  | SF7: =IF($A$4=Formula!$A$35,IF(Formula!RT10>Formula!$B$4,"",CONCATENATE("v",Formula!RT9)),"") ->  | SG7: =IF($A$4=Formula!$A$35,IF(Formula!RU10>Formula!$B$4,"",CONCATENATE("v",Formula!RU9)),"") ->  | SH7: =IF($A$4=Formula!$A$35,IF(Formula!RV10>Formula!$B$4,"",CONCATENATE("v",Formula!RV9)),"") ->  | SI7: =IF($A$4=Formula!$A$35,IF(Formula!RW10>Formula!$B$4,"",CONCATENATE("v",Formula!RW9)),"") ->  | SJ7: =IF($A$4=Formula!$A$35,IF(Formula!RX10>Formula!$B$4,"",CONCATENATE("v",Formula!RX9)),"") ->  | SK7: =IF($A$4=Formula!$A$35,IF(Formula!RY10>Formula!$B$4,"",CONCATENATE("v",Formula!RY9)),"") ->  | SL7: =IF($A$4=Formula!$A$35,IF(Formula!RZ10>Formula!$B$4,"",CONCATENATE("v",Formula!RZ9)),"") ->  | SM7: =IF($A$4=Formula!$A$35,IF(Formula!SA10>Formula!$B$4,"",CONCATENATE("v",Formula!SA9)),"") ->  | SN7: =IF($A$4=Formula!$A$35,IF(Formula!SB10>Formula!$B$4,"",CONCATENATE("v",Formula!SB9)),"") ->  | SO7: =IF($A$4=Formula!$A$35,IF(Formula!SC10>Formula!$B$4,"",CONCATENATE("v",Formula!SC9)),"") ->  | SP7: =IF($A$4=Formula!$A$35,IF(Formula!SD10>Formula!$B$4,"",CONCATENATE("v",Formula!SD9)),"") ->  | SQ7: =IF($A$4=Formula!$A$35,IF(Formula!SE10>Formula!$B$4,"",CONCATENATE("v",Formula!SE9)),"") ->  | SR7: =IF($A$4=Formula!$A$35,IF(Formula!SF10>Formula!$B$4,"",CONCATENATE("v",Formula!SF9)),"") ->  | SS7: =IF($A$4=Formula!$A$35,IF(Formula!SG10>Formula!$B$4,"",CONCATENATE("v",Formula!SG9)),"") ->  | ST7: =IF($A$4=Formula!$A$35,IF(Formula!SH10>Formula!$B$4,"",CONCATENATE("v",Formula!SH9)),"") ->  | SU7: =IF($A$4=Formula!$A$35,IF(Formula!SI10>Formula!$B$4,"",CONCATENATE("v",Formula!SI9)),"") ->  | SV7: =IF($A$4=Formula!$A$35,IF(Formula!SJ10>Formula!$B$4,"",CONCATENATE("v",Formula!SJ9)),"") ->  | SW7: =IF($A$4=Formula!$A$35,IF(Formula!SK10>Formula!$B$4,"",CONCATENATE("v",Formula!SK9)),"") ->  | SX7: =IF($A$4=Formula!$A$35,IF(Formula!SL10>Formula!$B$4,"",CONCATENATE("v",Formula!SL9)),"") ->  | SY7: =IF($A$4=Formula!$A$35,IF(Formula!SM10>Formula!$B$4,"",CONCATENATE("v",Formula!SM9)),"") ->  | SZ7: =IF($A$4=Formula!$A$35,IF(Formula!SN10>Formula!$B$4,"",CONCATENATE("v",Formula!SN9)),"") ->  | TA7: =IF($A$4=Formula!$A$35,IF(Formula!SO10>Formula!$B$4,"",CONCATENATE("v",Formula!SO9)),"") ->  | TB7: =IF($A$4=Formula!$A$35,IF(Formula!SP10>Formula!$B$4,"",CONCATENATE("v",Formula!SP9)),"") ->  | TC7: =IF($A$4=Formula!$A$35,IF(Formula!SQ10>Formula!$B$4,"",CONCATENATE("v",Formula!SQ9)),"") ->  | TD7: =IF($A$4=Formula!$A$35,IF(Formula!SR10>Formula!$B$4,"",CONCATENATE("v",Formula!SR9)),"") ->  | TE7: =IF($A$4=Formula!$A$35,IF(Formula!SS10>Formula!$B$4,"",CONCATENATE("v",Formula!SS9)),"") ->  | TF7: =IF($A$4=Formula!$A$35,IF(Formula!ST10>Formula!$B$4,"",CONCATENATE("v",Formula!ST9)),"") ->  | TG7: =IF($A$4=Formula!$A$35,IF(Formula!SU10>Formula!$B$4,"",CONCATENATE("v",Formula!SU9)),"") ->  | TH7: =IF($A$4=Formula!$A$35,IF(Formula!SV10>Formula!$B$4,"",CONCATENATE("v",Formula!SV9)),"") ->  | TI7: =IF($A$4=Formula!$A$35,IF(Formula!SW10>Formula!$B$4,"",CONCATENATE("v",Formula!SW9)),"") ->  | TJ7: =IF($A$4=Formula!$A$35,IF(Formula!SX10>Formula!$B$4,"",CONCATENATE("v",Formula!SX9)),"") ->  | TK7: =IF($A$4=Formula!$A$35,IF(Formula!SY10>Formula!$B$4,"",CONCATENATE("v",Formula!SY9)),"") ->  | TL7: =IF($A$4=Formula!$A$35,IF(Formula!SZ10>Formula!$B$4,"",CONCATENATE("v",Formula!SZ9)),"") ->  | TM7: =IF($A$4=Formula!$A$35,IF(Formula!TA10>Formula!$B$4,"",CONCATENATE("v",Formula!TA9)),"") ->  | TN7: =IF($A$4=Formula!$A$35,IF(Formula!TB10>Formula!$B$4,"",CONCATENATE("v",Formula!TB9)),"") ->  | TO7: =IF($A$4=Formula!$A$35,IF(Formula!TC10>Formula!$B$4,"",CONCATENATE("v",Formula!TC9)),"") ->  | TP7: =IF($A$4=Formula!$A$35,IF(Formula!TD10>Formula!$B$4,"",CONCATENATE("v",Formula!TD9)),"") ->  | TQ7: =IF($A$4=Formula!$A$35,IF(Formula!TE10>Formula!$B$4,"",CONCATENATE("v",Formula!TE9)),"") ->  | TR7: =IF($A$4=Formula!$A$35,IF(Formula!TF10>Formula!$B$4,"",CONCATENATE("v",Formula!TF9)),"") ->  | TS7: =IF($A$4=Formula!$A$35,IF(Formula!TG10>Formula!$B$4,"",CONCATENATE("v",Formula!TG9)),"") ->  | TT7: =IF($A$4=Formula!$A$35,IF(Formula!TH10>Formula!$B$4,"",CONCATENATE("v",Formula!TH9)),"") ->  | TU7: =IF($A$4=Formula!$A$35,IF(Formula!TI10>Formula!$B$4,"",CONCATENATE("v",Formula!TI9)),"") ->  | TV7: =IF($A$4=Formula!$A$35,IF(Formula!TJ10>Formula!$B$4,"",CONCATENATE("v",Formula!TJ9)),"") ->  | TW7: =IF($A$4=Formula!$A$35,IF(Formula!TK10>Formula!$B$4,"",CONCATENATE("v",Formula!TK9)),"") ->  | TX7: =IF($A$4=Formula!$A$35,IF(Formula!TL10>Formula!$B$4,"",CONCATENATE("v",Formula!TL9)),"") ->  | TY7: =IF($A$4=Formula!$A$35,IF(Formula!TM10>Formula!$B$4,"",CONCATENATE("v",Formula!TM9)),"") ->  | TZ7: =IF($A$4=Formula!$A$35,IF(Formula!TN10>Formula!$B$4,"",CONCATENATE("v",Formula!TN9)),"") ->  | UA7: =IF($A$4=Formula!$A$35,IF(Formula!TO10>Formula!$B$4,"",CONCATENATE("v",Formula!TO9)),"") ->  | UB7: =IF($A$4=Formula!$A$35,IF(Formula!TP10>Formula!$B$4,"",CONCATENATE("v",Formula!TP9)),"") ->  | UC7: =IF($A$4=Formula!$A$35,IF(Formula!TQ10>Formula!$B$4,"",CONCATENATE("v",Formula!TQ9)),"") ->  | UD7: =IF($A$4=Formula!$A$35,IF(Formula!TR10>Formula!$B$4,"",CONCATENATE("v",Formula!TR9)),"") ->  | UE7: =IF($A$4=Formula!$A$35,IF(Formula!TS10>Formula!$B$4,"",CONCATENATE("v",Formula!TS9)),"") ->  | UF7: =IF($A$4=Formula!$A$35,IF(Formula!TT10>Formula!$B$4,"",CONCATENATE("v",Formula!TT9)),"") ->  | UG7: =IF($A$4=Formula!$A$35,IF(Formula!TU10>Formula!$B$4,"",CONCATENATE("v",Formula!TU9)),"") ->  | UH7: =IF($A$4=Formula!$A$35,IF(Formula!TV10>Formula!$B$4,"",CONCATENATE("v",Formula!TV9)),"") ->  | UI7: =IF($A$4=Formula!$A$35,IF(Formula!TW10>Formula!$B$4,"",CONCATENATE("v",Formula!TW9)),"") ->  | UJ7: =IF($A$4=Formula!$A$35,IF(Formula!TX10>Formula!$B$4,"",CONCATENATE("v",Formula!TX9)),"") ->  | UK7: =IF($A$4=Formula!$A$35,IF(Formula!TY10>Formula!$B$4,"",CONCATENATE("v",Formula!TY9)),"") ->  | UL7: =IF($A$4=Formula!$A$35,IF(Formula!TZ10>Formula!$B$4,"",CONCATENATE("v",Formula!TZ9)),"") ->  | UM7: =IF($A$4=Formula!$A$35,IF(Formula!UA10>Formula!$B$4,"",CONCATENATE("v",Formula!UA9)),"") ->  | UN7: =IF($A$4=Formula!$A$35,IF(Formula!UB10>Formula!$B$4,"",CONCATENATE("v",Formula!UB9)),"") ->  | UO7: =IF($A$4=Formula!$A$35,IF(Formula!UC10>Formula!$B$4,"",CONCATENATE("v",Formula!UC9)),"") ->  | UP7: =IF($A$4=Formula!$A$35,IF(Formula!UD10>Formula!$B$4,"",CONCATENATE("v",Formula!UD9)),"") ->  | UQ7: =IF($A$4=Formula!$A$35,IF(Formula!UE10>Formula!$B$4,"",CONCATENATE("v",Formula!UE9)),"") ->  | UR7: =IF($A$4=Formula!$A$35,IF(Formula!UF10>Formula!$B$4,"",CONCATENATE("v",Formula!UF9)),"") ->  | US7: =IF($A$4=Formula!$A$35,IF(Formula!UG10>Formula!$B$4,"",CONCATENATE("v",Formula!UG9)),"") ->  | UT7: =IF($A$4=Formula!$A$35,IF(Formula!UH10>Formula!$B$4,"",CONCATENATE("v",Formula!UH9)),"") ->  | UU7: =IF($A$4=Formula!$A$35,IF(Formula!UI10>Formula!$B$4,"",CONCATENATE("v",Formula!UI9)),"") ->  | UV7: =IF($A$4=Formula!$A$35,IF(Formula!UJ10>Formula!$B$4,"",CONCATENATE("v",Formula!UJ9)),"") ->  | UW7: =IF($A$4=Formula!$A$35,IF(Formula!UK10>Formula!$B$4,"",CONCATENATE("v",Formula!UK9)),"") ->  | UX7: =IF($A$4=Formula!$A$35,IF(Formula!UL10>Formula!$B$4,"",CONCATENATE("v",Formula!UL9)),"") ->  | UY7: =IF($A$4=Formula!$A$35,IF(Formula!UM10>Formula!$B$4,"",CONCATENATE("v",Formula!UM9)),"") ->  | UZ7: =IF($A$4=Formula!$A$35,IF(Formula!UN10>Formula!$B$4,"",CONCATENATE("v",Formula!UN9)),"") ->  | VA7: =IF($A$4=Formula!$A$35,IF(Formula!UO10>Formula!$B$4,"",CONCATENATE("v",Formula!UO9)),"") ->  | VB7: =IF($A$4=Formula!$A$35,IF(Formula!UP10>Formula!$B$4,"",CONCATENATE("v",Formula!UP9)),"") ->  | VC7: =IF($A$4=Formula!$A$35,IF(Formula!UQ10>Formula!$B$4,"",CONCATENATE("v",Formula!UQ9)),"") ->  | VD7: =IF($A$4=Formula!$A$35,IF(Formula!UR10>Formula!$B$4,"",CONCATENATE("v",Formula!UR9)),"") ->  | VE7: =IF($A$4=Formula!$A$35,IF(Formula!US10>Formula!$B$4,"",CONCATENATE("v",Formula!US9)),"") ->  | VF7: =IF($A$4=Formula!$A$35,IF(Formula!UT10>Formula!$B$4,"",CONCATENATE("v",Formula!UT9)),"") ->  | VG7: =IF($A$4=Formula!$A$35,IF(Formula!UU10>Formula!$B$4,"",CONCATENATE("v",Formula!UU9)),"") ->  | VH7: =IF($A$4=Formula!$A$35,IF(Formula!UV10>Formula!$B$4,"",CONCATENATE("v",Formula!UV9)),"") ->  | VI7: =IF($A$4=Formula!$A$35,IF(Formula!UW10>Formula!$B$4,"",CONCATENATE("v",Formula!UW9)),"") ->  | VJ7: =IF($A$4=Formula!$A$35,IF(Formula!UX10>Formula!$B$4,"",CONCATENATE("v",Formula!UX9)),"") ->  | VK7: =IF($A$4=Formula!$A$35,IF(Formula!UY10>Formula!$B$4,"",CONCATENATE("v",Formula!UY9)),"") ->  | VL7: =IF($A$4=Formula!$A$35,IF(Formula!UZ10>Formula!$B$4,"",CONCATENATE("v",Formula!UZ9)),"") ->  | VM7: =IF($A$4=Formula!$A$35,IF(Formula!VA10>Formula!$B$4,"",CONCATENATE("v",Formula!VA9)),"") ->  | VN7: =IF($A$4=Formula!$A$35,IF(Formula!VB10>Formula!$B$4,"",CONCATENATE("v",Formula!VB9)),"") ->  | VO7: =IF($A$4=Formula!$A$35,IF(Formula!VC10>Formula!$B$4,"",CONCATENATE("v",Formula!VC9)),"") ->  | VP7: =IF($A$4=Formula!$A$35,IF(Formula!VD10>Formula!$B$4,"",CONCATENATE("v",Formula!VD9)),"") ->  | VQ7: =IF($A$4=Formula!$A$35,IF(Formula!VE10>Formula!$B$4,"",CONCATENATE("v",Formula!VE9)),"") ->  | VR7: =IF($A$4=Formula!$A$35,IF(Formula!VF10>Formula!$B$4,"",CONCATENATE("v",Formula!VF9)),"") ->  | VS7: =IF($A$4=Formula!$A$35,IF(Formula!VG10>Formula!$B$4,"",CONCATENATE("v",Formula!VG9)),"") ->  | VT7: =IF($A$4=Formula!$A$35,IF(Formula!VH10>Formula!$B$4,"",CONCATENATE("v",Formula!VH9)),"") ->  | VU7: =IF($A$4=Formula!$A$35,IF(Formula!VI10>Formula!$B$4,"",CONCATENATE("v",Formula!VI9)),"") ->  | VV7: =IF($A$4=Formula!$A$35,IF(Formula!VJ10>Formula!$B$4,"",CONCATENATE("v",Formula!VJ9)),"") ->  | VW7: =IF($A$4=Formula!$A$35,IF(Formula!VK10>Formula!$B$4,"",CONCATENATE("v",Formula!VK9)),"") ->  | VX7: =IF($A$4=Formula!$A$35,IF(Formula!VL10>Formula!$B$4,"",CONCATENATE("v",Formula!VL9)),"") ->  | VY7: =IF($A$4=Formula!$A$35,IF(Formula!VM10>Formula!$B$4,"",CONCATENATE("v",Formula!VM9)),"") ->  | VZ7: =IF($A$4=Formula!$A$35,IF(Formula!VN10>Formula!$B$4,"",CONCATENATE("v",Formula!VN9)),"") ->  | WA7: =IF($A$4=Formula!$A$35,IF(Formula!VO10>Formula!$B$4,"",CONCATENATE("v",Formula!VO9)),"") ->  | WB7: =IF($A$4=Formula!$A$35,IF(Formula!VP10>Formula!$B$4,"",CONCATENATE("v",Formula!VP9)),"") ->  | WC7: =IF($A$4=Formula!$A$35,IF(Formula!VQ10>Formula!$B$4,"",CONCATENATE("v",Formula!VQ9)),"") ->  | WD7: =IF($A$4=Formula!$A$35,IF(Formula!VR10>Formula!$B$4,"",CONCATENATE("v",Formula!VR9)),"") ->  | WE7: =IF($A$4=Formula!$A$35,IF(Formula!VS10>Formula!$B$4,"",CONCATENATE("v",Formula!VS9)),"") ->  | WF7: =IF($A$4=Formula!$A$35,IF(Formula!VT10>Formula!$B$4,"",CONCATENATE("v",Formula!VT9)),"") ->  | WG7: =IF($A$4=Formula!$A$35,IF(Formula!VU10>Formula!$B$4,"",CONCATENATE("v",Formula!VU9)),"") ->  | WH7: =IF($A$4=Formula!$A$35,IF(Formula!VV10>Formula!$B$4,"",CONCATENATE("v",Formula!VV9)),"") ->  | WI7: =IF($A$4=Formula!$A$35,IF(Formula!VW10>Formula!$B$4,"",CONCATENATE("v",Formula!VW9)),"") ->  | WJ7: =IF($A$4=Formula!$A$35,IF(Formula!VX10>Formula!$B$4,"",CONCATENATE("v",Formula!VX9)),"") ->  | WK7: =IF($A$4=Formula!$A$35,IF(Formula!VY10>Formula!$B$4,"",CONCATENATE("v",Formula!VY9)),"") ->  | WL7: =IF($A$4=Formula!$A$35,IF(Formula!VZ10>Formula!$B$4,"",CONCATENATE("v",Formula!VZ9)),"") ->  | WM7: =IF($A$4=Formula!$A$35,IF(Formula!WA10>Formula!$B$4,"",CONCATENATE("v",Formula!WA9)),"") ->  | WN7: =IF($A$4=Formula!$A$35,IF(Formula!WB10>Formula!$B$4,"",CONCATENATE("v",Formula!WB9)),"") ->  | WO7: =IF($A$4=Formula!$A$35,IF(Formula!WC10>Formula!$B$4,"",CONCATENATE("v",Formula!WC9)),"") ->  | WP7: =IF($A$4=Formula!$A$35,IF(Formula!WD10>Formula!$B$4,"",CONCATENATE("v",Formula!WD9)),"") ->  | WQ7: =IF($A$4=Formula!$A$35,IF(Formula!WE10>Formula!$B$4,"",CONCATENATE("v",Formula!WE9)),"") ->  | WR7: =IF($A$4=Formula!$A$35,IF(Formula!WF10>Formula!$B$4,"",CONCATENATE("v",Formula!WF9)),"") ->  | WS7: =IF($A$4=Formula!$A$35,IF(Formula!WG10>Formula!$B$4,"",CONCATENATE("v",Formula!WG9)),"") ->  | WT7: =IF($A$4=Formula!$A$35,IF(Formula!WH10>Formula!$B$4,"",CONCATENATE("v",Formula!WH9)),"") ->  | WU7: =IF($A$4=Formula!$A$35,IF(Formula!WI10>Formula!$B$4,"",CONCATENATE("v",Formula!WI9)),"") ->  | WV7: =IF($A$4=Formula!$A$35,IF(Formula!WJ10>Formula!$B$4,"",CONCATENATE("v",Formula!WJ9)),"") ->  | WW7: =IF($A$4=Formula!$A$35,IF(Formula!WK10>Formula!$B$4,"",CONCATENATE("v",Formula!WK9)),"") ->  | WX7: =IF($A$4=Formula!$A$35,IF(Formula!WL10>Formula!$B$4,"",CONCATENATE("v",Formula!WL9)),"") ->  | WY7: =IF($A$4=Formula!$A$35,IF(Formula!WM10>Formula!$B$4,"",CONCATENATE("v",Formula!WM9)),"") ->  | WZ7: =IF($A$4=Formula!$A$35,IF(Formula!WN10>Formula!$B$4,"",CONCATENATE("v",Formula!WN9)),"") ->  | XA7: =IF($A$4=Formula!$A$35,IF(Formula!WO10>Formula!$B$4,"",CONCATENATE("v",Formula!WO9)),"") ->  | XB7: =IF($A$4=Formula!$A$35,IF(Formula!WP10>Formula!$B$4,"",CONCATENATE("v",Formula!WP9)),"") ->  | XC7: =IF($A$4=Formula!$A$35,IF(Formula!WQ10>Formula!$B$4,"",CONCATENATE("v",Formula!WQ9)),"") ->  | XD7: =IF($A$4=Formula!$A$35,IF(Formula!WR10>Formula!$B$4,"",CONCATENATE("v",Formula!WR9)),"") ->  | XE7: =IF($A$4=Formula!$A$35,IF(Formula!WS10>Formula!$B$4,"",CONCATENATE("v",Formula!WS9)),"") ->  | XF7: =IF($A$4=Formula!$A$35,IF(Formula!WT10>Formula!$B$4,"",CONCATENATE("v",Formula!WT9)),"") ->  | XG7: =IF($A$4=Formula!$A$35,IF(Formula!WU10>Formula!$B$4,"",CONCATENATE("v",Formula!WU9)),"") ->  | XH7: =IF($A$4=Formula!$A$35,IF(Formula!WV10>Formula!$B$4,"",CONCATENATE("v",Formula!WV9)),"") ->  | XI7: =IF($A$4=Formula!$A$35,IF(Formula!WW10>Formula!$B$4,"",CONCATENATE("v",Formula!WW9)),"") ->  | XJ7: =IF($A$4=Formula!$A$35,IF(Formula!WX10>Formula!$B$4,"",CONCATENATE("v",Formula!WX9)),"") ->  | XK7: =IF($A$4=Formula!$A$35,IF(Formula!WY10>Formula!$B$4,"",CONCATENATE("v",Formula!WY9)),"") ->  | XL7: =IF($A$4=Formula!$A$35,IF(Formula!WZ10>Formula!$B$4,"",CONCATENATE("v",Formula!WZ9)),"") ->  | XM7: =IF($A$4=Formula!$A$35,IF(Formula!XA10>Formula!$B$4,"",CONCATENATE("v",Formula!XA9)),"") ->  | XN7: =IF($A$4=Formula!$A$35,IF(Formula!XB10>Formula!$B$4,"",CONCATENATE("v",Formula!XB9)),"") ->  | XO7: =IF($A$4=Formula!$A$35,IF(Formula!XC10>Formula!$B$4,"",CONCATENATE("v",Formula!XC9)),"") ->  | XP7: =IF($A$4=Formula!$A$35,IF(Formula!XD10>Formula!$B$4,"",CONCATENATE("v",Formula!XD9)),"") ->  | XQ7: =IF($A$4=Formula!$A$35,IF(Formula!XE10>Formula!$B$4,"",CONCATENATE("v",Formula!XE9)),"") ->  | XR7: =IF($A$4=Formula!$A$35,IF(Formula!XF10>Formula!$B$4,"",CONCATENATE("v",Formula!XF9)),"") ->  | XS7: =IF($A$4=Formula!$A$35,IF(Formula!XG10>Formula!$B$4,"",CONCATENATE("v",Formula!XG9)),"") ->  | XT7: =IF($A$4=Formula!$A$35,IF(Formula!XH10>Formula!$B$4,"",CONCATENATE("v",Formula!XH9)),"") ->  | XU7: =IF($A$4=Formula!$A$35,IF(Formula!XI10>Formula!$B$4,"",CONCATENATE("v",Formula!XI9)),"") ->  | XV7: =IF($A$4=Formula!$A$35,IF(Formula!XJ10>Formula!$B$4,"",CONCATENATE("v",Formula!XJ9)),"") ->  | XW7: =IF($A$4=Formula!$A$35,IF(Formula!XK10>Formula!$B$4,"",CONCATENATE("v",Formula!XK9)),"") ->  | XX7: =IF($A$4=Formula!$A$35,IF(Formula!XL10>Formula!$B$4,"",CONCATENATE("v",Formula!XL9)),"") ->  | XY7: =IF($A$4=Formula!$A$35,IF(Formula!XM10>Formula!$B$4,"",CONCATENATE("v",Formula!XM9)),"") ->  | XZ7: =IF($A$4=Formula!$A$35,IF(Formula!XN10>Formula!$B$4,"",CONCATENATE("v",Formula!XN9)),"") ->  | YA7: =IF($A$4=Formula!$A$35,IF(Formula!XO10>Formula!$B$4,"",CONCATENATE("v",Formula!XO9)),"") ->  | YB7: =IF($A$4=Formula!$A$35,IF(Formula!XP10>Formula!$B$4,"",CONCATENATE("v",Formula!XP9)),"") ->  | YC7: =IF($A$4=Formula!$A$35,IF(Formula!XQ10>Formula!$B$4,"",CONCATENATE("v",Formula!XQ9)),"") ->  | YD7: =IF($A$4=Formula!$A$35,IF(Formula!XR10>Formula!$B$4,"",CONCATENATE("v",Formula!XR9)),"") ->  | YE7: =IF($A$4=Formula!$A$35,IF(Formula!XS10>Formula!$B$4,"",CONCATENATE("v",Formula!XS9)),"") ->  | YF7: =IF($A$4=Formula!$A$35,IF(Formula!XT10>Formula!$B$4,"",CONCATENATE("v",Formula!XT9)),"") ->  | YG7: =IF($A$4=Formula!$A$35,IF(Formula!XU10>Formula!$B$4,"",CONCATENATE("v",Formula!XU9)),"") ->  | YH7: =IF($A$4=Formula!$A$35,IF(Formula!XV10>Formula!$B$4,"",CONCATENATE("v",Formula!XV9)),"") ->  | YI7: =IF($A$4=Formula!$A$35,IF(Formula!XW10>Formula!$B$4,"",CONCATENATE("v",Formula!XW9)),"") ->  | YJ7: =IF($A$4=Formula!$A$35,IF(Formula!XX10>Formula!$B$4,"",CONCATENATE("v",Formula!XX9)),"") ->  | YK7: =IF($A$4=Formula!$A$35,IF(Formula!XY10>Formula!$B$4,"",CONCATENATE("v",Formula!XY9)),"") ->  | YL7: =IF($A$4=Formula!$A$35,IF(Formula!XZ10>Formula!$B$4,"",CONCATENATE("v",Formula!XZ9)),"") ->  | YM7: =IF($A$4=Formula!$A$35,IF(Formula!YA10>Formula!$B$4,"",CONCATENATE("v",Formula!YA9)),"") ->  | YN7: =IF($A$4=Formula!$A$35,IF(Formula!YB10>Formula!$B$4,"",CONCATENATE("v",Formula!YB9)),"") ->  | YO7: =IF($A$4=Formula!$A$35,IF(Formula!YC10>Formula!$B$4,"",CONCATENATE("v",Formula!YC9)),"") ->  | YP7: =IF($A$4=Formula!$A$35,IF(Formula!YD10>Formula!$B$4,"",CONCATENATE("v",Formula!YD9)),"") ->  | YQ7: =IF($A$4=Formula!$A$35,IF(Formula!YE10>Formula!$B$4,"",CONCATENATE("v",Formula!YE9)),"") ->  | YR7: =IF($A$4=Formula!$A$35,IF(Formula!YF10>Formula!$B$4,"",CONCATENATE("v",Formula!YF9)),"") ->  | YS7: =IF($A$4=Formula!$A$35,IF(Formula!YG10>Formula!$B$4,"",CONCATENATE("v",Formula!YG9)),"") ->  | YT7: =IF($A$4=Formula!$A$35,IF(Formula!YH10>Formula!$B$4,"",CONCATENATE("v",Formula!YH9)),"") ->  | YU7: =IF($A$4=Formula!$A$35,IF(Formula!YI10>Formula!$B$4,"",CONCATENATE("v",Formula!YI9)),"") ->  | YV7: =IF($A$4=Formula!$A$35,IF(Formula!YJ10>Formula!$B$4,"",CONCATENATE("v",Formula!YJ9)),"") ->  | YW7: =IF($A$4=Formula!$A$35,IF(Formula!YK10>Formula!$B$4,"",CONCATENATE("v",Formula!YK9)),"") ->  | YX7: =IF($A$4=Formula!$A$35,IF(Formula!YL10>Formula!$B$4,"",CONCATENATE("v",Formula!YL9)),"") ->  | YY7: =IF($A$4=Formula!$A$35,IF(Formula!YM10>Formula!$B$4,"",CONCATENATE("v",Formula!YM9)),"") ->  | YZ7: =IF($A$4=Formula!$A$35,IF(Formula!YN10>Formula!$B$4,"",CONCATENATE("v",Formula!YN9)),"") ->  | ZA7: =IF($A$4=Formula!$A$35,IF(Formula!YO10>Formula!$B$4,"",CONCATENATE("v",Formula!YO9)),"") ->  | ZB7: =IF($A$4=Formula!$A$35,IF(Formula!YP10>Formula!$B$4,"",CONCATENATE("v",Formula!YP9)),"") ->  | ZC7: =IF($A$4=Formula!$A$35,IF(Formula!YQ10>Formula!$B$4,"",CONCATENATE("v",Formula!YQ9)),"") ->  | ZD7: =IF($A$4=Formula!$A$35,IF(Formula!YR10>Formula!$B$4,"",CONCATENATE("v",Formula!YR9)),"") ->  | ZE7: =IF($A$4=Formula!$A$35,IF(Formula!YS10>Formula!$B$4,"",CONCATENATE("v",Formula!YS9)),"") ->  | ZF7: =IF($A$4=Formula!$A$35,IF(Formula!YT10>Formula!$B$4,"",CONCATENATE("v",Formula!YT9)),"") ->  | ZG7: =IF($A$4=Formula!$A$35,IF(Formula!YU10>Formula!$B$4,"",CONCATENATE("v",Formula!YU9)),"") ->  | ZH7: =IF($A$4=Formula!$A$35,IF(Formula!YV10>Formula!$B$4,"",CONCATENATE("v",Formula!YV9)),"") ->  | ZI7: =IF($A$4=Formula!$A$35,IF(Formula!YW10>Formula!$B$4,"",CONCATENATE("v",Formula!YW9)),"") ->  | ZJ7: =IF($A$4=Formula!$A$35,IF(Formula!YX10>Formula!$B$4,"",CONCATENATE("v",Formula!YX9)),"") ->  | ZK7: =IF($A$4=Formula!$A$35,IF(Formula!YY10>Formula!$B$4,"",CONCATENATE("v",Formula!YY9)),"") ->  | ZL7: =IF($A$4=Formula!$A$35,IF(Formula!YZ10>Formula!$B$4,"",CONCATENATE("v",Formula!YZ9)),"") ->  | ZM7: =IF($A$4=Formula!$A$35,IF(Formula!ZA10>Formula!$B$4,"",CONCATENATE("v",Formula!ZA9)),"") ->  | ZN7: =IF($A$4=Formula!$A$35,IF(Formula!ZB10>Formula!$B$4,"",CONCATENATE("v",Formula!ZB9)),"") ->  | ZO7: =IF($A$4=Formula!$A$35,IF(Formula!ZC10>Formula!$B$4,"",CONCATENATE("v",Formula!ZC9)),"") ->  | ZP7: =IF($A$4=Formula!$A$35,IF(Formula!ZD10>Formula!$B$4,"",CONCATENATE("v",Formula!ZD9)),"") ->  | ZQ7: =IF($A$4=Formula!$A$35,IF(Formula!ZE10>Formula!$B$4,"",CONCATENATE("v",Formula!ZE9)),"") ->  | ZR7: =IF($A$4=Formula!$A$35,IF(Formula!ZF10>Formula!$B$4,"",CONCATENATE("v",Formula!ZF9)),"") ->  | ZS7: =IF($A$4=Formula!$A$35,IF(Formula!ZG10>Formula!$B$4,"",CONCATENATE("v",Formula!ZG9)),"") ->  | ZT7: =IF($A$4=Formula!$A$35,IF(Formula!ZH10>Formula!$B$4,"",CONCATENATE("v",Formula!ZH9)),"") ->  | ZU7: =IF($A$4=Formula!$A$35,IF(Formula!ZI10>Formula!$B$4,"",CONCATENATE("v",Formula!ZI9)),"") ->  | ZV7: =IF($A$4=Formula!$A$35,IF(Formula!ZJ10>Formula!$B$4,"",CONCATENATE("v",Formula!ZJ9)),"") ->  | ZW7: =IF($A$4=Formula!$A$35,IF(Formula!ZK10>Formula!$B$4,"",CONCATENATE("v",Formula!ZK9)),"") ->  | ZX7: =IF($A$4=Formula!$A$35,IF(Formula!ZL10>Formula!$B$4,"",CONCATENATE("v",Formula!ZL9)),"") ->  | ZY7: =IF($A$4=Formula!$A$35,IF(Formula!ZM10>Formula!$B$4,"",CONCATENATE("v",Formula!ZM9)),"") ->  | ZZ7: =IF($A$4=Formula!$A$35,IF(Formula!ZN10>Formula!$B$4,"",CONCATENATE("v",Formula!ZN9)),"") -> 
N8: =IF(Formula!B23>Formula!$B$4,"",Formula!B27) -> 22 | O8: =IF(Formula!C23>Formula!$B$4,"",Formula!C27) ->  | P8: =IF(Formula!D23>Formula!$B$4,"",Formula!D27) ->  | Q8: =IF(Formula!E23>Formula!$B$4,"",Formula!E27) ->  | R8: =IF(Formula!F23>Formula!$B$4,"",Formula!F27) ->  | S8: =IF(Formula!G23>Formula!$B$4,"",Formula!G27) ->  | T8: =IF(Formula!H23>Formula!$B$4,"",Formula!H27) ->  | U8: =IF(Formula!I23>Formula!$B$4,"",Formula!I27) -> 23 | V8: =IF(Formula!J23>Formula!$B$4,"",Formula!J27) ->  | W8: =IF(Formula!K23>Formula!$B$4,"",Formula!K27) ->  | X8: =IF(Formula!L23>Formula!$B$4,"",Formula!L27) ->  | Y8: =IF(Formula!M23>Formula!$B$4,"",Formula!M27) ->  | Z8: =IF(Formula!N23>Formula!$B$4,"",Formula!N27) ->  | AA8: =IF(Formula!O23>Formula!$B$4,"",Formula!O27) ->  | AB8: =IF(Formula!P23>Formula!$B$4,"",Formula!P27) -> 24 | AC8: =IF(Formula!Q23>Formula!$B$4,"",Formula!Q27) ->  | AD8: =IF(Formula!R23>Formula!$B$4,"",Formula!R27) ->  | AE8: =IF(Formula!S23>Formula!$B$4,"",Formula!S27) ->  | AF8: =IF(Formula!T23>Formula!$B$4,"",Formula!T27) ->  | AG8: =IF(Formula!U23>Formula!$B$4,"",Formula!U27) ->  | AH8: =IF(Formula!V23>Formula!$B$4,"",Formula!V27) ->  | AI8: =IF(Formula!W23>Formula!$B$4,"",Formula!W27) -> 25 | AJ8: =IF(Formula!X23>Formula!$B$4,"",Formula!X27) ->  | AK8: =IF(Formula!Y23>Formula!$B$4,"",Formula!Y27) ->  | AL8: =IF(Formula!Z23>Formula!$B$4,"",Formula!Z27) ->  | AM8: =IF(Formula!AA23>Formula!$B$4,"",Formula!AA27) ->  | AN8: =IF(Formula!AB23>Formula!$B$4,"",Formula!AB27) ->  | AO8: =IF(Formula!AC23>Formula!$B$4,"",Formula!AC27) ->  | AP8: =IF(Formula!AD23>Formula!$B$4,"",Formula!AD27) -> 26 | AQ8: =IF(Formula!AE23>Formula!$B$4,"",Formula!AE27) ->  | AR8: =IF(Formula!AF23>Formula!$B$4,"",Formula!AF27) ->  | AS8: =IF(Formula!AG23>Formula!$B$4,"",Formula!AG27) ->  | AT8: =IF(Formula!AH23>Formula!$B$4,"",Formula!AH27) ->  | AU8: =IF(Formula!AI23>Formula!$B$4,"",Formula!AI27) ->  | AV8: =IF(Formula!AJ23>Formula!$B$4,"",Formula!AJ27) ->  | AW8: =IF(Formula!AK23>Formula!$B$4,"",Formula!AK27) -> 27 | AX8: =IF(Formula!AL23>Formula!$B$4,"",Formula!AL27) ->  | AY8: =IF(Formula!AM23>Formula!$B$4,"",Formula!AM27) ->  | AZ8: =IF(Formula!AN23>Formula!$B$4,"",Formula!AN27) ->  | BA8: =IF(Formula!AO23>Formula!$B$4,"",Formula!AO27) ->  | BB8: =IF(Formula!AP23>Formula!$B$4,"",Formula!AP27) ->  | BC8: =IF(Formula!AQ23>Formula!$B$4,"",Formula!AQ27) ->  | BD8: =IF(Formula!AR23>Formula!$B$4,"",Formula!AR27) -> 28 | BE8: =IF(Formula!AS23>Formula!$B$4,"",Formula!AS27) ->  | BF8: =IF(Formula!AT23>Formula!$B$4,"",Formula!AT27) ->  | BG8: =IF(Formula!AU23>Formula!$B$4,"",Formula!AU27) ->  | BH8: =IF(Formula!AV23>Formula!$B$4,"",Formula!AV27) ->  | BI8: =IF(Formula!AW23>Formula!$B$4,"",Formula!AW27) ->  | BJ8: =IF(Formula!AX23>Formula!$B$4,"",Formula!AX27) ->  | BK8: =IF(Formula!AY23>Formula!$B$4,"",Formula!AY27) -> 29 | BL8: =IF(Formula!AZ23>Formula!$B$4,"",Formula!AZ27) ->  | BM8: =IF(Formula!BA23>Formula!$B$4,"",Formula!BA27) ->  | BN8: =IF(Formula!BB23>Formula!$B$4,"",Formula!BB27) ->  | BO8: =IF(Formula!BC23>Formula!$B$4,"",Formula!BC27) ->  | BP8: =IF(Formula!BD23>Formula!$B$4,"",Formula!BD27) ->  | BQ8: =IF(Formula!BE23>Formula!$B$4,"",Formula!BE27) ->  | BR8: =IF(Formula!BF23>Formula!$B$4,"",Formula!BF27) -> 30 | BS8: =IF(Formula!BG23>Formula!$B$4,"",Formula!BG27) ->  | BT8: =IF(Formula!BH23>Formula!$B$4,"",Formula!BH27) ->  | BU8: =IF(Formula!BI23>Formula!$B$4,"",Formula!BI27) ->  | BV8: =IF(Formula!BJ23>Formula!$B$4,"",Formula!BJ27) ->  | BW8: =IF(Formula!BK23>Formula!$B$4,"",Formula!BK27) ->  | BX8: =IF(Formula!BL23>Formula!$B$4,"",Formula!BL27) ->  | BY8: =IF(Formula!BM23>Formula!$B$4,"",Formula!BM27) -> 31 | BZ8: =IF(Formula!BN23>Formula!$B$4,"",Formula!BN27) ->  | CA8: =IF(Formula!BO23>Formula!$B$4,"",Formula!BO27) ->  | CB8: =IF(Formula!BP23>Formula!$B$4,"",Formula!BP27) ->  | CC8: =IF(Formula!BQ23>Formula!$B$4,"",Formula!BQ27) ->  | CD8: =IF(Formula!BR23>Formula!$B$4,"",Formula!BR27) ->  | CE8: =IF(Formula!BS23>Formula!$B$4,"",Formula!BS27) ->  | CF8: =IF(Formula!BT23>Formula!$B$4,"",Formula!BT27) ->  | CG8: =IF(Formula!BU23>Formula!$B$4,"",Formula!BU27) ->  | CH8: =IF(Formula!BV23>Formula!$B$4,"",Formula!BV27) ->  | CI8: =IF(Formula!BW23>Formula!$B$4,"",Formula!BW27) ->  | CJ8: =IF(Formula!BX23>Formula!$B$4,"",Formula!BX27) ->  | CK8: =IF(Formula!BY23>Formula!$B$4,"",Formula!BY27) ->  | CL8: =IF(Formula!BZ23>Formula!$B$4,"",Formula!BZ27) ->  | CM8: =IF(Formula!CA23>Formula!$B$4,"",Formula!CA27) ->  | CN8: =IF(Formula!CB23>Formula!$B$4,"",Formula!CB27) ->  | CO8: =IF(Formula!CC23>Formula!$B$4,"",Formula!CC27) ->  | CP8: =IF(Formula!CD23>Formula!$B$4,"",Formula!CD27) ->  | CQ8: =IF(Formula!CE23>Formula!$B$4,"",Formula!CE27) ->  | CR8: =IF(Formula!CF23>Formula!$B$4,"",Formula!CF27) ->  | CS8: =IF(Formula!CG23>Formula!$B$4,"",Formula!CG27) ->  | CT8: =IF(Formula!CH23>Formula!$B$4,"",Formula!CH27) ->  | CU8: =IF(Formula!CI23>Formula!$B$4,"",Formula!CI27) ->  | CV8: =IF(Formula!CJ23>Formula!$B$4,"",Formula!CJ27) ->  | CW8: =IF(Formula!CK23>Formula!$B$4,"",Formula!CK27) ->  | CX8: =IF(Formula!CL23>Formula!$B$4,"",Formula!CL27) ->  | CY8: =IF(Formula!CM23>Formula!$B$4,"",Formula!CM27) ->  | CZ8: =IF(Formula!CN23>Formula!$B$4,"",Formula!CN27) ->  | DA8: =IF(Formula!CO23>Formula!$B$4,"",Formula!CO27) ->  | DB8: =IF(Formula!CP23>Formula!$B$4,"",Formula!CP27) ->  | DC8: =IF(Formula!CQ23>Formula!$B$4,"",Formula!CQ27) ->  | DD8: =IF(Formula!CR23>Formula!$B$4,"",Formula!CR27) ->  | DE8: =IF(Formula!CS23>Formula!$B$4,"",Formula!CS27) ->  | DF8: =IF(Formula!CT23>Formula!$B$4,"",Formula!CT27) ->  | DG8: =IF(Formula!CU23>Formula!$B$4,"",Formula!CU27) ->  | DH8: =IF(Formula!CV23>Formula!$B$4,"",Formula!CV27) ->  | DI8: =IF(Formula!CW23>Formula!$B$4,"",Formula!CW27) ->  | DJ8: =IF(Formula!CX23>Formula!$B$4,"",Formula!CX27) ->  | DK8: =IF(Formula!CY23>Formula!$B$4,"",Formula!CY27) ->  | DL8: =IF(Formula!CZ23>Formula!$B$4,"",Formula!CZ27) ->  | DM8: =IF(Formula!DA23>Formula!$B$4,"",Formula!DA27) ->  | DN8: =IF(Formula!DB23>Formula!$B$4,"",Formula!DB27) ->  | DO8: =IF(Formula!DC23>Formula!$B$4,"",Formula!DC27) ->  | DP8: =IF(Formula!DD23>Formula!$B$4,"",Formula!DD27) ->  | DQ8: =IF(Formula!DE23>Formula!$B$4,"",Formula!DE27) ->  | DR8: =IF(Formula!DF23>Formula!$B$4,"",Formula!DF27) ->  | DS8: =IF(Formula!DG23>Formula!$B$4,"",Formula!DG27) ->  | DT8: =IF(Formula!DH23>Formula!$B$4,"",Formula!DH27) ->  | DU8: =IF(Formula!DI23>Formula!$B$4,"",Formula!DI27) ->  | DV8: =IF(Formula!DJ23>Formula!$B$4,"",Formula!DJ27) ->  | DW8: =IF(Formula!DK23>Formula!$B$4,"",Formula!DK27) ->  | DX8: =IF(Formula!DL23>Formula!$B$4,"",Formula!DL27) ->  | DY8: =IF(Formula!DM23>Formula!$B$4,"",Formula!DM27) ->  | DZ8: =IF(Formula!DN23>Formula!$B$4,"",Formula!DN27) ->  | EA8: =IF(Formula!DO23>Formula!$B$4,"",Formula!DO27) ->  | EB8: =IF(Formula!DP23>Formula!$B$4,"",Formula!DP27) ->  | EC8: =IF(Formula!DQ23>Formula!$B$4,"",Formula!DQ27) ->  | ED8: =IF(Formula!DR23>Formula!$B$4,"",Formula!DR27) ->  | EE8: =IF(Formula!DS23>Formula!$B$4,"",Formula!DS27) ->  | EF8: =IF(Formula!DT23>Formula!$B$4,"",Formula!DT27) ->  | EG8: =IF(Formula!DU23>Formula!$B$4,"",Formula!DU27) ->  | EH8: =IF(Formula!DV23>Formula!$B$4,"",Formula!DV27) ->  | EI8: =IF(Formula!DW23>Formula!$B$4,"",Formula!DW27) ->  | EJ8: =IF(Formula!DX23>Formula!$B$4,"",Formula!DX27) ->  | EK8: =IF(Formula!DY23>Formula!$B$4,"",Formula!DY27) ->  | EL8: =IF(Formula!DZ23>Formula!$B$4,"",Formula!DZ27) ->  | EM8: =IF(Formula!EA23>Formula!$B$4,"",Formula!EA27) ->  | EN8: =IF(Formula!EB23>Formula!$B$4,"",Formula!EB27) ->  | EO8: =IF(Formula!EC23>Formula!$B$4,"",Formula!EC27) ->  | EP8: =IF(Formula!ED23>Formula!$B$4,"",Formula!ED27) ->  | EQ8: =IF(Formula!EE23>Formula!$B$4,"",Formula!EE27) ->  | ER8: =IF(Formula!EF23>Formula!$B$4,"",Formula!EF27) ->  | ES8: =IF(Formula!EG23>Formula!$B$4,"",Formula!EG27) ->  | ET8: =IF(Formula!EH23>Formula!$B$4,"",Formula!EH27) ->  | EU8: =IF(Formula!EI23>Formula!$B$4,"",Formula!EI27) ->  | EV8: =IF(Formula!EJ23>Formula!$B$4,"",Formula!EJ27) ->  | EW8: =IF(Formula!EK23>Formula!$B$4,"",Formula!EK27) ->  | EX8: =IF(Formula!EL23>Formula!$B$4,"",Formula!EL27) ->  | EY8: =IF(Formula!EM23>Formula!$B$4,"",Formula!EM27) ->  | EZ8: =IF(Formula!EN23>Formula!$B$4,"",Formula!EN27) ->  | FA8: =IF(Formula!EO23>Formula!$B$4,"",Formula!EO27) ->  | FB8: =IF(Formula!EP23>Formula!$B$4,"",Formula!EP27) ->  | FC8: =IF(Formula!EQ23>Formula!$B$4,"",Formula!EQ27) ->  | FD8: =IF(Formula!ER23>Formula!$B$4,"",Formula!ER27) ->  | FE8: =IF(Formula!ES23>Formula!$B$4,"",Formula!ES27) ->  | FF8: =IF(Formula!ET23>Formula!$B$4,"",Formula!ET27) ->  | FG8: =IF(Formula!EU23>Formula!$B$4,"",Formula!EU27) ->  | FH8: =IF(Formula!EV23>Formula!$B$4,"",Formula!EV27) ->  | FI8: =IF(Formula!EW23>Formula!$B$4,"",Formula!EW27) ->  | FJ8: =IF(Formula!EX23>Formula!$B$4,"",Formula!EX27) ->  | FK8: =IF(Formula!EY23>Formula!$B$4,"",Formula!EY27) ->  | FL8: =IF(Formula!EZ23>Formula!$B$4,"",Formula!EZ27) ->  | FM8: =IF(Formula!FA23>Formula!$B$4,"",Formula!FA27) ->  | FN8: =IF(Formula!FB23>Formula!$B$4,"",Formula!FB27) ->  | FO8: =IF(Formula!FC23>Formula!$B$4,"",Formula!FC27) ->  | FP8: =IF(Formula!FD23>Formula!$B$4,"",Formula!FD27) ->  | FQ8: =IF(Formula!FE23>Formula!$B$4,"",Formula!FE27) ->  | FR8: =IF(Formula!FF23>Formula!$B$4,"",Formula!FF27) ->  | FS8: =IF(Formula!FG23>Formula!$B$4,"",Formula!FG27) ->  | FT8: =IF(Formula!FH23>Formula!$B$4,"",Formula!FH27) ->  | FU8: =IF(Formula!FI23>Formula!$B$4,"",Formula!FI27) ->  | FV8: =IF(Formula!FJ23>Formula!$B$4,"",Formula!FJ27) ->  | FW8: =IF(Formula!FK23>Formula!$B$4,"",Formula!FK27) ->  | FX8: =IF(Formula!FL23>Formula!$B$4,"",Formula!FL27) ->  | FY8: =IF(Formula!FM23>Formula!$B$4,"",Formula!FM27) ->  | FZ8: =IF(Formula!FN23>Formula!$B$4,"",Formula!FN27) ->  | GA8: =IF(Formula!FO23>Formula!$B$4,"",Formula!FO27) ->  | GB8: =IF(Formula!FP23>Formula!$B$4,"",Formula!FP27) ->  | GC8: =IF(Formula!FQ23>Formula!$B$4,"",Formula!FQ27) ->  | GD8: =IF(Formula!FR23>Formula!$B$4,"",Formula!FR27) ->  | GE8: =IF(Formula!FS23>Formula!$B$4,"",Formula!FS27) ->  | GF8: =IF(Formula!FT23>Formula!$B$4,"",Formula!FT27) ->  | GG8: =IF(Formula!FU23>Formula!$B$4,"",Formula!FU27) ->  | GH8: =IF(Formula!FV23>Formula!$B$4,"",Formula!FV27) ->  | GI8: =IF(Formula!FW23>Formula!$B$4,"",Formula!FW27) ->  | GJ8: =IF(Formula!FX23>Formula!$B$4,"",Formula!FX27) ->  | GK8: =IF(Formula!FY23>Formula!$B$4,"",Formula!FY27) ->  | GL8: =IF(Formula!FZ23>Formula!$B$4,"",Formula!FZ27) ->  | GM8: =IF(Formula!GA23>Formula!$B$4,"",Formula!GA27) ->  | GN8: =IF(Formula!GB23>Formula!$B$4,"",Formula!GB27) ->  | GO8: =IF(Formula!GC23>Formula!$B$4,"",Formula!GC27) ->  | GP8: =IF(Formula!GD23>Formula!$B$4,"",Formula!GD27) ->  | GQ8: =IF(Formula!GE23>Formula!$B$4,"",Formula!GE27) ->  | GR8: =IF(Formula!GF23>Formula!$B$4,"",Formula!GF27) ->  | GS8: =IF(Formula!GG23>Formula!$B$4,"",Formula!GG27) ->  | GT8: =IF(Formula!GH23>Formula!$B$4,"",Formula!GH27) ->  | GU8: =IF(Formula!GI23>Formula!$B$4,"",Formula!GI27) ->  | GV8: =IF(Formula!GJ23>Formula!$B$4,"",Formula!GJ27) ->  | GW8: =IF(Formula!GK23>Formula!$B$4,"",Formula!GK27) ->  | GX8: =IF(Formula!GL23>Formula!$B$4,"",Formula!GL27) ->  | GY8: =IF(Formula!GM23>Formula!$B$4,"",Formula!GM27) ->  | GZ8: =IF(Formula!GN23>Formula!$B$4,"",Formula!GN27) ->  | HA8: =IF(Formula!GO23>Formula!$B$4,"",Formula!GO27) ->  | HB8: =IF(Formula!GP23>Formula!$B$4,"",Formula!GP27) ->  | HC8: =IF(Formula!GQ23>Formula!$B$4,"",Formula!GQ27) ->  | HD8: =IF(Formula!GR23>Formula!$B$4,"",Formula!GR27) ->  | HE8: =IF(Formula!GS23>Formula!$B$4,"",Formula!GS27) ->  | HF8: =IF(Formula!GT23>Formula!$B$4,"",Formula!GT27) ->  | HG8: =IF(Formula!GU23>Formula!$B$4,"",Formula!GU27) ->  | HH8: =IF(Formula!GV23>Formula!$B$4,"",Formula!GV27) ->  | HI8: =IF(Formula!GW23>Formula!$B$4,"",Formula!GW27) ->  | HJ8: =IF(Formula!GX23>Formula!$B$4,"",Formula!GX27) ->  | HK8: =IF(Formula!GY23>Formula!$B$4,"",Formula!GY27) ->  | HL8: =IF(Formula!GZ23>Formula!$B$4,"",Formula!GZ27) ->  | HM8: =IF(Formula!HA23>Formula!$B$4,"",Formula!HA27) ->  | HN8: =IF(Formula!HB23>Formula!$B$4,"",Formula!HB27) ->  | HO8: =IF(Formula!HC23>Formula!$B$4,"",Formula!HC27) ->  | HP8: =IF(Formula!HD23>Formula!$B$4,"",Formula!HD27) ->  | HQ8: =IF(Formula!HE23>Formula!$B$4,"",Formula!HE27) ->  | HR8: =IF(Formula!HF23>Formula!$B$4,"",Formula!HF27) ->  | HS8: =IF(Formula!HG23>Formula!$B$4,"",Formula!HG27) ->  | HT8: =IF(Formula!HH23>Formula!$B$4,"",Formula!HH27) ->  | HU8: =IF(Formula!HI23>Formula!$B$4,"",Formula!HI27) ->  | HV8: =IF(Formula!HJ23>Formula!$B$4,"",Formula!HJ27) ->  | HW8: =IF(Formula!HK23>Formula!$B$4,"",Formula!HK27) ->  | HX8: =IF(Formula!HL23>Formula!$B$4,"",Formula!HL27) ->  | HY8: =IF(Formula!HM23>Formula!$B$4,"",Formula!HM27) ->  | HZ8: =IF(Formula!HN23>Formula!$B$4,"",Formula!HN27) ->  | IA8: =IF(Formula!HO23>Formula!$B$4,"",Formula!HO27) ->  | IB8: =IF(Formula!HP23>Formula!$B$4,"",Formula!HP27) ->  | IC8: =IF(Formula!HQ23>Formula!$B$4,"",Formula!HQ27) ->  | ID8: =IF(Formula!HR23>Formula!$B$4,"",Formula!HR27) ->  | IE8: =IF(Formula!HS23>Formula!$B$4,"",Formula!HS27) ->  | IF8: =IF(Formula!HT23>Formula!$B$4,"",Formula!HT27) ->  | IG8: =IF(Formula!HU23>Formula!$B$4,"",Formula!HU27) ->  | IH8: =IF(Formula!HV23>Formula!$B$4,"",Formula!HV27) ->  | II8: =IF(Formula!HW23>Formula!$B$4,"",Formula!HW27) ->  | IJ8: =IF(Formula!HX23>Formula!$B$4,"",Formula!HX27) ->  | IK8: =IF(Formula!HY23>Formula!$B$4,"",Formula!HY27) ->  | IL8: =IF(Formula!HZ23>Formula!$B$4,"",Formula!HZ27) ->  | IM8: =IF(Formula!IA23>Formula!$B$4,"",Formula!IA27) ->  | IN8: =IF(Formula!IB23>Formula!$B$4,"",Formula!IB27) ->  | IO8: =IF(Formula!IC23>Formula!$B$4,"",Formula!IC27) ->  | IP8: =IF(Formula!ID23>Formula!$B$4,"",Formula!ID27) ->  | IQ8: =IF(Formula!IE23>Formula!$B$4,"",Formula!IE27) ->  | IR8: =IF(Formula!IF23>Formula!$B$4,"",Formula!IF27) ->  | IS8: =IF(Formula!IG23>Formula!$B$4,"",Formula!IG27) ->  | IT8: =IF(Formula!IH23>Formula!$B$4,"",Formula!IH27) ->  | IU8: =IF(Formula!II23>Formula!$B$4,"",Formula!II27) ->  | IV8: =IF(Formula!IJ23>Formula!$B$4,"",Formula!IJ27) ->  | IW8: =IF(Formula!IK23>Formula!$B$4,"",Formula!IK27) ->  | IX8: =IF(Formula!IL23>Formula!$B$4,"",Formula!IL27) ->  | IY8: =IF(Formula!IM23>Formula!$B$4,"",Formula!IM27) ->  | IZ8: =IF(Formula!IN23>Formula!$B$4,"",Formula!IN27) ->  | JA8: =IF(Formula!IO23>Formula!$B$4,"",Formula!IO27) ->  | JB8: =IF(Formula!IP23>Formula!$B$4,"",Formula!IP27) ->  | JC8: =IF(Formula!IQ23>Formula!$B$4,"",Formula!IQ27) ->  | JD8: =IF(Formula!IR23>Formula!$B$4,"",Formula!IR27) ->  | JE8: =IF(Formula!IS23>Formula!$B$4,"",Formula!IS27) ->  | JF8: =IF(Formula!IT23>Formula!$B$4,"",Formula!IT27) ->  | JG8: =IF(Formula!IU23>Formula!$B$4,"",Formula!IU27) ->  | JH8: =IF(Formula!IV23>Formula!$B$4,"",Formula!IV27) ->  | JI8: =IF(Formula!IW23>Formula!$B$4,"",Formula!IW27) ->  | JJ8: =IF(Formula!IX23>Formula!$B$4,"",Formula!IX27) ->  | JK8: =IF(Formula!IY23>Formula!$B$4,"",Formula!IY27) ->  | JL8: =IF(Formula!IZ23>Formula!$B$4,"",Formula!IZ27) ->  | JM8: =IF(Formula!JA23>Formula!$B$4,"",Formula!JA27) ->  | JN8: =IF(Formula!JB23>Formula!$B$4,"",Formula!JB27) ->  | JO8: =IF(Formula!JC23>Formula!$B$4,"",Formula!JC27) ->  | JP8: =IF(Formula!JD23>Formula!$B$4,"",Formula!JD27) ->  | JQ8: =IF(Formula!JE23>Formula!$B$4,"",Formula!JE27) ->  | JR8: =IF(Formula!JF23>Formula!$B$4,"",Formula!JF27) ->  | JS8: =IF(Formula!JG23>Formula!$B$4,"",Formula!JG27) ->  | JT8: =IF(Formula!JH23>Formula!$B$4,"",Formula!JH27) ->  | JU8: =IF(Formula!JI23>Formula!$B$4,"",Formula!JI27) ->  | JV8: =IF(Formula!JJ23>Formula!$B$4,"",Formula!JJ27) ->  | JW8: =IF(Formula!JK23>Formula!$B$4,"",Formula!JK27) ->  | JX8: =IF(Formula!JL23>Formula!$B$4,"",Formula!JL27) ->  | JY8: =IF(Formula!JM23>Formula!$B$4,"",Formula!JM27) ->  | JZ8: =IF(Formula!JN23>Formula!$B$4,"",Formula!JN27) ->  | KA8: =IF(Formula!JO23>Formula!$B$4,"",Formula!JO27) ->  | KB8: =IF(Formula!JP23>Formula!$B$4,"",Formula!JP27) ->  | KC8: =IF(Formula!JQ23>Formula!$B$4,"",Formula!JQ27) ->  | KD8: =IF(Formula!JR23>Formula!$B$4,"",Formula!JR27) ->  | KE8: =IF(Formula!JS23>Formula!$B$4,"",Formula!JS27) ->  | KF8: =IF(Formula!JT23>Formula!$B$4,"",Formula!JT27) ->  | KG8: =IF(Formula!JU23>Formula!$B$4,"",Formula!JU27) ->  | KH8: =IF(Formula!JV23>Formula!$B$4,"",Formula!JV27) ->  | KI8: =IF(Formula!JW23>Formula!$B$4,"",Formula!JW27) ->  | KJ8: =IF(Formula!JX23>Formula!$B$4,"",Formula!JX27) ->  | KK8: =IF(Formula!JY23>Formula!$B$4,"",Formula!JY27) ->  | KL8: =IF(Formula!JZ23>Formula!$B$4,"",Formula!JZ27) ->  | KM8: =IF(Formula!KA23>Formula!$B$4,"",Formula!KA27) ->  | KN8: =IF(Formula!KB23>Formula!$B$4,"",Formula!KB27) ->  | KO8: =IF(Formula!KC23>Formula!$B$4,"",Formula!KC27) ->  | KP8: =IF(Formula!KD23>Formula!$B$4,"",Formula!KD27) ->  | KQ8: =IF(Formula!KE23>Formula!$B$4,"",Formula!KE27) ->  | KR8: =IF(Formula!KF23>Formula!$B$4,"",Formula!KF27) ->  | KS8: =IF(Formula!KG23>Formula!$B$4,"",Formula!KG27) ->  | KT8: =IF(Formula!KH23>Formula!$B$4,"",Formula!KH27) ->  | KU8: =IF(Formula!KI23>Formula!$B$4,"",Formula!KI27) ->  | KV8: =IF(Formula!KJ23>Formula!$B$4,"",Formula!KJ27) ->  | KW8: =IF(Formula!KK23>Formula!$B$4,"",Formula!KK27) ->  | KX8: =IF(Formula!KL23>Formula!$B$4,"",Formula!KL27) ->  | KY8: =IF(Formula!KM23>Formula!$B$4,"",Formula!KM27) ->  | KZ8: =IF(Formula!KN23>Formula!$B$4,"",Formula!KN27) ->  | LA8: =IF(Formula!KO23>Formula!$B$4,"",Formula!KO27) ->  | LB8: =IF(Formula!KP23>Formula!$B$4,"",Formula!KP27) ->  | LC8: =IF(Formula!KQ23>Formula!$B$4,"",Formula!KQ27) ->  | LD8: =IF(Formula!KR23>Formula!$B$4,"",Formula!KR27) ->  | LE8: =IF(Formula!KS23>Formula!$B$4,"",Formula!KS27) ->  | LF8: =IF(Formula!KT23>Formula!$B$4,"",Formula!KT27) ->  | LG8: =IF(Formula!KU23>Formula!$B$4,"",Formula!KU27) ->  | LH8: =IF(Formula!KV23>Formula!$B$4,"",Formula!KV27) ->  | LI8: =IF(Formula!KW23>Formula!$B$4,"",Formula!KW27) ->  | LJ8: =IF(Formula!KX23>Formula!$B$4,"",Formula!KX27) ->  | LK8: =IF(Formula!KY23>Formula!$B$4,"",Formula!KY27) ->  | LL8: =IF(Formula!KZ23>Formula!$B$4,"",Formula!KZ27) ->  | LM8: =IF(Formula!LA23>Formula!$B$4,"",Formula!LA27) ->  | LN8: =IF(Formula!LB23>Formula!$B$4,"",Formula!LB27) ->  | LO8: =IF(Formula!LC23>Formula!$B$4,"",Formula!LC27) ->  | LP8: =IF(Formula!LD23>Formula!$B$4,"",Formula!LD27) ->  | LQ8: =IF(Formula!LE23>Formula!$B$4,"",Formula!LE27) ->  | LR8: =IF(Formula!LF23>Formula!$B$4,"",Formula!LF27) ->  | LS8: =IF(Formula!LG23>Formula!$B$4,"",Formula!LG27) ->  | LT8: =IF(Formula!LH23>Formula!$B$4,"",Formula!LH27) ->  | LU8: =IF(Formula!LI23>Formula!$B$4,"",Formula!LI27) ->  | LV8: =IF(Formula!LJ23>Formula!$B$4,"",Formula!LJ27) ->  | LW8: =IF(Formula!LK23>Formula!$B$4,"",Formula!LK27) ->  | LX8: =IF(Formula!LL23>Formula!$B$4,"",Formula!LL27) ->  | LY8: =IF(Formula!LM23>Formula!$B$4,"",Formula!LM27) ->  | LZ8: =IF(Formula!LN23>Formula!$B$4,"",Formula!LN27) ->  | MA8: =IF(Formula!LO23>Formula!$B$4,"",Formula!LO27) ->  | MB8: =IF(Formula!LP23>Formula!$B$4,"",Formula!LP27) ->  | MC8: =IF(Formula!LQ23>Formula!$B$4,"",Formula!LQ27) ->  | MD8: =IF(Formula!LR23>Formula!$B$4,"",Formula!LR27) ->  | ME8: =IF(Formula!LS23>Formula!$B$4,"",Formula!LS27) ->  | MF8: =IF(Formula!LT23>Formula!$B$4,"",Formula!LT27) ->  | MG8: =IF(Formula!LU23>Formula!$B$4,"",Formula!LU27) ->  | MH8: =IF(Formula!LV23>Formula!$B$4,"",Formula!LV27) ->  | MI8: =IF(Formula!LW23>Formula!$B$4,"",Formula!LW27) ->  | MJ8: =IF(Formula!LX23>Formula!$B$4,"",Formula!LX27) ->  | MK8: =IF(Formula!LY23>Formula!$B$4,"",Formula!LY27) ->  | ML8: =IF(Formula!LZ23>Formula!$B$4,"",Formula!LZ27) ->  | MM8: =IF(Formula!MA23>Formula!$B$4,"",Formula!MA27) ->  | MN8: =IF(Formula!MB23>Formula!$B$4,"",Formula!MB27) ->  | MO8: =IF(Formula!MC23>Formula!$B$4,"",Formula!MC27) ->  | MP8: =IF(Formula!MD23>Formula!$B$4,"",Formula!MD27) ->  | MQ8: =IF(Formula!ME23>Formula!$B$4,"",Formula!ME27) ->  | MR8: =IF(Formula!MF23>Formula!$B$4,"",Formula!MF27) ->  | MS8: =IF(Formula!MG23>Formula!$B$4,"",Formula!MG27) ->  | MT8: =IF(Formula!MH23>Formula!$B$4,"",Formula!MH27) ->  | MU8: =IF(Formula!MI23>Formula!$B$4,"",Formula!MI27) ->  | MV8: =IF(Formula!MJ23>Formula!$B$4,"",Formula!MJ27) ->  | MW8: =IF(Formula!MK23>Formula!$B$4,"",Formula!MK27) ->  | MX8: =IF(Formula!ML23>Formula!$B$4,"",Formula!ML27) ->  | MY8: =IF(Formula!MM23>Formula!$B$4,"",Formula!MM27) ->  | MZ8: =IF(Formula!MN23>Formula!$B$4,"",Formula!MN27) ->  | NA8: =IF(Formula!MO23>Formula!$B$4,"",Formula!MO27) ->  | NB8: =IF(Formula!MP23>Formula!$B$4,"",Formula!MP27) ->  | NC8: =IF(Formula!MQ23>Formula!$B$4,"",Formula!MQ27) ->  | ND8: =IF(Formula!MR23>Formula!$B$4,"",Formula!MR27) ->  | NE8: =IF(Formula!MS23>Formula!$B$4,"",Formula!MS27) ->  | NF8: =IF(Formula!MT23>Formula!$B$4,"",Formula!MT27) ->  | NG8: =IF(Formula!MU23>Formula!$B$4,"",Formula!MU27) ->  | NH8: =IF(Formula!MV23>Formula!$B$4,"",Formula!MV27) ->  | NI8: =IF(Formula!MW23>Formula!$B$4,"",Formula!MW27) ->  | NJ8: =IF(Formula!MX23>Formula!$B$4,"",Formula!MX27) ->  | NK8: =IF(Formula!MY23>Formula!$B$4,"",Formula!MY27) ->  | NL8: =IF(Formula!MZ23>Formula!$B$4,"",Formula!MZ27) ->  | NM8: =IF(Formula!NA23>Formula!$B$4,"",Formula!NA27) ->  | NN8: =IF(Formula!NB23>Formula!$B$4,"",Formula!NB27) ->  | NO8: =IF(Formula!NC23>Formula!$B$4,"",Formula!NC27) ->  | NP8: =IF(Formula!ND23>Formula!$B$4,"",Formula!ND27) ->  | NQ8: =IF(Formula!NE23>Formula!$B$4,"",Formula!NE27) ->  | NR8: =IF(Formula!NF23>Formula!$B$4,"",Formula!NF27) ->  | NS8: =IF(Formula!NG23>Formula!$B$4,"",Formula!NG27) ->  | NT8: =IF(Formula!NH23>Formula!$B$4,"",Formula!NH27) ->  | NU8: =IF(Formula!NI23>Formula!$B$4,"",Formula!NI27) ->  | NV8: =IF(Formula!NJ23>Formula!$B$4,"",Formula!NJ27) ->  | NW8: =IF(Formula!NK23>Formula!$B$4,"",Formula!NK27) ->  | NX8: =IF(Formula!NL23>Formula!$B$4,"",Formula!NL27) ->  | NY8: =IF(Formula!NM23>Formula!$B$4,"",Formula!NM27) ->  | NZ8: =IF(Formula!NN23>Formula!$B$4,"",Formula!NN27) ->  | OA8: =IF(Formula!NO23>Formula!$B$4,"",Formula!NO27) ->  | OB8: =IF(Formula!NP23>Formula!$B$4,"",Formula!NP27) ->  | OC8: =IF(Formula!NQ23>Formula!$B$4,"",Formula!NQ27) ->  | OD8: =IF(Formula!NR23>Formula!$B$4,"",Formula!NR27) ->  | OE8: =IF(Formula!NS23>Formula!$B$4,"",Formula!NS27) ->  | OF8: =IF(Formula!NT23>Formula!$B$4,"",Formula!NT27) ->  | OG8: =IF(Formula!NU23>Formula!$B$4,"",Formula!NU27) ->  | OH8: =IF(Formula!NV23>Formula!$B$4,"",Formula!NV27) ->  | OI8: =IF(Formula!NW23>Formula!$B$4,"",Formula!NW27) ->  | OJ8: =IF(Formula!NX23>Formula!$B$4,"",Formula!NX27) ->  | OK8: =IF(Formula!NY23>Formula!$B$4,"",Formula!NY27) ->  | OL8: =IF(Formula!NZ23>Formula!$B$4,"",Formula!NZ27) ->  | OM8: =IF(Formula!OA23>Formula!$B$4,"",Formula!OA27) ->  | ON8: =IF(Formula!OB23>Formula!$B$4,"",Formula!OB27) ->  | OO8: =IF(Formula!OC23>Formula!$B$4,"",Formula!OC27) ->  | OP8: =IF(Formula!OD23>Formula!$B$4,"",Formula!OD27) ->  | OQ8: =IF(Formula!OE23>Formula!$B$4,"",Formula!OE27) ->  | OR8: =IF(Formula!OF23>Formula!$B$4,"",Formula!OF27) ->  | OS8: =IF(Formula!OG23>Formula!$B$4,"",Formula!OG27) ->  | OT8: =IF(Formula!OH23>Formula!$B$4,"",Formula!OH27) ->  | OU8: =IF(Formula!OI23>Formula!$B$4,"",Formula!OI27) ->  | OV8: =IF(Formula!OJ23>Formula!$B$4,"",Formula!OJ27) ->  | OW8: =IF(Formula!OK23>Formula!$B$4,"",Formula!OK27) ->  | OX8: =IF(Formula!OL23>Formula!$B$4,"",Formula!OL27) ->  | OY8: =IF(Formula!OM23>Formula!$B$4,"",Formula!OM27) ->  | OZ8: =IF(Formula!ON23>Formula!$B$4,"",Formula!ON27) ->  | PA8: =IF(Formula!OO23>Formula!$B$4,"",Formula!OO27) ->  | PB8: =IF(Formula!OP23>Formula!$B$4,"",Formula!OP27) ->  | PC8: =IF(Formula!OQ23>Formula!$B$4,"",Formula!OQ27) ->  | PD8: =IF(Formula!OR23>Formula!$B$4,"",Formula!OR27) ->  | PE8: =IF(Formula!OS23>Formula!$B$4,"",Formula!OS27) ->  | PF8: =IF(Formula!OT23>Formula!$B$4,"",Formula!OT27) ->  | PG8: =IF(Formula!OU23>Formula!$B$4,"",Formula!OU27) ->  | PH8: =IF(Formula!OV23>Formula!$B$4,"",Formula!OV27) ->  | PI8: =IF(Formula!OW23>Formula!$B$4,"",Formula!OW27) ->  | PJ8: =IF(Formula!OX23>Formula!$B$4,"",Formula!OX27) ->  | PK8: =IF(Formula!OY23>Formula!$B$4,"",Formula!OY27) ->  | PL8: =IF(Formula!OZ23>Formula!$B$4,"",Formula!OZ27) ->  | PM8: =IF(Formula!PA23>Formula!$B$4,"",Formula!PA27) ->  | PN8: =IF(Formula!PB23>Formula!$B$4,"",Formula!PB27) ->  | PO8: =IF(Formula!PC23>Formula!$B$4,"",Formula!PC27) ->  | PP8: =IF(Formula!PD23>Formula!$B$4,"",Formula!PD27) ->  | PQ8: =IF(Formula!PE23>Formula!$B$4,"",Formula!PE27) ->  | PR8: =IF(Formula!PF23>Formula!$B$4,"",Formula!PF27) ->  | PS8: =IF(Formula!PG23>Formula!$B$4,"",Formula!PG27) ->  | PT8: =IF(Formula!PH23>Formula!$B$4,"",Formula!PH27) ->  | PU8: =IF(Formula!PI23>Formula!$B$4,"",Formula!PI27) ->  | PV8: =IF(Formula!PJ23>Formula!$B$4,"",Formula!PJ27) ->  | PW8: =IF(Formula!PK23>Formula!$B$4,"",Formula!PK27) ->  | PX8: =IF(Formula!PL23>Formula!$B$4,"",Formula!PL27) ->  | PY8: =IF(Formula!PM23>Formula!$B$4,"",Formula!PM27) ->  | PZ8: =IF(Formula!PN23>Formula!$B$4,"",Formula!PN27) ->  | QA8: =IF(Formula!PO23>Formula!$B$4,"",Formula!PO27) ->  | QB8: =IF(Formula!PP23>Formula!$B$4,"",Formula!PP27) ->  | QC8: =IF(Formula!PQ23>Formula!$B$4,"",Formula!PQ27) ->  | QD8: =IF(Formula!PR23>Formula!$B$4,"",Formula!PR27) ->  | QE8: =IF(Formula!PS23>Formula!$B$4,"",Formula!PS27) ->  | QF8: =IF(Formula!PT23>Formula!$B$4,"",Formula!PT27) ->  | QG8: =IF(Formula!PU23>Formula!$B$4,"",Formula!PU27) ->  | QH8: =IF(Formula!PV23>Formula!$B$4,"",Formula!PV27) ->  | QI8: =IF(Formula!PW23>Formula!$B$4,"",Formula!PW27) ->  | QJ8: =IF(Formula!PX23>Formula!$B$4,"",Formula!PX27) ->  | QK8: =IF(Formula!PY23>Formula!$B$4,"",Formula!PY27) ->  | QL8: =IF(Formula!PZ23>Formula!$B$4,"",Formula!PZ27) ->  | QM8: =IF(Formula!QA23>Formula!$B$4,"",Formula!QA27) ->  | QN8: =IF(Formula!QB23>Formula!$B$4,"",Formula!QB27) ->  | QO8: =IF(Formula!QC23>Formula!$B$4,"",Formula!QC27) ->  | QP8: =IF(Formula!QD23>Formula!$B$4,"",Formula!QD27) ->  | QQ8: =IF(Formula!QE23>Formula!$B$4,"",Formula!QE27) ->  | QR8: =IF(Formula!QF23>Formula!$B$4,"",Formula!QF27) ->  | QS8: =IF(Formula!QG23>Formula!$B$4,"",Formula!QG27) ->  | QT8: =IF(Formula!QH23>Formula!$B$4,"",Formula!QH27) ->  | QU8: =IF(Formula!QI23>Formula!$B$4,"",Formula!QI27) ->  | QV8: =IF(Formula!QJ23>Formula!$B$4,"",Formula!QJ27) ->  | QW8: =IF(Formula!QK23>Formula!$B$4,"",Formula!QK27) ->  | QX8: =IF(Formula!QL23>Formula!$B$4,"",Formula!QL27) ->  | QY8: =IF(Formula!QM23>Formula!$B$4,"",Formula!QM27) ->  | QZ8: =IF(Formula!QN23>Formula!$B$4,"",Formula!QN27) ->  | RA8: =IF(Formula!QO23>Formula!$B$4,"",Formula!QO27) ->  | RB8: =IF(Formula!QP23>Formula!$B$4,"",Formula!QP27) ->  | RC8: =IF(Formula!QQ23>Formula!$B$4,"",Formula!QQ27) ->  | RD8: =IF(Formula!QR23>Formula!$B$4,"",Formula!QR27) ->  | RE8: =IF(Formula!QS23>Formula!$B$4,"",Formula!QS27) ->  | RF8: =IF(Formula!QT23>Formula!$B$4,"",Formula!QT27) ->  | RG8: =IF(Formula!QU23>Formula!$B$4,"",Formula!QU27) ->  | RH8: =IF(Formula!QV23>Formula!$B$4,"",Formula!QV27) ->  | RI8: =IF(Formula!QW23>Formula!$B$4,"",Formula!QW27) ->  | RJ8: =IF(Formula!QX23>Formula!$B$4,"",Formula!QX27) ->  | RK8: =IF(Formula!QY23>Formula!$B$4,"",Formula!QY27) ->  | RL8: =IF(Formula!QZ23>Formula!$B$4,"",Formula!QZ27) ->  | RM8: =IF(Formula!RA23>Formula!$B$4,"",Formula!RA27) ->  | RN8: =IF(Formula!RB23>Formula!$B$4,"",Formula!RB27) ->  | RO8: =IF(Formula!RC23>Formula!$B$4,"",Formula!RC27) ->  | RP8: =IF(Formula!RD23>Formula!$B$4,"",Formula!RD27) ->  | RQ8: =IF(Formula!RE23>Formula!$B$4,"",Formula!RE27) ->  | RR8: =IF(Formula!RF23>Formula!$B$4,"",Formula!RF27) ->  | RS8: =IF(Formula!RG23>Formula!$B$4,"",Formula!RG27) ->  | RT8: =IF(Formula!RH23>Formula!$B$4,"",Formula!RH27) ->  | RU8: =IF(Formula!RI23>Formula!$B$4,"",Formula!RI27) ->  | RV8: =IF(Formula!RJ23>Formula!$B$4,"",Formula!RJ27) ->  | RW8: =IF(Formula!RK23>Formula!$B$4,"",Formula!RK27) ->  | RX8: =IF(Formula!RL23>Formula!$B$4,"",Formula!RL27) ->  | RY8: =IF(Formula!RM23>Formula!$B$4,"",Formula!RM27) ->  | RZ8: =IF(Formula!RN23>Formula!$B$4,"",Formula!RN27) ->  | SA8: =IF(Formula!RO23>Formula!$B$4,"",Formula!RO27) ->  | SB8: =IF(Formula!RP23>Formula!$B$4,"",Formula!RP27) ->  | SC8: =IF(Formula!RQ23>Formula!$B$4,"",Formula!RQ27) ->  | SD8: =IF(Formula!RR23>Formula!$B$4,"",Formula!RR27) ->  | SE8: =IF(Formula!RS23>Formula!$B$4,"",Formula!RS27) ->  | SF8: =IF(Formula!RT23>Formula!$B$4,"",Formula!RT27) ->  | SG8: =IF(Formula!RU23>Formula!$B$4,"",Formula!RU27) ->  | SH8: =IF(Formula!RV23>Formula!$B$4,"",Formula!RV27) ->  | SI8: =IF(Formula!RW23>Formula!$B$4,"",Formula!RW27) ->  | SJ8: =IF(Formula!RX23>Formula!$B$4,"",Formula!RX27) ->  | SK8: =IF(Formula!RY23>Formula!$B$4,"",Formula!RY27) ->  | SL8: =IF(Formula!RZ23>Formula!$B$4,"",Formula!RZ27) ->  | SM8: =IF(Formula!SA23>Formula!$B$4,"",Formula!SA27) ->  | SN8: =IF(Formula!SB23>Formula!$B$4,"",Formula!SB27) ->  | SO8: =IF(Formula!SC23>Formula!$B$4,"",Formula!SC27) ->  | SP8: =IF(Formula!SD23>Formula!$B$4,"",Formula!SD27) ->  | SQ8: =IF(Formula!SE23>Formula!$B$4,"",Formula!SE27) ->  | SR8: =IF(Formula!SF23>Formula!$B$4,"",Formula!SF27) ->  | SS8: =IF(Formula!SG23>Formula!$B$4,"",Formula!SG27) ->  | ST8: =IF(Formula!SH23>Formula!$B$4,"",Formula!SH27) ->  | SU8: =IF(Formula!SI23>Formula!$B$4,"",Formula!SI27) ->  | SV8: =IF(Formula!SJ23>Formula!$B$4,"",Formula!SJ27) ->  | SW8: =IF(Formula!SK23>Formula!$B$4,"",Formula!SK27) ->  | SX8: =IF(Formula!SL23>Formula!$B$4,"",Formula!SL27) ->  | SY8: =IF(Formula!SM23>Formula!$B$4,"",Formula!SM27) ->  | SZ8: =IF(Formula!SN23>Formula!$B$4,"",Formula!SN27) ->  | TA8: =IF(Formula!SO23>Formula!$B$4,"",Formula!SO27) ->  | TB8: =IF(Formula!SP23>Formula!$B$4,"",Formula!SP27) ->  | TC8: =IF(Formula!SQ23>Formula!$B$4,"",Formula!SQ27) ->  | TD8: =IF(Formula!SR23>Formula!$B$4,"",Formula!SR27) ->  | TE8: =IF(Formula!SS23>Formula!$B$4,"",Formula!SS27) ->  | TF8: =IF(Formula!ST23>Formula!$B$4,"",Formula!ST27) ->  | TG8: =IF(Formula!SU23>Formula!$B$4,"",Formula!SU27) ->  | TH8: =IF(Formula!SV23>Formula!$B$4,"",Formula!SV27) ->  | TI8: =IF(Formula!SW23>Formula!$B$4,"",Formula!SW27) ->  | TJ8: =IF(Formula!SX23>Formula!$B$4,"",Formula!SX27) ->  | TK8: =IF(Formula!SY23>Formula!$B$4,"",Formula!SY27) ->  | TL8: =IF(Formula!SZ23>Formula!$B$4,"",Formula!SZ27) ->  | TM8: =IF(Formula!TA23>Formula!$B$4,"",Formula!TA27) ->  | TN8: =IF(Formula!TB23>Formula!$B$4,"",Formula!TB27) ->  | TO8: =IF(Formula!TC23>Formula!$B$4,"",Formula!TC27) ->  | TP8: =IF(Formula!TD23>Formula!$B$4,"",Formula!TD27) ->  | TQ8: =IF(Formula!TE23>Formula!$B$4,"",Formula!TE27) ->  | TR8: =IF(Formula!TF23>Formula!$B$4,"",Formula!TF27) ->  | TS8: =IF(Formula!TG23>Formula!$B$4,"",Formula!TG27) ->  | TT8: =IF(Formula!TH23>Formula!$B$4,"",Formula!TH27) ->  | TU8: =IF(Formula!TI23>Formula!$B$4,"",Formula!TI27) ->  | TV8: =IF(Formula!TJ23>Formula!$B$4,"",Formula!TJ27) ->  | TW8: =IF(Formula!TK23>Formula!$B$4,"",Formula!TK27) ->  | TX8: =IF(Formula!TL23>Formula!$B$4,"",Formula!TL27) ->  | TY8: =IF(Formula!TM23>Formula!$B$4,"",Formula!TM27) ->  | TZ8: =IF(Formula!TN23>Formula!$B$4,"",Formula!TN27) ->  | UA8: =IF(Formula!TO23>Formula!$B$4,"",Formula!TO27) ->  | UB8: =IF(Formula!TP23>Formula!$B$4,"",Formula!TP27) ->  | UC8: =IF(Formula!TQ23>Formula!$B$4,"",Formula!TQ27) ->  | UD8: =IF(Formula!TR23>Formula!$B$4,"",Formula!TR27) ->  | UE8: =IF(Formula!TS23>Formula!$B$4,"",Formula!TS27) ->  | UF8: =IF(Formula!TT23>Formula!$B$4,"",Formula!TT27) ->  | UG8: =IF(Formula!TU23>Formula!$B$4,"",Formula!TU27) ->  | UH8: =IF(Formula!TV23>Formula!$B$4,"",Formula!TV27) ->  | UI8: =IF(Formula!TW23>Formula!$B$4,"",Formula!TW27) ->  | UJ8: =IF(Formula!TX23>Formula!$B$4,"",Formula!TX27) ->  | UK8: =IF(Formula!TY23>Formula!$B$4,"",Formula!TY27) ->  | UL8: =IF(Formula!TZ23>Formula!$B$4,"",Formula!TZ27) ->  | UM8: =IF(Formula!UA23>Formula!$B$4,"",Formula!UA27) ->  | UN8: =IF(Formula!UB23>Formula!$B$4,"",Formula!UB27) ->  | UO8: =IF(Formula!UC23>Formula!$B$4,"",Formula!UC27) ->  | UP8: =IF(Formula!UD23>Formula!$B$4,"",Formula!UD27) ->  | UQ8: =IF(Formula!UE23>Formula!$B$4,"",Formula!UE27) ->  | UR8: =IF(Formula!UF23>Formula!$B$4,"",Formula!UF27) ->  | US8: =IF(Formula!UG23>Formula!$B$4,"",Formula!UG27) ->  | UT8: =IF(Formula!UH23>Formula!$B$4,"",Formula!UH27) ->  | UU8: =IF(Formula!UI23>Formula!$B$4,"",Formula!UI27) ->  | UV8: =IF(Formula!UJ23>Formula!$B$4,"",Formula!UJ27) ->  | UW8: =IF(Formula!UK23>Formula!$B$4,"",Formula!UK27) ->  | UX8: =IF(Formula!UL23>Formula!$B$4,"",Formula!UL27) ->  | UY8: =IF(Formula!UM23>Formula!$B$4,"",Formula!UM27) ->  | UZ8: =IF(Formula!UN23>Formula!$B$4,"",Formula!UN27) ->  | VA8: =IF(Formula!UO23>Formula!$B$4,"",Formula!UO27) ->  | VB8: =IF(Formula!UP23>Formula!$B$4,"",Formula!UP27) ->  | VC8: =IF(Formula!UQ23>Formula!$B$4,"",Formula!UQ27) ->  | VD8: =IF(Formula!UR23>Formula!$B$4,"",Formula!UR27) ->  | VE8: =IF(Formula!US23>Formula!$B$4,"",Formula!US27) ->  | VF8: =IF(Formula!UT23>Formula!$B$4,"",Formula!UT27) ->  | VG8: =IF(Formula!UU23>Formula!$B$4,"",Formula!UU27) ->  | VH8: =IF(Formula!UV23>Formula!$B$4,"",Formula!UV27) ->  | VI8: =IF(Formula!UW23>Formula!$B$4,"",Formula!UW27) ->  | VJ8: =IF(Formula!UX23>Formula!$B$4,"",Formula!UX27) ->  | VK8: =IF(Formula!UY23>Formula!$B$4,"",Formula!UY27) ->  | VL8: =IF(Formula!UZ23>Formula!$B$4,"",Formula!UZ27) ->  | VM8: =IF(Formula!VA23>Formula!$B$4,"",Formula!VA27) ->  | VN8: =IF(Formula!VB23>Formula!$B$4,"",Formula!VB27) ->  | VO8: =IF(Formula!VC23>Formula!$B$4,"",Formula!VC27) ->  | VP8: =IF(Formula!VD23>Formula!$B$4,"",Formula!VD27) ->  | VQ8: =IF(Formula!VE23>Formula!$B$4,"",Formula!VE27) ->  | VR8: =IF(Formula!VF23>Formula!$B$4,"",Formula!VF27) ->  | VS8: =IF(Formula!VG23>Formula!$B$4,"",Formula!VG27) ->  | VT8: =IF(Formula!VH23>Formula!$B$4,"",Formula!VH27) ->  | VU8: =IF(Formula!VI23>Formula!$B$4,"",Formula!VI27) ->  | VV8: =IF(Formula!VJ23>Formula!$B$4,"",Formula!VJ27) ->  | VW8: =IF(Formula!VK23>Formula!$B$4,"",Formula!VK27) ->  | VX8: =IF(Formula!VL23>Formula!$B$4,"",Formula!VL27) ->  | VY8: =IF(Formula!VM23>Formula!$B$4,"",Formula!VM27) ->  | VZ8: =IF(Formula!VN23>Formula!$B$4,"",Formula!VN27) ->  | WA8: =IF(Formula!VO23>Formula!$B$4,"",Formula!VO27) ->  | WB8: =IF(Formula!VP23>Formula!$B$4,"",Formula!VP27) ->  | WC8: =IF(Formula!VQ23>Formula!$B$4,"",Formula!VQ27) ->  | WD8: =IF(Formula!VR23>Formula!$B$4,"",Formula!VR27) ->  | WE8: =IF(Formula!VS23>Formula!$B$4,"",Formula!VS27) ->  | WF8: =IF(Formula!VT23>Formula!$B$4,"",Formula!VT27) ->  | WG8: =IF(Formula!VU23>Formula!$B$4,"",Formula!VU27) ->  | WH8: =IF(Formula!VV23>Formula!$B$4,"",Formula!VV27) ->  | WI8: =IF(Formula!VW23>Formula!$B$4,"",Formula!VW27) ->  | WJ8: =IF(Formula!VX23>Formula!$B$4,"",Formula!VX27) ->  | WK8: =IF(Formula!VY23>Formula!$B$4,"",Formula!VY27) ->  | WL8: =IF(Formula!VZ23>Formula!$B$4,"",Formula!VZ27) ->  | WM8: =IF(Formula!WA23>Formula!$B$4,"",Formula!WA27) ->  | WN8: =IF(Formula!WB23>Formula!$B$4,"",Formula!WB27) ->  | WO8: =IF(Formula!WC23>Formula!$B$4,"",Formula!WC27) ->  | WP8: =IF(Formula!WD23>Formula!$B$4,"",Formula!WD27) ->  | WQ8: =IF(Formula!WE23>Formula!$B$4,"",Formula!WE27) ->  | WR8: =IF(Formula!WF23>Formula!$B$4,"",Formula!WF27) ->  | WS8: =IF(Formula!WG23>Formula!$B$4,"",Formula!WG27) ->  | WT8: =IF(Formula!WH23>Formula!$B$4,"",Formula!WH27) ->  | WU8: =IF(Formula!WI23>Formula!$B$4,"",Formula!WI27) ->  | WV8: =IF(Formula!WJ23>Formula!$B$4,"",Formula!WJ27) ->  | WW8: =IF(Formula!WK23>Formula!$B$4,"",Formula!WK27) ->  | WX8: =IF(Formula!WL23>Formula!$B$4,"",Formula!WL27) ->  | WY8: =IF(Formula!WM23>Formula!$B$4,"",Formula!WM27) ->  | WZ8: =IF(Formula!WN23>Formula!$B$4,"",Formula!WN27) ->  | XA8: =IF(Formula!WO23>Formula!$B$4,"",Formula!WO27) ->  | XB8: =IF(Formula!WP23>Formula!$B$4,"",Formula!WP27) ->  | XC8: =IF(Formula!WQ23>Formula!$B$4,"",Formula!WQ27) ->  | XD8: =IF(Formula!WR23>Formula!$B$4,"",Formula!WR27) ->  | XE8: =IF(Formula!WS23>Formula!$B$4,"",Formula!WS27) ->  | XF8: =IF(Formula!WT23>Formula!$B$4,"",Formula!WT27) ->  | XG8: =IF(Formula!WU23>Formula!$B$4,"",Formula!WU27) ->  | XH8: =IF(Formula!WV23>Formula!$B$4,"",Formula!WV27) ->  | XI8: =IF(Formula!WW23>Formula!$B$4,"",Formula!WW27) ->  | XJ8: =IF(Formula!WX23>Formula!$B$4,"",Formula!WX27) ->  | XK8: =IF(Formula!WY23>Formula!$B$4,"",Formula!WY27) ->  | XL8: =IF(Formula!WZ23>Formula!$B$4,"",Formula!WZ27) ->  | XM8: =IF(Formula!XA23>Formula!$B$4,"",Formula!XA27) ->  | XN8: =IF(Formula!XB23>Formula!$B$4,"",Formula!XB27) ->  | XO8: =IF(Formula!XC23>Formula!$B$4,"",Formula!XC27) ->  | XP8: =IF(Formula!XD23>Formula!$B$4,"",Formula!XD27) ->  | XQ8: =IF(Formula!XE23>Formula!$B$4,"",Formula!XE27) ->  | XR8: =IF(Formula!XF23>Formula!$B$4,"",Formula!XF27) ->  | XS8: =IF(Formula!XG23>Formula!$B$4,"",Formula!XG27) ->  | XT8: =IF(Formula!XH23>Formula!$B$4,"",Formula!XH27) ->  | XU8: =IF(Formula!XI23>Formula!$B$4,"",Formula!XI27) ->  | XV8: =IF(Formula!XJ23>Formula!$B$4,"",Formula!XJ27) ->  | XW8: =IF(Formula!XK23>Formula!$B$4,"",Formula!XK27) ->  | XX8: =IF(Formula!XL23>Formula!$B$4,"",Formula!XL27) ->  | XY8: =IF(Formula!XM23>Formula!$B$4,"",Formula!XM27) ->  | XZ8: =IF(Formula!XN23>Formula!$B$4,"",Formula!XN27) ->  | YA8: =IF(Formula!XO23>Formula!$B$4,"",Formula!XO27) ->  | YB8: =IF(Formula!XP23>Formula!$B$4,"",Formula!XP27) ->  | YC8: =IF(Formula!XQ23>Formula!$B$4,"",Formula!XQ27) ->  | YD8: =IF(Formula!XR23>Formula!$B$4,"",Formula!XR27) ->  | YE8: =IF(Formula!XS23>Formula!$B$4,"",Formula!XS27) ->  | YF8: =IF(Formula!XT23>Formula!$B$4,"",Formula!XT27) ->  | YG8: =IF(Formula!XU23>Formula!$B$4,"",Formula!XU27) ->  | YH8: =IF(Formula!XV23>Formula!$B$4,"",Formula!XV27) ->  | YI8: =IF(Formula!XW23>Formula!$B$4,"",Formula!XW27) ->  | YJ8: =IF(Formula!XX23>Formula!$B$4,"",Formula!XX27) ->  | YK8: =IF(Formula!XY23>Formula!$B$4,"",Formula!XY27) ->  | YL8: =IF(Formula!XZ23>Formula!$B$4,"",Formula!XZ27) ->  | YM8: =IF(Formula!YA23>Formula!$B$4,"",Formula!YA27) ->  | YN8: =IF(Formula!YB23>Formula!$B$4,"",Formula!YB27) ->  | YO8: =IF(Formula!YC23>Formula!$B$4,"",Formula!YC27) ->  | YP8: =IF(Formula!YD23>Formula!$B$4,"",Formula!YD27) ->  | YQ8: =IF(Formula!YE23>Formula!$B$4,"",Formula!YE27) ->  | YR8: =IF(Formula!YF23>Formula!$B$4,"",Formula!YF27) ->  | YS8: =IF(Formula!YG23>Formula!$B$4,"",Formula!YG27) ->  | YT8: =IF(Formula!YH23>Formula!$B$4,"",Formula!YH27) ->  | YU8: =IF(Formula!YI23>Formula!$B$4,"",Formula!YI27) ->  | YV8: =IF(Formula!YJ23>Formula!$B$4,"",Formula!YJ27) ->  | YW8: =IF(Formula!YK23>Formula!$B$4,"",Formula!YK27) ->  | YX8: =IF(Formula!YL23>Formula!$B$4,"",Formula!YL27) ->  | YY8: =IF(Formula!YM23>Formula!$B$4,"",Formula!YM27) ->  | YZ8: =IF(Formula!YN23>Formula!$B$4,"",Formula!YN27) ->  | ZA8: =IF(Formula!YO23>Formula!$B$4,"",Formula!YO27) ->  | ZB8: =IF(Formula!YP23>Formula!$B$4,"",Formula!YP27) ->  | ZC8: =IF(Formula!YQ23>Formula!$B$4,"",Formula!YQ27) ->  | ZD8: =IF(Formula!YR23>Formula!$B$4,"",Formula!YR27) ->  | ZE8: =IF(Formula!YS23>Formula!$B$4,"",Formula!YS27) ->  | ZF8: =IF(Formula!YT23>Formula!$B$4,"",Formula!YT27) ->  | ZG8: =IF(Formula!YU23>Formula!$B$4,"",Formula!YU27) ->  | ZH8: =IF(Formula!YV23>Formula!$B$4,"",Formula!YV27) ->  | ZI8: =IF(Formula!YW23>Formula!$B$4,"",Formula!YW27) ->  | ZJ8: =IF(Formula!YX23>Formula!$B$4,"",Formula!YX27) ->  | ZK8: =IF(Formula!YY23>Formula!$B$4,"",Formula!YY27) ->  | ZL8: =IF(Formula!YZ23>Formula!$B$4,"",Formula!YZ27) ->  | ZM8: =IF(Formula!ZA23>Formula!$B$4,"",Formula!ZA27) ->  | ZN8: =IF(Formula!ZB23>Formula!$B$4,"",Formula!ZB27) ->  | ZO8: =IF(Formula!ZC23>Formula!$B$4,"",Formula!ZC27) ->  | ZP8: =IF(Formula!ZD23>Formula!$B$4,"",Formula!ZD27) ->  | ZQ8: =IF(Formula!ZE23>Formula!$B$4,"",Formula!ZE27) ->  | ZR8: =IF(Formula!ZF23>Formula!$B$4,"",Formula!ZF27) ->  | ZS8: =IF(Formula!ZG23>Formula!$B$4,"",Formula!ZG27) ->  | ZT8: =IF(Formula!ZH23>Formula!$B$4,"",Formula!ZH27) ->  | ZU8: =IF(Formula!ZI23>Formula!$B$4,"",Formula!ZI27) ->  | ZV8: =IF(Formula!ZJ23>Formula!$B$4,"",Formula!ZJ27) ->  | ZW8: =IF(Formula!ZK23>Formula!$B$4,"",Formula!ZK27) ->  | ZX8: =IF(Formula!ZL23>Formula!$B$4,"",Formula!ZL27) ->  | ZY8: =IF(Formula!ZM23>Formula!$B$4,"",Formula!ZM27) ->  | ZZ8: =IF(Formula!ZN23>Formula!$B$4,"",Formula!ZN27) -> 
